Workbook

Sheet START
F11: =INDIRECT("START!I25") -> START | I11: =INDIRECT("START!K25") -> Описание методологии финмодели
I13: лист | K13: описание листа/столбца/строки/ячейки/блока ячеек
D14: =INDIRECT("Cntrl!M17") -> 0 | E14: =SUM($F14:$PL14) -> 0 | F14: =IFERROR(_xlfn.SHEET($A$1)-SUMIFS(Cntrl!O$15:O$100000,Cntrl!I$15:I$100000,$F$11),1) -> 0
A15: =ROW() -> 15 | I15: разработка финмоделей: https://mngmnt.ru/
A16: =ROW() -> 16 | H16: ФИНАНСОВАЯ МОДЕЛЬ
A17: =ROW() -> 17
A18: =ROW() -> 18
A19: =ROW() -> 19 | H19: ИНВЕСТИЦИОННЫЙ ПРОЕКТ: ДОБЫЧА ПОЛЕЗНЫХ ИСКОПАЕМЫХ
A20: =ROW() -> 20
A21: =ROW() -> 21
A22: =ROW() -> 22
A23: =ROW() -> 23 | H23: Методология. Список и предназначение листов настоящей финансовой модели
A24: =ROW() -> 24
A25: =ROW() -> 25 | I25: START | K25: Описание методологии финмодели
A26: =ROW() -> 26 | I26: Cntrl | K26: Общий контроль финансовой модели
A27: =ROW() -> 27 | I27: Periods | K27: Периоды и горизонты моделирования фактических и прогнозных данных
A28: =ROW() -> 28 | I28: Lists | K28: Выпадающие списки финансовой модели
A29: =ROW() -> 29 | I29: Macro | K29: Макропоказатели внешней среды
A30: =ROW() -> 30 | I30: Items | K30: Справочники статей доходов и расходов и т.д.
A31: =ROW() -> 31 | I31: KPI | K31: Справочники ключевых показателей эффективности
A32: =ROW() -> 32 | I32: GRR | K32: Параметры этапа геологоразведочных работ (ГРР)
A33: =ROW() -> 33 | I33: CapEx | K33: Календарный план-график капитальных затрат
A34: =ROW() -> 34 | I34: DvlFld | K34: Параметры этапа разработки месторождения и подготовки производства
A35: =ROW() -> 35 | I35: Prdction | K35: Производственный процесс и продажи
A36: =ROW() -> 36 | I36: HR | K36: Штатное расписание
A37: =ROW() -> 37 | I37: Exp | K37: Прочие расходы бизнес-проекта
A38: =ROW() -> 38 | I38: Credits | K38: Источники финансирования и их условия
A39: =ROW() -> 39 | I39: PL | K39: Итоговый отчет о прибылях и убытках
A40: =ROW() -> 40 | I40: CF | K40: Итоговый отчет о движении денежных средств
A41: =ROW() -> 41 | I41: BS | K41: Итоговый баланс
A42: =ROW() -> 42 | I42: MAIN | K42: Ключевые параметры управления и результаты финансовой модели
A43: =ROW() -> 43 | I43: PLd | K43: Детализированный отчет о прибылях и убытках
A44: =ROW() -> 44 | I44: CFd | K44: Детализированный отчет о движении денежных средств
A45: =ROW() -> 45 | I45: BSd | K45: Детализированный баланс
A46: =ROW() -> 46 | I46: Sens | K46: Анализ чувствительности финмодели
A47: =ROW() -> 47 | I47: UnitEc | K47: Расчет юнит-экономики бизнес-проекта
A48: =ROW() -> 48 | I48: CFind | K48: Анализ финансового потока косвенным методом
A49: =ROW() -> 49 | I49: FinEcAn | K49: Финансово-экономический анализ проекта
A50: =ROW() -> 50 | I50: InvAn | K50: Инвестиционный анализ проекта
A51: =ROW() -> 51 | I51: EBITDA | K51: Анализ собственной операционной деят-сти. Точки безубыточности
A52: =ROW() -> 52 | I52: Rep | K52: Укрупненное формирование всей отчетности финмодели
A53: =ROW() -> 53 | I53: Repd | K53: Детализированное формирование всей отчетности финмодели
A54: =ROW() -> 54 | I54: Calc | K54: Функционал финансовой модели. Все расчеты
A55: =ROW() -> 55 | I55: Fact | K55: Учет фактических операций
A56: =ROW() -> 56 | I56: 1S | K56: Выгрузки из 1С карточек с оборотами по счетам бухучета
A57: =ROW() -> 57 | I57: Rules | K57: Правила сопоставления статей для выгрузок из 1С
A58: =ROW() -> 58 | I58: Res1 | K58: Резервная вкладка 1
A59: =ROW() -> 59 | I59: Res2 | K59: Резервная вкладка 2
A60: =ROW() -> 60 | I60: Res3 | K60: Резервная вкладка 3
A61: =ROW() -> 61 | I61: Res4 | K61: Резервная вкладка 4
A62: =ROW() -> 62 | I62: Res5 | K62: Резервная вкладка 5
A63: =ROW() -> 63
A64: =ROW() -> 64 | H64: Обозначение ячеек для задания исходных данных
A65: =ROW() -> 65
A66: =ROW() -> 66 | H66: * | K66: Ячейки для задания исходных данных финмодели вручную
A67: =ROW() -> 67
A68: =ROW() -> 68 | H68: M | K68: Ячейки для задания исходных данных финмодели вручную с вкладки "MAIN"
A69: =ROW() -> 69
A70: =ROW() -> 70 | H70: * | J70: ^ | K70: Ячейки для задания исходных данных финмодели из выпадающих списков вкладки "Lists"
A71: =ROW() -> 71
A72: =ROW() -> 72 | H72: Ячейка F11 | K72: Для каждого листа в этой ячейке отображается название (ярлычка) листа
A73: =ROW() -> 73
A74: =ROW() -> 74 | H74: Ячейка I11 | K74: Для каждого листа в этой ячейке отображается заголовок листа
A75: =ROW() -> 75
A76: =ROW() -> 76 | H76: Ячейка E14 | K76: Для каждого листа в этой ячейке суммируются все контроли листа по 14-той строке
A77: =ROW() -> 77
A78: =ROW() -> 78 | H78: Ячейка D14 | K78: Для каждого листа в этой ячейке отображается общий контроль финмодели из листа "Cntrl"
A79: =ROW() -> 79
A80: =ROW() -> 80 | H80: Ячейка F14 | K80: Для каждого листа в этой ячейке проверяется соответствие названия листа их списку из "START"
A81: =ROW() -> 81
A82: =ROW() -> 82 | H82: Строка 13 | K82: Для каждого листа в этой строке отображаются заголовки столбцов
A83: =ROW() -> 83
A84: =ROW() -> 84 | I84: =$I$26 -> Cntrl | K84: =$K$26 -> Общий контроль финансовой модели
A85: =ROW() -> 85
A86: =ROW() -> 86 | I86: столбец M | K86: Со строки 19 здесь подтягиваются контроли всех листов из ячеек E14
A87: =ROW() -> 87
A88: =ROW() -> 88 | I88: M17 | K88: Общий контроль финмодели - сумма всех контрлей листов в столбце M
A89: =ROW() -> 89
A90: =ROW() -> 90 | I90: столбец O | K90: Со строки 19 здесь рассчитываются порядковые номера ярлычков листов в нижней панели
A91: =ROW() -> 91
A92: =ROW() -> 92 | I92: столбец Q | K92: Со строки 19 здесь из выпадающего списка пользователь выбирает тип листов
A93: =ROW() -> 93
A94: =ROW() -> 94 | I94: столбец S | K94: Со строки 19 здесь проверяется наличие значений из столбца Q в списке столбца U листа "Lists"
A95: =ROW() -> 95
A96: =ROW() -> 96 | I96: столбец G | K96: Со строки 19 здесь проверяется наличие названия из столбца H в заголовках списков листа "Lists"
A97: =ROW() -> 97
A98: =ROW() -> 98 | I98: =$I$27 -> Periods | K98: =$K$27 -> Периоды и горизонты моделирования фактических и прогнозных данных
A99: =ROW() -> 99
A100: =ROW() -> 100 | I100: Q16 | K100: Пользователь задает, выбирая из выпадающего списка, минимальный период шкалы времени
A101: =ROW() -> 101
A102: =ROW() -> 102 | I102: Q17 | K102: Пользователь задает вручную дату, с которой начинаются расчеты моделирования - старт
A103: =ROW() -> 103
A104: =ROW() -> 104 | I104: Q18 | K104: Пользователь задает вручную (от 1 до 400) количество периодов в шкале расчетов - горизонт
A105: =ROW() -> 105
A106: =ROW() -> 106 | I106: строки 20,21 | K106: По данным из ячеек Q16,Q17,Q18 рассчитываются даты начала и окончания периодов шкалы расчетов
A107: =ROW() -> 107
A108: =ROW() -> 108 | I108: строка 22 | K108: Формируются названия периодов шкалы расчетов
A109: =ROW() -> 109
A110: =ROW() -> 110 | I110: Q25 | K110: Пользователь указывает на необходимость отражения фактически проведенных операций
A111: =ROW() -> 111
A112: =ROW() -> 112 | I112: Q26 | K112: В случае выбора "да" в ячейке Q25, пользователь выбирает вариант задания фактического периода
A113: =ROW() -> 113
A114: =ROW() -> 114 | I114: Q30 | K114: Если в ячейках Q25 и Q26 "да", то здесь отображается текущая дата - окончание фактического периода
A115: =ROW() -> 115
A116: =ROW() -> 116 | I116: Q31 | K116: Если в ячейке Q25 "да" и в Q26 "нет", то здесь вручную задаем дату окончания фактического периода
A117: =ROW() -> 117
A118: =ROW() -> 118 | I118: строки 28,29 | K118: По данным из ячеек Q25,Q26,Q30,Q31 рассчитываются даты начала и окончания фактических периодов
A119: =ROW() -> 119
A120: =ROW() -> 120 | I120: Q33 | K120: Пользователь задает, выбирая из выпадающего списка, период шкалы времени для отчетности
A121: =ROW() -> 121
A122: =ROW() -> 122 | I122: строки 35,36 | K122: Рассчитываются даты начала и окончания периодов шкалы отчетности
A123: =ROW() -> 123
A124: =ROW() -> 124 | I124: строка 37 | K124: Формируются названия периодов шкалы отчетности
A125: =ROW() -> 125
A126: =ROW() -> 126 | I126: Q12 | K126: Отображается тип листа
A127: =ROW() -> 127
A128: =ROW() -> 128 | I128: строки 11,12 | K128: В зависимости от типа листа отображаются соответствующие даты начала и окончания периодов
A129: =ROW() -> 129
A130: =ROW() -> 130 | I130: строки 1-10 | K130: Строки носят технический характер, в них рассчитываются следующие параметры:
A131: =ROW() -> 131
A132: =ROW() -> 132 | K132: номер столбца:
A133: =ROW() -> 133 | K133: номер периода модели:
A134: =ROW() -> 134 | K134: номер факт-периода:
A135: =ROW() -> 135 | K135: номер план-периода:
A136: =ROW() -> 136 | K136: число даты начала:
A137: =ROW() -> 137 | K137: номер месяца даты начала:
A138: =ROW() -> 138 | K138: год даты начала:
A139: =ROW() -> 139 | K139: число даты окончания:
A140: =ROW() -> 140 | K140: номер месяца даты окончания:
A141: =ROW() -> 141 | K141: год даты окончания:
A142: =ROW() -> 142
A143: =ROW() -> 143 | I143: столбцы G,S | K143: Производится контроль за корректностью работы выпадающих списков
A144: =ROW() -> 144
A145: =ROW() -> 145 | I145: Lists | K145: Выпадающие списки финансовой модели
A146: =ROW() -> 146
A147: =ROW() -> 147 | I147: строка 1 | K147: Для технических нужд отображаются номера столбцов, в которых находятся выпадающие списки
A148: =ROW() -> 148
A149: =ROW() -> 149 | I149: строка 2 | K149: Для технических нужд отображаются названия столбцов, в которых находятся выпадающие списки
A150: =ROW() -> 150
A151: =ROW() -> 151 | I151: строка 15 | K151: Для технических нужд рассчитываются адреса блоков ячеек с выпадающими списками
A152: =ROW() -> 152
A153: =ROW() -> 153 | I153: столбец Q | K153: Значения выпадающего списка зависят от значения ячейки Q16 листа "Periods" и столбца I
A154: =ROW() -> 154
A155: =ROW() -> 155 | I155: справа от списков | K155: В 1-ом столбце справа от вып.списков производится нумерация актуальных значений вып.списков
A156: =ROW() -> 156
A157: =ROW() -> 157 | I157: справа от списков | K157: Во 2-ом столбце справа от вып.списков производится контроль за неповторяемостью значений
A158: =ROW() -> 158
A159: =ROW() -> 159
A160: =ROW() -> 160
A161: =ROW() -> 161
A162: =ROW() -> 162
A163: =ROW() -> 163
A164: =ROW() -> 164
A165: =ROW() -> 165
A166: =ROW() -> 166
A167: =ROW() -> 167
A168: =ROW() -> 168
A169: =ROW() -> 169
A170: =ROW() -> 170
A171: =ROW() -> 171
A172: =ROW() -> 172
A173: =ROW() -> 173
A174: =ROW() -> 174
A175: =ROW() -> 175
A176: =ROW() -> 176
A177: =ROW() -> 177
A178: =ROW() -> 178

Sheet Cntrl
F11: Cntrl | I11: Общий контроль финансовой модели
I13: лист | K13: ячейка с контролем | M13: контроль | O13: номер листа | Q13: тип листа | V13: точность
D14: 0 | E14: 0 | F14: 0 | G14: 0 | S14: 0
A15: 15 | I15: разработка финмоделей: https://mngmnt.ru/
A16: 16
A17: 17 | G17: 0 | H17: Общий контроль | M17: 0
A18: 18
A19: 19 | G19: 0 | H19: тип листа | I19: START | K19: E14 | M19: 0 | O19: 1 | P19: * | Q19: технический | R19: ^ | S19: 0 | U19: * | V19: 0.0000000
A20: 20 | G20: 0 | H20: тип листа | I20: Cntrl | K20: E14 | M20: 0 | O20: 2 | P20: * | Q20: технический | R20: ^ | S20: 0 | U20: * | V20: 0.0000000
A21: 21 | G21: 0 | H21: тип листа | I21: Periods | K21: E14 | M21: 0 | O21: 3 | P21: * | Q21: расчетный | R21: ^ | S21: 0 | U21: * | V21: 0.0000000
A22: 22 | G22: 0 | H22: тип листа | I22: Lists | K22: E14 | M22: 0 | O22: 4 | P22: * | Q22: технический | R22: ^ | S22: 0 | U22: * | V22: 0.0000000
A23: 23 | G23: 0 | H23: тип листа | I23: Macro | K23: E14 | M23: 0 | O23: 5 | P23: * | Q23: расчетный | R23: ^ | S23: 0 | U23: * | V23: 0.0000000
A24: 24 | G24: 0 | H24: тип листа | I24: Items | K24: E14 | M24: 0 | O24: 6 | P24: * | Q24: технический | R24: ^ | S24: 0 | U24: * | V24: 0.0000000
A25: 25 | G25: 0 | H25: тип листа | I25: KPI | K25: E14 | M25: 0 | O25: 7 | P25: * | Q25: технический | R25: ^ | S25: 0 | U25: * | V25: 0.0000000
A26: 26 | G26: 0 | H26: тип листа | I26: GRR | K26: E14 | M26: 0 | O26: 8 | P26: * | Q26: расчетный | R26: ^ | S26: 0 | U26: * | V26: 0.0010000
A27: 27 | G27: 0 | H27: тип листа | I27: CapEx | K27: E14 | M27: 0 | O27: 9 | P27: * | Q27: расчетный | R27: ^ | S27: 0 | U27: * | V27: 0.0010000
A28: 28 | G28: 0 | H28: тип листа | I28: DvlFld | K28: E14 | M28: 0 | O28: 10 | P28: * | Q28: расчетный | R28: ^ | S28: 0 | U28: * | V28: 0.0010000
A29: 29 | G29: 0 | H29: тип листа | I29: Prdction | K29: E14 | M29: 0 | O29: 11 | P29: * | Q29: расчетный | R29: ^ | S29: 0 | U29: * | V29: 0.0010000
A30: 30 | G30: 0 | H30: тип листа | I30: HR | K30: E14 | M30: 0 | O30: 12 | P30: * | Q30: расчетный | R30: ^ | S30: 0 | U30: * | V30: 0.0010000
A31: 31 | G31: 0 | H31: тип листа | I31: Exp | K31: E14 | M31: 0 | O31: 13 | P31: * | Q31: расчетный | R31: ^ | S31: 0 | U31: * | V31: 0.0010000
A32: 32 | G32: 0 | H32: тип листа | I32: Credits | K32: E14 | M32: 0 | O32: 14 | P32: * | Q32: расчетный | R32: ^ | S32: 0 | U32: * | V32: 0.0010000
A33: 33 | G33: 0 | H33: тип листа | I33: PL | K33: E14 | M33: 0 | O33: 15 | P33: * | Q33: отчетный | R33: ^ | S33: 0 | U33: * | V33: 0.0100000
A34: 34 | G34: 0 | H34: тип листа | I34: CF | K34: E14 | M34: 0 | O34: 16 | P34: * | Q34: отчетный | R34: ^ | S34: 0 | U34: * | V34: 0.0100000
A35: 35 | G35: 0 | H35: тип листа | I35: BS | K35: E14 | M35: 0 | O35: 17 | P35: * | Q35: отчетный | R35: ^ | S35: 0 | U35: * | V35: 0.0100000
A36: 36 | G36: 0 | H36: тип листа | I36: MAIN | K36: E14 | M36: 0 | O36: 18 | P36: * | Q36: отчетный | R36: ^ | S36: 0 | U36: * | V36: 0.0010000
A37: 37 | G37: 0 | H37: тип листа | I37: PLd | K37: E14 | M37: 0 | O37: 19 | P37: * | Q37: расчетный | R37: ^ | S37: 0 | U37: * | V37: 0.0100000
A38: 38 | G38: 0 | H38: тип листа | I38: CFd | K38: E14 | M38: 0 | O38: 20 | P38: * | Q38: расчетный | R38: ^ | S38: 0 | U38: * | V38: 0.0100000
A39: 39 | G39: 0 | H39: тип листа | I39: BSd | K39: E14 | M39: 0 | O39: 21 | P39: * | Q39: расчетный | R39: ^ | S39: 0 | U39: * | V39: 0.1000000
A40: 40 | G40: 0 | H40: тип листа | I40: Sens | K40: E14 | M40: 0 | O40: 22 | P40: * | Q40: отчетный | R40: ^ | S40: 0 | U40: * | V40: 0.0010000
A41: 41 | G41: 0 | H41: тип листа | I41: UnitEc | K41: E14 | M41: 0 | O41: 23 | P41: * | Q41: отчетный | R41: ^ | S41: 0 | U41: * | V41: 0.0010000
A42: 42 | G42: 0 | H42: тип листа | I42: CFind | K42: E14 | M42: 0 | O42: 24 | P42: * | Q42: отчетный | R42: ^ | S42: 0 | U42: * | V42: 0.0100000
A43: 43 | G43: 0 | H43: тип листа | I43: FinEcAn | K43: E14 | M43: 0 | O43: 25 | P43: * | Q43: отчетный | R43: ^ | S43: 0 | U43: * | V43: 0.0010000
A44: 44 | G44: 0 | H44: тип листа | I44: InvAn | K44: E14 | M44: 0 | O44: 26 | P44: * | Q44: отчетный | R44: ^ | S44: 0 | U44: * | V44: 0.0010000
A45: 45 | G45: 0 | H45: тип листа | I45: EBITDA | K45: E14 | M45: 0 | O45: 27 | P45: * | Q45: отчетный | R45: ^ | S45: 0 | U45: * | V45: 0.0010000
A46: 46 | G46: 0 | H46: тип листа | I46: Rep | K46: E14 | M46: 0 | O46: 28 | P46: * | Q46: отчетный | R46: ^ | S46: 0 | U46: * | V46: 0.0100000
A47: 47 | G47: 0 | H47: тип листа | I47: Repd | K47: E14 | M47: 0 | O47: 29 | P47: * | Q47: расчетный | R47: ^ | S47: 0 | U47: * | V47: 0.1000000
A48: 48 | G48: 0 | H48: тип листа | I48: Calc | K48: E14 | M48: 0 | O48: 30 | P48: * | Q48: расчетный | R48: ^ | S48: 0 | U48: * | V48: 0.1000000
A49: 49 | G49: 0 | H49: тип листа | I49: Fact | K49: E14 | P49: * | Q49: расчетный | R49: ^ | S49: 0 | U49: * | V49: 0.0000000
A50: 50 | G50: 0 | H50: тип листа | I50: 1S | K50: E14 | P50: * | Q50: расчетный | R50: ^ | S50: 0 | U50: * | V50: 0.0000000
A51: 51 | G51: 0 | H51: тип листа | I51: Rules | K51: E14 | P51: * | Q51: расчетный | R51: ^ | S51: 0 | U51: * | V51: 0.0000000
A52: 52 | G52: 0 | H52: тип листа | I52: Res1 | K52: E14 | P52: * | Q52: расчетный | R52: ^ | S52: 0 | U52: * | V52: 0.0000000
A53: 53 | G53: 0 | H53: тип листа | I53: Res2 | K53: E14 | P53: * | Q53: расчетный | R53: ^ | S53: 0 | U53: * | V53: 0.0000000
A54: 54 | G54: 0 | H54: тип листа | I54: Res3 | K54: E14 | P54: * | Q54: расчетный | R54: ^ | S54: 0 | U54: * | V54: 0.0000000
A55: 55 | G55: 0 | H55: тип листа | I55: Res4 | K55: E14 | P55: * | Q55: расчетный | R55: ^ | S55: 0 | U55: * | V55: 0.0000000
A56: 56 | G56: 0 | H56: тип листа | I56: Res5 | K56: E14 | P56: * | Q56: расчетный | R56: ^ | S56: 0 | U56: * | V56: 0.0000000
A57: 57
A58: 58
A59: 59
A60: 60
A61: 61
A62: 62
A63: 63
A64: 64
A65: 65
A66: 66
A67: 67
A68: 68
A69: 69
A70: 70

Sheet Periods
Y1: номер столбца: | AA1: 27 | AB1: 28 | AC1: 29 | AD1: 30 | AE1: 31 | AF1: 32 | AG1: 33 | AH1: 34 | AI1: 35 | AJ1: 36 | AK1: 37 | AL1: 38 | AM1: 39 | AN1: 40 | AO1: 41 | AP1: 42 | AQ1: 43 | AR1: 44 | AS1: 45 | AT1: 46 | AU1: 47 | AV1: 48 | AW1: 49 | AX1: 50 | AY1: 51 | AZ1: 52 | BA1: 53 | BB1: 54 | BC1: 55 | BD1: 56 | BE1: 57 | BF1: 58 | BG1: 59 | BH1: 60 | BI1: 61 | BJ1: 62 | BK1: 63 | BL1: 64 | BM1: 65 | BN1: 66 | BO1: 67 | BP1: 68 | BQ1: 69 | BR1: 70 | BS1: 71 | BT1: 72 | BU1: 73 | BV1: 74 | BW1: 75 | BX1: 76 | BY1: 77 | BZ1: 78 | CA1: 79 | CB1: 80 | CC1: 81 | CD1: 82 | CE1: 83 | CF1: 84 | CG1: 85 | CH1: 86 | CI1: 87 | CJ1: 88 | CK1: 89 | CL1: 90 | CM1: 91 | CN1: 92 | CO1: 93 | CP1: 94 | CQ1: 95 | CR1: 96 | CS1: 97 | CT1: 98 | CU1: 99 | CV1: 100 | CW1: 101 | CX1: 102 | CY1: 103 | CZ1: 104 | DA1: 105 | DB1: 106 | DC1: 107 | DD1: 108 | DE1: 109 | DF1: 110 | DG1: 111 | DH1: 112 | DI1: 113 | DJ1: 114 | DK1: 115 | DL1: 116 | DM1: 117 | DN1: 118 | DO1: 119 | DP1: 120 | DQ1: 121 | DR1: 122 | DS1: 123 | DT1: 124 | DU1: 125 | DV1: 126 | DW1: 127 | DX1: 128 | DY1: 129 | DZ1: 130 | EA1: 131 | EB1: 132 | EC1: 133 | ED1: 134 | EE1: 135 | EF1: 136 | EG1: 137 | EH1: 138 | EI1: 139 | EJ1: 140 | EK1: 141 | EL1: 142 | EM1: 143 | EN1: 144 | EO1: 145 | EP1: 146 | EQ1: 147 | ER1: 148 | ES1: 149 | ET1: 150 | EU1: 151 | EV1: 152 | EW1: 153 | EX1: 154 | EY1: 155 | EZ1: 156 | FA1: 157 | FB1: 158 | FC1: 159
Y2: номер периода модели: | AA2: 1 | AB2: 2 | AC2: 3 | AD2: 4 | AE2: 5 | AF2: 6 | AG2: 7 | AH2: 8 | AI2: 9 | AJ2: 10 | AK2: 11 | AL2: 12 | AM2: 13 | AN2: 14 | AO2: 15 | AP2: 16 | AQ2: 17 | AR2: 18 | AS2: 19 | AT2: 20 | AU2: 21 | AV2: 22 | AW2: 23 | AX2: 24 | AY2: 25 | AZ2: 26 | BA2: 27 | BB2: 28 | BC2: 29 | BD2: 30 | BE2: 31 | BF2: 32 | BG2: 33 | BH2: 34 | BI2: 35 | BJ2: 36 | BK2: 37 | BL2: 38 | BM2: 39 | BN2: 40 | BO2: 41 | BP2: 42 | BQ2: 43 | BR2: 44 | BS2: 45 | BT2: 46 | BU2: 47 | BV2: 48 | BW2: 49 | BX2: 50 | BY2: 51 | BZ2: 52 | CA2: 53 | CB2: 54 | CC2: 55 | CD2: 56 | CE2: 57 | CF2: 58 | CG2: 59 | CH2: 60 | CI2: 61 | CJ2: 62 | CK2: 63 | CL2: 64 | CM2: 65 | CN2: 66 | CO2: 67 | CP2: 68 | CQ2: 69 | CR2: 70 | CS2: 71 | CT2: 72 | CU2: 73 | CV2: 74 | CW2: 75 | CX2: 76 | CY2: 77 | CZ2: 78 | DA2: 79 | DB2: 80 | DC2: 81 | DD2: 82 | DE2: 83 | DF2: 84 | DG2: 85 | DH2: 86 | DI2: 87 | DJ2: 88 | DK2: 89 | DL2: 90 | DM2: 91 | DN2: 92 | DO2: 93 | DP2: 94 | DQ2: 95 | DR2: 96 | DS2: 97 | DT2: 98 | DU2: 99 | DV2: 100 | DW2: 101 | DX2: 102 | DY2: 103 | DZ2: 104 | EA2: 105 | EB2: 106 | EC2: 107 | ED2: 108 | EE2: 109 | EF2: 110 | EG2: 111 | EH2: 112 | EI2: 113 | EJ2: 114 | EK2: 115 | EL2: 116 | EM2: 117 | EN2: 118 | EO2: 119 | EP2: 120 | EQ2: 121 | ER2: 122 | ES2: 123 | ET2: 124 | EU2: 125 | EV2: 126 | EW2: 127 | EX2: 128 | EY2: 129 | EZ2: 130 | FA2: 131 | FB2: 132 | FC2: 133
Y3: номер факт-периода:
Y4: номер план-периода: | AA4: 1 | AB4: 2 | AC4: 3 | AD4: 4 | AE4: 5 | AF4: 6 | AG4: 7 | AH4: 8 | AI4: 9 | AJ4: 10 | AK4: 11 | AL4: 12 | AM4: 13 | AN4: 14 | AO4: 15 | AP4: 16 | AQ4: 17 | AR4: 18 | AS4: 19 | AT4: 20 | AU4: 21 | AV4: 22 | AW4: 23 | AX4: 24 | AY4: 25 | AZ4: 26 | BA4: 27 | BB4: 28 | BC4: 29 | BD4: 30 | BE4: 31 | BF4: 32 | BG4: 33 | BH4: 34 | BI4: 35 | BJ4: 36 | BK4: 37 | BL4: 38 | BM4: 39 | BN4: 40 | BO4: 41 | BP4: 42 | BQ4: 43 | BR4: 44 | BS4: 45 | BT4: 46 | BU4: 47 | BV4: 48
Y5: число даты начала: | AA5: 1 | AB5: 1 | AC5: 1 | AD5: 1 | AE5: 1 | AF5: 1 | AG5: 1 | AH5: 1 | AI5: 1 | AJ5: 1 | AK5: 1 | AL5: 1 | AM5: 1 | AN5: 1 | AO5: 1 | AP5: 1 | AQ5: 1 | AR5: 1 | AS5: 1 | AT5: 1 | AU5: 1 | AV5: 1 | AW5: 1 | AX5: 1 | AY5: 1 | AZ5: 1 | BA5: 1 | BB5: 1 | BC5: 1 | BD5: 1 | BE5: 1 | BF5: 1 | BG5: 1 | BH5: 1 | BI5: 1 | BJ5: 1 | BK5: 1 | BL5: 1 | BM5: 1 | BN5: 1 | BO5: 1 | BP5: 1 | BQ5: 1 | BR5: 1 | BS5: 1 | BT5: 1 | BU5: 1 | BV5: 1
Y6: номер месяца даты начала: | AA6: 9 | AB6: 10 | AC6: 11 | AD6: 12 | AE6: 1 | AF6: 2 | AG6: 3 | AH6: 4 | AI6: 5 | AJ6: 6 | AK6: 7 | AL6: 8 | AM6: 9 | AN6: 10 | AO6: 11 | AP6: 12 | AQ6: 1 | AR6: 2 | AS6: 3 | AT6: 4 | AU6: 5 | AV6: 6 | AW6: 7 | AX6: 8 | AY6: 9 | AZ6: 10 | BA6: 11 | BB6: 12 | BC6: 1 | BD6: 2 | BE6: 3 | BF6: 4 | BG6: 5 | BH6: 6 | BI6: 7 | BJ6: 8 | BK6: 9 | BL6: 10 | BM6: 11 | BN6: 12 | BO6: 1 | BP6: 2 | BQ6: 3 | BR6: 4 | BS6: 5 | BT6: 6 | BU6: 7 | BV6: 8
Y7: год даты начала: | AA7: 21 | AB7: 21 | AC7: 21 | AD7: 21 | AE7: 22 | AF7: 22 | AG7: 22 | AH7: 22 | AI7: 22 | AJ7: 22 | AK7: 22 | AL7: 22 | AM7: 22 | AN7: 22 | AO7: 22 | AP7: 22 | AQ7: 23 | AR7: 23 | AS7: 23 | AT7: 23 | AU7: 23 | AV7: 23 | AW7: 23 | AX7: 23 | AY7: 23 | AZ7: 23 | BA7: 23 | BB7: 23 | BC7: 24 | BD7: 24 | BE7: 24 | BF7: 24 | BG7: 24 | BH7: 24 | BI7: 24 | BJ7: 24 | BK7: 24 | BL7: 24 | BM7: 24 | BN7: 24 | BO7: 25 | BP7: 25 | BQ7: 25 | BR7: 25 | BS7: 25 | BT7: 25 | BU7: 25 | BV7: 25
Y8: число даты окончания: | AA8: 30 | AB8: 31 | AC8: 30 | AD8: 31 | AE8: 31 | AF8: 28 | AG8: 31 | AH8: 30 | AI8: 31 | AJ8: 30 | AK8: 31 | AL8: 31 | AM8: 30 | AN8: 31 | AO8: 30 | AP8: 31 | AQ8: 31 | AR8: 28 | AS8: 31 | AT8: 30 | AU8: 31 | AV8: 30 | AW8: 31 | AX8: 31 | AY8: 30 | AZ8: 31 | BA8: 30 | BB8: 31 | BC8: 31 | BD8: 29 | BE8: 31 | BF8: 30 | BG8: 31 | BH8: 30 | BI8: 31 | BJ8: 31 | BK8: 30 | BL8: 31 | BM8: 30 | BN8: 31 | BO8: 31 | BP8: 28 | BQ8: 31 | BR8: 30 | BS8: 31 | BT8: 30 | BU8: 31 | BV8: 31
Y9: номер месяца даты окончания: | AA9: 9 | AB9: 10 | AC9: 11 | AD9: 12 | AE9: 1 | AF9: 2 | AG9: 3 | AH9: 4 | AI9: 5 | AJ9: 6 | AK9: 7 | AL9: 8 | AM9: 9 | AN9: 10 | AO9: 11 | AP9: 12 | AQ9: 1 | AR9: 2 | AS9: 3 | AT9: 4 | AU9: 5 | AV9: 6 | AW9: 7 | AX9: 8 | AY9: 9 | AZ9: 10 | BA9: 11 | BB9: 12 | BC9: 1 | BD9: 2 | BE9: 3 | BF9: 4 | BG9: 5 | BH9: 6 | BI9: 7 | BJ9: 8 | BK9: 9 | BL9: 10 | BM9: 11 | BN9: 12 | BO9: 1 | BP9: 2 | BQ9: 3 | BR9: 4 | BS9: 5 | BT9: 6 | BU9: 7 | BV9: 8
Y10: год даты окончания: | AA10: 21 | AB10: 21 | AC10: 21 | AD10: 21 | AE10: 22 | AF10: 22 | AG10: 22 | AH10: 22 | AI10: 22 | AJ10: 22 | AK10: 22 | AL10: 22 | AM10: 22 | AN10: 22 | AO10: 22 | AP10: 22 | AQ10: 23 | AR10: 23 | AS10: 23 | AT10: 23 | AU10: 23 | AV10: 23 | AW10: 23 | AX10: 23 | AY10: 23 | AZ10: 23 | BA10: 23 | BB10: 23 | BC10: 24 | BD10: 24 | BE10: 24 | BF10: 24 | BG10: 24 | BH10: 24 | BI10: 24 | BJ10: 24 | BK10: 24 | BL10: 24 | BM10: 24 | BN10: 24 | BO10: 25 | BP10: 25 | BQ10: 25 | BR10: 25 | BS10: 25 | BT10: 25 | BU10: 25 | BV10: 25
F11: Periods | I11: Периоды и горизонты моделирования фактических и прогнозных данных | X11: 2021-09-01 | AA11: 2021-09-01 | AB11: 2021-10-01 | AC11: 2021-11-01 | AD11: 2021-12-01 | AE11: 2022-01-01 | AF11: 2022-02-01 | AG11: 2022-03-01 | AH11: 2022-04-01 | AI11: 2022-05-01 | AJ11: 2022-06-01 | AK11: 2022-07-01 | AL11: 2022-08-01 | AM11: 2022-09-01 | AN11: 2022-10-01 | AO11: 2022-11-01 | AP11: 2022-12-01 | AQ11: 2023-01-01 | AR11: 2023-02-01 | AS11: 2023-03-01 | AT11: 2023-04-01 | AU11: 2023-05-01 | AV11: 2023-06-01 | AW11: 2023-07-01 | AX11: 2023-08-01 | AY11: 2023-09-01 | AZ11: 2023-10-01 | BA11: 2023-11-01 | BB11: 2023-12-01 | BC11: 2024-01-01 | BD11: 2024-02-01 | BE11: 2024-03-01 | BF11: 2024-04-01 | BG11: 2024-05-01 | BH11: 2024-06-01 | BI11: 2024-07-01 | BJ11: 2024-08-01 | BK11: 2024-09-01 | BL11: 2024-10-01 | BM11: 2024-11-01 | BN11: 2024-12-01 | BO11: 2025-01-01 | BP11: 2025-02-01 | BQ11: 2025-03-01 | BR11: 2025-04-01 | BS11: 2025-05-01 | BT11: 2025-06-01 | BU11: 2025-07-01 | BV11: 2025-08-01
H12: тип листа | Q12: расчетный | X12: 2025-08-31 | AA12: 2021-09-30 | AB12: 2021-10-31 | AC12: 2021-11-30 | AD12: 2021-12-31 | AE12: 2022-01-31 | AF12: 2022-02-28 | AG12: 2022-03-31 | AH12: 2022-04-30 | AI12: 2022-05-31 | AJ12: 2022-06-30 | AK12: 2022-07-31 | AL12: 2022-08-31 | AM12: 2022-09-30 | AN12: 2022-10-31 | AO12: 2022-11-30 | AP12: 2022-12-31 | AQ12: 2023-01-31 | AR12: 2023-02-28 | AS12: 2023-03-31 | AT12: 2023-04-30 | AU12: 2023-05-31 | AV12: 2023-06-30 | AW12: 2023-07-31 | AX12: 2023-08-31 | AY12: 2023-09-30 | AZ12: 2023-10-31 | BA12: 2023-11-30 | BB12: 2023-12-31 | BC12: 2024-01-31 | BD12: 2024-02-29 | BE12: 2024-03-31 | BF12: 2024-04-30 | BG12: 2024-05-31 | BH12: 2024-06-30 | BI12: 2024-07-31 | BJ12: 2024-08-31 | BK12: 2024-09-30 | BL12: 2024-10-31 | BM12: 2024-11-30 | BN12: 2024-12-31 | BO12: 2025-01-31 | BP12: 2025-02-28 | BQ12: 2025-03-31 | BR12: 2025-04-30 | BS12: 2025-05-31 | BT12: 2025-06-30 | BU12: 2025-07-31 | BV12: 2025-08-31
H13: показатель | Q13: значение | X13: итого | AA13: 2021-09-01 | AB13: 2021-10-01 | AC13: 2021-11-01 | AD13: 2021-12-01 | AE13: 2022-01-01 | AF13: 2022-02-01 | AG13: 2022-03-01 | AH13: 2022-04-01 | AI13: 2022-05-01 | AJ13: 2022-06-01 | AK13: 2022-07-01 | AL13: 2022-08-01 | AM13: 2022-09-01 | AN13: 2022-10-01 | AO13: 2022-11-01 | AP13: 2022-12-01 | AQ13: 2023-01-01 | AR13: 2023-02-01 | AS13: 2023-03-01 | AT13: 2023-04-01 | AU13: 2023-05-01 | AV13: 2023-06-01 | AW13: 2023-07-01 | AX13: 2023-08-01 | AY13: 2023-09-01 | AZ13: 2023-10-01 | BA13: 2023-11-01 | BB13: 2023-12-01 | BC13: 2024-01-01 | BD13: 2024-02-01 | BE13: 2024-03-01 | BF13: 2024-04-01 | BG13: 2024-05-01 | BH13: 2024-06-01 | BI13: 2024-07-01 | BJ13: 2024-08-01 | BK13: 2024-09-01 | BL13: 2024-10-01 | BM13: 2024-11-01 | BN13: 2024-12-01 | BO13: 2025-01-01 | BP13: 2025-02-01 | BQ13: 2025-03-01 | BR13: 2025-04-01 | BS13: 2025-05-01 | BT13: 2025-06-01 | BU13: 2025-07-01 | BV13: 2025-08-01
D14: 0 | E14: 0 | F14: 0 | G14: 0 | S14: 0
A15: 15 | H15: разработка финмоделей: https://mngmnt.ru/
A16: 16 | G16: 0 | H16: минимальный период расчетов | P16: * | Q16: месяц | R16: ^ | S16: 0 | Y16: номер периода модели: | AA16: 1 | AB16: 2 | AC16: 3 | AD16: 4 | AE16: 5 | AF16: 6 | AG16: 7 | AH16: 8 | AI16: 9 | AJ16: 10 | AK16: 11 | AL16: 12 | AM16: 13 | AN16: 14 | AO16: 15 | AP16: 16 | AQ16: 17 | AR16: 18 | AS16: 19 | AT16: 20 | AU16: 21 | AV16: 22 | AW16: 23 | AX16: 24 | AY16: 25 | AZ16: 26 | BA16: 27 | BB16: 28 | BC16: 29 | BD16: 30 | BE16: 31 | BF16: 32 | BG16: 33 | BH16: 34 | BI16: 35 | BJ16: 36 | BK16: 37 | BL16: 38 | BM16: 39 | BN16: 40 | BO16: 41 | BP16: 42 | BQ16: 43 | BR16: 44 | BS16: 45 | BT16: 46 | BU16: 47 | BV16: 48 | BW16: 49 | BX16: 50 | BY16: 51 | BZ16: 52 | CA16: 53 | CB16: 54 | CC16: 55 | CD16: 56 | CE16: 57 | CF16: 58 | CG16: 59 | CH16: 60 | CI16: 61 | CJ16: 62 | CK16: 63 | CL16: 64 | CM16: 65 | CN16: 66 | CO16: 67 | CP16: 68 | CQ16: 69 | CR16: 70 | CS16: 71 | CT16: 72 | CU16: 73 | CV16: 74 | CW16: 75 | CX16: 76 | CY16: 77 | CZ16: 78 | DA16: 79 | DB16: 80 | DC16: 81 | DD16: 82 | DE16: 83 | DF16: 84 | DG16: 85 | DH16: 86 | DI16: 87 | DJ16: 88 | DK16: 89 | DL16: 90 | DM16: 91 | DN16: 92 | DO16: 93 | DP16: 94 | DQ16: 95 | DR16: 96 | DS16: 97 | DT16: 98 | DU16: 99 | DV16: 100 | DW16: 101 | DX16: 102 | DY16: 103 | DZ16: 104 | EA16: 105 | EB16: 106 | EC16: 107 | ED16: 108 | EE16: 109 | EF16: 110 | EG16: 111 | EH16: 112 | EI16: 113 | EJ16: 114 | EK16: 115 | EL16: 116 | EM16: 117 | EN16: 118 | EO16: 119 | EP16: 120 | EQ16: 121 | ER16: 122 | ES16: 123 | ET16: 124 | EU16: 125 | EV16: 126 | EW16: 127 | EX16: 128 | EY16: 129 | EZ16: 130 | FA16: 131 | FB16: 132 | FC16: 133
A17: 17 | G17: 0 | H17: дата старта проекта | P17: * | Q17: 2021-09-01 | S17: 0 | Y17: номер месяца даты начала: | AA17: 9 | AB17: 10 | AC17: 11 | AD17: 12 | AE17: 1 | AF17: 2 | AG17: 3 | AH17: 4 | AI17: 5 | AJ17: 6 | AK17: 7 | AL17: 8 | AM17: 9 | AN17: 10 | AO17: 11 | AP17: 12 | AQ17: 1 | AR17: 2 | AS17: 3 | AT17: 4 | AU17: 5 | AV17: 6 | AW17: 7 | AX17: 8 | AY17: 9 | AZ17: 10 | BA17: 11 | BB17: 12 | BC17: 1 | BD17: 2 | BE17: 3 | BF17: 4 | BG17: 5 | BH17: 6 | BI17: 7 | BJ17: 8 | BK17: 9 | BL17: 10 | BM17: 11 | BN17: 12 | BO17: 1 | BP17: 2 | BQ17: 3 | BR17: 4 | BS17: 5 | BT17: 6 | BU17: 7 | BV17: 8
A18: 18 | G18: 0 | H18: горизонт моделирования в кол-ве периодов | P18: * | Q18: 48 | S18: 0 | Y18: год даты начала: | AA18: 21 | AB18: 21 | AC18: 21 | AD18: 21 | AE18: 22 | AF18: 22 | AG18: 22 | AH18: 22 | AI18: 22 | AJ18: 22 | AK18: 22 | AL18: 22 | AM18: 22 | AN18: 22 | AO18: 22 | AP18: 22 | AQ18: 23 | AR18: 23 | AS18: 23 | AT18: 23 | AU18: 23 | AV18: 23 | AW18: 23 | AX18: 23 | AY18: 23 | AZ18: 23 | BA18: 23 | BB18: 23 | BC18: 24 | BD18: 24 | BE18: 24 | BF18: 24 | BG18: 24 | BH18: 24 | BI18: 24 | BJ18: 24 | BK18: 24 | BL18: 24 | BM18: 24 | BN18: 24 | BO18: 25 | BP18: 25 | BQ18: 25 | BR18: 25 | BS18: 25 | BT18: 25 | BU18: 25 | BV18: 25
A19: 19
A20: 20 | G20: 0 | H20: дата старта периода расчетов модели | X20: 2021-09-01 | AA20: 2021-09-01 | AB20: 2021-10-01 | AC20: 2021-11-01 | AD20: 2021-12-01 | AE20: 2022-01-01 | AF20: 2022-02-01 | AG20: 2022-03-01 | AH20: 2022-04-01 | AI20: 2022-05-01 | AJ20: 2022-06-01 | AK20: 2022-07-01 | AL20: 2022-08-01 | AM20: 2022-09-01 | AN20: 2022-10-01 | AO20: 2022-11-01 | AP20: 2022-12-01 | AQ20: 2023-01-01 | AR20: 2023-02-01 | AS20: 2023-03-01 | AT20: 2023-04-01 | AU20: 2023-05-01 | AV20: 2023-06-01 | AW20: 2023-07-01 | AX20: 2023-08-01 | AY20: 2023-09-01 | AZ20: 2023-10-01 | BA20: 2023-11-01 | BB20: 2023-12-01 | BC20: 2024-01-01 | BD20: 2024-02-01 | BE20: 2024-03-01 | BF20: 2024-04-01 | BG20: 2024-05-01 | BH20: 2024-06-01 | BI20: 2024-07-01 | BJ20: 2024-08-01 | BK20: 2024-09-01 | BL20: 2024-10-01 | BM20: 2024-11-01 | BN20: 2024-12-01 | BO20: 2025-01-01 | BP20: 2025-02-01 | BQ20: 2025-03-01 | BR20: 2025-04-01 | BS20: 2025-05-01 | BT20: 2025-06-01 | BU20: 2025-07-01 | BV20: 2025-08-01
A21: 21 | G21: 0 | H21: дата завершения периода расчетов модели | X21: 2025-08-31 | AA21: 2021-09-30 | AB21: 2021-10-31 | AC21: 2021-11-30 | AD21: 2021-12-31 | AE21: 2022-01-31 | AF21: 2022-02-28 | AG21: 2022-03-31 | AH21: 2022-04-30 | AI21: 2022-05-31 | AJ21: 2022-06-30 | AK21: 2022-07-31 | AL21: 2022-08-31 | AM21: 2022-09-30 | AN21: 2022-10-31 | AO21: 2022-11-30 | AP21: 2022-12-31 | AQ21: 2023-01-31 | AR21: 2023-02-28 | AS21: 2023-03-31 | AT21: 2023-04-30 | AU21: 2023-05-31 | AV21: 2023-06-30 | AW21: 2023-07-31 | AX21: 2023-08-31 | AY21: 2023-09-30 | AZ21: 2023-10-31 | BA21: 2023-11-30 | BB21: 2023-12-31 | BC21: 2024-01-31 | BD21: 2024-02-29 | BE21: 2024-03-31 | BF21: 2024-04-30 | BG21: 2024-05-31 | BH21: 2024-06-30 | BI21: 2024-07-31 | BJ21: 2024-08-31 | BK21: 2024-09-30 | BL21: 2024-10-31 | BM21: 2024-11-30 | BN21: 2024-12-31 | BO21: 2025-01-31 | BP21: 2025-02-28 | BQ21: 2025-03-31 | BR21: 2025-04-30 | BS21: 2025-05-31 | BT21: 2025-06-30 | BU21: 2025-07-31 | BV21: 2025-08-31
A22: 22 | G22: 0 | H22: названия периодов расчета | AA22: 2021-09-01 | AB22: 2021-10-01 | AC22: 2021-11-01 | AD22: 2021-12-01 | AE22: 2022-01-01 | AF22: 2022-02-01 | AG22: 2022-03-01 | AH22: 2022-04-01 | AI22: 2022-05-01 | AJ22: 2022-06-01 | AK22: 2022-07-01 | AL22: 2022-08-01 | AM22: 2022-09-01 | AN22: 2022-10-01 | AO22: 2022-11-01 | AP22: 2022-12-01 | AQ22: 2023-01-01 | AR22: 2023-02-01 | AS22: 2023-03-01 | AT22: 2023-04-01 | AU22: 2023-05-01 | AV22: 2023-06-01 | AW22: 2023-07-01 | AX22: 2023-08-01 | AY22: 2023-09-01 | AZ22: 2023-10-01 | BA22: 2023-11-01 | BB22: 2023-12-01 | BC22: 2024-01-01 | BD22: 2024-02-01 | BE22: 2024-03-01 | BF22: 2024-04-01 | BG22: 2024-05-01 | BH22: 2024-06-01 | BI22: 2024-07-01 | BJ22: 2024-08-01 | BK22: 2024-09-01 | BL22: 2024-10-01 | BM22: 2024-11-01 | BN22: 2024-12-01 | BO22: 2025-01-01 | BP22: 2025-02-01 | BQ22: 2025-03-01 | BR22: 2025-04-01 | BS22: 2025-05-01 | BT22: 2025-06-01 | BU22: 2025-07-01 | BV22: 2025-08-01
A23: 23
A24: 24 | G24: 0 | H24: ответ "да/нет"
A25: 25 | G25: 0 | H25: ответ "да/нет" | I25: учесть фактические данные? | P25: * | Q25: нет | R25: ^ | S25: 0
A26: 26 | G26: 0 | H26: ответ "да/нет" | I26: фактический период выбрать по умолчанию? | Q26: да | R26: ^ | S26: 0
A27: 27
A28: 28 | G28: 0 | H28: дата начала фактического периода
A29: 29 | G29: 0 | H29: дата окончания фактического периода
A30: 30 | G30: 0 | H30: дата окончания фактического периода | I30: по умолчанию - сегодняшний день | Q30: 2022-02-10
A31: 31 | G31: 0 | H31: дата окончания фактического периода | I31: задать вручную дату окончания периода | Q31: 2020-10-31 | Y31: номер периода модели: | AA31: 1 | AB31: 2 | AC31: 3 | AD31: 4 | AE31: 5 | AF31: 6 | AG31: 7 | AH31: 8 | AI31: 9 | AJ31: 10 | AK31: 11 | AL31: 12 | AM31: 13 | AN31: 14 | AO31: 15 | AP31: 16 | AQ31: 17 | AR31: 18 | AS31: 19 | AT31: 20 | AU31: 21 | AV31: 22 | AW31: 23 | AX31: 24 | AY31: 25 | AZ31: 26 | BA31: 27 | BB31: 28 | BC31: 29 | BD31: 30 | BE31: 31 | BF31: 32 | BG31: 33 | BH31: 34 | BI31: 35 | BJ31: 36 | BK31: 37 | BL31: 38 | BM31: 39 | BN31: 40 | BO31: 41 | BP31: 42 | BQ31: 43 | BR31: 44 | BS31: 45 | BT31: 46 | BU31: 47 | BV31: 48 | BW31: 49 | BX31: 50 | BY31: 51 | BZ31: 52 | CA31: 53 | CB31: 54 | CC31: 55 | CD31: 56 | CE31: 57 | CF31: 58 | CG31: 59 | CH31: 60 | CI31: 61 | CJ31: 62 | CK31: 63 | CL31: 64 | CM31: 65 | CN31: 66 | CO31: 67 | CP31: 68 | CQ31: 69 | CR31: 70 | CS31: 71 | CT31: 72 | CU31: 73 | CV31: 74 | CW31: 75 | CX31: 76 | CY31: 77 | CZ31: 78 | DA31: 79 | DB31: 80 | DC31: 81 | DD31: 82 | DE31: 83 | DF31: 84 | DG31: 85 | DH31: 86 | DI31: 87 | DJ31: 88 | DK31: 89 | DL31: 90 | DM31: 91 | DN31: 92 | DO31: 93 | DP31: 94 | DQ31: 95 | DR31: 96 | DS31: 97 | DT31: 98 | DU31: 99 | DV31: 100 | DW31: 101 | DX31: 102 | DY31: 103 | DZ31: 104 | EA31: 105 | EB31: 106 | EC31: 107 | ED31: 108 | EE31: 109 | EF31: 110 | EG31: 111 | EH31: 112 | EI31: 113 | EJ31: 114 | EK31: 115 | EL31: 116 | EM31: 117 | EN31: 118 | EO31: 119 | EP31: 120 | EQ31: 121 | ER31: 122 | ES31: 123 | ET31: 124 | EU31: 125 | EV31: 126 | EW31: 127 | EX31: 128 | EY31: 129 | EZ31: 130 | FA31: 131 | FB31: 132 | FC31: 133
A32: 32 | Y32: номер месяца даты начала: | AA32: 9 | AB32: 9 | AC32: 9 | AD32: 9
A33: 33 | G33: 0 | H33: период отчетности | P33: * | Q33: год текущий | R33: ^ | S33: 0 | Y33: год даты начала: | AA33: 21 | AB33: 22 | AC33: 23 | AD33: 24
A34: 34
A35: 35 | G35: 0 | H35: дата старта отчетности модели | X35: 2021-09-01 | AA35: 2021-09-01 | AB35: 2022-09-01 | AC35: 2023-09-01 | AD35: 2024-09-01
A36: 36 | G36: 0 | H36: дата завершения отчетности модели | X36: 2025-08-31 | AA36: 2022-08-31 | AB36: 2023-08-31 | AC36: 2024-08-31 | AD36: 2025-08-31
A37: 37 | G37: 0 | H37: названия периодов отчетности | AA37: 1 год | AB37: 2 год | AC37: 3 год | AD37: 4 год
A38: 38
A39: 39
A40: 40
A41: 41
A42: 42 | H42: разработка финмоделей: https://mngmnt.ru/
A43: 43
A44: 44
A45: 45
A46: 46
A47: 47
A48: 48
A49: 49
A50: 50
A51: 51
A52: 52
A53: 53
A54: 54
A55: 55
A56: 56
A57: 57
A58: 58
A59: 59
A60: 60
A61: 61
A62: 62
A63: 63
A64: 64
A65: 65
A66: 66
A67: 67
A68: 68
A69: 69
A70: 70

Sheet Lists
I1: =COLUMN() -> 9 | M1: =COLUMN() -> 13 | Q1: =COLUMN() -> 17 | U1: =COLUMN() -> 21 | AB1: =COLUMN() -> 28 | AF1: =COLUMN() -> 32 | AI1: =COLUMN() -> 35 | AM1: =COLUMN() -> 39 | AQ1: =COLUMN() -> 43 | AU1: =COLUMN() -> 47 | AY1: =COLUMN() -> 51 | BC1: =COLUMN() -> 55 | BG1: =COLUMN() -> 59 | BS1: =COLUMN() -> 71 | BW1: =COLUMN() -> 75 | CA1: =COLUMN() -> 79 | CE1: =COLUMN() -> 83 | CI1: =COLUMN() -> 87 | CM1: =COLUMN() -> 91 | CQ1: =COLUMN() -> 95 | CU1: =COLUMN() -> 99 | CY1: =COLUMN() -> 103
I2: =LEFT(ADDRESS(1,COLUMN(),4),LEN(ADDRESS(1,COLUMN(),4))-1) -> I | M2: =LEFT(ADDRESS(1,COLUMN(),4),LEN(ADDRESS(1,COLUMN(),4))-1) -> M | Q2: =LEFT(ADDRESS(1,COLUMN(),4),LEN(ADDRESS(1,COLUMN(),4))-1) -> Q | U2: =LEFT(ADDRESS(1,COLUMN(),4),LEN(ADDRESS(1,COLUMN(),4))-1) -> U | AB2: =LEFT(ADDRESS(1,COLUMN(),4),LEN(ADDRESS(1,COLUMN(),4))-1) -> AB | AF2: =LEFT(ADDRESS(1,COLUMN(),4),LEN(ADDRESS(1,COLUMN(),4))-1) -> AF | AI2: =LEFT(ADDRESS(1,COLUMN(),4),LEN(ADDRESS(1,COLUMN(),4))-1) -> AI | AM2: =LEFT(ADDRESS(1,COLUMN(),4),LEN(ADDRESS(1,COLUMN(),4))-1) -> AM | AQ2: =LEFT(ADDRESS(1,COLUMN(),4),LEN(ADDRESS(1,COLUMN(),4))-1) -> AQ | AU2: =LEFT(ADDRESS(1,COLUMN(),4),LEN(ADDRESS(1,COLUMN(),4))-1) -> AU | AY2: =LEFT(ADDRESS(1,COLUMN(),4),LEN(ADDRESS(1,COLUMN(),4))-1) -> AY | BC2: =LEFT(ADDRESS(1,COLUMN(),4),LEN(ADDRESS(1,COLUMN(),4))-1) -> BC | BG2: =LEFT(ADDRESS(1,COLUMN(),4),LEN(ADDRESS(1,COLUMN(),4))-1) -> BG | BS2: =LEFT(ADDRESS(1,COLUMN(),4),LEN(ADDRESS(1,COLUMN(),4))-1) -> BS | BW2: =LEFT(ADDRESS(1,COLUMN(),4),LEN(ADDRESS(1,COLUMN(),4))-1) -> BW | CA2: =LEFT(ADDRESS(1,COLUMN(),4),LEN(ADDRESS(1,COLUMN(),4))-1) -> CA | CE2: =LEFT(ADDRESS(1,COLUMN(),4),LEN(ADDRESS(1,COLUMN(),4))-1) -> CE | CI2: =LEFT(ADDRESS(1,COLUMN(),4),LEN(ADDRESS(1,COLUMN(),4))-1) -> CI | CM2: =LEFT(ADDRESS(1,COLUMN(),4),LEN(ADDRESS(1,COLUMN(),4))-1) -> CM | CQ2: =LEFT(ADDRESS(1,COLUMN(),4),LEN(ADDRESS(1,COLUMN(),4))-1) -> CQ | CU2: =LEFT(ADDRESS(1,COLUMN(),4),LEN(ADDRESS(1,COLUMN(),4))-1) -> CU | CY2: =LEFT(ADDRESS(1,COLUMN(),4),LEN(ADDRESS(1,COLUMN(),4))-1) -> CY
F11: =INDIRECT("START!I28") -> Lists | I11: =INDIRECT("START!K28") -> Выпадающие списки финансовой модели
AI12: =START!$I$32 -> GRR | AY12: =START!$I$32 -> GRR | BC12: =START!$I$32 -> GRR | BS12: =START!$I$33 -> CapEx | BW12: =START!$I$33 -> CapEx | CA12: =START!$I$36 -> HR | CI12: =START!$I$36 -> HR | CM12: =START!$I$29 -> Macro | CQ12: =START!$I$29 -> Macro | CU12: =START!$I$54 -> Calc
I13: минимальный период расчетов | M13: ответ "да/нет" | Q13: период отчетности | U13: тип листа | AB13: тип прогрессии | AF13: кол-во дней в периоде | AI13: каналы привлечения клиентов | AM13: продукция | AQ13: дата старта | AU13: тип учета | AY13: натуральные факторы переменных расходов маркетинга | BC13: денежные факторы переменных расходов маркетинга | BG13: тип зависимости переменных расходов | BS13: Ввод в эксплуатацию | BW13: Налоги на внеоборотные активы | CA13: Типы и должности персонала | CE13: Типы оплаты | CI13: Потребность в р/месте | CM13: Система налогообложения | CQ13: Налоги и сборы | CU13: Метки расчетов | CY13: Коммуникация
D14: =INDIRECT("Cntrl!M17") -> 0 | E14: =SUM($F14:$PH14) -> 0 | F14: =IFERROR(_xlfn.SHEET($A$1)-SUMIFS(Cntrl!O$15:O$100000,Cntrl!I$15:I$100000,$F$11),1) -> 0 | I14: =IF(OR(I13=0,I13=""),1,IF(COUNTIF(13:13,I13)=1,0,1)) -> 0 | K14: =SUM(K$15:K$100000) -> 0 | M14: =IF(OR(M13=0,M13=""),1,IF(COUNTIF(13:13,M13)=1,0,1)) -> 0 | O14: =SUM(O$15:O$100000) -> 0 | Q14: =IF(OR(Q13=0,Q13=""),1,IF(COUNTIF(13:13,Q13)=1,0,1)) -> 0 | S14: =SUM(S$15:S$100000) -> 0 | U14: =IF(OR(U13=0,U13=""),1,IF(COUNTIF(13:13,U13)=1,0,1)) -> 0 | W14: =SUM(W$15:W$100000) -> 0 | AD14: =SUM(AD$15:AD$100000) -> 0 | AF14: =IF(OR(AF13=0,AF13=""),1,IF(COUNTIF(13:13,AF13)=1,0,1)) -> 0 | AI14: =IF(OR(AI13=0,AI13=""),1,IF(COUNTIF(13:13,AI13)=1,0,1)) -> 0 | AK14: =SUM(AK$15:AK$100000) -> 0 | AM14: =IF(OR(AM13=0,AM13=""),1,IF(COUNTIF(13:13,AM13)=1,0,1)) -> 0 | AO14: =SUM(AO$15:AO$100000) -> 0 | AQ14: =IF(OR(AQ13=0,AQ13=""),1,IF(COUNTIF(13:13,AQ13)=1,0,1)) -> 0 | AS14: =SUM(AS$15:AS$100000) -> 0 | AU14: =IF(OR(AU13=0,AU13=""),1,IF(COUNTIF(13:13,AU13)=1,0,1)) -> 0 | AW14: =SUM(AW$15:AW$100000) -> 0 | AY14: =IF(OR(AY13=0,AY13=""),1,IF(COUNTIF(13:13,AY13)=1,0,1)) -> 0 | BA14: =SUM(BA$15:BA$100000) -> 0 | BC14: =IF(OR(BC13=0,BC13=""),1,IF(COUNTIF(13:13,BC13)=1,0,1)) -> 0 | BE14: =SUM(BE$15:BE$100000) -> 0 | BG14: =IF(OR(BG13=0,BG13=""),1,IF(COUNTIF(13:13,BG13)=1,0,1)) -> 0 | BI14: =SUM(BI$15:BI$100000) -> 0 | BM14: =SUM(BM$15:BM$100000) -> 0 | BQ14: =SUM(BQ$15:BQ$100000) -> 0 | BS14: =IF(OR(BS13=0,BS13=""),1,IF(COUNTIF(13:13,BS13)=1,0,1)) -> 0 | BU14: =SUM(BU$15:BU$100000) -> 0 | BW14: =IF(OR(BW13=0,BW13=""),1,IF(COUNTIF(13:13,BW13)=1,0,1)) -> 0 | BY14: =SUM(BY$15:BY$100000) -> 0 | CA14: =IF(OR(CA13=0,CA13=""),1,IF(COUNTIF(13:13,CA13)=1,0,1)) -> 0 | CC14: =SUM(CC$15:CC$100000) -> 0 | CE14: =IF(OR(CE13=0,CE13=""),1,IF(COUNTIF(13:13,CE13)=1,0,1)) -> 0 | CG14: =SUM(CG$15:CG$100000) -> 0 | CI14: =IF(OR(CI13=0,CI13=""),1,IF(COUNTIF(13:13,CI13)=1,0,1)) -> 0 | CK14: =SUM(CK$15:CK$100000) -> 0 | CM14: =IF(OR(CM13=0,CM13=""),1,IF(COUNTIF(13:13,CM13)=1,0,1)) -> 0 | CO14: =SUM(CO$15:CO$100000) -> 0 | CQ14: =IF(OR(CQ13=0,CQ13=""),1,IF(COUNTIF(13:13,CQ13)=1,0,1)) -> 0 | CS14: =SUM(CS$15:CS$100000) -> 0 | CU14: =IF(OR(CU13=0,CU13=""),1,IF(COUNTIF(13:13,CU13)=1,0,1)) -> 0 | CW14: =SUM(CW$15:CW$100000) -> 0 | CY14: =IF(OR(CY13=0,CY13=""),1,IF(COUNTIF(13:13,CY13)=1,0,1)) -> 0 | DA14: =SUM(DA$15:DA$100000) -> 0
A15: =ROW() -> 15 | I15: =$F$11&"!"&I$2&$A16&":"&I$2&($A15+MAX(J$15:J$100000)) -> Lists!I16:I22 | M15: =$F$11&"!"&M$2&$A16&":"&M$2&($A15+MAX(N$15:N$100000)) -> Lists!M16:M17 | Q15: =$F$11&"!"&Q$2&$A16&":"&Q$2&($A15+MAX(R$15:R$100000)) -> Lists!Q16:Q18 | U15: =$F$11&"!"&U$2&$A16&":"&U$2&($A15+MAX(V$15:V$100000)) -> Lists!U16:U18 | AB15: =$F$11&"!"&AB$2&$A16&":"&AB$2&($A15+MAX(AC$15:AC$100000)) -> Lists!AB16:AB17 | AF15: =$F$11&"!"&AF$2&$A16&":"&AF$2&($A15+MAX(AG$15:AG$100000)) -> Lists!AF16:AF22 | AI15: =$F$11&"!"&AI$2&$A16&":"&AI$2&($A15+MAX(AJ$15:AJ$100000)) -> Lists!AI16:AI19 | AM15: =$F$11&"!"&AM$2&$A16&":"&AM$2&($A15+MAX(AN$15:AN$100000)) -> Lists!AM16:AM19 | AQ15: =$F$11&"!"&AQ$2&$A16&":"&AQ$2&($A15+MAX(AR$15:AR$100000)) -> Lists!AQ16:AQ63 | AU15: =$F$11&"!"&AU$2&$A16&":"&AU$2&($A15+MAX(AV$15:AV$100000)) -> Lists!AU16:AU20 | AY15: =$F$11&"!"&AY$2&$A16&":"&AY$2&($A15+MAX(AZ$15:AZ$100000)) -> Lists!AY16:AY18 | BC15: =$F$11&"!"&BC$2&$A16&":"&BC$2&($A15+MAX(BD$15:BD$100000)) -> Lists!BC16:BC16 | BG15: =$F$11&"!"&BG$2&$A16&":"&BG$2&($A15+MAX(BH$15:BH$100000)) -> Lists!BG16:BG17 | BS15: =$F$11&"!"&BS$2&$A16&":"&BS$2&($A15+MAX(BT$15:BT$100000)) -> Lists!BS16:BS18 | BW15: =$F$11&"!"&BW$2&$A16&":"&BW$2&($A15+MAX(BX$15:BX$100000)) -> Lists!BW16:BW18 | CA15: =$F$11&"!"&CA$2&$A16&":"&CA$2&($A15+MAX(CB$15:CB$100000)) -> Lists!CA16:CA25 | CE15: =$F$11&"!"&CE$2&$A16&":"&CE$2&($A15+MAX(CF$15:CF$100000)) -> Lists!CE16:CE18 | CI15: =$F$11&"!"&CI$2&$A16&":"&CI$2&($A15+MAX(CJ$15:CJ$100000)) -> Lists!CI16:CI17 | CM15: =$F$11&"!"&CM$2&$A16&":"&CM$2&($A15+MAX(CN$15:CN$100000)) -> Lists!CM16:CM19 | CQ15: =$F$11&"!"&CQ$2&$A16&":"&CQ$2&($A15+MAX(CR$15:CR$100000)) -> Lists!CQ16:CQ19 | CU15: =$F$11&"!"&CU$2&$A16&":"&CU$2&($A15+MAX(CV$15:CV$100000)) -> Lists!CU16:CU29 | CY15: =$F$11&"!"&CY$2&$A16&":"&CY$2&($A15+MAX(CZ$15:CZ$100000)) -> Lists!CY16:CY28
A16: =ROW() -> 16 | I16: день | J16: =MAX(J$15:J15)+1 -> 1 | K16: =IF(OR(I16=0,I16=""),0,IF(COUNTIF(I$15:I$100000,I16)=1,0,1)) -> 0 | M16: да | N16: =MAX(N$15:N15)+1 -> 1 | O16: =IF(OR(M16=0,M16=""),0,IF(COUNTIF(M$15:M$100000,M16)=1,0,1)) -> 0 | Q16: =IF(Periods!$Q$16=$I$16,$I17,IF(OR(Periods!$Q$16=$I$17,Periods!$Q$16=$I$18),$I19,IF(Periods!$Q$16=$I$19,$I20,IF(Periods!$Q$16=$I$20,$I21,IF(Periods!$Q$16=$I$21,$I22,""))))) -> квартал | R16: =IF(OR(Q16="",Q16=0),"",MAX(R$15:R15)+1) -> 1 | S16: =IF(OR(Q16=0,Q16=""),0,IF(COUNTIF(Q$15:Q$100000,Q16)=1,0,1)) -> 0 | U16: расчетный | V16: =MAX(V$15:V15)+1 -> 1 | W16: =IF(OR(U16=0,U16=""),0,IF(COUNTIF(U$15:U$100000,U16)=1,0,1)) -> 0 | AB16: линейная | AC16: =MAX(AC$15:AC15)+1 -> 1 | AD16: =IF(OR(AB16=0,AB16=""),0,IF(COUNTIF(AB$15:AB$100000,AB16)=1,0,1)) -> 0 | AF16: 1 | AG16: =MAX(AG$15:AG15)+1 -> 1 | AH16: =MAX(AH$15:AH15)+1 -> 1 | AI16: =IF(SUMIFS(GRR!$A:$A,GRR!$K:$K,AH16)=0,"",INDEX(GRR!$L:$L,SUMIFS(GRR!$A:$A,GRR!$K:$K,AH16))) -> Месторождение - 1 | AJ16: =IF(OR(AI16="",AI16=0),"",MAX(AJ$15:AJ15)+1) -> 1 | AK16: =IF(OR(AI16=0,AI16=""),0,IF(COUNTIF(AI$15:AI$100000,AI16)=1,0,1)) -> 0 | AL16: * | AM16: ="ПИ месторождения-"&AN16 -> ПИ месторождения-1 | AN16: =MAX(AN$15:AN15)+1 -> 1 | AO16: =IF(OR(AM16=0,AM16=""),0,IF(COUNTIF(AM$15:AM$100000,AM16)=1,0,1)) -> 0 | AP16: =MAX(AP$15:AP15)+1 -> 1 | AQ16: =SUMIFS(Periods!$11:$11,Periods!$2:$2,AP16) -> 2021-09-01 | AR16: =IF(OR(AQ16="",AQ16=0),"",MAX(AR$15:AR15)+1) -> 1 | AS16: =IF(OR(AQ16=0,AQ16=""),0,IF(COUNTIF(AQ$15:AQ$100000,AQ16)=1,0,1)) -> 0 | AU16: начисление | AV16: =MAX(AV$15:AV15)+1 -> 1 | AW16: =IF(OR(AU16=0,AU16=""),0,IF(COUNTIF(AU$15:AU$100000,AU16)=1,0,1)) -> 0 | AY16: =GRR!$H$19 -> Поток запусков освоения месторождений | AZ16: =MAX(AZ$15:AZ15)+1 -> 1 | BA16: =IF(OR(AY16=0,AY16=""),0,IF(COUNTIF(AY$15:AY$100000,AY16)=1,0,1)) -> 0 | BC16: =GRR!$H$63 -> Общий оборот | BD16: =MAX(BD$15:BD15)+1 -> 1 | BE16: =IF(OR(BC16=0,BC16=""),0,IF(COUNTIF(BC$15:BC$100000,BC16)=1,0,1)) -> 0 | BG16: натуральные факторы | BH16: =MAX(BH$15:BH15)+1 -> 1 | BI16: =IF(OR(BG16=0,BG16=""),0,IF(COUNTIF(BG$15:BG$100000,BG16)=1,0,1)) -> 0 | BJ16: * | BL16: =MAX(BL$15:BL15)+1 -> 1 | BM16: =IF(OR(BK16=0,BK16=""),0,IF(COUNTIF(BK$15:BK$100000,BK16)=1,0,1)) -> 0 | BN16: * | BP16: =MAX(BP$15:BP15)+1 -> 1 | BQ16: =IF(OR(BO16=0,BO16=""),0,IF(COUNTIF(BO$15:BO$100000,BO16)=1,0,1)) -> 0 | BS16: в последний период всех капзатрат | BT16: =MAX(BT$15:BT15)+1 -> 1 | BU16: =IF(OR(BS16=0,BS16=""),0,IF(COUNTIF(BS$15:BS$100000,BS16)=1,0,1)) -> 0 | BW16: земельный налог | BX16: =MAX(BX$15:BX15)+1 -> 1 | BY16: =IF(OR(BW16=0,BW16=""),0,IF(COUNTIF(BW$15:BW$100000,BW16)=1,0,1)) -> 0 | CA16: Сезонные рабочие этапа ГРР | CB16: =MAX(CB$15:CB15)+1 -> 1 | CC16: =IF(OR(CA16=0,CA16=""),0,IF(COUNTIF(CA$15:CA$100000,CA16)=1,0,1)) -> 0 | CE16: аванс-доплата | CF16: =MAX(CF$15:CF15)+1 -> 1 | CG16: =IF(OR(CE16=0,CE16=""),0,IF(COUNTIF(CE$15:CE$100000,CE16)=1,0,1)) -> 0 | CI16: нужно обустр-во | CJ16: =MAX(CJ$15:CJ15)+1 -> 1 | CK16: =IF(OR(CI16=0,CI16=""),0,IF(COUNTIF(CI$15:CI$100000,CI16)=1,0,1)) -> 0 | CM16: ОСНО | CN16: =MAX(CN$15:CN15)+1 -> 1 | CO16: =IF(OR(CM16=0,CM16=""),0,IF(COUNTIF(CM$15:CM$100000,CM16)=1,0,1)) -> 0 | CQ16: НДС | CR16: =MAX(CR$15:CR15)+1 -> 1 | CS16: =IF(OR(CQ16=0,CQ16=""),0,IF(COUNTIF(CQ$15:CQ$100000,CQ16)=1,0,1)) -> 0 | CU16: ндс(+) | CV16: =MAX(CV$15:CV15)+1 -> 1 | CW16: =IF(OR(CU16=0,CU16=""),0,IF(COUNTIF(CU$15:CU$100000,CU16)=1,0,1)) -> 0 | CX16: * | CY16: Единое значение для всех периодов расчета | CZ16: =MAX(CZ$15:CZ15)+1 -> 1 | DA16: =IF(OR(CY16=0,CY16=""),0,IF(COUNTIF(CY$15:CY$100000,CY16)=1,0,1)) -> 0
A17: =ROW() -> 17 | I17: неделя | J17: =MAX(J$15:J16)+1 -> 2 | K17: =IF(OR(I17=0,I17=""),0,IF(COUNTIF(I$15:I$100000,I17)=1,0,1)) -> 0 | M17: нет | N17: =MAX(N$15:N16)+1 -> 2 | O17: =IF(OR(M17=0,M17=""),0,IF(COUNTIF(M$15:M$100000,M17)=1,0,1)) -> 0 | Q17: =IF(Periods!$Q$16=$I$16,$I18,IF(OR(Periods!$Q$16=$I$17,Periods!$Q$16=$I$18),$I20,IF(Periods!$Q$16=$I$19,$I21,IF(Periods!$Q$16=$I$20,$I22,IF(Periods!$Q$16=$I$21,$I23,""))))) -> год текущий | R17: =IF(OR(Q17="",Q17=0),"",MAX(R$15:R16)+1) -> 2 | S17: =IF(OR(Q17=0,Q17=""),0,IF(COUNTIF(Q$15:Q$100000,Q17)=1,0,1)) -> 0 | U17: отчетный | V17: =MAX(V$15:V16)+1 -> 2 | W17: =IF(OR(U17=0,U17=""),0,IF(COUNTIF(U$15:U$100000,U17)=1,0,1)) -> 0 | AB17: геометрическая | AC17: =MAX(AC$15:AC16)+1 -> 2 | AD17: =IF(OR(AB17=0,AB17=""),0,IF(COUNTIF(AB$15:AB$100000,AB17)=1,0,1)) -> 0 | AF17: 7 | AG17: =MAX(AG$15:AG16)+1 -> 2 | AH17: =MAX(AH$15:AH16)+1 -> 2 | AI17: =IF(SUMIFS(GRR!$A:$A,GRR!$K:$K,AH17)=0,"",INDEX(GRR!$L:$L,SUMIFS(GRR!$A:$A,GRR!$K:$K,AH17))) -> Месторождение - 2 | AJ17: =IF(OR(AI17="",AI17=0),"",MAX(AJ$15:AJ16)+1) -> 2 | AK17: =IF(OR(AI17=0,AI17=""),0,IF(COUNTIF(AI$15:AI$100000,AI17)=1,0,1)) -> 0 | AL17: * | AM17: ="ПИ месторождения-"&AN17 -> ПИ месторождения-2 | AN17: =MAX(AN$15:AN16)+1 -> 2 | AO17: =IF(OR(AM17=0,AM17=""),0,IF(COUNTIF(AM$15:AM$100000,AM17)=1,0,1)) -> 0 | AP17: =MAX(AP$15:AP16)+1 -> 2 | AQ17: =SUMIFS(Periods!$11:$11,Periods!$2:$2,AP17) -> 2021-10-01 | AR17: =IF(OR(AQ17="",AQ17=0),"",MAX(AR$15:AR16)+1) -> 2 | AS17: =IF(OR(AQ17=0,AQ17=""),0,IF(COUNTIF(AQ$15:AQ$100000,AQ17)=1,0,1)) -> 0 | AU17: учет | AV17: =MAX(AV$15:AV16)+1 -> 2 | AW17: =IF(OR(AU17=0,AU17=""),0,IF(COUNTIF(AU$15:AU$100000,AU17)=1,0,1)) -> 0 | AY17: =GRR!$H$53 -> Итоговый объем переработки песка | AZ17: =MAX(AZ$15:AZ16)+1 -> 2 | BA17: =IF(OR(AY17=0,AY17=""),0,IF(COUNTIF(AY$15:AY$100000,AY17)=1,0,1)) -> 0 | BG17: денежные факторы | BH17: =MAX(BH$15:BH16)+1 -> 2 | BI17: =IF(OR(BG17=0,BG17=""),0,IF(COUNTIF(BG$15:BG$100000,BG17)=1,0,1)) -> 0 | BJ17: * | BL17: =MAX(BL$15:BL16)+1 -> 2 | BM17: =IF(OR(BK17=0,BK17=""),0,IF(COUNTIF(BK$15:BK$100000,BK17)=1,0,1)) -> 0 | BN17: * | BP17: =MAX(BP$15:BP16)+1 -> 2 | BQ17: =IF(OR(BO17=0,BO17=""),0,IF(COUNTIF(BO$15:BO$100000,BO17)=1,0,1)) -> 0 | BS17: в последний период данной статьи | BT17: =MAX(BT$15:BT16)+1 -> 2 | BU17: =IF(OR(BS17=0,BS17=""),0,IF(COUNTIF(BS$15:BS$100000,BS17)=1,0,1)) -> 0 | BW17: транспортный налог | BX17: =MAX(BX$15:BX16)+1 -> 2 | BY17: =IF(OR(BW17=0,BW17=""),0,IF(COUNTIF(BW$15:BW$100000,BW17)=1,0,1)) -> 0 | CA17: Сезонные рабочие этапа разработки | CB17: =MAX(CB$15:CB16)+1 -> 2 | CC17: =IF(OR(CA17=0,CA17=""),0,IF(COUNTIF(CA$15:CA$100000,CA17)=1,0,1)) -> 0 | CE17: аванс-платеж | CF17: =MAX(CF$15:CF16)+1 -> 2 | CG17: =IF(OR(CE17=0,CE17=""),0,IF(COUNTIF(CE$15:CE$100000,CE17)=1,0,1)) -> 0 | CI17: не нужно обустр-во | CJ17: =MAX(CJ$15:CJ16)+1 -> 2 | CK17: =IF(OR(CI17=0,CI17=""),0,IF(COUNTIF(CI$15:CI$100000,CI17)=1,0,1)) -> 0 | CM17: УСН(6%) | CN17: =MAX(CN$15:CN16)+1 -> 2 | CO17: =IF(OR(CM17=0,CM17=""),0,IF(COUNTIF(CM$15:CM$100000,CM17)=1,0,1)) -> 0 | CQ17: Соцсборы | CR17: =MAX(CR$15:CR16)+1 -> 2 | CS17: =IF(OR(CQ17=0,CQ17=""),0,IF(COUNTIF(CQ$15:CQ$100000,CQ17)=1,0,1)) -> 0 | CU17: ндс(-) | CV17: =MAX(CV$15:CV16)+1 -> 2 | CW17: 0 | CX17: * | CY17: Максимальное значение | CZ17: =MAX(CZ$15:CZ16)+1 -> 2 | DA17: 0
A18: =ROW() -> 18 | I18: декада | J18: =MAX(J$15:J17)+1 -> 3 | K18: 0 | Q18: =IF(Periods!$Q$16=$I$16,$I19,IF(OR(Periods!$Q$16=$I$17,Periods!$Q$16=$I$18),$I21,IF(Periods!$Q$16=$I$19,$I22,IF(Periods!$Q$16=$I$20,$I23,IF(Periods!$Q$16=$I$21,$I24,""))))) -> год календ. | R18: =IF(OR(Q18="",Q18=0),"",MAX(R$15:R17)+1) -> 3 | S18: 0 | U18: технический | V18: =MAX(V$15:V17)+1 -> 3 | W18: =IF(OR(U18=0,U18=""),0,IF(COUNTIF(U$15:U$100000,U18)=1,0,1)) -> 0 | AF18: 10 | AG18: =MAX(AG$15:AG17)+1 -> 3 | AH18: =MAX(AH$15:AH17)+1 -> 3 | AI18: =IF(SUMIFS(GRR!$A:$A,GRR!$K:$K,AH18)=0,"",INDEX(GRR!$L:$L,SUMIFS(GRR!$A:$A,GRR!$K:$K,AH18))) -> Месторождение - 3 | AJ18: =IF(OR(AI18="",AI18=0),"",MAX(AJ$15:AJ17)+1) -> 3 | AK18: 0 | AL18: * | AM18: ="ПИ месторождения-"&AN18 -> ПИ месторождения-3 | AN18: =MAX(AN$15:AN17)+1 -> 3 | AO18: =IF(OR(AM18=0,AM18=""),0,IF(COUNTIF(AM$15:AM$100000,AM18)=1,0,1)) -> 0 | AP18: =MAX(AP$15:AP17)+1 -> 3 | AQ18: =SUMIFS(Periods!$11:$11,Periods!$2:$2,AP18) -> 2021-11-01 | AR18: =IF(OR(AQ18="",AQ18=0),"",MAX(AR$15:AR17)+1) -> 3 | AS18: 0 | AU18: оплата | AV18: =MAX(AV$15:AV17)+1 -> 3 | AW18: =IF(OR(AU18=0,AU18=""),0,IF(COUNTIF(AU$15:AU$100000,AU18)=1,0,1)) -> 0 | AY18: =GRR!$H$55 -> Валовый объем добычи ПИ | AZ18: =MAX(AZ$15:AZ17)+1 -> 3 | BA18: =IF(OR(AY18=0,AY18=""),0,IF(COUNTIF(AY$15:AY$100000,AY18)=1,0,1)) -> 0 | BJ18: * | BL18: =MAX(BL$15:BL17)+1 -> 3 | BM18: =IF(OR(BK18=0,BK18=""),0,IF(COUNTIF(BK$15:BK$100000,BK18)=1,0,1)) -> 0 | BN18: * | BP18: =MAX(BP$15:BP17)+1 -> 3 | BQ18: =IF(OR(BO18=0,BO18=""),0,IF(COUNTIF(BO$15:BO$100000,BO18)=1,0,1)) -> 0 | BS18: в каждый период начисления | BT18: =MAX(BT$15:BT17)+1 -> 3 | BU18: =IF(OR(BS18=0,BS18=""),0,IF(COUNTIF(BS$15:BS$100000,BS18)=1,0,1)) -> 0 | BW18: налог на имущество организаций | BX18: =MAX(BX$15:BX17)+1 -> 3 | BY18: =IF(OR(BW18=0,BW18=""),0,IF(COUNTIF(BW$15:BW$100000,BW18)=1,0,1)) -> 0 | CA18: Производство и продажи | CB18: =MAX(CB$15:CB17)+1 -> 3 | CC18: =IF(OR(CA18=0,CA18=""),0,IF(COUNTIF(CA$15:CA$100000,CA18)=1,0,1)) -> 0 | CE18: ретро-платеж | CF18: =MAX(CF$15:CF17)+1 -> 3 | CG18: =IF(OR(CE18=0,CE18=""),0,IF(COUNTIF(CE$15:CE$100000,CE18)=1,0,1)) -> 0 | CM18: УСН(15%) | CN18: =MAX(CN$15:CN17)+1 -> 3 | CO18: =IF(OR(CM18=0,CM18=""),0,IF(COUNTIF(CM$15:CM$100000,CM18)=1,0,1)) -> 0 | CQ18: Налог на прибыль | CR18: =MAX(CR$15:CR17)+1 -> 3 | CS18: =IF(OR(CQ18=0,CQ18=""),0,IF(COUNTIF(CQ$15:CQ$100000,CQ18)=1,0,1)) -> 0 | CU18: PL(+) | CV18: =MAX(CV$15:CV17)+1 -> 3 | CW18: 0 | CX18: * | CY18: Расчет формулой разности: 100%-сумму() | CZ18: =MAX(CZ$15:CZ17)+1 -> 3 | DA18: 0
A19: =ROW() -> 19 | I19: месяц | J19: =MAX(J$15:J18)+1 -> 4 | K19: 0 | Q19: =IF(Periods!$Q$16=$I$16,$I20,IF(OR(Periods!$Q$16=$I$17,Periods!$Q$16=$I$18),$I22,IF(Periods!$Q$16=$I$19,$I23,IF(Periods!$Q$16=$I$20,$I24,IF(Periods!$Q$16=$I$21,$I25,""))))) -> 0 | R19: =IF(OR(Q19="",Q19=0),"",MAX(R$15:R18)+1) ->  | S19: 0 | AF19: 30 | AG19: =MAX(AG$15:AG18)+1 -> 4 | AH19: =MAX(AH$15:AH18)+1 -> 4 | AI19: =IF(SUMIFS(GRR!$A:$A,GRR!$K:$K,AH19)=0,"",INDEX(GRR!$L:$L,SUMIFS(GRR!$A:$A,GRR!$K:$K,AH19))) -> Месторождение - 4 | AJ19: =IF(OR(AI19="",AI19=0),"",MAX(AJ$15:AJ18)+1) -> 4 | AK19: 0 | AL19: * | AM19: ="ПИ месторождения-"&AN19 -> ПИ месторождения-4 | AN19: =MAX(AN$15:AN18)+1 -> 4 | AO19: =IF(OR(AM19=0,AM19=""),0,IF(COUNTIF(AM$15:AM$100000,AM19)=1,0,1)) -> 0 | AP19: =MAX(AP$15:AP18)+1 -> 4 | AQ19: =SUMIFS(Periods!$11:$11,Periods!$2:$2,AP19) -> 2021-12-01 | AR19: =IF(OR(AQ19="",AQ19=0),"",MAX(AR$15:AR18)+1) -> 4 | AS19: 0 | AU19: списание | AV19: =MAX(AV$15:AV18)+1 -> 4 | AW19: =IF(OR(AU19=0,AU19=""),0,IF(COUNTIF(AU$15:AU$100000,AU19)=1,0,1)) -> 0 | BZ19: * | CA19: Совет директоров и правление | CB19: =MAX(CB$15:CB18)+1 -> 4 | CC19: =IF(OR(CA19=0,CA19=""),0,IF(COUNTIF(CA$15:CA$100000,CA19)=1,0,1)) -> 0 | CM19: ТОСЭР | CN19: =MAX(CN$15:CN18)+1 -> 4 | CO19: =IF(OR(CM19=0,CM19=""),0,IF(COUNTIF(CM$15:CM$100000,CM19)=1,0,1)) -> 0 | CQ19: ТОСЭР | CR19: =MAX(CR$15:CR18)+1 -> 4 | CS19: =IF(OR(CQ19=0,CQ19=""),0,IF(COUNTIF(CQ$15:CQ$100000,CQ19)=1,0,1)) -> 0 | CU19: PL(-) | CV19: =MAX(CV$15:CV18)+1 -> 4 | CW19: 0 | CX19: * | CY19: Процент индексации/прироста | CZ19: =MAX(CZ$15:CZ18)+1 -> 4 | DA19: 0
A20: =ROW() -> 20 | I20: квартал | J20: =MAX(J$15:J19)+1 -> 5 | K20: 0 | Q20: =IF(Periods!$Q$16=$I$16,$I21,IF(OR(Periods!$Q$16=$I$17,Periods!$Q$16=$I$18),$I23,IF(Periods!$Q$16=$I$19,$I24,IF(Periods!$Q$16=$I$20,$I25,IF(Periods!$Q$16=$I$21,$I26,""))))) -> 0 | R20: =IF(OR(Q20="",Q20=0),"",MAX(R$15:R19)+1) ->  | S20: 0 | AF20: 90 | AG20: =MAX(AG$15:AG19)+1 -> 5 | AH20: =MAX(AH$15:AH19)+1 -> 5 | AI20: =IF(SUMIFS(GRR!$A:$A,GRR!$K:$K,AH20)=0,"",INDEX(GRR!$L:$L,SUMIFS(GRR!$A:$A,GRR!$K:$K,AH20))) ->  | AJ20: =IF(OR(AI20="",AI20=0),"",MAX(AJ$15:AJ19)+1) ->  | AK20: 0 | AP20: =MAX(AP$15:AP19)+1 -> 5 | AQ20: =SUMIFS(Periods!$11:$11,Periods!$2:$2,AP20) -> 2022-01-01 | AR20: =IF(OR(AQ20="",AQ20=0),"",MAX(AR$15:AR19)+1) -> 5 | AS20: 0 | AU20: калькуляция | AV20: =MAX(AV$15:AV19)+1 -> 5 | AW20: =IF(OR(AU20=0,AU20=""),0,IF(COUNTIF(AU$15:AU$100000,AU20)=1,0,1)) -> 0 | BZ20: * | CA20: Геологический отдел | CB20: =MAX(CB$15:CB19)+1 -> 5 | CC20: 0 | CU20: PL | CV20: =MAX(CV$15:CV19)+1 -> 5 | CW20: 0 | CX20: * | CY20: Частота индексации | CZ20: =MAX(CZ$15:CZ19)+1 -> 5 | DA20: 0
A21: =ROW() -> 21 | I21: год текущий | J21: =MAX(J$15:J20)+1 -> 6 | K21: 0 | Q21: =IF(Periods!$Q$16=$I$16,$I22,IF(OR(Periods!$Q$16=$I$17,Periods!$Q$16=$I$18),$I24,IF(Periods!$Q$16=$I$19,$I25,IF(Periods!$Q$16=$I$20,$I26,IF(Periods!$Q$16=$I$21,$I27,""))))) -> 0 | R21: =IF(OR(Q21="",Q21=0),"",MAX(R$15:R20)+1) ->  | S21: 0 | AF21: 360 | AG21: =MAX(AG$15:AG20)+1 -> 6 | AH21: =MAX(AH$15:AH20)+1 -> 6 | AI21: =IF(SUMIFS(GRR!$A:$A,GRR!$K:$K,AH21)=0,"",INDEX(GRR!$L:$L,SUMIFS(GRR!$A:$A,GRR!$K:$K,AH21))) ->  | AJ21: =IF(OR(AI21="",AI21=0),"",MAX(AJ$15:AJ20)+1) ->  | AK21: 0 | AP21: =MAX(AP$15:AP20)+1 -> 6 | AQ21: =SUMIFS(Periods!$11:$11,Periods!$2:$2,AP21) -> 2022-02-01 | AR21: =IF(OR(AQ21="",AQ21=0),"",MAX(AR$15:AR20)+1) -> 6 | AS21: 0 | BZ21: * | CA21: Производственно-технический отдел | CB21: =MAX(CB$15:CB20)+1 -> 6 | CC21: 0 | CU21: CF(+) | CV21: =MAX(CV$15:CV20)+1 -> 6 | CW21: 0 | CX21: * | CY21: Начальная дата начисления ФОТ | CZ21: =MAX(CZ$15:CZ20)+1 -> 6 | DA21: 0
A22: =ROW() -> 22 | I22: год календ. | J22: =MAX(J$15:J21)+1 -> 7 | K22: 0 | Q22: =IF(Periods!$Q$16=$I$16,$I23,IF(OR(Periods!$Q$16=$I$17,Periods!$Q$16=$I$18),$I25,IF(Periods!$Q$16=$I$19,$I26,IF(Periods!$Q$16=$I$20,$I27,IF(Periods!$Q$16=$I$21,$I28,""))))) -> 0 | R22: =IF(OR(Q22="",Q22=0),"",MAX(R$15:R21)+1) ->  | S22: 0 | AF22: 360 | AG22: =MAX(AG$15:AG21)+1 -> 7 | AH22: =MAX(AH$15:AH21)+1 -> 7 | AI22: =IF(SUMIFS(GRR!$A:$A,GRR!$K:$K,AH22)=0,"",INDEX(GRR!$L:$L,SUMIFS(GRR!$A:$A,GRR!$K:$K,AH22))) ->  | AJ22: =IF(OR(AI22="",AI22=0),"",MAX(AJ$15:AJ21)+1) ->  | AK22: 0 | AP22: =MAX(AP$15:AP21)+1 -> 7 | AQ22: =SUMIFS(Periods!$11:$11,Periods!$2:$2,AP22) -> 2022-03-01 | AR22: =IF(OR(AQ22="",AQ22=0),"",MAX(AR$15:AR21)+1) -> 7 | AS22: 0 | BZ22: * | CA22: Финансы и юр вопросы | CB22: =MAX(CB$15:CB21)+1 -> 7 | CC22: 0 | CU22: CF(-) | CV22: =MAX(CV$15:CV21)+1 -> 7 | CW22: 0 | CX22: * | CY22: Конечная дата начисления ФОТ | CZ22: =MAX(CZ$15:CZ21)+1 -> 7 | DA22: 0
A23: =ROW() -> 23 | AH23: =MAX(AH$15:AH22)+1 -> 8 | AI23: =IF(SUMIFS(GRR!$A:$A,GRR!$K:$K,AH23)=0,"",INDEX(GRR!$L:$L,SUMIFS(GRR!$A:$A,GRR!$K:$K,AH23))) ->  | AJ23: =IF(OR(AI23="",AI23=0),"",MAX(AJ$15:AJ22)+1) ->  | AK23: =IF(OR(AI23=0,AI23=""),0,IF(COUNTIF(AI$15:AI$100000,AI23)=1,0,1)) -> 0 | AP23: =MAX(AP$15:AP22)+1 -> 8 | AQ23: =SUMIFS(Periods!$11:$11,Periods!$2:$2,AP23) -> 2022-04-01 | AR23: =IF(OR(AQ23="",AQ23=0),"",MAX(AR$15:AR22)+1) -> 8 | AS23: =IF(OR(AQ23=0,AQ23=""),0,IF(COUNTIF(AQ$15:AQ$100000,AQ23)=1,0,1)) -> 0 | BZ23: * | CA23: Развитие | CB23: =MAX(CB$15:CB22)+1 -> 8 | CC23: 0 | CU23: CF | CV23: =MAX(CV$15:CV22)+1 -> 8 | CW23: 0 | CX23: * | CY23: Ежегодная индексация ФОТ | CZ23: =MAX(CZ$15:CZ22)+1 -> 8 | DA23: 0
A24: =ROW() -> 24 | AH24: =MAX(AH$15:AH23)+1 -> 9 | AI24: =IF(SUMIFS(GRR!$A:$A,GRR!$K:$K,AH24)=0,"",INDEX(GRR!$L:$L,SUMIFS(GRR!$A:$A,GRR!$K:$K,AH24))) ->  | AJ24: =IF(OR(AI24="",AI24=0),"",MAX(AJ$15:AJ23)+1) ->  | AK24: 0 | AP24: =MAX(AP$15:AP23)+1 -> 9 | AQ24: =SUMIFS(Periods!$11:$11,Periods!$2:$2,AP24) -> 2022-05-01 | AR24: =IF(OR(AQ24="",AQ24=0),"",MAX(AR$15:AR23)+1) -> 9 | AS24: 0 | BZ24: * | CA24: Снабжение | CB24: =MAX(CB$15:CB23)+1 -> 9 | CC24: 0 | CU24: BS | CV24: =MAX(CV$15:CV23)+1 -> 9 | CW24: 0 | CX24: * | CY24: Начальная дата начисления расхода | CZ24: =MAX(CZ$15:CZ23)+1 -> 9 | DA24: 0
A25: =ROW() -> 25 | AH25: =MAX(AH$15:AH24)+1 -> 10 | AI25: =IF(SUMIFS(GRR!$A:$A,GRR!$K:$K,AH25)=0,"",INDEX(GRR!$L:$L,SUMIFS(GRR!$A:$A,GRR!$K:$K,AH25))) ->  | AJ25: =IF(OR(AI25="",AI25=0),"",MAX(AJ$15:AJ24)+1) ->  | AK25: 0 | AP25: =MAX(AP$15:AP24)+1 -> 10 | AQ25: =SUMIFS(Periods!$11:$11,Periods!$2:$2,AP25) -> 2022-06-01 | AR25: =IF(OR(AQ25="",AQ25=0),"",MAX(AR$15:AR24)+1) -> 10 | AS25: 0 | BZ25: * | CA25: Безопасность | CB25: =MAX(CB$15:CB24)+1 -> 10 | CC25: 0 | CU25: BS(+) | CV25: =MAX(CV$15:CV24)+1 -> 10 | CW25: 0 | CX25: * | CY25: Конечная дата начисления расхода | CZ25: =MAX(CZ$15:CZ24)+1 -> 10 | DA25: 0
A26: =ROW() -> 26 | AH26: =MAX(AH$15:AH25)+1 -> 11 | AI26: =IF(SUMIFS(GRR!$A:$A,GRR!$K:$K,AH26)=0,"",INDEX(GRR!$L:$L,SUMIFS(GRR!$A:$A,GRR!$K:$K,AH26))) ->  | AJ26: =IF(OR(AI26="",AI26=0),"",MAX(AJ$15:AJ25)+1) ->  | AK26: 0 | AP26: =MAX(AP$15:AP25)+1 -> 11 | AQ26: =SUMIFS(Periods!$11:$11,Periods!$2:$2,AP26) -> 2022-07-01 | AR26: =IF(OR(AQ26="",AQ26=0),"",MAX(AR$15:AR25)+1) -> 11 | AS26: 0 | CU26: BS(-) | CV26: =MAX(CV$15:CV25)+1 -> 11 | CW26: 0 | CX26: * | CY26: кол-во часов | CZ26: =MAX(CZ$15:CZ25)+1 -> 11 | DA26: 0
A27: =ROW() -> 27 | AH27: =MAX(AH$15:AH26)+1 -> 12 | AI27: =IF(SUMIFS(GRR!$A:$A,GRR!$K:$K,AH27)=0,"",INDEX(GRR!$L:$L,SUMIFS(GRR!$A:$A,GRR!$K:$K,AH27))) ->  | AJ27: =IF(OR(AI27="",AI27=0),"",MAX(AJ$15:AJ26)+1) ->  | AK27: 0 | AP27: =MAX(AP$15:AP26)+1 -> 12 | AQ27: =SUMIFS(Periods!$11:$11,Periods!$2:$2,AP27) -> 2022-08-01 | AR27: =IF(OR(AQ27="",AQ27=0),"",MAX(AR$15:AR26)+1) -> 12 | AS27: 0 | CU27: SF(+) | CV27: =MAX(CV$15:CV26)+1 -> 12 | CW27: 0 | CX27: * | CY27: кол-во минут // % | CZ27: =MAX(CZ$15:CZ26)+1 -> 12 | DA27: 0
A28: =ROW() -> 28 | AH28: =MAX(AH$15:AH27)+1 -> 13 | AI28: =IF(SUMIFS(GRR!$A:$A,GRR!$K:$K,AH28)=0,"",INDEX(GRR!$L:$L,SUMIFS(GRR!$A:$A,GRR!$K:$K,AH28))) ->  | AJ28: =IF(OR(AI28="",AI28=0),"",MAX(AJ$15:AJ27)+1) ->  | AK28: 0 | AP28: =MAX(AP$15:AP27)+1 -> 13 | AQ28: =SUMIFS(Periods!$11:$11,Periods!$2:$2,AP28) -> 2022-09-01 | AR28: =IF(OR(AQ28="",AQ28=0),"",MAX(AR$15:AR27)+1) -> 13 | AS28: 0 | CU28: SF(-) | CV28: =MAX(CV$15:CV27)+1 -> 13 | CW28: 0 | CX28: * | CY28: кол-во сотр.*пер. | CZ28: =MAX(CZ$15:CZ27)+1 -> 13 | DA28: 0
A29: =ROW() -> 29 | AH29: =MAX(AH$15:AH28)+1 -> 14 | AI29: =IF(SUMIFS(GRR!$A:$A,GRR!$K:$K,AH29)=0,"",INDEX(GRR!$L:$L,SUMIFS(GRR!$A:$A,GRR!$K:$K,AH29))) ->  | AJ29: =IF(OR(AI29="",AI29=0),"",MAX(AJ$15:AJ28)+1) ->  | AK29: =IF(OR(AI29=0,AI29=""),0,IF(COUNTIF(AI$15:AI$100000,AI29)=1,0,1)) -> 0 | AP29: =MAX(AP$15:AP28)+1 -> 14 | AQ29: =SUMIFS(Periods!$11:$11,Periods!$2:$2,AP29) -> 2022-10-01 | AR29: =IF(OR(AQ29="",AQ29=0),"",MAX(AR$15:AR28)+1) -> 14 | AS29: 0 | CU29: SF | CV29: =MAX(CV$15:CV28)+1 -> 14 | CW29: 0
A30: =ROW() -> 30 | AH30: =MAX(AH$15:AH29)+1 -> 15 | AI30: =IF(SUMIFS(GRR!$A:$A,GRR!$K:$K,AH30)=0,"",INDEX(GRR!$L:$L,SUMIFS(GRR!$A:$A,GRR!$K:$K,AH30))) ->  | AJ30: =IF(OR(AI30="",AI30=0),"",MAX(AJ$15:AJ29)+1) ->  | AK30: =IF(OR(AI30=0,AI30=""),0,IF(COUNTIF(AI$15:AI$100000,AI30)=1,0,1)) -> 0 | AP30: =MAX(AP$15:AP29)+1 -> 15 | AQ30: =SUMIFS(Periods!$11:$11,Periods!$2:$2,AP30) -> 2022-11-01 | AR30: =IF(OR(AQ30="",AQ30=0),"",MAX(AR$15:AR29)+1) -> 15 | AS30: 0
A31: =ROW() -> 31 | AP31: =MAX(AP$15:AP30)+1 -> 16 | AQ31: =SUMIFS(Periods!$11:$11,Periods!$2:$2,AP31) -> 2022-12-01 | AR31: =IF(OR(AQ31="",AQ31=0),"",MAX(AR$15:AR30)+1) -> 16 | AS31: =IF(OR(AQ31=0,AQ31=""),0,IF(COUNTIF(AQ$15:AQ$100000,AQ31)=1,0,1)) -> 0
A32: =ROW() -> 32 | AP32: =MAX(AP$15:AP31)+1 -> 17 | AQ32: =SUMIFS(Periods!$11:$11,Periods!$2:$2,AP32) -> 2023-01-01 | AR32: =IF(OR(AQ32="",AQ32=0),"",MAX(AR$15:AR31)+1) -> 17 | AS32: 0
A33: =ROW() -> 33 | AP33: =MAX(AP$15:AP32)+1 -> 18 | AQ33: =SUMIFS(Periods!$11:$11,Periods!$2:$2,AP33) -> 2023-02-01 | AR33: =IF(OR(AQ33="",AQ33=0),"",MAX(AR$15:AR32)+1) -> 18 | AS33: 0
A34: =ROW() -> 34 | AP34: =MAX(AP$15:AP33)+1 -> 19 | AQ34: =SUMIFS(Periods!$11:$11,Periods!$2:$2,AP34) -> 2023-03-01 | AR34: =IF(OR(AQ34="",AQ34=0),"",MAX(AR$15:AR33)+1) -> 19 | AS34: 0
A35: =ROW() -> 35 | AP35: =MAX(AP$15:AP34)+1 -> 20 | AQ35: =SUMIFS(Periods!$11:$11,Periods!$2:$2,AP35) -> 2023-04-01 | AR35: =IF(OR(AQ35="",AQ35=0),"",MAX(AR$15:AR34)+1) -> 20 | AS35: 0
A36: =ROW() -> 36 | AP36: =MAX(AP$15:AP35)+1 -> 21 | AQ36: =SUMIFS(Periods!$11:$11,Periods!$2:$2,AP36) -> 2023-05-01 | AR36: =IF(OR(AQ36="",AQ36=0),"",MAX(AR$15:AR35)+1) -> 21 | AS36: 0
A37: =ROW() -> 37 | AP37: =MAX(AP$15:AP36)+1 -> 22 | AQ37: =SUMIFS(Periods!$11:$11,Periods!$2:$2,AP37) -> 2023-06-01 | AR37: =IF(OR(AQ37="",AQ37=0),"",MAX(AR$15:AR36)+1) -> 22 | AS37: 0
A38: =ROW() -> 38 | AP38: =MAX(AP$15:AP37)+1 -> 23 | AQ38: =SUMIFS(Periods!$11:$11,Periods!$2:$2,AP38) -> 2023-07-01 | AR38: =IF(OR(AQ38="",AQ38=0),"",MAX(AR$15:AR37)+1) -> 23 | AS38: 0
A39: =ROW() -> 39 | AP39: =MAX(AP$15:AP38)+1 -> 24 | AQ39: =SUMIFS(Periods!$11:$11,Periods!$2:$2,AP39) -> 2023-08-01 | AR39: =IF(OR(AQ39="",AQ39=0),"",MAX(AR$15:AR38)+1) -> 24 | AS39: 0
A40: =ROW() -> 40 | AP40: =MAX(AP$15:AP39)+1 -> 25 | AQ40: =SUMIFS(Periods!$11:$11,Periods!$2:$2,AP40) -> 2023-09-01 | AR40: =IF(OR(AQ40="",AQ40=0),"",MAX(AR$15:AR39)+1) -> 25 | AS40: 0
A41: =ROW() -> 41 | AP41: =MAX(AP$15:AP40)+1 -> 26 | AQ41: =SUMIFS(Periods!$11:$11,Periods!$2:$2,AP41) -> 2023-10-01 | AR41: =IF(OR(AQ41="",AQ41=0),"",MAX(AR$15:AR40)+1) -> 26 | AS41: 0
A42: =ROW() -> 42 | AP42: =MAX(AP$15:AP41)+1 -> 27 | AQ42: =SUMIFS(Periods!$11:$11,Periods!$2:$2,AP42) -> 2023-11-01 | AR42: =IF(OR(AQ42="",AQ42=0),"",MAX(AR$15:AR41)+1) -> 27 | AS42: 0
A43: =ROW() -> 43 | I43: разработка финмоделей: https://mngmnt.ru/ | AP43: =MAX(AP$15:AP42)+1 -> 28 | AQ43: =SUMIFS(Periods!$11:$11,Periods!$2:$2,AP43) -> 2023-12-01 | AR43: =IF(OR(AQ43="",AQ43=0),"",MAX(AR$15:AR42)+1) -> 28 | AS43: 0
A44: =ROW() -> 44 | AP44: =MAX(AP$15:AP43)+1 -> 29 | AQ44: =SUMIFS(Periods!$11:$11,Periods!$2:$2,AP44) -> 2024-01-01 | AR44: =IF(OR(AQ44="",AQ44=0),"",MAX(AR$15:AR43)+1) -> 29 | AS44: 0
A45: =ROW() -> 45 | AP45: =MAX(AP$15:AP44)+1 -> 30 | AQ45: =SUMIFS(Periods!$11:$11,Periods!$2:$2,AP45) -> 2024-02-01 | AR45: =IF(OR(AQ45="",AQ45=0),"",MAX(AR$15:AR44)+1) -> 30 | AS45: 0
A46: =ROW() -> 46 | AP46: =MAX(AP$15:AP45)+1 -> 31 | AQ46: =SUMIFS(Periods!$11:$11,Periods!$2:$2,AP46) -> 2024-03-01 | AR46: =IF(OR(AQ46="",AQ46=0),"",MAX(AR$15:AR45)+1) -> 31 | AS46: 0
A47: =ROW() -> 47 | AP47: =MAX(AP$15:AP46)+1 -> 32 | AQ47: =SUMIFS(Periods!$11:$11,Periods!$2:$2,AP47) -> 2024-04-01 | AR47: =IF(OR(AQ47="",AQ47=0),"",MAX(AR$15:AR46)+1) -> 32 | AS47: 0
A48: =ROW() -> 48 | AP48: =MAX(AP$15:AP47)+1 -> 33 | AQ48: =SUMIFS(Periods!$11:$11,Periods!$2:$2,AP48) -> 2024-05-01 | AR48: =IF(OR(AQ48="",AQ48=0),"",MAX(AR$15:AR47)+1) -> 33 | AS48: 0
A49: =ROW() -> 49 | AP49: =MAX(AP$15:AP48)+1 -> 34 | AQ49: =SUMIFS(Periods!$11:$11,Periods!$2:$2,AP49) -> 2024-06-01 | AR49: =IF(OR(AQ49="",AQ49=0),"",MAX(AR$15:AR48)+1) -> 34 | AS49: 0
A50: =ROW() -> 50 | AP50: =MAX(AP$15:AP49)+1 -> 35 | AQ50: =SUMIFS(Periods!$11:$11,Periods!$2:$2,AP50) -> 2024-07-01 | AR50: =IF(OR(AQ50="",AQ50=0),"",MAX(AR$15:AR49)+1) -> 35 | AS50: 0
A51: =ROW() -> 51 | AP51: =MAX(AP$15:AP50)+1 -> 36 | AQ51: =SUMIFS(Periods!$11:$11,Periods!$2:$2,AP51) -> 2024-08-01 | AR51: =IF(OR(AQ51="",AQ51=0),"",MAX(AR$15:AR50)+1) -> 36 | AS51: 0
A52: =ROW() -> 52 | AP52: =MAX(AP$15:AP51)+1 -> 37 | AQ52: =SUMIFS(Periods!$11:$11,Periods!$2:$2,AP52) -> 2024-09-01 | AR52: =IF(OR(AQ52="",AQ52=0),"",MAX(AR$15:AR51)+1) -> 37 | AS52: 0
A53: =ROW() -> 53 | AP53: =MAX(AP$15:AP52)+1 -> 38 | AQ53: =SUMIFS(Periods!$11:$11,Periods!$2:$2,AP53) -> 2024-10-01 | AR53: =IF(OR(AQ53="",AQ53=0),"",MAX(AR$15:AR52)+1) -> 38 | AS53: 0
A54: =ROW() -> 54 | AP54: =MAX(AP$15:AP53)+1 -> 39 | AQ54: =SUMIFS(Periods!$11:$11,Periods!$2:$2,AP54) -> 2024-11-01 | AR54: =IF(OR(AQ54="",AQ54=0),"",MAX(AR$15:AR53)+1) -> 39 | AS54: 0
A55: =ROW() -> 55 | AP55: =MAX(AP$15:AP54)+1 -> 40 | AQ55: =SUMIFS(Periods!$11:$11,Periods!$2:$2,AP55) -> 2024-12-01 | AR55: =IF(OR(AQ55="",AQ55=0),"",MAX(AR$15:AR54)+1) -> 40 | AS55: 0
A56: =ROW() -> 56 | AP56: =MAX(AP$15:AP55)+1 -> 41 | AQ56: =SUMIFS(Periods!$11:$11,Periods!$2:$2,AP56) -> 2025-01-01 | AR56: =IF(OR(AQ56="",AQ56=0),"",MAX(AR$15:AR55)+1) -> 41 | AS56: 0
A57: =ROW() -> 57 | AP57: =MAX(AP$15:AP56)+1 -> 42 | AQ57: =SUMIFS(Periods!$11:$11,Periods!$2:$2,AP57) -> 2025-02-01 | AR57: =IF(OR(AQ57="",AQ57=0),"",MAX(AR$15:AR56)+1) -> 42 | AS57: 0
A58: =ROW() -> 58 | AP58: =MAX(AP$15:AP57)+1 -> 43 | AQ58: =SUMIFS(Periods!$11:$11,Periods!$2:$2,AP58) -> 2025-03-01 | AR58: =IF(OR(AQ58="",AQ58=0),"",MAX(AR$15:AR57)+1) -> 43 | AS58: 0
A59: =ROW() -> 59 | AP59: =MAX(AP$15:AP58)+1 -> 44 | AQ59: =SUMIFS(Periods!$11:$11,Periods!$2:$2,AP59) -> 2025-04-01 | AR59: =IF(OR(AQ59="",AQ59=0),"",MAX(AR$15:AR58)+1) -> 44 | AS59: 0
A60: =ROW() -> 60 | AP60: =MAX(AP$15:AP59)+1 -> 45 | AQ60: =SUMIFS(Periods!$11:$11,Periods!$2:$2,AP60) -> 2025-05-01 | AR60: =IF(OR(AQ60="",AQ60=0),"",MAX(AR$15:AR59)+1) -> 45 | AS60: 0
A61: =ROW() -> 61 | AP61: =MAX(AP$15:AP60)+1 -> 46 | AQ61: =SUMIFS(Periods!$11:$11,Periods!$2:$2,AP61) -> 2025-06-01 | AR61: =IF(OR(AQ61="",AQ61=0),"",MAX(AR$15:AR60)+1) -> 46 | AS61: 0
A62: =ROW() -> 62 | AP62: =MAX(AP$15:AP61)+1 -> 47 | AQ62: =SUMIFS(Periods!$11:$11,Periods!$2:$2,AP62) -> 2025-07-01 | AR62: =IF(OR(AQ62="",AQ62=0),"",MAX(AR$15:AR61)+1) -> 47 | AS62: 0
A63: =ROW() -> 63 | AP63: =MAX(AP$15:AP62)+1 -> 48 | AQ63: =SUMIFS(Periods!$11:$11,Periods!$2:$2,AP63) -> 2025-08-01 | AR63: =IF(OR(AQ63="",AQ63=0),"",MAX(AR$15:AR62)+1) -> 48 | AS63: 0
A64: =ROW() -> 64 | AP64: =MAX(AP$15:AP63)+1 -> 49 | AQ64: =SUMIFS(Periods!$11:$11,Periods!$2:$2,AP64) -> 00:00:00 | AR64: =IF(OR(AQ64="",AQ64=0),"",MAX(AR$15:AR63)+1) ->  | AS64: 0
A65: =ROW() -> 65 | AP65: =MAX(AP$15:AP64)+1 -> 50 | AQ65: =SUMIFS(Periods!$11:$11,Periods!$2:$2,AP65) -> 00:00:00 | AR65: =IF(OR(AQ65="",AQ65=0),"",MAX(AR$15:AR64)+1) ->  | AS65: 0
A66: =ROW() -> 66 | AP66: =MAX(AP$15:AP65)+1 -> 51 | AQ66: =SUMIFS(Periods!$11:$11,Periods!$2:$2,AP66) -> 00:00:00 | AR66: =IF(OR(AQ66="",AQ66=0),"",MAX(AR$15:AR65)+1) ->  | AS66: 0
A67: =ROW() -> 67 | AP67: =MAX(AP$15:AP66)+1 -> 52 | AQ67: =SUMIFS(Periods!$11:$11,Periods!$2:$2,AP67) -> 00:00:00 | AR67: =IF(OR(AQ67="",AQ67=0),"",MAX(AR$15:AR66)+1) ->  | AS67: 0
A68: =ROW() -> 68 | AP68: =MAX(AP$15:AP67)+1 -> 53 | AQ68: =SUMIFS(Periods!$11:$11,Periods!$2:$2,AP68) -> 00:00:00 | AR68: =IF(OR(AQ68="",AQ68=0),"",MAX(AR$15:AR67)+1) ->  | AS68: 0
A69: =ROW() -> 69 | AP69: =MAX(AP$15:AP68)+1 -> 54 | AQ69: =SUMIFS(Periods!$11:$11,Periods!$2:$2,AP69) -> 00:00:00 | AR69: =IF(OR(AQ69="",AQ69=0),"",MAX(AR$15:AR68)+1) ->  | AS69: 0
A70: =ROW() -> 70 | AP70: =MAX(AP$15:AP69)+1 -> 55 | AQ70: =SUMIFS(Periods!$11:$11,Periods!$2:$2,AP70) -> 00:00:00 | AR70: =IF(OR(AQ70="",AQ70=0),"",MAX(AR$15:AR69)+1) ->  | AS70: 0
AP71: =MAX(AP$15:AP70)+1 -> 56 | AQ71: =SUMIFS(Periods!$11:$11,Periods!$2:$2,AP71) -> 00:00:00 | AR71: =IF(OR(AQ71="",AQ71=0),"",MAX(AR$15:AR70)+1) ->  | AS71: 0
AP72: =MAX(AP$15:AP71)+1 -> 57 | AQ72: =SUMIFS(Periods!$11:$11,Periods!$2:$2,AP72) -> 00:00:00 | AR72: =IF(OR(AQ72="",AQ72=0),"",MAX(AR$15:AR71)+1) ->  | AS72: 0
AP73: =MAX(AP$15:AP72)+1 -> 58 | AQ73: =SUMIFS(Periods!$11:$11,Periods!$2:$2,AP73) -> 00:00:00 | AR73: =IF(OR(AQ73="",AQ73=0),"",MAX(AR$15:AR72)+1) ->  | AS73: 0
AP74: =MAX(AP$15:AP73)+1 -> 59 | AQ74: =SUMIFS(Periods!$11:$11,Periods!$2:$2,AP74) -> 00:00:00 | AR74: =IF(OR(AQ74="",AQ74=0),"",MAX(AR$15:AR73)+1) ->  | AS74: 0
AP75: =MAX(AP$15:AP74)+1 -> 60 | AQ75: =SUMIFS(Periods!$11:$11,Periods!$2:$2,AP75) -> 00:00:00 | AR75: =IF(OR(AQ75="",AQ75=0),"",MAX(AR$15:AR74)+1) ->  | AS75: 0
AP76: =MAX(AP$15:AP75)+1 -> 61 | AQ76: =SUMIFS(Periods!$11:$11,Periods!$2:$2,AP76) -> 00:00:00 | AR76: =IF(OR(AQ76="",AQ76=0),"",MAX(AR$15:AR75)+1) ->  | AS76: 0
AP77: =MAX(AP$15:AP76)+1 -> 62 | AQ77: =SUMIFS(Periods!$11:$11,Periods!$2:$2,AP77) -> 00:00:00 | AR77: =IF(OR(AQ77="",AQ77=0),"",MAX(AR$15:AR76)+1) ->  | AS77: 0
AP78: =MAX(AP$15:AP77)+1 -> 63 | AQ78: =SUMIFS(Periods!$11:$11,Periods!$2:$2,AP78) -> 00:00:00 | AR78: =IF(OR(AQ78="",AQ78=0),"",MAX(AR$15:AR77)+1) ->  | AS78: 0
AP79: =MAX(AP$15:AP78)+1 -> 64 | AQ79: =SUMIFS(Periods!$11:$11,Periods!$2:$2,AP79) -> 00:00:00 | AR79: =IF(OR(AQ79="",AQ79=0),"",MAX(AR$15:AR78)+1) ->  | AS79: 0
AP80: =MAX(AP$15:AP79)+1 -> 65 | AQ80: =SUMIFS(Periods!$11:$11,Periods!$2:$2,AP80) -> 00:00:00 | AR80: =IF(OR(AQ80="",AQ80=0),"",MAX(AR$15:AR79)+1) ->  | AS80: 0
AP81: =MAX(AP$15:AP80)+1 -> 66 | AQ81: =SUMIFS(Periods!$11:$11,Periods!$2:$2,AP81) -> 00:00:00 | AR81: =IF(OR(AQ81="",AQ81=0),"",MAX(AR$15:AR80)+1) ->  | AS81: 0
AP82: =MAX(AP$15:AP81)+1 -> 67 | AQ82: =SUMIFS(Periods!$11:$11,Periods!$2:$2,AP82) -> 00:00:00 | AR82: =IF(OR(AQ82="",AQ82=0),"",MAX(AR$15:AR81)+1) ->  | AS82: 0
AP83: =MAX(AP$15:AP82)+1 -> 68 | AQ83: =SUMIFS(Periods!$11:$11,Periods!$2:$2,AP83) -> 00:00:00 | AR83: =IF(OR(AQ83="",AQ83=0),"",MAX(AR$15:AR82)+1) ->  | AS83: 0
AP84: =MAX(AP$15:AP83)+1 -> 69 | AQ84: =SUMIFS(Periods!$11:$11,Periods!$2:$2,AP84) -> 00:00:00 | AR84: =IF(OR(AQ84="",AQ84=0),"",MAX(AR$15:AR83)+1) ->  | AS84: 0
AP85: =MAX(AP$15:AP84)+1 -> 70 | AQ85: =SUMIFS(Periods!$11:$11,Periods!$2:$2,AP85) -> 00:00:00 | AR85: =IF(OR(AQ85="",AQ85=0),"",MAX(AR$15:AR84)+1) ->  | AS85: 0
AP86: =MAX(AP$15:AP85)+1 -> 71 | AQ86: =SUMIFS(Periods!$11:$11,Periods!$2:$2,AP86) -> 00:00:00 | AR86: =IF(OR(AQ86="",AQ86=0),"",MAX(AR$15:AR85)+1) ->  | AS86: 0
AP87: =MAX(AP$15:AP86)+1 -> 72 | AQ87: =SUMIFS(Periods!$11:$11,Periods!$2:$2,AP87) -> 00:00:00 | AR87: =IF(OR(AQ87="",AQ87=0),"",MAX(AR$15:AR86)+1) ->  | AS87: 0
AP88: =MAX(AP$15:AP87)+1 -> 73 | AQ88: =SUMIFS(Periods!$11:$11,Periods!$2:$2,AP88) -> 00:00:00 | AR88: =IF(OR(AQ88="",AQ88=0),"",MAX(AR$15:AR87)+1) ->  | AS88: 0
AP89: =MAX(AP$15:AP88)+1 -> 74 | AQ89: =SUMIFS(Periods!$11:$11,Periods!$2:$2,AP89) -> 00:00:00 | AR89: =IF(OR(AQ89="",AQ89=0),"",MAX(AR$15:AR88)+1) ->  | AS89: 0
AP90: =MAX(AP$15:AP89)+1 -> 75 | AQ90: =SUMIFS(Periods!$11:$11,Periods!$2:$2,AP90) -> 00:00:00 | AR90: =IF(OR(AQ90="",AQ90=0),"",MAX(AR$15:AR89)+1) ->  | AS90: 0
AP91: =MAX(AP$15:AP90)+1 -> 76 | AQ91: =SUMIFS(Periods!$11:$11,Periods!$2:$2,AP91) -> 00:00:00 | AR91: =IF(OR(AQ91="",AQ91=0),"",MAX(AR$15:AR90)+1) ->  | AS91: 0
AP92: =MAX(AP$15:AP91)+1 -> 77 | AQ92: =SUMIFS(Periods!$11:$11,Periods!$2:$2,AP92) -> 00:00:00 | AR92: =IF(OR(AQ92="",AQ92=0),"",MAX(AR$15:AR91)+1) ->  | AS92: 0
AP93: =MAX(AP$15:AP92)+1 -> 78 | AQ93: =SUMIFS(Periods!$11:$11,Periods!$2:$2,AP93) -> 00:00:00 | AR93: =IF(OR(AQ93="",AQ93=0),"",MAX(AR$15:AR92)+1) ->  | AS93: 0
AP94: =MAX(AP$15:AP93)+1 -> 79 | AQ94: =SUMIFS(Periods!$11:$11,Periods!$2:$2,AP94) -> 00:00:00 | AR94: =IF(OR(AQ94="",AQ94=0),"",MAX(AR$15:AR93)+1) ->  | AS94: 0
AP95: =MAX(AP$15:AP94)+1 -> 80 | AQ95: =SUMIFS(Periods!$11:$11,Periods!$2:$2,AP95) -> 00:00:00 | AR95: =IF(OR(AQ95="",AQ95=0),"",MAX(AR$15:AR94)+1) ->  | AS95: =IF(OR(AQ95=0,AQ95=""),0,IF(COUNTIF(AQ$15:AQ$100000,AQ95)=1,0,1)) -> 0
AP96: =MAX(AP$15:AP95)+1 -> 81 | AQ96: =SUMIFS(Periods!$11:$11,Periods!$2:$2,AP96) -> 00:00:00 | AR96: =IF(OR(AQ96="",AQ96=0),"",MAX(AR$15:AR95)+1) ->  | AS96: 0
AP97: =MAX(AP$15:AP96)+1 -> 82 | AQ97: =SUMIFS(Periods!$11:$11,Periods!$2:$2,AP97) -> 00:00:00 | AR97: =IF(OR(AQ97="",AQ97=0),"",MAX(AR$15:AR96)+1) ->  | AS97: 0
AP98: =MAX(AP$15:AP97)+1 -> 83 | AQ98: =SUMIFS(Periods!$11:$11,Periods!$2:$2,AP98) -> 00:00:00 | AR98: =IF(OR(AQ98="",AQ98=0),"",MAX(AR$15:AR97)+1) ->  | AS98: 0
AP99: =MAX(AP$15:AP98)+1 -> 84 | AQ99: =SUMIFS(Periods!$11:$11,Periods!$2:$2,AP99) -> 00:00:00 | AR99: =IF(OR(AQ99="",AQ99=0),"",MAX(AR$15:AR98)+1) ->  | AS99: 0
AP100: =MAX(AP$15:AP99)+1 -> 85 | AQ100: =SUMIFS(Periods!$11:$11,Periods!$2:$2,AP100) -> 00:00:00 | AR100: =IF(OR(AQ100="",AQ100=0),"",MAX(AR$15:AR99)+1) ->  | AS100: 0
AP101: =MAX(AP$15:AP100)+1 -> 86 | AQ101: =SUMIFS(Periods!$11:$11,Periods!$2:$2,AP101) -> 00:00:00 | AR101: =IF(OR(AQ101="",AQ101=0),"",MAX(AR$15:AR100)+1) ->  | AS101: 0
AP102: =MAX(AP$15:AP101)+1 -> 87 | AQ102: =SUMIFS(Periods!$11:$11,Periods!$2:$2,AP102) -> 00:00:00 | AR102: =IF(OR(AQ102="",AQ102=0),"",MAX(AR$15:AR101)+1) ->  | AS102: 0
AP103: =MAX(AP$15:AP102)+1 -> 88 | AQ103: =SUMIFS(Periods!$11:$11,Periods!$2:$2,AP103) -> 00:00:00 | AR103: =IF(OR(AQ103="",AQ103=0),"",MAX(AR$15:AR102)+1) ->  | AS103: 0
AP104: =MAX(AP$15:AP103)+1 -> 89 | AQ104: =SUMIFS(Periods!$11:$11,Periods!$2:$2,AP104) -> 00:00:00 | AR104: =IF(OR(AQ104="",AQ104=0),"",MAX(AR$15:AR103)+1) ->  | AS104: 0
AP105: =MAX(AP$15:AP104)+1 -> 90 | AQ105: =SUMIFS(Periods!$11:$11,Periods!$2:$2,AP105) -> 00:00:00 | AR105: =IF(OR(AQ105="",AQ105=0),"",MAX(AR$15:AR104)+1) ->  | AS105: 0
AP106: =MAX(AP$15:AP105)+1 -> 91 | AQ106: =SUMIFS(Periods!$11:$11,Periods!$2:$2,AP106) -> 00:00:00 | AR106: =IF(OR(AQ106="",AQ106=0),"",MAX(AR$15:AR105)+1) ->  | AS106: 0
AP107: =MAX(AP$15:AP106)+1 -> 92 | AQ107: =SUMIFS(Periods!$11:$11,Periods!$2:$2,AP107) -> 00:00:00 | AR107: =IF(OR(AQ107="",AQ107=0),"",MAX(AR$15:AR106)+1) ->  | AS107: 0
AP108: =MAX(AP$15:AP107)+1 -> 93 | AQ108: =SUMIFS(Periods!$11:$11,Periods!$2:$2,AP108) -> 00:00:00 | AR108: =IF(OR(AQ108="",AQ108=0),"",MAX(AR$15:AR107)+1) ->  | AS108: 0
AP109: =MAX(AP$15:AP108)+1 -> 94 | AQ109: =SUMIFS(Periods!$11:$11,Periods!$2:$2,AP109) -> 00:00:00 | AR109: =IF(OR(AQ109="",AQ109=0),"",MAX(AR$15:AR108)+1) ->  | AS109: 0
AP110: =MAX(AP$15:AP109)+1 -> 95 | AQ110: =SUMIFS(Periods!$11:$11,Periods!$2:$2,AP110) -> 00:00:00 | AR110: =IF(OR(AQ110="",AQ110=0),"",MAX(AR$15:AR109)+1) ->  | AS110: 0
AP111: =MAX(AP$15:AP110)+1 -> 96 | AQ111: =SUMIFS(Periods!$11:$11,Periods!$2:$2,AP111) -> 00:00:00 | AR111: =IF(OR(AQ111="",AQ111=0),"",MAX(AR$15:AR110)+1) ->  | AS111: 0
AP112: =MAX(AP$15:AP111)+1 -> 97 | AQ112: =SUMIFS(Periods!$11:$11,Periods!$2:$2,AP112) -> 00:00:00 | AR112: =IF(OR(AQ112="",AQ112=0),"",MAX(AR$15:AR111)+1) ->  | AS112: 0
AP113: =MAX(AP$15:AP112)+1 -> 98 | AQ113: =SUMIFS(Periods!$11:$11,Periods!$2:$2,AP113) -> 00:00:00 | AR113: =IF(OR(AQ113="",AQ113=0),"",MAX(AR$15:AR112)+1) ->  | AS113: 0
AP114: =MAX(AP$15:AP113)+1 -> 99 | AQ114: =SUMIFS(Periods!$11:$11,Periods!$2:$2,AP114) -> 00:00:00 | AR114: =IF(OR(AQ114="",AQ114=0),"",MAX(AR$15:AR113)+1) ->  | AS114: 0
AP115: =MAX(AP$15:AP114)+1 -> 100 | AQ115: =SUMIFS(Periods!$11:$11,Periods!$2:$2,AP115) -> 00:00:00 | AR115: =IF(OR(AQ115="",AQ115=0),"",MAX(AR$15:AR114)+1) ->  | AS115: 0
AP116: =MAX(AP$15:AP115)+1 -> 101 | AQ116: =SUMIFS(Periods!$11:$11,Periods!$2:$2,AP116) -> 00:00:00 | AR116: =IF(OR(AQ116="",AQ116=0),"",MAX(AR$15:AR115)+1) ->  | AS116: 0
AP117: =MAX(AP$15:AP116)+1 -> 102 | AQ117: =SUMIFS(Periods!$11:$11,Periods!$2:$2,AP117) -> 00:00:00 | AR117: =IF(OR(AQ117="",AQ117=0),"",MAX(AR$15:AR116)+1) ->  | AS117: 0
AP118: =MAX(AP$15:AP117)+1 -> 103 | AQ118: =SUMIFS(Periods!$11:$11,Periods!$2:$2,AP118) -> 00:00:00 | AR118: =IF(OR(AQ118="",AQ118=0),"",MAX(AR$15:AR117)+1) ->  | AS118: 0
AP119: =MAX(AP$15:AP118)+1 -> 104 | AQ119: =SUMIFS(Periods!$11:$11,Periods!$2:$2,AP119) -> 00:00:00 | AR119: =IF(OR(AQ119="",AQ119=0),"",MAX(AR$15:AR118)+1) ->  | AS119: 0
AP120: =MAX(AP$15:AP119)+1 -> 105 | AQ120: =SUMIFS(Periods!$11:$11,Periods!$2:$2,AP120) -> 00:00:00 | AR120: =IF(OR(AQ120="",AQ120=0),"",MAX(AR$15:AR119)+1) ->  | AS120: 0
AP121: =MAX(AP$15:AP120)+1 -> 106 | AQ121: =SUMIFS(Periods!$11:$11,Periods!$2:$2,AP121) -> 00:00:00 | AR121: =IF(OR(AQ121="",AQ121=0),"",MAX(AR$15:AR120)+1) ->  | AS121: 0
AP122: =MAX(AP$15:AP121)+1 -> 107 | AQ122: =SUMIFS(Periods!$11:$11,Periods!$2:$2,AP122) -> 00:00:00 | AR122: =IF(OR(AQ122="",AQ122=0),"",MAX(AR$15:AR121)+1) ->  | AS122: 0
AP123: =MAX(AP$15:AP122)+1 -> 108 | AQ123: =SUMIFS(Periods!$11:$11,Periods!$2:$2,AP123) -> 00:00:00 | AR123: =IF(OR(AQ123="",AQ123=0),"",MAX(AR$15:AR122)+1) ->  | AS123: 0
AP124: =MAX(AP$15:AP123)+1 -> 109 | AQ124: =SUMIFS(Periods!$11:$11,Periods!$2:$2,AP124) -> 00:00:00 | AR124: =IF(OR(AQ124="",AQ124=0),"",MAX(AR$15:AR123)+1) ->  | AS124: 0
AP125: =MAX(AP$15:AP124)+1 -> 110 | AQ125: =SUMIFS(Periods!$11:$11,Periods!$2:$2,AP125) -> 00:00:00 | AR125: =IF(OR(AQ125="",AQ125=0),"",MAX(AR$15:AR124)+1) ->  | AS125: 0
AP126: =MAX(AP$15:AP125)+1 -> 111 | AQ126: =SUMIFS(Periods!$11:$11,Periods!$2:$2,AP126) -> 00:00:00 | AR126: =IF(OR(AQ126="",AQ126=0),"",MAX(AR$15:AR125)+1) ->  | AS126: 0
AP127: =MAX(AP$15:AP126)+1 -> 112 | AQ127: =SUMIFS(Periods!$11:$11,Periods!$2:$2,AP127) -> 00:00:00 | AR127: =IF(OR(AQ127="",AQ127=0),"",MAX(AR$15:AR126)+1) ->  | AS127: 0
AP128: =MAX(AP$15:AP127)+1 -> 113 | AQ128: =SUMIFS(Periods!$11:$11,Periods!$2:$2,AP128) -> 00:00:00 | AR128: =IF(OR(AQ128="",AQ128=0),"",MAX(AR$15:AR127)+1) ->  | AS128: 0
AP129: =MAX(AP$15:AP128)+1 -> 114 | AQ129: =SUMIFS(Periods!$11:$11,Periods!$2:$2,AP129) -> 00:00:00 | AR129: =IF(OR(AQ129="",AQ129=0),"",MAX(AR$15:AR128)+1) ->  | AS129: 0
AP130: =MAX(AP$15:AP129)+1 -> 115 | AQ130: =SUMIFS(Periods!$11:$11,Periods!$2:$2,AP130) -> 00:00:00 | AR130: =IF(OR(AQ130="",AQ130=0),"",MAX(AR$15:AR129)+1) ->  | AS130: 0
AP131: =MAX(AP$15:AP130)+1 -> 116 | AQ131: =SUMIFS(Periods!$11:$11,Periods!$2:$2,AP131) -> 00:00:00 | AR131: =IF(OR(AQ131="",AQ131=0),"",MAX(AR$15:AR130)+1) ->  | AS131: 0
AP132: =MAX(AP$15:AP131)+1 -> 117 | AQ132: =SUMIFS(Periods!$11:$11,Periods!$2:$2,AP132) -> 00:00:00 | AR132: =IF(OR(AQ132="",AQ132=0),"",MAX(AR$15:AR131)+1) ->  | AS132: 0
AP133: =MAX(AP$15:AP132)+1 -> 118 | AQ133: =SUMIFS(Periods!$11:$11,Periods!$2:$2,AP133) -> 00:00:00 | AR133: =IF(OR(AQ133="",AQ133=0),"",MAX(AR$15:AR132)+1) ->  | AS133: 0
AP134: =MAX(AP$15:AP133)+1 -> 119 | AQ134: =SUMIFS(Periods!$11:$11,Periods!$2:$2,AP134) -> 00:00:00 | AR134: =IF(OR(AQ134="",AQ134=0),"",MAX(AR$15:AR133)+1) ->  | AS134: 0
AP135: =MAX(AP$15:AP134)+1 -> 120 | AQ135: =SUMIFS(Periods!$11:$11,Periods!$2:$2,AP135) -> 00:00:00 | AR135: =IF(OR(AQ135="",AQ135=0),"",MAX(AR$15:AR134)+1) ->  | AS135: 0
AP136: =MAX(AP$15:AP135)+1 -> 121 | AQ136: =SUMIFS(Periods!$11:$11,Periods!$2:$2,AP136) -> 00:00:00 | AR136: =IF(OR(AQ136="",AQ136=0),"",MAX(AR$15:AR135)+1) ->  | AS136: 0
AP137: =MAX(AP$15:AP136)+1 -> 122 | AQ137: =SUMIFS(Periods!$11:$11,Periods!$2:$2,AP137) -> 00:00:00 | AR137: =IF(OR(AQ137="",AQ137=0),"",MAX(AR$15:AR136)+1) ->  | AS137: 0
AP138: =MAX(AP$15:AP137)+1 -> 123 | AQ138: =SUMIFS(Periods!$11:$11,Periods!$2:$2,AP138) -> 00:00:00 | AR138: =IF(OR(AQ138="",AQ138=0),"",MAX(AR$15:AR137)+1) ->  | AS138: 0
AP139: =MAX(AP$15:AP138)+1 -> 124 | AQ139: =SUMIFS(Periods!$11:$11,Periods!$2:$2,AP139) -> 00:00:00 | AR139: =IF(OR(AQ139="",AQ139=0),"",MAX(AR$15:AR138)+1) ->  | AS139: 0
AP140: =MAX(AP$15:AP139)+1 -> 125 | AQ140: =SUMIFS(Periods!$11:$11,Periods!$2:$2,AP140) -> 00:00:00 | AR140: =IF(OR(AQ140="",AQ140=0),"",MAX(AR$15:AR139)+1) ->  | AS140: 0
AP141: =MAX(AP$15:AP140)+1 -> 126 | AQ141: =SUMIFS(Periods!$11:$11,Periods!$2:$2,AP141) -> 00:00:00 | AR141: =IF(OR(AQ141="",AQ141=0),"",MAX(AR$15:AR140)+1) ->  | AS141: 0
AP142: =MAX(AP$15:AP141)+1 -> 127 | AQ142: =SUMIFS(Periods!$11:$11,Periods!$2:$2,AP142) -> 00:00:00 | AR142: =IF(OR(AQ142="",AQ142=0),"",MAX(AR$15:AR141)+1) ->  | AS142: 0
AP143: =MAX(AP$15:AP142)+1 -> 128 | AQ143: =SUMIFS(Periods!$11:$11,Periods!$2:$2,AP143) -> 00:00:00 | AR143: =IF(OR(AQ143="",AQ143=0),"",MAX(AR$15:AR142)+1) ->  | AS143: 0
AP144: =MAX(AP$15:AP143)+1 -> 129 | AQ144: =SUMIFS(Periods!$11:$11,Periods!$2:$2,AP144) -> 00:00:00 | AR144: =IF(OR(AQ144="",AQ144=0),"",MAX(AR$15:AR143)+1) ->  | AS144: 0
AP145: =MAX(AP$15:AP144)+1 -> 130 | AQ145: =SUMIFS(Periods!$11:$11,Periods!$2:$2,AP145) -> 00:00:00 | AR145: =IF(OR(AQ145="",AQ145=0),"",MAX(AR$15:AR144)+1) ->  | AS145: 0
AP146: =MAX(AP$15:AP145)+1 -> 131 | AQ146: =SUMIFS(Periods!$11:$11,Periods!$2:$2,AP146) -> 00:00:00 | AR146: =IF(OR(AQ146="",AQ146=0),"",MAX(AR$15:AR145)+1) ->  | AS146: 0
AP147: =MAX(AP$15:AP146)+1 -> 132 | AQ147: =SUMIFS(Periods!$11:$11,Periods!$2:$2,AP147) -> 00:00:00 | AR147: =IF(OR(AQ147="",AQ147=0),"",MAX(AR$15:AR146)+1) ->  | AS147: 0
AP148: =MAX(AP$15:AP147)+1 -> 133 | AQ148: =SUMIFS(Periods!$11:$11,Periods!$2:$2,AP148) -> 00:00:00 | AR148: =IF(OR(AQ148="",AQ148=0),"",MAX(AR$15:AR147)+1) ->  | AS148: 0
AP149: =MAX(AP$15:AP148)+1 -> 134 | AQ149: =SUMIFS(Periods!$11:$11,Periods!$2:$2,AP149) -> 00:00:00 | AR149: =IF(OR(AQ149="",AQ149=0),"",MAX(AR$15:AR148)+1) ->  | AS149: 0
AP150: =MAX(AP$15:AP149)+1 -> 135 | AQ150: =SUMIFS(Periods!$11:$11,Periods!$2:$2,AP150) -> 00:00:00 | AR150: =IF(OR(AQ150="",AQ150=0),"",MAX(AR$15:AR149)+1) ->  | AS150: 0
AP151: =MAX(AP$15:AP150)+1 -> 136 | AQ151: =SUMIFS(Periods!$11:$11,Periods!$2:$2,AP151) -> 00:00:00 | AR151: =IF(OR(AQ151="",AQ151=0),"",MAX(AR$15:AR150)+1) ->  | AS151: 0
AP152: =MAX(AP$15:AP151)+1 -> 137 | AQ152: =SUMIFS(Periods!$11:$11,Periods!$2:$2,AP152) -> 00:00:00 | AR152: =IF(OR(AQ152="",AQ152=0),"",MAX(AR$15:AR151)+1) ->  | AS152: 0
AP153: =MAX(AP$15:AP152)+1 -> 138 | AQ153: =SUMIFS(Periods!$11:$11,Periods!$2:$2,AP153) -> 00:00:00 | AR153: =IF(OR(AQ153="",AQ153=0),"",MAX(AR$15:AR152)+1) ->  | AS153: 0
AP154: =MAX(AP$15:AP153)+1 -> 139 | AQ154: =SUMIFS(Periods!$11:$11,Periods!$2:$2,AP154) -> 00:00:00 | AR154: =IF(OR(AQ154="",AQ154=0),"",MAX(AR$15:AR153)+1) ->  | AS154: 0
AP155: =MAX(AP$15:AP154)+1 -> 140 | AQ155: =SUMIFS(Periods!$11:$11,Periods!$2:$2,AP155) -> 00:00:00 | AR155: =IF(OR(AQ155="",AQ155=0),"",MAX(AR$15:AR154)+1) ->  | AS155: 0
AP156: =MAX(AP$15:AP155)+1 -> 141 | AQ156: =SUMIFS(Periods!$11:$11,Periods!$2:$2,AP156) -> 00:00:00 | AR156: =IF(OR(AQ156="",AQ156=0),"",MAX(AR$15:AR155)+1) ->  | AS156: 0
AP157: =MAX(AP$15:AP156)+1 -> 142 | AQ157: =SUMIFS(Periods!$11:$11,Periods!$2:$2,AP157) -> 00:00:00 | AR157: =IF(OR(AQ157="",AQ157=0),"",MAX(AR$15:AR156)+1) ->  | AS157: 0
AP158: =MAX(AP$15:AP157)+1 -> 143 | AQ158: =SUMIFS(Periods!$11:$11,Periods!$2:$2,AP158) -> 00:00:00 | AR158: =IF(OR(AQ158="",AQ158=0),"",MAX(AR$15:AR157)+1) ->  | AS158: 0
AP159: =MAX(AP$15:AP158)+1 -> 144 | AQ159: =SUMIFS(Periods!$11:$11,Periods!$2:$2,AP159) -> 00:00:00 | AR159: =IF(OR(AQ159="",AQ159=0),"",MAX(AR$15:AR158)+1) ->  | AS159: =IF(OR(AQ159=0,AQ159=""),0,IF(COUNTIF(AQ$15:AQ$100000,AQ159)=1,0,1)) -> 0
AP160: =MAX(AP$15:AP159)+1 -> 145 | AQ160: =SUMIFS(Periods!$11:$11,Periods!$2:$2,AP160) -> 00:00:00 | AR160: =IF(OR(AQ160="",AQ160=0),"",MAX(AR$15:AR159)+1) ->  | AS160: 0
AP161: =MAX(AP$15:AP160)+1 -> 146 | AQ161: =SUMIFS(Periods!$11:$11,Periods!$2:$2,AP161) -> 00:00:00 | AR161: =IF(OR(AQ161="",AQ161=0),"",MAX(AR$15:AR160)+1) ->  | AS161: 0
AP162: =MAX(AP$15:AP161)+1 -> 147 | AQ162: =SUMIFS(Periods!$11:$11,Periods!$2:$2,AP162) -> 00:00:00 | AR162: =IF(OR(AQ162="",AQ162=0),"",MAX(AR$15:AR161)+1) ->  | AS162: 0
AP163: =MAX(AP$15:AP162)+1 -> 148 | AQ163: =SUMIFS(Periods!$11:$11,Periods!$2:$2,AP163) -> 00:00:00 | AR163: =IF(OR(AQ163="",AQ163=0),"",MAX(AR$15:AR162)+1) ->  | AS163: 0
AP164: =MAX(AP$15:AP163)+1 -> 149 | AQ164: =SUMIFS(Periods!$11:$11,Periods!$2:$2,AP164) -> 00:00:00 | AR164: =IF(OR(AQ164="",AQ164=0),"",MAX(AR$15:AR163)+1) ->  | AS164: 0
AP165: =MAX(AP$15:AP164)+1 -> 150 | AQ165: =SUMIFS(Periods!$11:$11,Periods!$2:$2,AP165) -> 00:00:00 | AR165: =IF(OR(AQ165="",AQ165=0),"",MAX(AR$15:AR164)+1) ->  | AS165: 0
AP166: =MAX(AP$15:AP165)+1 -> 151 | AQ166: =SUMIFS(Periods!$11:$11,Periods!$2:$2,AP166) -> 00:00:00 | AR166: =IF(OR(AQ166="",AQ166=0),"",MAX(AR$15:AR165)+1) ->  | AS166: 0
AP167: =MAX(AP$15:AP166)+1 -> 152 | AQ167: =SUMIFS(Periods!$11:$11,Periods!$2:$2,AP167) -> 00:00:00 | AR167: =IF(OR(AQ167="",AQ167=0),"",MAX(AR$15:AR166)+1) ->  | AS167: 0
AP168: =MAX(AP$15:AP167)+1 -> 153 | AQ168: =SUMIFS(Periods!$11:$11,Periods!$2:$2,AP168) -> 00:00:00 | AR168: =IF(OR(AQ168="",AQ168=0),"",MAX(AR$15:AR167)+1) ->  | AS168: 0
AP169: =MAX(AP$15:AP168)+1 -> 154 | AQ169: =SUMIFS(Periods!$11:$11,Periods!$2:$2,AP169) -> 00:00:00 | AR169: =IF(OR(AQ169="",AQ169=0),"",MAX(AR$15:AR168)+1) ->  | AS169: 0
AP170: =MAX(AP$15:AP169)+1 -> 155 | AQ170: =SUMIFS(Periods!$11:$11,Periods!$2:$2,AP170) -> 00:00:00 | AR170: =IF(OR(AQ170="",AQ170=0),"",MAX(AR$15:AR169)+1) ->  | AS170: 0
AP171: =MAX(AP$15:AP170)+1 -> 156 | AQ171: =SUMIFS(Periods!$11:$11,Periods!$2:$2,AP171) -> 00:00:00 | AR171: =IF(OR(AQ171="",AQ171=0),"",MAX(AR$15:AR170)+1) ->  | AS171: 0
AP172: =MAX(AP$15:AP171)+1 -> 157 | AQ172: =SUMIFS(Periods!$11:$11,Periods!$2:$2,AP172) -> 00:00:00 | AR172: =IF(OR(AQ172="",AQ172=0),"",MAX(AR$15:AR171)+1) ->  | AS172: 0
AP173: =MAX(AP$15:AP172)+1 -> 158 | AQ173: =SUMIFS(Periods!$11:$11,Periods!$2:$2,AP173) -> 00:00:00 | AR173: =IF(OR(AQ173="",AQ173=0),"",MAX(AR$15:AR172)+1) ->  | AS173: 0
AP174: =MAX(AP$15:AP173)+1 -> 159 | AQ174: =SUMIFS(Periods!$11:$11,Periods!$2:$2,AP174) -> 00:00:00 | AR174: =IF(OR(AQ174="",AQ174=0),"",MAX(AR$15:AR173)+1) ->  | AS174: 0
AP175: =MAX(AP$15:AP174)+1 -> 160 | AQ175: =SUMIFS(Periods!$11:$11,Periods!$2:$2,AP175) -> 00:00:00 | AR175: =IF(OR(AQ175="",AQ175=0),"",MAX(AR$15:AR174)+1) ->  | AS175: 0
AP176: =MAX(AP$15:AP175)+1 -> 161 | AQ176: =SUMIFS(Periods!$11:$11,Periods!$2:$2,AP176) -> 00:00:00 | AR176: =IF(OR(AQ176="",AQ176=0),"",MAX(AR$15:AR175)+1) ->  | AS176: 0
AP177: =MAX(AP$15:AP176)+1 -> 162 | AQ177: =SUMIFS(Periods!$11:$11,Periods!$2:$2,AP177) -> 00:00:00 | AR177: =IF(OR(AQ177="",AQ177=0),"",MAX(AR$15:AR176)+1) ->  | AS177: 0
AP178: =MAX(AP$15:AP177)+1 -> 163 | AQ178: =SUMIFS(Periods!$11:$11,Periods!$2:$2,AP178) -> 00:00:00 | AR178: =IF(OR(AQ178="",AQ178=0),"",MAX(AR$15:AR177)+1) ->  | AS178: 0
AP179: =MAX(AP$15:AP178)+1 -> 164 | AQ179: =SUMIFS(Periods!$11:$11,Periods!$2:$2,AP179) -> 00:00:00 | AR179: =IF(OR(AQ179="",AQ179=0),"",MAX(AR$15:AR178)+1) ->  | AS179: 0
AP180: =MAX(AP$15:AP179)+1 -> 165 | AQ180: =SUMIFS(Periods!$11:$11,Periods!$2:$2,AP180) -> 00:00:00 | AR180: =IF(OR(AQ180="",AQ180=0),"",MAX(AR$15:AR179)+1) ->  | AS180: 0
AP181: =MAX(AP$15:AP180)+1 -> 166 | AQ181: =SUMIFS(Periods!$11:$11,Periods!$2:$2,AP181) -> 00:00:00 | AR181: =IF(OR(AQ181="",AQ181=0),"",MAX(AR$15:AR180)+1) ->  | AS181: 0
AP182: =MAX(AP$15:AP181)+1 -> 167 | AQ182: =SUMIFS(Periods!$11:$11,Periods!$2:$2,AP182) -> 00:00:00 | AR182: =IF(OR(AQ182="",AQ182=0),"",MAX(AR$15:AR181)+1) ->  | AS182: 0
AP183: =MAX(AP$15:AP182)+1 -> 168 | AQ183: =SUMIFS(Periods!$11:$11,Periods!$2:$2,AP183) -> 00:00:00 | AR183: =IF(OR(AQ183="",AQ183=0),"",MAX(AR$15:AR182)+1) ->  | AS183: 0
AP184: =MAX(AP$15:AP183)+1 -> 169 | AQ184: =SUMIFS(Periods!$11:$11,Periods!$2:$2,AP184) -> 00:00:00 | AR184: =IF(OR(AQ184="",AQ184=0),"",MAX(AR$15:AR183)+1) ->  | AS184: 0
AP185: =MAX(AP$15:AP184)+1 -> 170 | AQ185: =SUMIFS(Periods!$11:$11,Periods!$2:$2,AP185) -> 00:00:00 | AR185: =IF(OR(AQ185="",AQ185=0),"",MAX(AR$15:AR184)+1) ->  | AS185: 0
AP186: =MAX(AP$15:AP185)+1 -> 171 | AQ186: =SUMIFS(Periods!$11:$11,Periods!$2:$2,AP186) -> 00:00:00 | AR186: =IF(OR(AQ186="",AQ186=0),"",MAX(AR$15:AR185)+1) ->  | AS186: 0
AP187: =MAX(AP$15:AP186)+1 -> 172 | AQ187: =SUMIFS(Periods!$11:$11,Periods!$2:$2,AP187) -> 00:00:00 | AR187: =IF(OR(AQ187="",AQ187=0),"",MAX(AR$15:AR186)+1) ->  | AS187: 0
AP188: =MAX(AP$15:AP187)+1 -> 173 | AQ188: =SUMIFS(Periods!$11:$11,Periods!$2:$2,AP188) -> 00:00:00 | AR188: =IF(OR(AQ188="",AQ188=0),"",MAX(AR$15:AR187)+1) ->  | AS188: 0
AP189: =MAX(AP$15:AP188)+1 -> 174 | AQ189: =SUMIFS(Periods!$11:$11,Periods!$2:$2,AP189) -> 00:00:00 | AR189: =IF(OR(AQ189="",AQ189=0),"",MAX(AR$15:AR188)+1) ->  | AS189: 0
AP190: =MAX(AP$15:AP189)+1 -> 175 | AQ190: =SUMIFS(Periods!$11:$11,Periods!$2:$2,AP190) -> 00:00:00 | AR190: =IF(OR(AQ190="",AQ190=0),"",MAX(AR$15:AR189)+1) ->  | AS190: 0
AP191: =MAX(AP$15:AP190)+1 -> 176 | AQ191: =SUMIFS(Periods!$11:$11,Periods!$2:$2,AP191) -> 00:00:00 | AR191: =IF(OR(AQ191="",AQ191=0),"",MAX(AR$15:AR190)+1) ->  | AS191: 0
AP192: =MAX(AP$15:AP191)+1 -> 177 | AQ192: =SUMIFS(Periods!$11:$11,Periods!$2:$2,AP192) -> 00:00:00 | AR192: =IF(OR(AQ192="",AQ192=0),"",MAX(AR$15:AR191)+1) ->  | AS192: 0
AP193: =MAX(AP$15:AP192)+1 -> 178 | AQ193: =SUMIFS(Periods!$11:$11,Periods!$2:$2,AP193) -> 00:00:00 | AR193: =IF(OR(AQ193="",AQ193=0),"",MAX(AR$15:AR192)+1) ->  | AS193: 0
AP194: =MAX(AP$15:AP193)+1 -> 179 | AQ194: =SUMIFS(Periods!$11:$11,Periods!$2:$2,AP194) -> 00:00:00 | AR194: =IF(OR(AQ194="",AQ194=0),"",MAX(AR$15:AR193)+1) ->  | AS194: 0
AP195: =MAX(AP$15:AP194)+1 -> 180 | AQ195: =SUMIFS(Periods!$11:$11,Periods!$2:$2,AP195) -> 00:00:00 | AR195: =IF(OR(AQ195="",AQ195=0),"",MAX(AR$15:AR194)+1) ->  | AS195: 0
AP196: =MAX(AP$15:AP195)+1 -> 181 | AQ196: =SUMIFS(Periods!$11:$11,Periods!$2:$2,AP196) -> 00:00:00 | AR196: =IF(OR(AQ196="",AQ196=0),"",MAX(AR$15:AR195)+1) ->  | AS196: 0
AP197: =MAX(AP$15:AP196)+1 -> 182 | AQ197: =SUMIFS(Periods!$11:$11,Periods!$2:$2,AP197) -> 00:00:00 | AR197: =IF(OR(AQ197="",AQ197=0),"",MAX(AR$15:AR196)+1) ->  | AS197: 0
AP198: =MAX(AP$15:AP197)+1 -> 183 | AQ198: =SUMIFS(Periods!$11:$11,Periods!$2:$2,AP198) -> 00:00:00 | AR198: =IF(OR(AQ198="",AQ198=0),"",MAX(AR$15:AR197)+1) ->  | AS198: 0
AP199: =MAX(AP$15:AP198)+1 -> 184 | AQ199: =SUMIFS(Periods!$11:$11,Periods!$2:$2,AP199) -> 00:00:00 | AR199: =IF(OR(AQ199="",AQ199=0),"",MAX(AR$15:AR198)+1) ->  | AS199: 0
AP200: =MAX(AP$15:AP199)+1 -> 185 | AQ200: =SUMIFS(Periods!$11:$11,Periods!$2:$2,AP200) -> 00:00:00 | AR200: =IF(OR(AQ200="",AQ200=0),"",MAX(AR$15:AR199)+1) ->  | AS200: 0
AP201: =MAX(AP$15:AP200)+1 -> 186 | AQ201: =SUMIFS(Periods!$11:$11,Periods!$2:$2,AP201) -> 00:00:00 | AR201: =IF(OR(AQ201="",AQ201=0),"",MAX(AR$15:AR200)+1) ->  | AS201: 0
AP202: =MAX(AP$15:AP201)+1 -> 187 | AQ202: =SUMIFS(Periods!$11:$11,Periods!$2:$2,AP202) -> 00:00:00 | AR202: =IF(OR(AQ202="",AQ202=0),"",MAX(AR$15:AR201)+1) ->  | AS202: 0
AP203: =MAX(AP$15:AP202)+1 -> 188 | AQ203: =SUMIFS(Periods!$11:$11,Periods!$2:$2,AP203) -> 00:00:00 | AR203: =IF(OR(AQ203="",AQ203=0),"",MAX(AR$15:AR202)+1) ->  | AS203: 0
AP204: =MAX(AP$15:AP203)+1 -> 189 | AQ204: =SUMIFS(Periods!$11:$11,Periods!$2:$2,AP204) -> 00:00:00 | AR204: =IF(OR(AQ204="",AQ204=0),"",MAX(AR$15:AR203)+1) ->  | AS204: 0
AP205: =MAX(AP$15:AP204)+1 -> 190 | AQ205: =SUMIFS(Periods!$11:$11,Periods!$2:$2,AP205) -> 00:00:00 | AR205: =IF(OR(AQ205="",AQ205=0),"",MAX(AR$15:AR204)+1) ->  | AS205: 0
AP206: =MAX(AP$15:AP205)+1 -> 191 | AQ206: =SUMIFS(Periods!$11:$11,Periods!$2:$2,AP206) -> 00:00:00 | AR206: =IF(OR(AQ206="",AQ206=0),"",MAX(AR$15:AR205)+1) ->  | AS206: 0
AP207: =MAX(AP$15:AP206)+1 -> 192 | AQ207: =SUMIFS(Periods!$11:$11,Periods!$2:$2,AP207) -> 00:00:00 | AR207: =IF(OR(AQ207="",AQ207=0),"",MAX(AR$15:AR206)+1) ->  | AS207: 0
AP208: =MAX(AP$15:AP207)+1 -> 193 | AQ208: =SUMIFS(Periods!$11:$11,Periods!$2:$2,AP208) -> 00:00:00 | AR208: =IF(OR(AQ208="",AQ208=0),"",MAX(AR$15:AR207)+1) ->  | AS208: 0
... 207 more rows

Sheet Macro
Y1: номер столбца: | AA1: 27 | AB1: 28 | AC1: 29 | AD1: 30 | AE1: 31 | AF1: 32 | AG1: 33 | AH1: 34 | AI1: 35 | AJ1: 36 | AK1: 37 | AL1: 38 | AM1: 39 | AN1: 40 | AO1: 41 | AP1: 42 | AQ1: 43 | AR1: 44 | AS1: 45 | AT1: 46 | AU1: 47 | AV1: 48 | AW1: 49 | AX1: 50 | AY1: 51 | AZ1: 52 | BA1: 53 | BB1: 54 | BC1: 55 | BD1: 56 | BE1: 57 | BF1: 58 | BG1: 59 | BH1: 60 | BI1: 61 | BJ1: 62 | BK1: 63 | BL1: 64 | BM1: 65 | BN1: 66 | BO1: 67 | BP1: 68 | BQ1: 69 | BR1: 70 | BS1: 71 | BT1: 72 | BU1: 73 | BV1: 74 | BW1: 75 | BX1: 76 | BY1: 77 | BZ1: 78 | CA1: 79 | CB1: 80 | CC1: 81 | CD1: 82 | CE1: 83 | CF1: 84 | CG1: 85 | CH1: 86 | CI1: 87 | CJ1: 88 | CK1: 89 | CL1: 90 | CM1: 91 | CN1: 92 | CO1: 93 | CP1: 94 | CQ1: 95 | CR1: 96 | CS1: 97 | CT1: 98 | CU1: 99 | CV1: 100 | CW1: 101 | CX1: 102 | CY1: 103 | CZ1: 104 | DA1: 105 | DB1: 106 | DC1: 107 | DD1: 108 | DE1: 109 | DF1: 110 | DG1: 111 | DH1: 112 | DI1: 113 | DJ1: 114 | DK1: 115 | DL1: 116 | DM1: 117 | DN1: 118 | DO1: 119 | DP1: 120 | DQ1: 121 | DR1: 122 | DS1: 123 | DT1: 124 | DU1: 125 | DV1: 126 | DW1: 127 | DX1: 128 | DY1: 129 | DZ1: 130 | EA1: 131 | EB1: 132 | EC1: 133 | ED1: 134 | EE1: 135 | EF1: 136 | EG1: 137 | EH1: 138 | EI1: 139 | EJ1: 140 | EK1: 141 | EL1: 142 | EM1: 143 | EN1: 144 | EO1: 145 | EP1: 146 | EQ1: 147 | ER1: 148 | ES1: 149 | ET1: 150 | EU1: 151 | EV1: 152 | EW1: 153 | EX1: 154 | EY1: 155 | EZ1: 156 | FA1: 157 | FB1: 158 | FC1: 159
Y2: номер периода модели: | AA2: 1 | AB2: 2 | AC2: 3 | AD2: 4 | AE2: 5 | AF2: 6 | AG2: 7 | AH2: 8 | AI2: 9 | AJ2: 10 | AK2: 11 | AL2: 12 | AM2: 13 | AN2: 14 | AO2: 15 | AP2: 16 | AQ2: 17 | AR2: 18 | AS2: 19 | AT2: 20 | AU2: 21 | AV2: 22 | AW2: 23 | AX2: 24 | AY2: 25 | AZ2: 26 | BA2: 27 | BB2: 28 | BC2: 29 | BD2: 30 | BE2: 31 | BF2: 32 | BG2: 33 | BH2: 34 | BI2: 35 | BJ2: 36 | BK2: 37 | BL2: 38 | BM2: 39 | BN2: 40 | BO2: 41 | BP2: 42 | BQ2: 43 | BR2: 44 | BS2: 45 | BT2: 46 | BU2: 47 | BV2: 48 | BW2: 49 | BX2: 50 | BY2: 51 | BZ2: 52 | CA2: 53 | CB2: 54 | CC2: 55 | CD2: 56 | CE2: 57 | CF2: 58 | CG2: 59 | CH2: 60 | CI2: 61 | CJ2: 62 | CK2: 63 | CL2: 64 | CM2: 65 | CN2: 66 | CO2: 67 | CP2: 68 | CQ2: 69 | CR2: 70 | CS2: 71 | CT2: 72 | CU2: 73 | CV2: 74 | CW2: 75 | CX2: 76 | CY2: 77 | CZ2: 78 | DA2: 79 | DB2: 80 | DC2: 81 | DD2: 82 | DE2: 83 | DF2: 84 | DG2: 85 | DH2: 86 | DI2: 87 | DJ2: 88 | DK2: 89 | DL2: 90 | DM2: 91 | DN2: 92 | DO2: 93 | DP2: 94 | DQ2: 95 | DR2: 96 | DS2: 97 | DT2: 98 | DU2: 99 | DV2: 100 | DW2: 101 | DX2: 102 | DY2: 103 | DZ2: 104 | EA2: 105 | EB2: 106 | EC2: 107 | ED2: 108 | EE2: 109 | EF2: 110 | EG2: 111 | EH2: 112 | EI2: 113 | EJ2: 114 | EK2: 115 | EL2: 116 | EM2: 117 | EN2: 118 | EO2: 119 | EP2: 120 | EQ2: 121 | ER2: 122 | ES2: 123 | ET2: 124 | EU2: 125 | EV2: 126 | EW2: 127 | EX2: 128 | EY2: 129 | EZ2: 130 | FA2: 131 | FB2: 132 | FC2: 133
Y3: номер факт-периода:
Y4: номер план-периода: | AA4: 1 | AB4: 2 | AC4: 3 | AD4: 4 | AE4: 5 | AF4: 6 | AG4: 7 | AH4: 8 | AI4: 9 | AJ4: 10 | AK4: 11 | AL4: 12 | AM4: 13 | AN4: 14 | AO4: 15 | AP4: 16 | AQ4: 17 | AR4: 18 | AS4: 19 | AT4: 20 | AU4: 21 | AV4: 22 | AW4: 23 | AX4: 24 | AY4: 25 | AZ4: 26 | BA4: 27 | BB4: 28 | BC4: 29 | BD4: 30 | BE4: 31 | BF4: 32 | BG4: 33 | BH4: 34 | BI4: 35 | BJ4: 36 | BK4: 37 | BL4: 38 | BM4: 39 | BN4: 40 | BO4: 41 | BP4: 42 | BQ4: 43 | BR4: 44 | BS4: 45 | BT4: 46 | BU4: 47 | BV4: 48
Y5: число даты начала: | AA5: 1 | AB5: 1 | AC5: 1 | AD5: 1 | AE5: 1 | AF5: 1 | AG5: 1 | AH5: 1 | AI5: 1 | AJ5: 1 | AK5: 1 | AL5: 1 | AM5: 1 | AN5: 1 | AO5: 1 | AP5: 1 | AQ5: 1 | AR5: 1 | AS5: 1 | AT5: 1 | AU5: 1 | AV5: 1 | AW5: 1 | AX5: 1 | AY5: 1 | AZ5: 1 | BA5: 1 | BB5: 1 | BC5: 1 | BD5: 1 | BE5: 1 | BF5: 1 | BG5: 1 | BH5: 1 | BI5: 1 | BJ5: 1 | BK5: 1 | BL5: 1 | BM5: 1 | BN5: 1 | BO5: 1 | BP5: 1 | BQ5: 1 | BR5: 1 | BS5: 1 | BT5: 1 | BU5: 1 | BV5: 1
Y6: номер месяца даты начала: | AA6: 9 | AB6: 10 | AC6: 11 | AD6: 12 | AE6: 1 | AF6: 2 | AG6: 3 | AH6: 4 | AI6: 5 | AJ6: 6 | AK6: 7 | AL6: 8 | AM6: 9 | AN6: 10 | AO6: 11 | AP6: 12 | AQ6: 1 | AR6: 2 | AS6: 3 | AT6: 4 | AU6: 5 | AV6: 6 | AW6: 7 | AX6: 8 | AY6: 9 | AZ6: 10 | BA6: 11 | BB6: 12 | BC6: 1 | BD6: 2 | BE6: 3 | BF6: 4 | BG6: 5 | BH6: 6 | BI6: 7 | BJ6: 8 | BK6: 9 | BL6: 10 | BM6: 11 | BN6: 12 | BO6: 1 | BP6: 2 | BQ6: 3 | BR6: 4 | BS6: 5 | BT6: 6 | BU6: 7 | BV6: 8
Y7: год даты начала: | AA7: 21 | AB7: 21 | AC7: 21 | AD7: 21 | AE7: 22 | AF7: 22 | AG7: 22 | AH7: 22 | AI7: 22 | AJ7: 22 | AK7: 22 | AL7: 22 | AM7: 22 | AN7: 22 | AO7: 22 | AP7: 22 | AQ7: 23 | AR7: 23 | AS7: 23 | AT7: 23 | AU7: 23 | AV7: 23 | AW7: 23 | AX7: 23 | AY7: 23 | AZ7: 23 | BA7: 23 | BB7: 23 | BC7: 24 | BD7: 24 | BE7: 24 | BF7: 24 | BG7: 24 | BH7: 24 | BI7: 24 | BJ7: 24 | BK7: 24 | BL7: 24 | BM7: 24 | BN7: 24 | BO7: 25 | BP7: 25 | BQ7: 25 | BR7: 25 | BS7: 25 | BT7: 25 | BU7: 25 | BV7: 25
Y8: число даты окончания: | AB8: 31 | AC8: 30 | AD8: 31 | AE8: 31 | AF8: 28 | AG8: 31 | AH8: 30 | AI8: 31 | AJ8: 30 | AK8: 31 | AL8: 31 | AM8: 30 | AN8: 31 | AO8: 30 | AP8: 31 | AQ8: 31 | AR8: 28 | AS8: 31 | AT8: 30 | AU8: 31 | AV8: 30 | AW8: 31 | AX8: 31 | AY8: 30 | AZ8: 31 | BA8: 30 | BB8: 31 | BC8: 31 | BD8: 29 | BE8: 31 | BF8: 30 | BG8: 31 | BH8: 30 | BI8: 31 | BJ8: 31 | BK8: 30 | BL8: 31 | BM8: 30 | BN8: 31 | BO8: 31 | BP8: 28 | BQ8: 31 | BR8: 30 | BS8: 31 | BT8: 30 | BU8: 31 | BV8: 31
Y9: номер месяца даты окончания: | AB9: 10 | AC9: 11 | AD9: 12 | AE9: 1 | AF9: 2 | AG9: 3 | AH9: 4 | AI9: 5 | AJ9: 6 | AK9: 7 | AL9: 8 | AM9: 9 | AN9: 10 | AO9: 11 | AP9: 12 | AQ9: 1 | AR9: 2 | AS9: 3 | AT9: 4 | AU9: 5 | AV9: 6 | AW9: 7 | AX9: 8 | AY9: 9 | AZ9: 10 | BA9: 11 | BB9: 12 | BC9: 1 | BD9: 2 | BE9: 3 | BF9: 4 | BG9: 5 | BH9: 6 | BI9: 7 | BJ9: 8 | BK9: 9 | BL9: 10 | BM9: 11 | BN9: 12 | BO9: 1 | BP9: 2 | BQ9: 3 | BR9: 4 | BS9: 5 | BT9: 6 | BU9: 7 | BV9: 8
Y10: год даты окончания: | AB10: 21 | AC10: 21 | AD10: 21 | AE10: 22 | AF10: 22 | AG10: 22 | AH10: 22 | AI10: 22 | AJ10: 22 | AK10: 22 | AL10: 22 | AM10: 22 | AN10: 22 | AO10: 22 | AP10: 22 | AQ10: 23 | AR10: 23 | AS10: 23 | AT10: 23 | AU10: 23 | AV10: 23 | AW10: 23 | AX10: 23 | AY10: 23 | AZ10: 23 | BA10: 23 | BB10: 23 | BC10: 24 | BD10: 24 | BE10: 24 | BF10: 24 | BG10: 24 | BH10: 24 | BI10: 24 | BJ10: 24 | BK10: 24 | BL10: 24 | BM10: 24 | BN10: 24 | BO10: 25 | BP10: 25 | BQ10: 25 | BR10: 25 | BS10: 25 | BT10: 25 | BU10: 25 | BV10: 25
F11: Macro | I11: Макропоказатели внешней среды | X11: 2021-09-01 | AA11: 2021-09-01 | AB11: 2021-10-01 | AC11: 2021-11-01 | AD11: 2021-12-01 | AE11: 2022-01-01 | AF11: 2022-02-01 | AG11: 2022-03-01 | AH11: 2022-04-01 | AI11: 2022-05-01 | AJ11: 2022-06-01 | AK11: 2022-07-01 | AL11: 2022-08-01 | AM11: 2022-09-01 | AN11: 2022-10-01 | AO11: 2022-11-01 | AP11: 2022-12-01 | AQ11: 2023-01-01 | AR11: 2023-02-01 | AS11: 2023-03-01 | AT11: 2023-04-01 | AU11: 2023-05-01 | AV11: 2023-06-01 | AW11: 2023-07-01 | AX11: 2023-08-01 | AY11: 2023-09-01 | AZ11: 2023-10-01 | BA11: 2023-11-01 | BB11: 2023-12-01 | BC11: 2024-01-01 | BD11: 2024-02-01 | BE11: 2024-03-01 | BF11: 2024-04-01 | BG11: 2024-05-01 | BH11: 2024-06-01 | BI11: 2024-07-01 | BJ11: 2024-08-01 | BK11: 2024-09-01 | BL11: 2024-10-01 | BM11: 2024-11-01 | BN11: 2024-12-01 | BO11: 2025-01-01 | BP11: 2025-02-01 | BQ11: 2025-03-01 | BR11: 2025-04-01 | BS11: 2025-05-01 | BT11: 2025-06-01 | BU11: 2025-07-01 | BV11: 2025-08-01
H12: тип листа | Q12: расчетный | X12: 2025-08-31 | AB12: 2021-10-31 | AC12: 2021-11-30 | AD12: 2021-12-31 | AE12: 2022-01-31 | AF12: 2022-02-28 | AG12: 2022-03-31 | AH12: 2022-04-30 | AI12: 2022-05-31 | AJ12: 2022-06-30 | AK12: 2022-07-31 | AL12: 2022-08-31 | AM12: 2022-09-30 | AN12: 2022-10-31 | AO12: 2022-11-30 | AP12: 2022-12-31 | AQ12: 2023-01-31 | AR12: 2023-02-28 | AS12: 2023-03-31 | AT12: 2023-04-30 | AU12: 2023-05-31 | AV12: 2023-06-30 | AW12: 2023-07-31 | AX12: 2023-08-31 | AY12: 2023-09-30 | AZ12: 2023-10-31 | BA12: 2023-11-30 | BB12: 2023-12-31 | BC12: 2024-01-31 | BD12: 2024-02-29 | BE12: 2024-03-31 | BF12: 2024-04-30 | BG12: 2024-05-31 | BH12: 2024-06-30 | BI12: 2024-07-31 | BJ12: 2024-08-31 | BK12: 2024-09-30 | BL12: 2024-10-31 | BM12: 2024-11-30 | BN12: 2024-12-31 | BO12: 2025-01-31 | BP12: 2025-02-28 | BQ12: 2025-03-31 | BR12: 2025-04-30 | BS12: 2025-05-31 | BT12: 2025-06-30 | BU12: 2025-07-31 | BV12: 2025-08-31
H13: показатель | M13: ед.изм. | Q13: значение | X13: итого | AA13: 2021-09-01 | AB13: 2021-10-01 | AC13: 2021-11-01 | AD13: 2021-12-01 | AE13: 2022-01-01 | AF13: 2022-02-01 | AG13: 2022-03-01 | AH13: 2022-04-01 | AI13: 2022-05-01 | AJ13: 2022-06-01 | AK13: 2022-07-01 | AL13: 2022-08-01 | AM13: 2022-09-01 | AN13: 2022-10-01 | AO13: 2022-11-01 | AP13: 2022-12-01 | AQ13: 2023-01-01 | AR13: 2023-02-01 | AS13: 2023-03-01 | AT13: 2023-04-01 | AU13: 2023-05-01 | AV13: 2023-06-01 | AW13: 2023-07-01 | AX13: 2023-08-01 | AY13: 2023-09-01 | AZ13: 2023-10-01 | BA13: 2023-11-01 | BB13: 2023-12-01 | BC13: 2024-01-01 | BD13: 2024-02-01 | BE13: 2024-03-01 | BF13: 2024-04-01 | BG13: 2024-05-01 | BH13: 2024-06-01 | BI13: 2024-07-01 | BJ13: 2024-08-01 | BK13: 2024-09-01 | BL13: 2024-10-01 | BM13: 2024-11-01 | BN13: 2024-12-01 | BO13: 2025-01-01 | BP13: 2025-02-01 | BQ13: 2025-03-01 | BR13: 2025-04-01 | BS13: 2025-05-01 | BT13: 2025-06-01 | BU13: 2025-07-01 | BV13: 2025-08-01
D14: 0 | E14: 0 | F14: 0 | G14: 0 | S14: 0 | T14: 0
A15: 15 | H15: разработка финмоделей: https://mngmnt.ru/
A16: 16 | G16: 0 | H16: Параметры рабочего дня сотрудника
A17: 17 | G17: 0 | H17: Параметры рабочего дня сотрудника | I17: Время одной смены рабочего дня | M17: кол-во часов | P17: * | Q17: 8 | S17: 0
A18: 18 | G18: 0 | H18: Параметры рабочего дня сотрудника | I18: Количество рабочих дней в месяце | M18: р.дней/мес. | P18: * | Q18: 20 | S18: 0
A19: 19 | G19: 0 | H19: Параметры рабочего дня сотрудника | I19: Количество рабочих дней в расчетном периоде | M19: р.дней/расч.пер. | Q19: 20 | S19: 0
A20: 20 | G20: 0 | H20: Параметры рабочего дня сотрудника | I20: Количество рабочих часов в расчетном периоде | M20: р.часов/расч.пер. | Q20: 160 | S20: 0
A21: 21
A22: 22 | G22: 0 | H22: Система налогообложения | AA22: ТОСЭР | AB22: ТОСЭР | AC22: ТОСЭР | AD22: ТОСЭР | AE22: ТОСЭР | AF22: ТОСЭР | AG22: ТОСЭР | AH22: ТОСЭР | AI22: ТОСЭР | AJ22: ТОСЭР | AK22: ТОСЭР | AL22: ТОСЭР | AM22: ТОСЭР | AN22: ТОСЭР | AO22: ТОСЭР | AP22: ТОСЭР | AQ22: ТОСЭР | AR22: ТОСЭР | AS22: ТОСЭР | AT22: ТОСЭР | AU22: ТОСЭР | AV22: ТОСЭР | AW22: ТОСЭР | AX22: ТОСЭР | AY22: ТОСЭР | AZ22: ТОСЭР | BA22: ТОСЭР | BB22: ТОСЭР | BC22: ТОСЭР | BD22: ТОСЭР | BE22: ТОСЭР | BF22: ТОСЭР | BG22: ТОСЭР | BH22: ТОСЭР | BI22: ТОСЭР | BJ22: ТОСЭР | BK22: ТОСЭР | BL22: ТОСЭР | BM22: ТОСЭР | BN22: ТОСЭР | BO22: ТОСЭР | BP22: ТОСЭР | BQ22: ТОСЭР | BR22: ТОСЭР | BS22: ТОСЭР | BT22: ТОСЭР | BU22: ТОСЭР | BV22: ТОСЭР
A23: 23 | G23: 0 | H23: Система налогообложения | I23: Единое значение для всех периодов расчета | M23: вып.список | P23: * | Q23: ТОСЭР | R23: ^ | S23: 0
A24: 24 | G24: 0 | H24: Система налогообложения | I24: Вручную для каждого периода расчетов | M24: вып.список | Y24: *
A25: 25 | G25: 0 | H25: Система налогообложения | I25: г | J25: 2021 | M25: вып.список | P25: * | R25: ^ | S25: 0
A26: 26 | G26: 0 | H26: Система налогообложения | I26: г | J26: 2022 | M26: вып.список | P26: * | R26: ^ | S26: 0
A27: 27 | G27: 0 | H27: Система налогообложения | I27: г | J27: 2023 | M27: вып.список | P27: * | R27: ^ | S27: 0
A28: 28 | G28: 0 | H28: Система налогообложения | I28: г | J28: 2024 | M28: вып.список | P28: * | R28: ^ | S28: 0
A29: 29 | L29: пустая строка
A30: 30
A31: 31 | G31: 0 | H31: Ставки налога на прибыль
A32: 32 | G32: 0 | H32: Ставки налога на прибыль | I32: ОСНО | M32: % | P32: * | Q32: 20.0% | S32: 0
A33: 33 | G33: 0 | H33: Ставки налога на прибыль | I33: УСН(6%) | M33: % | P33: * | Q33: 6.0% | S33: 0
A34: 34 | G34: 0 | H34: Ставки налога на прибыль | I34: УСН(6%) | J34: ограничения суммы НП на вычет соцсборов | M34: % | P34: * | Q34: 50.0% | S34: 0
A35: 35 | G35: 0 | H35: Ставки налога на прибыль | I35: УСН(15%) | M35: % | P35: * | Q35: 15.0% | S35: 0
A36: 36 | G36: 0 | H36: Ставки налога на прибыль | I36: УСН(15%) | J36: минимальный процент от дохода | M36: % | P36: * | Q36: 1.0% | S36: 0
A37: 37 | G37: 0 | H37: Ставки налога на прибыль | I37: ТОСЭР | M37: %
A38: 38 | G38: 0 | H38: Ставки налога на прибыль | I38: г | J38: 5 | M38: % | P38: * | Q38: 0.0% | S38: 0
A39: 39 | G39: 0 | H39: Ставки налога на прибыль | I39: г | J39: 10 | M39: % | P39: * | Q39: 12.0% | S39: 0
A40: 40 | L40: пустая строка
A41: 41
A42: 42 | G42: 0 | H42: Ставки НДС
A43: 43 | G43: 0 | H43: Ставки НДС | I43: ОСНО | M43: % | P43: * | Q43: 20.0% | S43: 0
A44: 44 | G44: 0 | H44: Ставки НДС | I44: УСН(6%) | M44: % | P44: * | Q44: 0.0% | S44: 0
A45: 45 | G45: 0 | H45: Ставки НДС | I45: УСН(15%) | M45: % | P45: * | Q45: 0.0% | S45: 0
A46: 46 | G46: 0 | H46: Ставки НДС | I46: ТОСЭР | M46: %
A47: 47 | G47: 0 | H47: Ставки НДС | I47: г | J47: 5 | M47: % | P47: * | Q47: 20.0% | S47: 0
A48: 48 | G48: 0 | H48: Ставки НДС | I48: г | J48: 10 | M48: % | P48: * | Q48: 20.0% | S48: 0
A49: 49 | L49: пустая строка
A50: 50
A51: 51 | G51: 0 | H51: Ставки соцсборов
A52: 52 | G52: 0 | H52: Ставки соцсборов | I52: ОСНО | M52: % | P52: * | Q52: 30.0% | S52: 0
A53: 53 | G53: 0 | H53: Ставки соцсборов | I53: УСН(6%) | M53: % | P53: * | Q53: 30.0% | S53: 0
A54: 54 | G54: 0 | H54: Ставки соцсборов | I54: УСН(15%) | M54: % | P54: * | Q54: 30.0% | S54: 0
A55: 55 | G55: 0 | H55: Ставки соцсборов | I55: ТОСЭР | M55: %
A56: 56 | G56: 0 | H56: Ставки соцсборов | I56: г | J56: 5 | M56: % | P56: * | Q56: 7.6% | S56: 0
A57: 57 | G57: 0 | H57: Ставки соцсборов | I57: г | J57: 10 | M57: % | P57: * | Q57: 7.6% | S57: 0
A58: 58 | L58: пустая строка
A59: 59
A60: 60 | G60: 0 | H60: Ставки земельного налога | AA60: 0.0% | AB60: 0.0% | AC60: 0.0% | AD60: 0.0% | AE60: 0.0% | AF60: 0.0% | AG60: 0.0% | AH60: 0.0% | AI60: 0.0% | AJ60: 0.0% | AK60: 0.0% | AL60: 0.0% | AM60: 0.0% | AN60: 0.0% | AO60: 0.0% | AP60: 0.0% | AQ60: 0.0% | AR60: 0.0% | AS60: 0.0% | AT60: 0.0% | AU60: 0.0% | AV60: 0.0% | AW60: 0.0% | AX60: 0.0% | AY60: 0.0% | AZ60: 0.0% | BA60: 0.0% | BB60: 0.0% | BC60: 0.0% | BD60: 0.0% | BE60: 0.0% | BF60: 0.0% | BG60: 0.0% | BH60: 0.0% | BI60: 0.0% | BJ60: 0.0% | BK60: 0.0% | BL60: 0.0% | BM60: 0.0% | BN60: 0.0% | BO60: 0.0% | BP60: 0.0% | BQ60: 0.0% | BR60: 0.0% | BS60: 0.0% | BT60: 0.0% | BU60: 0.0% | BV60: 0.0% | BW60: 1.5% | BX60: 1.5% | BY60: 1.5% | BZ60: 1.5% | CA60: 1.5% | CB60: 1.5% | CC60: 1.5% | CD60: 1.5% | CE60: 1.5% | CF60: 1.5% | CG60: 1.5% | CH60: 1.5% | CI60: 1.5% | CJ60: 1.5% | CK60: 1.5% | CL60: 1.5% | CM60: 1.5% | CN60: 1.5% | CO60: 1.5% | CP60: 1.5% | CQ60: 1.5% | CR60: 1.5% | CS60: 1.5% | CT60: 1.5% | CU60: 1.5% | CV60: 1.5% | CW60: 1.5% | CX60: 1.5% | CY60: 1.5% | CZ60: 1.5% | DA60: 1.5% | DB60: 1.5% | DC60: 1.5% | DD60: 1.5% | DE60: 1.5% | DF60: 1.5% | DG60: 1.5% | DH60: 1.5% | DI60: 1.5% | DJ60: 1.5% | DK60: 1.5% | DL60: 1.5% | DM60: 1.5% | DN60: 1.5% | DO60: 1.5% | DP60: 1.5% | DQ60: 1.5% | DR60: 1.5% | DS60: 1.5% | DT60: 1.5% | DU60: 1.5% | DV60: 1.5% | DW60: 1.5% | DX60: 1.5% | DY60: 1.5% | DZ60: 1.5% | EA60: 1.5% | EB60: 1.5% | EC60: 1.5% | ED60: 1.5% | EE60: 1.5% | EF60: 1.5% | EG60: 1.5% | EH60: 1.5% | EI60: 1.5% | EJ60: 1.5% | EK60: 1.5% | EL60: 1.5% | EM60: 1.5% | EN60: 1.5% | EO60: 1.5% | EP60: 1.5% | EQ60: 1.5% | ER60: 1.5% | ES60: 1.5% | ET60: 1.5% | EU60: 1.5% | EV60: 1.5% | EW60: 1.5% | EX60: 1.5% | EY60: 1.5% | EZ60: 1.5% | FA60: 1.5% | FB60: 1.5% | FC60: 1.5%
A61: 61 | G61: 0 | H61: Ставки земельного налога | I61: ОСНО | M61: % | P61: * | Q61: 1.5% | S61: 0
A62: 62 | G62: 0 | H62: Ставки земельного налога | I62: УСН(6%) | M62: % | P62: * | Q62: 1.5% | S62: 0
A63: 63 | G63: 0 | H63: Ставки земельного налога | I63: УСН(15%) | M63: % | P63: * | Q63: 1.5% | S63: 0
A64: 64 | G64: 0 | H64: Ставки земельного налога | I64: ТОСЭР | M64: %
A65: 65 | G65: 0 | H65: Ставки земельного налога | I65: г | J65: 5 | M65: % | P65: * | Q65: 0.0% | S65: 0
A66: 66 | G66: 0 | H66: Ставки земельного налога | I66: г | J66: 20 | M66: % | P66: * | Q66: 0.0% | S66: 0
A67: 67 | L67: пустая строка
A68: 68
A69: 69 | G69: 0 | H69: Ставки налога на имущество | AA69: 0.0% | AB69: 0.0% | AC69: 0.0% | AD69: 0.0% | AE69: 0.0% | AF69: 0.0% | AG69: 0.0% | AH69: 0.0% | AI69: 0.0% | AJ69: 0.0% | AK69: 0.0% | AL69: 0.0% | AM69: 0.0% | AN69: 0.0% | AO69: 0.0% | AP69: 0.0% | AQ69: 0.0% | AR69: 0.0% | AS69: 0.0% | AT69: 0.0% | AU69: 0.0% | AV69: 0.0% | AW69: 0.0% | AX69: 0.0% | AY69: 0.0% | AZ69: 0.0% | BA69: 0.0% | BB69: 0.0% | BC69: 0.0% | BD69: 0.0% | BE69: 0.0% | BF69: 0.0% | BG69: 0.0% | BH69: 0.0% | BI69: 0.0% | BJ69: 0.0% | BK69: 0.0% | BL69: 0.0% | BM69: 0.0% | BN69: 0.0% | BO69: 0.0% | BP69: 0.0% | BQ69: 0.0% | BR69: 0.0% | BS69: 0.0% | BT69: 0.0% | BU69: 0.0% | BV69: 0.0% | BW69: 1.5% | BX69: 1.5% | BY69: 1.5% | BZ69: 1.5% | CA69: 1.5% | CB69: 1.5% | CC69: 1.5% | CD69: 1.5% | CE69: 1.5% | CF69: 1.5% | CG69: 1.5% | CH69: 1.5% | CI69: 1.5% | CJ69: 1.5% | CK69: 1.5% | CL69: 1.5% | CM69: 1.5% | CN69: 1.5% | CO69: 1.5% | CP69: 1.5% | CQ69: 1.5% | CR69: 1.5% | CS69: 1.5% | CT69: 1.5% | CU69: 1.5% | CV69: 1.5% | CW69: 1.5% | CX69: 1.5% | CY69: 1.5% | CZ69: 1.5% | DA69: 1.5% | DB69: 1.5% | DC69: 1.5% | DD69: 1.5% | DE69: 1.5% | DF69: 1.5% | DG69: 1.5% | DH69: 1.5% | DI69: 1.5% | DJ69: 1.5% | DK69: 1.5% | DL69: 1.5% | DM69: 1.5% | DN69: 1.5% | DO69: 1.5% | DP69: 1.5% | DQ69: 1.5% | DR69: 1.5% | DS69: 1.5% | DT69: 1.5% | DU69: 1.5% | DV69: 1.5% | DW69: 1.5% | DX69: 1.5% | DY69: 1.5% | DZ69: 1.5% | EA69: 1.5% | EB69: 1.5% | EC69: 1.5% | ED69: 1.5% | EE69: 1.5% | EF69: 1.5% | EG69: 1.5% | EH69: 1.5% | EI69: 1.5% | EJ69: 1.5% | EK69: 1.5% | EL69: 1.5% | EM69: 1.5% | EN69: 1.5% | EO69: 1.5% | EP69: 1.5% | EQ69: 1.5% | ER69: 1.5% | ES69: 1.5% | ET69: 1.5% | EU69: 1.5% | EV69: 1.5% | EW69: 1.5% | EX69: 1.5% | EY69: 1.5% | EZ69: 1.5% | FA69: 1.5% | FB69: 1.5% | FC69: 1.5%
A70: 70 | G70: 0 | H70: Ставки налога на имущество | I70: ОСНО | M70: % | P70: * | Q70: 1.5% | S70: 0
A71: 71 | G71: 0 | H71: Ставки налога на имущество | I71: УСН(6%) | M71: % | P71: * | Q71: 1.5% | S71: 0
A72: 72 | G72: 0 | H72: Ставки налога на имущество | I72: УСН(15%) | M72: % | P72: * | Q72: 1.5% | S72: 0
A73: 73 | G73: 0 | H73: Ставки налога на имущество | I73: ТОСЭР | M73: %
A74: 74 | G74: 0 | H74: Ставки налога на имущество | I74: г | J74: 5 | M74: % | P74: * | Q74: 0.0% | S74: 0
A75: 75 | G75: 0 | H75: Ставки налога на имущество | I75: г | J75: 20 | M75: % | P75: * | Q75: 0.0% | S75: 0
A76: 76 | L76: пустая строка
A77: 77
A78: 78 | G78: 0 | H78: Ставки транспортного налога | AA78: 0.0% | AB78: 0.0% | AC78: 0.0% | AD78: 0.0% | AE78: 0.0% | AF78: 0.0% | AG78: 0.0% | AH78: 0.0% | AI78: 0.0% | AJ78: 0.0% | AK78: 0.0% | AL78: 0.0% | AM78: 0.0% | AN78: 0.0% | AO78: 0.0% | AP78: 0.0% | AQ78: 0.0% | AR78: 0.0% | AS78: 0.0% | AT78: 0.0% | AU78: 0.0% | AV78: 0.0% | AW78: 0.0% | AX78: 0.0% | AY78: 0.0% | AZ78: 0.0% | BA78: 0.0% | BB78: 0.0% | BC78: 0.0% | BD78: 0.0% | BE78: 0.0% | BF78: 0.0% | BG78: 0.0% | BH78: 0.0% | BI78: 0.0% | BJ78: 0.0% | BK78: 0.0% | BL78: 0.0% | BM78: 0.0% | BN78: 0.0% | BO78: 0.0% | BP78: 0.0% | BQ78: 0.0% | BR78: 0.0% | BS78: 0.0% | BT78: 0.0% | BU78: 0.0% | BV78: 0.0% | BW78: 0.5% | BX78: 0.5% | BY78: 0.5% | BZ78: 0.5% | CA78: 0.5% | CB78: 0.5% | CC78: 0.5% | CD78: 0.5% | CE78: 0.5% | CF78: 0.5% | CG78: 0.5% | CH78: 0.5% | CI78: 0.5% | CJ78: 0.5% | CK78: 0.5% | CL78: 0.5% | CM78: 0.5% | CN78: 0.5% | CO78: 0.5% | CP78: 0.5% | CQ78: 0.5% | CR78: 0.5% | CS78: 0.5% | CT78: 0.5% | CU78: 0.5% | CV78: 0.5% | CW78: 0.5% | CX78: 0.5% | CY78: 0.5% | CZ78: 0.5% | DA78: 0.5% | DB78: 0.5% | DC78: 0.5% | DD78: 0.5% | DE78: 0.5% | DF78: 0.5% | DG78: 0.5% | DH78: 0.5% | DI78: 0.5% | DJ78: 0.5% | DK78: 0.5% | DL78: 0.5% | DM78: 0.5% | DN78: 0.5% | DO78: 0.5% | DP78: 0.5% | DQ78: 0.5% | DR78: 0.5% | DS78: 0.5% | DT78: 0.5% | DU78: 0.5% | DV78: 0.5% | DW78: 0.5% | DX78: 0.5% | DY78: 0.5% | DZ78: 0.5% | EA78: 0.5% | EB78: 0.5% | EC78: 0.5% | ED78: 0.5% | EE78: 0.5% | EF78: 0.5% | EG78: 0.5% | EH78: 0.5% | EI78: 0.5% | EJ78: 0.5% | EK78: 0.5% | EL78: 0.5% | EM78: 0.5% | EN78: 0.5% | EO78: 0.5% | EP78: 0.5% | EQ78: 0.5% | ER78: 0.5% | ES78: 0.5% | ET78: 0.5% | EU78: 0.5% | EV78: 0.5% | EW78: 0.5% | EX78: 0.5% | EY78: 0.5% | EZ78: 0.5% | FA78: 0.5% | FB78: 0.5% | FC78: 0.5%
A79: 79 | G79: 0 | H79: Ставки транспортного налога | I79: ОСНО | M79: % | P79: * | Q79: 0.5% | S79: 0
A80: 80 | G80: 0 | H80: Ставки транспортного налога | I80: УСН(6%) | M80: % | P80: * | Q80: 0.5% | S80: 0
A81: 81 | G81: 0 | H81: Ставки транспортного налога | I81: УСН(15%) | M81: % | P81: * | Q81: 0.5% | S81: 0
A82: 82 | G82: 0 | H82: Ставки транспортного налога | I82: ТОСЭР | M82: %
A83: 83 | G83: 0 | H83: Ставки транспортного налога | I83: г | J83: 5 | M83: % | P83: * | Q83: 0.0% | S83: 0
A84: 84 | G84: 0 | H84: Ставки транспортного налога | I84: г | J84: 20 | M84: % | P84: * | Q84: 0.0% | S84: 0
A85: 85 | L85: пустая строка
A86: 86
A87: 87 | G87: 0 | H87: Ставки НДПИ | AA87: 8.0% | AB87: 8.0% | AC87: 8.0% | AD87: 8.0% | AE87: 8.0% | AF87: 8.0% | AG87: 8.0% | AH87: 8.0% | AI87: 8.0% | AJ87: 8.0% | AK87: 8.0% | AL87: 8.0% | AM87: 8.0% | AN87: 8.0% | AO87: 8.0% | AP87: 8.0% | AQ87: 8.0% | AR87: 8.0% | AS87: 8.0% | AT87: 8.0% | AU87: 8.0% | AV87: 8.0% | AW87: 8.0% | AX87: 8.0% | AY87: 8.0% | AZ87: 8.0% | BA87: 8.0% | BB87: 8.0% | BC87: 8.0% | BD87: 8.0% | BE87: 8.0% | BF87: 8.0% | BG87: 8.0% | BH87: 8.0% | BI87: 8.0% | BJ87: 8.0% | BK87: 8.0% | BL87: 8.0% | BM87: 8.0% | BN87: 8.0% | BO87: 8.0% | BP87: 8.0% | BQ87: 8.0% | BR87: 8.0% | BS87: 8.0% | BT87: 8.0% | BU87: 8.0% | BV87: 8.0% | BW87: 8.0% | BX87: 8.0% | BY87: 8.0% | BZ87: 8.0% | CA87: 8.0% | CB87: 8.0% | CC87: 8.0% | CD87: 8.0% | CE87: 8.0% | CF87: 8.0% | CG87: 8.0% | CH87: 8.0% | CI87: 8.0% | CJ87: 8.0% | CK87: 8.0% | CL87: 8.0% | CM87: 8.0% | CN87: 8.0% | CO87: 8.0% | CP87: 8.0% | CQ87: 8.0% | CR87: 8.0% | CS87: 8.0% | CT87: 8.0% | CU87: 8.0% | CV87: 8.0% | CW87: 8.0% | CX87: 8.0% | CY87: 8.0% | CZ87: 8.0% | DA87: 8.0% | DB87: 8.0% | DC87: 8.0% | DD87: 8.0% | DE87: 8.0% | DF87: 8.0% | DG87: 8.0% | DH87: 8.0% | DI87: 8.0% | DJ87: 8.0% | DK87: 8.0% | DL87: 8.0% | DM87: 8.0% | DN87: 8.0% | DO87: 8.0% | DP87: 8.0% | DQ87: 8.0% | DR87: 8.0% | DS87: 8.0% | DT87: 8.0% | DU87: 8.0% | DV87: 8.0% | DW87: 8.0% | DX87: 8.0% | DY87: 8.0% | DZ87: 8.0% | EA87: 8.0% | EB87: 8.0% | EC87: 8.0% | ED87: 8.0% | EE87: 8.0% | EF87: 8.0% | EG87: 8.0% | EH87: 8.0% | EI87: 8.0% | EJ87: 8.0% | EK87: 8.0% | EL87: 8.0% | EM87: 8.0% | EN87: 8.0% | EO87: 8.0% | EP87: 8.0% | EQ87: 8.0% | ER87: 8.0% | ES87: 8.0% | ET87: 8.0% | EU87: 8.0% | EV87: 8.0% | EW87: 8.0% | EX87: 8.0% | EY87: 8.0% | EZ87: 8.0% | FA87: 8.0% | FB87: 8.0% | FC87: 8.0%
A88: 88 | G88: 0 | H88: Ставки НДПИ | I88: ОСНО | M88: % | P88: * | Q88: 8.0% | S88: 0
A89: 89 | G89: 0 | H89: Ставки НДПИ | I89: УСН(6%) | M89: % | P89: * | Q89: 8.0% | S89: 0
A90: 90 | G90: 0 | H90: Ставки НДПИ | I90: УСН(15%) | M90: % | P90: * | Q90: 8.0% | S90: 0
A91: 91 | G91: 0 | H91: Ставки НДПИ | I91: ТОСЭР | M91: %
A92: 92 | G92: 0 | H92: Ставки НДПИ | I92: г | J92: 5 | M92: % | P92: * | Q92: 8.0% | S92: 0
A93: 93 | G93: 0 | H93: Ставки НДПИ | I93: г | J93: 20 | M93: % | P93: * | Q93: 8.0% | S93: 0
A94: 94 | L94: пустая строка
A95: 95
A96: 96 | G96: 0 | H96: НДС к возмещению по капзатратам
A97: 97 | G97: 0 | H97: НДС к возмещению по капзатратам | I97: кол-во месяцев на возмещение НДС | M97: кол-во мес. | P97: * | Q97: 12 | S97: 0
F100: Macro | I100: Макропоказатели внешней среды | AA100: 2021-09-01 | AB100: 2022-09-01 | AC100: 2023-09-01 | AD100: 2024-09-01
Q101: отчетный | AA101: 2022-08-31 | AB101: 2023-08-31 | AC101: 2024-08-31 | AD101: 2025-08-31
A103: 103 | H103: Курс доллара | Y103: * | AA103: 75.00 | AB103: 75.00 | AC103: 75.00 | AD103: 75.00 | AE103: 75.00 | AF103: 75.00 | AG103: 75.00 | AH103: 75.00 | AI103: 75.00 | AJ103: 75.00
A104: 104 | H104: Инфляция ЦБ | Y104: * | AA104: 5.0% | AB104: 5.0% | AC104: 5.0% | AD104: 5.0% | AE104: 5.0% | AF104: 5.0% | AG104: 5.0% | AH104: 5.0% | AI104: 5.0% | AJ104: 5.0%
A105: 105 | H105: Учетная (безрисковая) ставка ЦБ | Y105: * | AA105: 5.0% | AB105: 5.0% | AC105: 5.0% | AD105: 5.0% | AE105: 5.0% | AF105: 5.0% | AG105: 5.0% | AH105: 5.0% | AI105: 5.0% | AJ105: 5.0%
A106: 106 | H106: Ставка риска (отрасль+регион) | Y106: * | AA106: 2.0% | AB106: 2.0% | AC106: 2.0% | AD106: 2.0% | AE106: 2.0% | AF106: 2.0% | AG106: 2.0% | AH106: 2.0% | AI106: 2.0% | AJ106: 2.0%
A107: 107 | H107: Ставка дисконтирования | AA107: 12.0% | AB107: 12.0% | AC107: 12.0% | AD107: 12.0% | AE107: 12.0% | AF107: 12.0% | AG107: 12.0% | AH107: 12.0% | AI107: 12.0% | AJ107: 12.0%
A108: 108 | H108: Инфляция цен на доходы | Y108: * | AA108: 5.0% | AB108: 5.0% | AC108: 5.0% | AD108: 5.0% | AE108: 5.0% | AF108: 5.0% | AG108: 5.0% | AH108: 5.0% | AI108: 5.0% | AJ108: 5.0%
A109: 109 | H109: Инфляция цен на расходы | Y109: * | AA109: 5.0% | AB109: 5.0% | AC109: 5.0% | AD109: 5.0% | AE109: 5.0% | AF109: 5.0% | AG109: 5.0% | AH109: 5.0% | AI109: 5.0% | AJ109: 5.0%

Sheet Items
I1: =COLUMN() -> 9 | M1: =COLUMN() -> 13 | Q1: =COLUMN() -> 17 | AD1: =COLUMN() -> 30 | AH1: =COLUMN() -> 34 | AL1: =COLUMN() -> 38 | AN1: =COLUMN() -> 40 | AQ1: =COLUMN() -> 43 | AU1: =COLUMN() -> 47 | AY1: =COLUMN() -> 51 | BC1: =COLUMN() -> 55 | BG1: =COLUMN() -> 59 | BK1: =COLUMN() -> 63 | BO1: =COLUMN() -> 67 | BS1: =COLUMN() -> 71
I2: =LEFT(ADDRESS(1,COLUMN(),4),LEN(ADDRESS(1,COLUMN(),4))-1) -> I | M2: =LEFT(ADDRESS(1,COLUMN(),4),LEN(ADDRESS(1,COLUMN(),4))-1) -> M | Q2: =LEFT(ADDRESS(1,COLUMN(),4),LEN(ADDRESS(1,COLUMN(),4))-1) -> Q | AD2: =LEFT(ADDRESS(1,COLUMN(),4),LEN(ADDRESS(1,COLUMN(),4))-1) -> AD | AH2: =LEFT(ADDRESS(1,COLUMN(),4),LEN(ADDRESS(1,COLUMN(),4))-1) -> AH | AL2: =LEFT(ADDRESS(1,COLUMN(),4),LEN(ADDRESS(1,COLUMN(),4))-1) -> AL | AN2: =LEFT(ADDRESS(1,COLUMN(),4),LEN(ADDRESS(1,COLUMN(),4))-1) -> AN | AQ2: =LEFT(ADDRESS(1,COLUMN(),4),LEN(ADDRESS(1,COLUMN(),4))-1) -> AQ | AU2: =LEFT(ADDRESS(1,COLUMN(),4),LEN(ADDRESS(1,COLUMN(),4))-1) -> AU | AY2: =LEFT(ADDRESS(1,COLUMN(),4),LEN(ADDRESS(1,COLUMN(),4))-1) -> AY | BC2: =LEFT(ADDRESS(1,COLUMN(),4),LEN(ADDRESS(1,COLUMN(),4))-1) -> BC | BG2: =LEFT(ADDRESS(1,COLUMN(),4),LEN(ADDRESS(1,COLUMN(),4))-1) -> BG | BK2: =LEFT(ADDRESS(1,COLUMN(),4),LEN(ADDRESS(1,COLUMN(),4))-1) -> BK | BO2: =LEFT(ADDRESS(1,COLUMN(),4),LEN(ADDRESS(1,COLUMN(),4))-1) -> BO | BS2: =LEFT(ADDRESS(1,COLUMN(),4),LEN(ADDRESS(1,COLUMN(),4))-1) -> BS
F11: =INDIRECT("START!I30") -> Items | I11: =INDIRECT("START!K30") -> Справочники статей доходов и расходов и т.д.
I12: =START!$I$32 -> GRR | M12: =START!$I$32 -> GRR | Q12: =START!$I$32 -> GRR | AD12: =START!$I$34 -> DvlFld | AH12: =START!$I$34 -> DvlFld | AL12: =START!$I$35 -> Prdction | AN12: =START!$I$35 -> Prdction | AQ12: =START!$I$35 -> Prdction | AU12: =START!$I$33 -> CapEx | AY12: =START!$I$33 -> CapEx | BC12: =START!$I$37 -> Exp | BG12: =START!$I$36 -> HR | BK12: =START!$I$54 -> Calc | BO12: =START!$I$54 -> Calc | BS12: =START!$I$54 -> Calc
I13: Амортизируемые затраты этапа ГРР | M13: Прямые переменные расходы этапа ГРР | Q13: Прямые постоянные расходы этапа ГРР | AD13: Прямые переменные расходы этапа разработки | AH13: Прямые постоянные расходы этапа разработки | AL13: Прямые производственные расходы | AN13: ед.изм. | AQ13: Постоянные производственные расходы | AU13: Капзатраты этапа ГРР | AY13: Капзатраты этапа разработки | BC13: Постоянные расходы | BG13: Расходы на персонал | BK13: Статьи Баланса | BO13: Статьи отчета о прибылях и убытках | BS13: Статьи отчета о ДДС
D14: =INDIRECT("Cntrl!M17") -> 0 | E14: =SUM($F14:$PM14) -> 0 | F14: =IFERROR(_xlfn.SHEET($A$1)-SUMIFS(Cntrl!O$15:O$100000,Cntrl!I$15:I$100000,$F$11),1) -> 0 | I14: =IF(OR(I13=0,I13=""),1,IF(COUNTIF(13:13,I13)=1,0,1)) -> 0 | K14: =SUM(K$15:K$100000) -> 0 | M14: =IF(OR(M13=0,M13=""),1,IF(COUNTIF(13:13,M13)=1,0,1)) -> 0 | O14: =SUM(O$15:O$100000) -> 0 | Q14: =IF(OR(Q13=0,Q13=""),1,IF(COUNTIF(13:13,Q13)=1,0,1)) -> 0 | S14: =SUM(S$15:S$100000) -> 0 | AD14: =IF(OR(AD13=0,AD13=""),1,IF(COUNTIF(13:13,AD13)=1,0,1)) -> 0 | AF14: =SUM(AF$15:AF$100000) -> 0 | AH14: =IF(OR(AH13=0,AH13=""),1,IF(COUNTIF(13:13,AH13)=1,0,1)) -> 0 | AJ14: =SUM(AJ$15:AJ$100000) -> 0 | AL14: =IF(OR(AL13=0,AL13=""),1,IF(COUNTIF(13:13,AL13)=1,0,1)) -> 0 | AN14: =IF(OR(AN13=0,AN13=""),1,IF(COUNTIF(13:13,AN13)=1,0,1)) -> 0 | AO14: =SUM(AO$15:AO$100000) -> 0 | AQ14: =IF(OR(AQ13=0,AQ13=""),1,IF(COUNTIF(13:13,AQ13)=1,0,1)) -> 0 | AS14: =SUM(AS$15:AS$100000) -> 0 | AU14: =IF(OR(AU13=0,AU13=""),1,IF(COUNTIF(13:13,AU13)=1,0,1)) -> 0 | AW14: =SUM(AW$15:AW$100000) -> 0 | AY14: =IF(OR(AY13=0,AY13=""),1,IF(COUNTIF(13:13,AY13)=1,0,1)) -> 0 | BA14: =SUM(BA$15:BA$100000) -> 0 | BC14: =IF(OR(BC13=0,BC13=""),1,IF(COUNTIF(13:13,BC13)=1,0,1)) -> 0 | BE14: =SUM(BE$15:BE$100000) -> 0 | BG14: =IF(OR(BG13=0,BG13=""),1,IF(COUNTIF(13:13,BG13)=1,0,1)) -> 0 | BI14: =SUM(BI$15:BI$100000) -> 0 | BK14: =IF(OR(BK13=0,BK13=""),1,IF(COUNTIF(13:13,BK13)=1,0,1)) -> 0 | BM14: =SUM(BM$15:BM$100000) -> 0 | BO14: =IF(OR(BO13=0,BO13=""),1,IF(COUNTIF(13:13,BO13)=1,0,1)) -> 0 | BQ14: =SUM(BQ$15:BQ$100000) -> 0 | BS14: =IF(OR(BS13=0,BS13=""),1,IF(COUNTIF(13:13,BS13)=1,0,1)) -> 0 | BU14: =SUM(BU$15:BU$100000) -> 0
A15: =ROW() -> 15 | I15: =$F$11&"!"&I$2&$A16&":"&I$2&($A15+MAX(J$15:J$100000)) -> Items!I16:I20 | M15: =$F$11&"!"&M$2&$A16&":"&M$2&($A15+MAX(N$15:N$100000)) -> Items!M16:M18 | Q15: =$F$11&"!"&Q$2&$A16&":"&Q$2&($A15+MAX(R$15:R$100000)) -> Items!Q16:Q17 | AD15: =$F$11&"!"&AD$2&$A16&":"&AD$2&($A15+MAX(AE$15:AE$100000)) -> Items!AD16:AD18 | AH15: =$F$11&"!"&AH$2&$A16&":"&AH$2&($A15+MAX(AI$15:AI$100000)) -> Items!AH16:AH17 | AL15: =$F$11&"!"&AL$2&$A16&":"&AL$2&($A15+MAX(AM$15:AM$100000)) -> Items!AL16:AL18 | AN15: =$F$11&"!"&AN$2&$A16&":"&AN$2&($A15+MAX(AO$15:AO$100000)) -> Items!AN16:AN15 | AQ15: =$F$11&"!"&AQ$2&$A16&":"&AQ$2&($A15+MAX(AR$15:AR$100000)) -> Items!AQ16:AQ17 | AU15: =$F$11&"!"&AU$2&$A16&":"&AU$2&($A15+MAX(AV$15:AV$100000)) -> Items!AU16:AU19 | AY15: =$F$11&"!"&AY$2&$A16&":"&AY$2&($A15+MAX(AZ$15:AZ$100000)) -> Items!AY16:AY19 | BC15: =$F$11&"!"&BC$2&$A16&":"&BC$2&($A15+MAX(BD$15:BD$100000)) -> Items!BC16:BC22 | BG15: =$F$11&"!"&BG$2&$A16&":"&BG$2&($A15+MAX(BH$15:BH$100000)) -> Items!BG16:BG20 | BK15: =$F$11&"!"&BK$2&$A16&":"&BK$2&($A15+MAX(BL$15:BL$100000)) -> Items!BK16:BK46 | BO15: =$F$11&"!"&BO$2&$A16&":"&BO$2&($A15+MAX(BP$15:BP$100000)) -> Items!BO16:BO35 | BS15: =$F$11&"!"&BS$2&$A16&":"&BS$2&($A15+MAX(BT$15:BT$100000)) -> Items!BS16:BS42
A16: =ROW() -> 16 | H16: * | I16: Предполевые работы и проектирование | J16: =MAX(J$15:J15)+1 -> 1 | K16: =IF(OR(I16=0,I16=""),0,IF(COUNTIF(I$15:I$100000,I16)=1,0,1)) -> 0 | L16: * | M16: Временное строительство | N16: =MAX(N$15:N15)+1 -> 1 | O16: =IF(OR(M16=0,M16=""),0,IF(COUNTIF(M$15:M$100000,M16)=1,0,1)) -> 0 | Q16: ФОТ сезонных рабочих этапа ГРР | R16: =MAX(R$15:R15)+1 -> 1 | S16: =IF(OR(Q16=0,Q16=""),0,IF(COUNTIF(Q$15:Q$100000,Q16)=1,0,1)) -> 0 | AC16: * | AD16: Подрядные работы | AE16: =MAX(AE$15:AE15)+1 -> 1 | AF16: =IF(OR(AD16=0,AD16=""),0,IF(COUNTIF(AD$15:AD$100000,AD16)=1,0,1)) -> 0 | AH16: ФОТ сезонных рабочих этапа разработки | AI16: =MAX(AI$15:AI15)+1 -> 1 | AJ16: =IF(OR(AH16=0,AH16=""),0,IF(COUNTIF(AH$15:AH$100000,AH16)=1,0,1)) -> 0 | AK16: * | AL16: Материалы, ГСМ, запчасти | AM16: =MAX(AM$15:AM15)+1 -> 1 | AN16: у.е. | AO16: =IF(OR(AL16=0,AL16=""),0,IF(COUNTIF(AL$15:AL$100000,AL16)=1,0,1)) -> 0 | AQ16: ФОТ производственных рабочих | AR16: =MAX(AR$15:AR15)+1 -> 1 | AS16: =IF(OR(AQ16=0,AQ16=""),0,IF(COUNTIF(AQ$15:AQ$100000,AQ16)=1,0,1)) -> 0 | AT16: * | AU16: ="Капзатраты этапа ГРР по месторождению-"&AV16 -> Капзатраты этапа ГРР по месторождению-1 | AV16: =MAX(AV$15:AV15)+1 -> 1 | AW16: =IF(OR(AU16=0,AU16=""),0,IF(COUNTIF(AU$15:AU$100000,AU16)=1,0,1)) -> 0 | AX16: * | AY16: ="Капзатраты этапа разработки по месторожд.-"&AZ16 -> Капзатраты этапа разработки по месторожд.-1 | AZ16: =MAX(AZ$15:AZ15)+1 -> 1 | BA16: =IF(OR(AY16=0,AY16=""),0,IF(COUNTIF(AY$15:AY$100000,AY16)=1,0,1)) -> 0 | BB16: * | BC16: Расходы на эксплуатацию и ремонт | BD16: =MAX(BD$15:BD15)+1 -> 1 | BE16: =IF(OR(BC16=0,BC16=""),0,IF(COUNTIF(BC$15:BC$100000,BC16)=1,0,1)) -> 0 | BF16: * | BG16: Обустройство жилой зоны | BH16: =MAX(BH$15:BH15)+1 -> 1 | BI16: =IF(OR(BG16=0,BG16=""),0,IF(COUNTIF(BG$15:BG$100000,BG16)=1,0,1)) -> 0 | BJ16: * | BK16: Дебиторская задолженность | BL16: =MAX(BL$15:BL15)+1 -> 1 | BM16: =IF(OR(BK16=0,BK16=""),0,IF(COUNTIF(BK$15:BK$100000,BK16)=1,0,1)) -> 0 | BN16: * | BO16: Выручка | BP16: =MAX(BP$15:BP15)+1 -> 1 | BQ16: =IF(OR(BO16=0,BO16=""),0,IF(COUNTIF(BO$15:BO$100000,BO16)=1,0,1)) -> 0 | BR16: * | BS16: Финпоток проекта без финансирования (CF) | BT16: =MAX(BT$15:BT15)+1 -> 1 | BU16: =IF(OR(BS16=0,BS16=""),0,IF(COUNTIF(BS$15:BS$100000,BS16)=1,0,1)) -> 0
A17: =ROW() -> 17 | H17: * | I17: Полевые работы | J17: =MAX(J$15:J16)+1 -> 2 | K17: =IF(OR(I17=0,I17=""),0,IF(COUNTIF(I$15:I$100000,I17)=1,0,1)) -> 0 | L17: * | M17: Транспортировка грузов и персонала | N17: =MAX(N$15:N16)+1 -> 2 | O17: =IF(OR(M17=0,M17=""),0,IF(COUNTIF(M$15:M$100000,M17)=1,0,1)) -> 0 | P17: * | Q17: Прочие расходы этапа ГРР | R17: =MAX(R$15:R16)+1 -> 2 | S17: =IF(OR(Q17=0,Q17=""),0,IF(COUNTIF(Q$15:Q$100000,Q17)=1,0,1)) -> 0 | AC17: * | AD17: Строительство зданий и сооружений | AE17: =MAX(AE$15:AE16)+1 -> 2 | AF17: =IF(OR(AD17=0,AD17=""),0,IF(COUNTIF(AD$15:AD$100000,AD17)=1,0,1)) -> 0 | AG17: * | AH17: Прочие расходы этапа разработки | AI17: =MAX(AI$15:AI16)+1 -> 2 | AJ17: =IF(OR(AH17=0,AH17=""),0,IF(COUNTIF(AH$15:AH$100000,AH17)=1,0,1)) -> 0 | AK17: * | AL17: Производств. затраты, в т.ч. аутсорс | AM17: =MAX(AM$15:AM16)+1 -> 2 | AN17: у.е. | AO17: =IF(OR(AL17=0,AL17=""),0,IF(COUNTIF(AL$15:AL$100000,AL17)=1,0,1)) -> 0 | AP17: * | AQ17: Прочие производственные расходы | AR17: =MAX(AR$15:AR16)+1 -> 2 | AS17: =IF(OR(AQ17=0,AQ17=""),0,IF(COUNTIF(AQ$15:AQ$100000,AQ17)=1,0,1)) -> 0 | AT17: * | AU17: ="Капзатраты этапа ГРР по месторождению-"&AV17 -> Капзатраты этапа ГРР по месторождению-2 | AV17: =MAX(AV$15:AV16)+1 -> 2 | AW17: =IF(OR(AU17=0,AU17=""),0,IF(COUNTIF(AU$15:AU$100000,AU17)=1,0,1)) -> 0 | AX17: * | AY17: ="Капзатраты этапа разработки по месторожд.-"&AZ17 -> Капзатраты этапа разработки по месторожд.-2 | AZ17: =MAX(AZ$15:AZ16)+1 -> 2 | BA17: =IF(OR(AY17=0,AY17=""),0,IF(COUNTIF(AY$15:AY$100000,AY17)=1,0,1)) -> 0 | BB17: * | BC17: Юридические расходы | BD17: =MAX(BD$15:BD16)+1 -> 2 | BE17: 0 | BF17: * | BG17: Расходы на организацию рабочего места | BH17: =MAX(BH$15:BH16)+1 -> 2 | BI17: =IF(OR(BG17=0,BG17=""),0,IF(COUNTIF(BG$15:BG$100000,BG17)=1,0,1)) -> 0 | BJ17: * | BK17: Авансы полученные | BL17: =MAX(BL$15:BL16)+1 -> 2 | BM17: 0 | BN17: * | BO17: Себестоимость | BP17: =MAX(BP$15:BP16)+1 -> 2 | BQ17: 0 | BR17: * | BS17: Финпоток проекта нарастающим итогом | BT17: =MAX(BT$15:BT16)+1 -> 2 | BU17: 0
A18: =ROW() -> 18 | H18: * | I18: Организация и ликвидация полевых работ | J18: =MAX(J$15:J17)+1 -> 3 | K18: =IF(OR(I18=0,I18=""),0,IF(COUNTIF(I$15:I$100000,I18)=1,0,1)) -> 0 | L18: * | M18: Строительство зданий и сооружений | N18: =MAX(N$15:N17)+1 -> 3 | O18: =IF(OR(M18=0,M18=""),0,IF(COUNTIF(M$15:M$100000,M18)=1,0,1)) -> 0 | AC18: * | AD18: Закупка оборудования и материалов | AE18: =MAX(AE$15:AE17)+1 -> 3 | AF18: =IF(OR(AD18=0,AD18=""),0,IF(COUNTIF(AD$15:AD$100000,AD18)=1,0,1)) -> 0 | AK18: * | AL18: Расходы на продажу | AM18: =MAX(AM$15:AM17)+1 -> 3 | AN18: у.е. | AO18: =IF(OR(AL18=0,AL18=""),0,IF(COUNTIF(AL$15:AL$100000,AL18)=1,0,1)) -> 0 | AT18: * | AU18: ="Капзатраты этапа ГРР по месторождению-"&AV18 -> Капзатраты этапа ГРР по месторождению-3 | AV18: =MAX(AV$15:AV17)+1 -> 3 | AW18: =IF(OR(AU18=0,AU18=""),0,IF(COUNTIF(AU$15:AU$100000,AU18)=1,0,1)) -> 0 | AX18: * | AY18: ="Капзатраты этапа разработки по месторожд.-"&AZ18 -> Капзатраты этапа разработки по месторожд.-3 | AZ18: =MAX(AZ$15:AZ17)+1 -> 3 | BA18: =IF(OR(AY18=0,AY18=""),0,IF(COUNTIF(AY$15:AY$100000,AY18)=1,0,1)) -> 0 | BB18: * | BC18: Лицензионные платежи | BD18: =MAX(BD$15:BD17)+1 -> 3 | BE18: 0 | BF18: * | BG18: Расходы на оргтехнику | BH18: =MAX(BH$15:BH17)+1 -> 3 | BI18: =IF(OR(BG18=0,BG18=""),0,IF(COUNTIF(BG$15:BG$100000,BG18)=1,0,1)) -> 0 | BJ18: * | BK18: Поступление запасов | BL18: =MAX(BL$15:BL17)+1 -> 3 | BM18: 0 | BN18: * | BO18: Валовая прибыль | BP18: =MAX(BP$15:BP17)+1 -> 3 | BQ18: 0 | BR18: * | BS18: Свободный положительный финпоток проекта | BT18: =MAX(BT$15:BT17)+1 -> 3 | BU18: 0
A19: =ROW() -> 19 | H19: * | I19: Камеральные работы | J19: =MAX(J$15:J18)+1 -> 4 | K19: =IF(OR(I19=0,I19=""),0,IF(COUNTIF(I$15:I$100000,I19)=1,0,1)) -> 0 | AT19: * | AU19: ="Капзатраты этапа ГРР по месторождению-"&AV19 -> Капзатраты этапа ГРР по месторождению-4 | AV19: =MAX(AV$15:AV18)+1 -> 4 | AW19: =IF(OR(AU19=0,AU19=""),0,IF(COUNTIF(AU$15:AU$100000,AU19)=1,0,1)) -> 0 | AX19: * | AY19: ="Капзатраты этапа разработки по месторожд.-"&AZ19 -> Капзатраты этапа разработки по месторожд.-4 | AZ19: =MAX(AZ$15:AZ18)+1 -> 4 | BA19: =IF(OR(AY19=0,AY19=""),0,IF(COUNTIF(AY$15:AY$100000,AY19)=1,0,1)) -> 0 | BB19: * | BC19: Банковские расходы | BD19: =MAX(BD$15:BD18)+1 -> 4 | BE19: 0 | BF19: * | BG19: Расходы на спецодежду | BH19: =MAX(BH$15:BH18)+1 -> 4 | BI19: =IF(OR(BG19=0,BG19=""),0,IF(COUNTIF(BG$15:BG$100000,BG19)=1,0,1)) -> 0 | BJ19: * | BK19: Списание запасов на незавершенное пр-во | BL19: =MAX(BL$15:BL18)+1 -> 4 | BM19: 0 | BN19: * | BO19: НДС начисленный | BP19: =MAX(BP$15:BP18)+1 -> 4 | BQ19: 0 | BR19: * | BS19: Свободный отрицательный финпоток проекта | BT19: =MAX(BT$15:BT18)+1 -> 4 | BU19: 0
A20: =ROW() -> 20 | H20: * | I20: Лабораторные работы | J20: =MAX(J$15:J19)+1 -> 5 | K20: =IF(OR(I20=0,I20=""),0,IF(COUNTIF(I$15:I$100000,I20)=1,0,1)) -> 0 | BB20: * | BC20: =MAIN!$I$584 -> Расходы на размещение облигаций | BD20: =MAX(BD$15:BD19)+1 -> 5 | BE20: 0 | BF20: * | BG20: Прочие расходы на персонал | BH20: =MAX(BH$15:BH19)+1 -> 5 | BI20: =IF(OR(BG20=0,BG20=""),0,IF(COUNTIF(BG$15:BG$100000,BG20)=1,0,1)) -> 0 | BJ20: * | BK20: Запасы | BL20: =MAX(BL$15:BL19)+1 -> 5 | BM20: 0 | BN20: * | BO20: НДС к возмещению | BP20: =MAX(BP$15:BP19)+1 -> 5 | BQ20: 0 | BR20: * | BS20: Свободный финпоток (FCF) | BT20: =MAX(BT$15:BT19)+1 -> 5 | BU20: 0
A21: =ROW() -> 21 | BB21: * | BC21: Таможенные сборы | BD21: =MAX(BD$15:BD20)+1 -> 6 | BE21: 0 | BJ21: * | BK21: Незавершенное производство | BL21: =MAX(BL$15:BL20)+1 -> 6 | BM21: 0 | BN21: * | BO21: Прямые расходы | BP21: =MAX(BP$15:BP20)+1 -> 6 | BQ21: 0 | BR21: * | BS21: Кассовый разрыв | BT21: =MAX(BT$15:BT20)+1 -> 6 | BU21: 0
A22: =ROW() -> 22 | BB22: * | BC22: НДПИ | BD22: =MAX(BD$15:BD21)+1 -> 7 | BE22: 0 | BJ22: * | BK22: Авансы выданные | BL22: =MAX(BL$15:BL21)+1 -> 7 | BM22: 0 | BN22: * | BO22: Маржинальная прибыль | BP22: =MAX(BP$15:BP21)+1 -> 7 | BQ22: 0 | BR22: * | BS22: Поступление финансирования от Учредителей | BT22: =MAX(BT$15:BT21)+1 -> 7 | BU22: 0
A23: =ROW() -> 23 | BJ23: * | BK23: Кредиторская задолженность | BL23: =MAX(BL$15:BL22)+1 -> 8 | BM23: 0 | BN23: * | BO23: Управленческие расходы | BP23: =MAX(BP$15:BP22)+1 -> 8 | BQ23: 0 | BR23: * | BS23: Финпоток проекта для кредиторов | BT23: =MAX(BT$15:BT22)+1 -> 8 | BU23: 0
A24: =ROW() -> 24 | BJ24: * | BK24: Задолженность перед персоналом | BL24: =MAX(BL$15:BL23)+1 -> 9 | BM24: 0 | BN24: * | BO24: ФОТ управленческого персонала | BP24: =MAX(BP$15:BP23)+1 -> 9 | BQ24: 0 | BR24: * | BS24: Финпоток проекта для кредиторов нараст. итогом | BT24: =MAX(BT$15:BT23)+1 -> 9 | BU24: 0
A25: =ROW() -> 25 | BJ25: * | BK25: Задолженность по соцсборам | BL25: =MAX(BL$15:BL24)+1 -> 10 | BM25: 0 | BN25: * | BO25: EBITDA | BP25: =MAX(BP$15:BP24)+1 -> 10 | BQ25: 0 | BR25: * | BS25: Свободный полож. финпоток для кредиторов | BT25: =MAX(BT$15:BT24)+1 -> 10 | BU25: 0
A26: =ROW() -> 26 | BJ26: * | BK26: АКТИВЫ | BL26: =MAX(BL$15:BL25)+1 -> 11 | BM26: =IF(OR(BK26=0,BK26=""),0,IF(COUNTIF(BK$15:BK$100000,BK26)=1,0,1)) -> 0 | BN26: * | BO26: Капзатраты | BP26: =MAX(BP$15:BP25)+1 -> 11 | BQ26: =IF(OR(BO26=0,BO26=""),0,IF(COUNTIF(BO$15:BO$100000,BO26)=1,0,1)) -> 0 | BR26: * | BS26: Свободный отриц. финпоток для кредиторов | BT26: =MAX(BT$15:BT25)+1 -> 11 | BU26: 0
A27: =ROW() -> 27 | BJ27: * | BK27: ПАССИВЫ | BL27: =MAX(BL$15:BL26)+1 -> 12 | BM27: 0 | BN27: * | BO27: НДС к возмещению по капзатратам | BP27: =MAX(BP$15:BP26)+1 -> 12 | BQ27: 0 | BR27: * | BS27: Свободный финпоток для кредиторов | BT27: =MAX(BT$15:BT26)+1 -> 12 | BU27: 0
A28: =ROW() -> 28 | BJ28: * | BK28: Денежные средства | BL28: =MAX(BL$15:BL27)+1 -> 13 | BM28: 0 | BN28: * | BO28: Амортизация | BP28: =MAX(BP$15:BP27)+1 -> 13 | BQ28: 0 | BR28: * | BS28: Кассовый разрыв проекта для кредиторов | BT28: =MAX(BT$15:BT27)+1 -> 13 | BU28: 0
A29: =ROW() -> 29 | BJ29: * | BK29: Собственный капитал | BL29: =MAX(BL$15:BL28)+1 -> 14 | BM29: 0 | BN29: * | BO29: EBIT | BP29: =MAX(BP$15:BP28)+1 -> 14 | BQ29: 0 | BR29: * | BS29: Поступление облигац.займа | BT29: =MAX(BT$15:BT28)+1 -> 14 | BU29: 0
A30: =ROW() -> 30 | BJ30: * | BK30: Промежуточный баланс-контроль | BL30: =MAX(BL$15:BL29)+1 -> 15 | BM30: 0 | BN30: * | BO30: Прочие доходы | BP30: =MAX(BP$15:BP29)+1 -> 15 | BQ30: 0 | BR30: * | BS30: Возврат облигац.займа | BT30: =MAX(BT$15:BT29)+1 -> 15 | BU30: 0
A31: =ROW() -> 31 | BJ31: * | BK31: Задолженность по прямым расходам | BL31: =MAX(BL$15:BL30)+1 -> 16 | BM31: 0 | BN31: * | BO31: Проценты начисленные | BP31: =MAX(BP$15:BP30)+1 -> 16 | BQ31: 0 | BR31: * | BS31: Оплата процентов по облигациям | BT31: =MAX(BT$15:BT30)+1 -> 16 | BU31: 0
A32: =ROW() -> 32 | BJ32: * | BK32: Задолженность по управленческим расходам | BL32: =MAX(BL$15:BL31)+1 -> 17 | BM32: =IF(OR(BK32=0,BK32=""),0,IF(COUNTIF(BK$15:BK$100000,BK32)=1,0,1)) -> 0 | BN32: * | BO32: Прибыль до налога на прибыль | BP32: =MAX(BP$15:BP31)+1 -> 17 | BQ32: 0 | BR32: * | BS32: Финпоток проекта с учетом финансирования | BT32: =MAX(BT$15:BT31)+1 -> 17 | BU32: 0
A33: =ROW() -> 33 | BJ33: * | BK33: Задолженность по капзатратам | BL33: =MAX(BL$15:BL32)+1 -> 18 | BM33: 0 | BN33: * | BO33: Налог на прибыль | BP33: =MAX(BP$15:BP32)+1 -> 18 | BQ33: 0 | BR33: * | BS33: Финпоток проекта с уч. финансир. нараст. итогом | BT33: =MAX(BT$15:BT32)+1 -> 18 | BU33: 0
A34: =ROW() -> 34 | BJ34: * | BK34: Внеоборотные активы | BL34: =MAX(BL$15:BL33)+1 -> 19 | BM34: 0 | BN34: * | BO34: Чистая прибыль | BP34: =MAX(BP$15:BP33)+1 -> 19 | BQ34: 0 | BR34: * | BS34: Осаточный кассовый разрыв | BT34: =MAX(BT$15:BT33)+1 -> 19 | BU34: 0
A35: =ROW() -> 35 | BJ35: * | BK35: ДЗ по возмещению НДС с капзатрат | BL35: =MAX(BL$15:BL34)+1 -> 20 | BM35: 0 | BN35: * | BO35: Проценты начисленные по облигациям | BP35: =MAX(BP$15:BP34)+1 -> 20 | BQ35: 0 | BR35: * | BS35: Итоговый финпоток | BT35: =MAX(BT$15:BT34)+1 -> 20 | BU35: =IF(OR(BS35=0,BS35=""),0,IF(COUNTIF(BS$15:BS$100000,BS35)=1,0,1)) -> 0
A36: =ROW() -> 36 | BJ36: * | BK36: Задолженность по налогам | BL36: =MAX(BL$15:BL35)+1 -> 21 | BM36: 0 | BR36: * | BS36: Итоговый финпоток нараст. итогом | BT36: =MAX(BT$15:BT35)+1 -> 21 | BU36: 0
A37: =ROW() -> 37 | BJ37: * | BK37: Задолженность по НДС | BL37: =MAX(BL$15:BL36)+1 -> 22 | BM37: 0 | BR37: * | BS37: Итоговый кассовый разрыв | BT37: =MAX(BT$15:BT36)+1 -> 22 | BU37: 0
A38: =ROW() -> 38 | BJ38: * | BK38: Задолженность по НП | BL38: =MAX(BL$15:BL37)+1 -> 23 | BM38: 0 | BR38: * | BS38: Финпоток по операционной деятельности | BT38: =MAX(BT$15:BT37)+1 -> 23 | BU38: 0
A39: =ROW() -> 39 | BJ39: * | BK39: Остаток долга по кредиту | BL39: =MAX(BL$15:BL38)+1 -> 24 | BM39: 0 | BR39: * | BS39: Финпоток по основной деятельности | BT39: =MAX(BT$15:BT38)+1 -> 24 | BU39: 0
A40: =ROW() -> 40 | BJ40: * | BK40: Задолженность по выплате %% по облигациям | BL40: =MAX(BL$15:BL39)+1 -> 25 | BM40: 0 | BR40: * | BS40: Финпоток по финансовой деятельности | BT40: =MAX(BT$15:BT39)+1 -> 25 | BU40: 0
A41: =ROW() -> 41 | BJ41: * | BK41: Вложения Акционеров в капитал | BL41: =MAX(BL$15:BL40)+1 -> 26 | BM41: 0 | BR41: * | BS41: Поступление ДС | BT41: =MAX(BT$15:BT40)+1 -> 26 | BU41: 0
A42: =ROW() -> 42 | BJ42: * | BK42: БАЛАНС | BL42: =MAX(BL$15:BL41)+1 -> 27 | BM42: 0 | BR42: * | BS42: Итоговый свободный финпоток (Total FCF) | BT42: =MAX(BT$15:BT41)+1 -> 27 | BU42: 0
A43: =ROW() -> 43 | BJ43: * | BL43: =MAX(BL$15:BL42)+1 -> 28 | BM43: 0
A44: =ROW() -> 44 | BJ44: * | BL44: =MAX(BL$15:BL43)+1 -> 29 | BM44: 0
A45: =ROW() -> 45 | BJ45: * | BL45: =MAX(BL$15:BL44)+1 -> 30 | BM45: 0
A46: =ROW() -> 46 | BJ46: * | BL46: =MAX(BL$15:BL45)+1 -> 31 | BM46: 0
A47: =ROW() -> 47
A48: =ROW() -> 48
A49: =ROW() -> 49
A50: =ROW() -> 50
A51: =ROW() -> 51
A52: =ROW() -> 52
A53: =ROW() -> 53
A54: =ROW() -> 54
A55: =ROW() -> 55
A56: =ROW() -> 56
A57: =ROW() -> 57
A58: =ROW() -> 58
A59: =ROW() -> 59
A60: =ROW() -> 60
A61: =ROW() -> 61
A62: =ROW() -> 62
A63: =ROW() -> 63
A64: =ROW() -> 64
A65: =ROW() -> 65
A66: =ROW() -> 66
A67: =ROW() -> 67
A68: =ROW() -> 68
A69: =ROW() -> 69
A70: =ROW() -> 70

Sheet KPI
I1: =COLUMN() -> 9
I2: =LEFT(ADDRESS(1,COLUMN(),4),LEN(ADDRESS(1,COLUMN(),4))-1) -> I
F11: =INDIRECT("START!I31") -> KPI | I11: =INDIRECT("START!K31") -> Справочники ключевых показателей эффективности
I13: Список показателей эффективности | Q13: Формулы расчета показателей
D14: =INDIRECT("Cntrl!M17") -> 0 | E14: =SUM($F14:$ML14) -> 0 | F14: =IFERROR(_xlfn.SHEET($A$1)-SUMIFS(Cntrl!O$15:O$100000,Cntrl!I$15:I$100000,$F$11),1) -> 0 | I14: =IF(OR(I13=0,I13=""),1,IF(COUNTIF(13:13,I13)=1,0,1)) -> 0 | K14: =SUM(K$15:K$100000) -> 0
A15: =ROW() -> 15 | I15: =$F$11&"!"&I$2&$A16&":"&I$2&($A15+MAX(J$15:J$100000)) -> KPI!I16:I92
A16: =ROW() -> 16 | I16: Срок окупаемости по чистой прибыли | J16: =MAX(J$15:J15)+1 -> 1 | K16: =IF(OR(I16=0,I16=""),0,IF(COUNTIF(I$15:I$100000,I16)=1,0,1)) -> 0
A17: =ROW() -> 17 | I17: Точка безубыточности по чистой прибыли | J17: =MAX(J$15:J16)+1 -> 2 | K17: =IF(OR(I17=0,I17=""),0,IF(COUNTIF(I$15:I$100000,I17)=1,0,1)) -> 0
A18: =ROW() -> 18 | I18: Срок окупаемости по финпотоку (PBP) | J18: =MAX(J$15:J17)+1 -> 3 | K18: 0
A19: =ROW() -> 19 | I19: Точка безубыточности по финпотоку | J19: =MAX(J$15:J18)+1 -> 4 | K19: 0
A20: =ROW() -> 20 | I20: IRR проекта | J20: =MAX(J$15:J19)+1 -> 5 | K20: 0
A21: =ROW() -> 21 | I21: NPV(Акционеров) | J21: =MAX(J$15:J20)+1 -> 6 | K21: 0
A22: =ROW() -> 22 | I22: IRR для кредиторов | J22: =MAX(J$15:J21)+1 -> 7 | K22: 0
A23: =ROW() -> 23 | I23: NPV(Кредиторов) | J23: =MAX(J$15:J22)+1 -> 8 | K23: =IF(OR(I23=0,I23=""),0,IF(COUNTIF(I$15:I$100000,I23)=1,0,1)) -> 0
A24: =ROW() -> 24 | I24: Рентабельность | J24: =MAX(J$15:J23)+1 -> 9 | K24: 0
A25: =ROW() -> 25 | I25: WACC | J25: =MAX(J$15:J24)+1 -> 10 | K25: 0
A26: =ROW() -> 26 | I26: NPV(WACC) | J26: =MAX(J$15:J25)+1 -> 11 | K26: 0
A27: =ROW() -> 27 | I27: ROI | J27: =MAX(J$15:J26)+1 -> 12 | K27: 0
A28: =ROW() -> 28 | I28: Дисконтированный срок окупаемости (DPBP) | J28: =MAX(J$15:J27)+1 -> 13 | K28: 0
A29: =ROW() -> 29 | I29: Коэффициент текущей ликвидности (L1) | J29: =MAX(J$15:J28)+1 -> 14 | K29: 0 | Q29: Отношение оборотных активов к краткосрочным обязательствам
A30: =ROW() -> 30 | I30: Коэффициент промежуточного покрытия (L2) | J30: =MAX(J$15:J29)+1 -> 15 | K30: 0 | Q30: Отношение суммы активов А1 и А2 к краткосрочным обязательствам
A31: =ROW() -> 31 | I31: Коэффициент абсолютной ликвидности (L3) | J31: =MAX(J$15:J30)+1 -> 16 | K31: =IF(OR(I31=0,I31=""),0,IF(COUNTIF(I$15:I$100000,I31)=1,0,1)) -> 0 | Q31: Отношение суммы активов А1 к краткосрочным обязательствам
A32: =ROW() -> 32 | I32: Коэффициент общей платежеспособности (L4) | J32: =MAX(J$15:J31)+1 -> 17 | K32: 0 | Q32: Отношение всех активов ко всем обязательствам
A33: =ROW() -> 33 | I33: Коэфф. платежеспособности по тек. обяз. (L5) | J33: =MAX(J$15:J32)+1 -> 18 | K33: 0 | Q33: Отношение среднемесячной выручки к краткосрочным обязательствам
A34: =ROW() -> 34 | J34: =MAX(J$15:J33)+1 -> 19 | K34: 0
A35: =ROW() -> 35 | I35: Оценка стоимости бизнеса/компании | J35: =MAX(J$15:J34)+1 -> 20 | K35: 0
A36: =ROW() -> 36 | J36: =MAX(J$15:J35)+1 -> 21 | K36: 0
A37: =ROW() -> 37 | J37: =MAX(J$15:J36)+1 -> 22 | K37: 0
A38: =ROW() -> 38 | J38: =MAX(J$15:J37)+1 -> 23 | K38: 0
A39: =ROW() -> 39 | I39: Терминальная стоимость (TV) | J39: =MAX(J$15:J38)+1 -> 24 | K39: 0
A40: =ROW() -> 40 | I40: NPV(TV) | J40: =MAX(J$15:J39)+1 -> 25 | K40: =IF(OR(I40=0,I40=""),0,IF(COUNTIF(I$15:I$100000,I40)=1,0,1)) -> 0
A41: =ROW() -> 41 | I41: CFADS | J41: =MAX(J$15:J40)+1 -> 26 | K41: 0
A42: =ROW() -> 42 | I42: Выплаты долга [Debt (Principals+Interests)] | J42: =MAX(J$15:J41)+1 -> 27 | K42: 0
A43: =ROW() -> 43 | I43: Выплаты тела кредитов (Principals) | J43: =MAX(J$15:J42)+1 -> 28 | K43: 0
A44: =ROW() -> 44 | I44: Выплаты %% (Interests) | J44: =MAX(J$15:J43)+1 -> 29 | K44: 0
A45: =ROW() -> 45 | I45: Коэф. покрытия выплат долга (DSCR) | J45: =MAX(J$15:J44)+1 -> 30 | K45: 0
A46: =ROW() -> 46 | I46: Коэф. покрытия процентов (ICR) | J46: =MAX(J$15:J45)+1 -> 31 | K46: =IF(OR(I46=0,I46=""),0,IF(COUNTIF(I$15:I$100000,I46)=1,0,1)) -> 0
A47: =ROW() -> 47 | I47: CF(EBIT) | J47: =MAX(J$15:J46)+1 -> 32 | K47: 0
A48: =ROW() -> 48 | I48: Наиболее ликвидные активы (А1) | J48: =MAX(J$15:J47)+1 -> 33 | K48: 0
A49: =ROW() -> 49 | I49: Денежные средства | J49: =MAX(J$15:J48)+1 -> 34 | K49: 0
A50: =ROW() -> 50 | I50: Финансовые вложения | J50: =MAX(J$15:J49)+1 -> 35 | K50: 0
A51: =ROW() -> 51 | I51: Быстро реализуемые активы (А2) | J51: =MAX(J$15:J50)+1 -> 36 | K51: 0
A52: =ROW() -> 52 | I52: Незавершенное производство | J52: =MAX(J$15:J51)+1 -> 37 | K52: 0
A53: =ROW() -> 53 | I53: Дебиторская задолженность | J53: =MAX(J$15:J52)+1 -> 38 | K53: =IF(OR(I53=0,I53=""),0,IF(COUNTIF(I$15:I$100000,I53)=1,0,1)) -> 0
A54: =ROW() -> 54 | I54: Авансы выданные | J54: =MAX(J$15:J53)+1 -> 39 | K54: 0
A55: =ROW() -> 55 | I55: Медленно реализуемые активы (А3) | J55: =MAX(J$15:J54)+1 -> 40 | K55: 0
A56: =ROW() -> 56 | I56: Запасы | J56: =MAX(J$15:J55)+1 -> 41 | K56: 0
A57: =ROW() -> 57 | I57: Трудно реализуемые активы (А4) | J57: =MAX(J$15:J56)+1 -> 42 | K57: 0
A58: =ROW() -> 58 | I58: Внеоборотные активы | J58: =MAX(J$15:J57)+1 -> 43 | K58: 0
A59: =ROW() -> 59 | I59: Наиболее срочные обязательства (П1) | J59: =MAX(J$15:J58)+1 -> 44 | K59: 0
A60: =ROW() -> 60 | I60: Овердрафт | J60: =MAX(J$15:J59)+1 -> 45 | K60: 0
A61: =ROW() -> 61 | I61: Кредиторская задолженность | J61: =MAX(J$15:J60)+1 -> 46 | K61: 0
A62: =ROW() -> 62 | I62: Краткосрочные обязательства (П2) | J62: =MAX(J$15:J61)+1 -> 47 | K62: 0
A63: =ROW() -> 63 | I63: Прочие краткосрочные обязательства | J63: =MAX(J$15:J62)+1 -> 48 | K63: 0
A64: =ROW() -> 64 | I64: Долгосрочные обязательства (П3) | J64: =MAX(J$15:J63)+1 -> 49 | K64: 0
A65: =ROW() -> 65 | I65: Долгосрочные кредиты | J65: =MAX(J$15:J64)+1 -> 50 | K65: 0
A66: =ROW() -> 66 | I66: Постоянные пассивы (П4) | J66: =MAX(J$15:J65)+1 -> 51 | K66: 0
A67: =ROW() -> 67 | I67: Собственный капитал | J67: =MAX(J$15:J66)+1 -> 52 | K67: =IF(OR(I67=0,I67=""),0,IF(COUNTIF(I$15:I$100000,I67)=1,0,1)) -> 0
A68: =ROW() -> 68 | I68: Собственные оборотные средства (СОС) | J68: =MAX(J$15:J67)+1 -> 53 | K68: 0 | Q68: Разность собственного капитала и внеоборотных активов
A69: =ROW() -> 69 | I69: Коэффициент финансовой устойчивости (S1) | J69: =MAX(J$15:J68)+1 -> 54 | K69: 0 | Q69: Отношение суммы собственного капитала и долгосрочных обязательств к активам
A70: =ROW() -> 70 | I70: Коэффициент автономии (независимости) (S2) | J70: =MAX(J$15:J69)+1 -> 55 | K70: 0 | Q70: Отношение собственного капитала к активам
I71: Коэфф. обеспеч-ти собств. об. средствами (S3) | J71: =MAX(J$15:J70)+1 -> 56 | K71: 0 | Q71: Отношение объема СОС к оборотным активам
I72: Коэффициент финансового рычага (S4) | J72: =MAX(J$15:J71)+1 -> 57 | K72: 0 | Q72: Отношение собственного капитала к заемному капиталу
I73: Рентабельность продаж (Return On Sales) (R1) | J73: =MAX(J$15:J72)+1 -> 58 | K73: 0 | Q73: Отношение валовой прибыли к выручке
I74: Рентабельность активов (Return On Assets) (R2) | J74: =MAX(J$15:J73)+1 -> 59 | K74: 0 | Q74: Отношение среднемесячной чистой прибыли за период к уровню активов на конец периода
I75: Рентаб-сть собств. капитала (Return On Equity) (R3) | J75: =MAX(J$15:J74)+1 -> 60 | K75: 0 | Q75: Отношение среднемесячной чистой прибыли за период к уровню собственного капитала на конец периода
I76: Рент. инвестиций (Return On Invested Capital) (R4) | J76: =MAX(J$15:J75)+1 -> 61 | K76: 0 | Q76: Отношение среднемес. EBITDA за период к уровню инвестиций (собств.+долгосроч.) на конец периода
I77: Рент. об. капитала (Return On Working Capital) (R5) | J77: =MAX(J$15:J76)+1 -> 62 | K77: 0 | Q77: Отношение среднемес. марж. прибыли за период к уровню оборотного капитала на конец периода
I78: Оборачиваемость запасов и незавершенки | J78: =MAX(J$15:J77)+1 -> 63 | K78: 0
I79: Период оборач-сти запасов и незавершенки (P1) | J79: =MAX(J$15:J78)+1 -> 64 | K79: =IF(OR(I79=0,I79=""),0,IF(COUNTIF(I$15:I$100000,I79)=1,0,1)) -> 0
I80: Оборачиваемость дебиторской задолженности | J80: =MAX(J$15:J79)+1 -> 65 | K80: =IF(OR(I80=0,I80=""),0,IF(COUNTIF(I$15:I$100000,I80)=1,0,1)) -> 0
I81: Период оборач-ти дебит. задолженности (P2) | J81: =MAX(J$15:J80)+1 -> 66 | K81: =IF(OR(I81=0,I81=""),0,IF(COUNTIF(I$15:I$100000,I81)=1,0,1)) -> 0
I82: Оборачиваемость кредиторской задолженности | J82: =MAX(J$15:J81)+1 -> 67 | K82: =IF(OR(I82=0,I82=""),0,IF(COUNTIF(I$15:I$100000,I82)=1,0,1)) -> 0
I83: Период оборач-ти кредит. задолженности (P3) | J83: =MAX(J$15:J82)+1 -> 68 | K83: =IF(OR(I83=0,I83=""),0,IF(COUNTIF(I$15:I$100000,I83)=1,0,1)) -> 0
I84: Финансовый цикл (P4) | J84: =MAX(J$15:J83)+1 -> 69 | K84: =IF(OR(I84=0,I84=""),0,IF(COUNTIF(I$15:I$100000,I84)=1,0,1)) -> 0
I85: ТЕМПЫ РОСТА АКТИВОВ [T(A)] | J85: =MAX(J$15:J84)+1 -> 70 | K85: 0
I86: ТЕМПЫ РОСТА ВЫРУЧКИ [T(R)] | J86: =MAX(J$15:J85)+1 -> 71 | K86: 0
I87: ТЕМПЫ РОСТА ЧИСТОЙ ПРИБЫЛИ [T(E)] | J87: =MAX(J$15:J86)+1 -> 72 | K87: 0
J88: =MAX(J$15:J87)+1 -> 73 | K88: 0
J89: =MAX(J$15:J88)+1 -> 74 | K89: 0
J90: =MAX(J$15:J89)+1 -> 75 | K90: 0
J91: =MAX(J$15:J90)+1 -> 76 | K91: 0
J92: =MAX(J$15:J91)+1 -> 77 | K92: 0

Sheet GRR
Y1: номер столбца: | AA1: 27 | AB1: 28 | AC1: 29 | AD1: 30 | AE1: 31 | AF1: 32 | AG1: 33 | AH1: 34 | AI1: 35 | AJ1: 36 | AK1: 37 | AL1: 38 | AM1: 39 | AN1: 40 | AO1: 41 | AP1: 42 | AQ1: 43 | AR1: 44 | AS1: 45 | AT1: 46 | AU1: 47 | AV1: 48 | AW1: 49 | AX1: 50 | AY1: 51 | AZ1: 52 | BA1: 53 | BB1: 54 | BC1: 55 | BD1: 56 | BE1: 57 | BF1: 58 | BG1: 59 | BH1: 60 | BI1: 61 | BJ1: 62 | BK1: 63 | BL1: 64 | BM1: 65 | BN1: 66 | BO1: 67 | BP1: 68 | BQ1: 69 | BR1: 70 | BS1: 71 | BT1: 72 | BU1: 73 | BV1: 74 | BW1: 75 | BX1: 76 | BY1: 77 | BZ1: 78 | CA1: 79 | CB1: 80 | CC1: 81 | CD1: 82 | CE1: 83 | CF1: 84 | CG1: 85 | CH1: 86 | CI1: 87 | CJ1: 88 | CK1: 89 | CL1: 90 | CM1: 91 | CN1: 92 | CO1: 93 | CP1: 94 | CQ1: 95 | CR1: 96 | CS1: 97 | CT1: 98 | CU1: 99 | CV1: 100 | CW1: 101 | CX1: 102 | CY1: 103 | CZ1: 104 | DA1: 105 | DB1: 106 | DC1: 107 | DD1: 108 | DE1: 109 | DF1: 110 | DG1: 111 | DH1: 112 | DI1: 113 | DJ1: 114 | DK1: 115 | DL1: 116 | DM1: 117 | DN1: 118 | DO1: 119 | DP1: 120 | DQ1: 121 | DR1: 122 | DS1: 123 | DT1: 124 | DU1: 125 | DV1: 126 | DW1: 127 | DX1: 128 | DY1: 129 | DZ1: 130 | EA1: 131 | EB1: 132 | EC1: 133 | ED1: 134 | EE1: 135 | EF1: 136 | EG1: 137 | EH1: 138 | EI1: 139 | EJ1: 140 | EK1: 141 | EL1: 142 | EM1: 143 | EN1: 144 | EO1: 145 | EP1: 146 | EQ1: 147 | ER1: 148 | ES1: 149 | ET1: 150 | EU1: 151 | EV1: 152 | EW1: 153 | EX1: 154 | EY1: 155 | EZ1: 156 | FA1: 157 | FB1: 158 | FC1: 159
Y2: номер периода модели: | AA2: 1 | AB2: 2 | AC2: 3 | AD2: 4 | AE2: 5 | AF2: 6 | AG2: 7 | AH2: 8 | AI2: 9 | AJ2: 10 | AK2: 11 | AL2: 12 | AM2: 13 | AN2: 14 | AO2: 15 | AP2: 16 | AQ2: 17 | AR2: 18 | AS2: 19 | AT2: 20 | AU2: 21 | AV2: 22 | AW2: 23 | AX2: 24 | AY2: 25 | AZ2: 26 | BA2: 27 | BB2: 28 | BC2: 29 | BD2: 30 | BE2: 31 | BF2: 32 | BG2: 33 | BH2: 34 | BI2: 35 | BJ2: 36 | BK2: 37 | BL2: 38 | BM2: 39 | BN2: 40 | BO2: 41 | BP2: 42 | BQ2: 43 | BR2: 44 | BS2: 45 | BT2: 46 | BU2: 47 | BV2: 48 | BW2: 49 | BX2: 50 | BY2: 51 | BZ2: 52 | CA2: 53 | CB2: 54 | CC2: 55 | CD2: 56 | CE2: 57 | CF2: 58 | CG2: 59 | CH2: 60 | CI2: 61 | CJ2: 62 | CK2: 63 | CL2: 64 | CM2: 65 | CN2: 66 | CO2: 67 | CP2: 68 | CQ2: 69 | CR2: 70 | CS2: 71 | CT2: 72 | CU2: 73 | CV2: 74 | CW2: 75 | CX2: 76 | CY2: 77 | CZ2: 78 | DA2: 79 | DB2: 80 | DC2: 81 | DD2: 82 | DE2: 83 | DF2: 84 | DG2: 85 | DH2: 86 | DI2: 87 | DJ2: 88 | DK2: 89 | DL2: 90 | DM2: 91 | DN2: 92 | DO2: 93 | DP2: 94 | DQ2: 95 | DR2: 96 | DS2: 97 | DT2: 98 | DU2: 99 | DV2: 100 | DW2: 101 | DX2: 102 | DY2: 103 | DZ2: 104 | EA2: 105 | EB2: 106 | EC2: 107 | ED2: 108 | EE2: 109 | EF2: 110 | EG2: 111 | EH2: 112 | EI2: 113 | EJ2: 114 | EK2: 115 | EL2: 116 | EM2: 117 | EN2: 118 | EO2: 119 | EP2: 120 | EQ2: 121 | ER2: 122 | ES2: 123 | ET2: 124 | EU2: 125 | EV2: 126 | EW2: 127 | EX2: 128 | EY2: 129 | EZ2: 130 | FA2: 131 | FB2: 132 | FC2: 133
Y3: номер факт-периода:
Y4: номер план-периода: | AA4: 1 | AB4: 2 | AC4: 3 | AD4: 4 | AE4: 5 | AF4: 6 | AG4: 7 | AH4: 8 | AI4: 9 | AJ4: 10 | AK4: 11 | AL4: 12 | AM4: 13 | AN4: 14 | AO4: 15 | AP4: 16 | AQ4: 17 | AR4: 18 | AS4: 19 | AT4: 20 | AU4: 21 | AV4: 22 | AW4: 23 | AX4: 24 | AY4: 25 | AZ4: 26 | BA4: 27 | BB4: 28 | BC4: 29 | BD4: 30 | BE4: 31 | BF4: 32 | BG4: 33 | BH4: 34 | BI4: 35 | BJ4: 36 | BK4: 37 | BL4: 38 | BM4: 39 | BN4: 40 | BO4: 41 | BP4: 42 | BQ4: 43 | BR4: 44 | BS4: 45 | BT4: 46 | BU4: 47 | BV4: 48
Y5: число даты начала: | AA5: 1 | AB5: 1 | AC5: 1 | AD5: 1 | AE5: 1 | AF5: 1 | AG5: 1 | AH5: 1 | AI5: 1 | AJ5: 1 | AK5: 1 | AL5: 1 | AM5: 1 | AN5: 1 | AO5: 1 | AP5: 1 | AQ5: 1 | AR5: 1 | AS5: 1 | AT5: 1 | AU5: 1 | AV5: 1 | AW5: 1 | AX5: 1 | AY5: 1 | AZ5: 1 | BA5: 1 | BB5: 1 | BC5: 1 | BD5: 1 | BE5: 1 | BF5: 1 | BG5: 1 | BH5: 1 | BI5: 1 | BJ5: 1 | BK5: 1 | BL5: 1 | BM5: 1 | BN5: 1 | BO5: 1 | BP5: 1 | BQ5: 1 | BR5: 1 | BS5: 1 | BT5: 1 | BU5: 1 | BV5: 1
Y6: номер месяца даты начала: | AA6: 9 | AB6: 10 | AC6: 11 | AD6: 12 | AE6: 1 | AF6: 2 | AG6: 3 | AH6: 4 | AI6: 5 | AJ6: 6 | AK6: 7 | AL6: 8 | AM6: 9 | AN6: 10 | AO6: 11 | AP6: 12 | AQ6: 1 | AR6: 2 | AS6: 3 | AT6: 4 | AU6: 5 | AV6: 6 | AW6: 7 | AX6: 8 | AY6: 9 | AZ6: 10 | BA6: 11 | BB6: 12 | BC6: 1 | BD6: 2 | BE6: 3 | BF6: 4 | BG6: 5 | BH6: 6 | BI6: 7 | BJ6: 8 | BK6: 9 | BL6: 10 | BM6: 11 | BN6: 12 | BO6: 1 | BP6: 2 | BQ6: 3 | BR6: 4 | BS6: 5 | BT6: 6 | BU6: 7 | BV6: 8
Y7: год даты начала: | AA7: 21 | AB7: 21 | AC7: 21 | AD7: 21 | AE7: 22 | AF7: 22 | AG7: 22 | AH7: 22 | AI7: 22 | AJ7: 22 | AK7: 22 | AL7: 22 | AM7: 22 | AN7: 22 | AO7: 22 | AP7: 22 | AQ7: 23 | AR7: 23 | AS7: 23 | AT7: 23 | AU7: 23 | AV7: 23 | AW7: 23 | AX7: 23 | AY7: 23 | AZ7: 23 | BA7: 23 | BB7: 23 | BC7: 24 | BD7: 24 | BE7: 24 | BF7: 24 | BG7: 24 | BH7: 24 | BI7: 24 | BJ7: 24 | BK7: 24 | BL7: 24 | BM7: 24 | BN7: 24 | BO7: 25 | BP7: 25 | BQ7: 25 | BR7: 25 | BS7: 25 | BT7: 25 | BU7: 25 | BV7: 25
Y8: число даты окончания: | AA8: 30 | AB8: 31 | AC8: 30 | AD8: 31 | AE8: 31 | AF8: 28 | AG8: 31 | AH8: 30 | AI8: 31 | AJ8: 30 | AK8: 31 | AL8: 31 | AM8: 30 | AN8: 31 | AO8: 30 | AP8: 31 | AQ8: 31 | AR8: 28 | AS8: 31 | AT8: 30 | AU8: 31 | AV8: 30 | AW8: 31 | AX8: 31 | AY8: 30 | AZ8: 31 | BA8: 30 | BB8: 31 | BC8: 31 | BD8: 29 | BE8: 31 | BF8: 30 | BG8: 31 | BH8: 30 | BI8: 31 | BJ8: 31 | BK8: 30 | BL8: 31 | BM8: 30 | BN8: 31 | BO8: 31 | BP8: 28 | BQ8: 31 | BR8: 30 | BS8: 31 | BT8: 30 | BU8: 31 | BV8: 31
Y9: номер месяца даты окончания: | AA9: 9 | AB9: 10 | AC9: 11 | AD9: 12 | AE9: 1 | AF9: 2 | AG9: 3 | AH9: 4 | AI9: 5 | AJ9: 6 | AK9: 7 | AL9: 8 | AM9: 9 | AN9: 10 | AO9: 11 | AP9: 12 | AQ9: 1 | AR9: 2 | AS9: 3 | AT9: 4 | AU9: 5 | AV9: 6 | AW9: 7 | AX9: 8 | AY9: 9 | AZ9: 10 | BA9: 11 | BB9: 12 | BC9: 1 | BD9: 2 | BE9: 3 | BF9: 4 | BG9: 5 | BH9: 6 | BI9: 7 | BJ9: 8 | BK9: 9 | BL9: 10 | BM9: 11 | BN9: 12 | BO9: 1 | BP9: 2 | BQ9: 3 | BR9: 4 | BS9: 5 | BT9: 6 | BU9: 7 | BV9: 8
Y10: год даты окончания: | AA10: 21 | AB10: 21 | AC10: 21 | AD10: 21 | AE10: 22 | AF10: 22 | AG10: 22 | AH10: 22 | AI10: 22 | AJ10: 22 | AK10: 22 | AL10: 22 | AM10: 22 | AN10: 22 | AO10: 22 | AP10: 22 | AQ10: 23 | AR10: 23 | AS10: 23 | AT10: 23 | AU10: 23 | AV10: 23 | AW10: 23 | AX10: 23 | AY10: 23 | AZ10: 23 | BA10: 23 | BB10: 23 | BC10: 24 | BD10: 24 | BE10: 24 | BF10: 24 | BG10: 24 | BH10: 24 | BI10: 24 | BJ10: 24 | BK10: 24 | BL10: 24 | BM10: 24 | BN10: 24 | BO10: 25 | BP10: 25 | BQ10: 25 | BR10: 25 | BS10: 25 | BT10: 25 | BU10: 25 | BV10: 25
F11: GRR | I11: Параметры этапа геологоразведочных работ (ГРР) | Q11: все включает НДС | X11: 2021-09-01 | AA11: 2021-09-01 | AB11: 2021-10-01 | AC11: 2021-11-01 | AD11: 2021-12-01 | AE11: 2022-01-01 | AF11: 2022-02-01 | AG11: 2022-03-01 | AH11: 2022-04-01 | AI11: 2022-05-01 | AJ11: 2022-06-01 | AK11: 2022-07-01 | AL11: 2022-08-01 | AM11: 2022-09-01 | AN11: 2022-10-01 | AO11: 2022-11-01 | AP11: 2022-12-01 | AQ11: 2023-01-01 | AR11: 2023-02-01 | AS11: 2023-03-01 | AT11: 2023-04-01 | AU11: 2023-05-01 | AV11: 2023-06-01 | AW11: 2023-07-01 | AX11: 2023-08-01 | AY11: 2023-09-01 | AZ11: 2023-10-01 | BA11: 2023-11-01 | BB11: 2023-12-01 | BC11: 2024-01-01 | BD11: 2024-02-01 | BE11: 2024-03-01 | BF11: 2024-04-01 | BG11: 2024-05-01 | BH11: 2024-06-01 | BI11: 2024-07-01 | BJ11: 2024-08-01 | BK11: 2024-09-01 | BL11: 2024-10-01 | BM11: 2024-11-01 | BN11: 2024-12-01 | BO11: 2025-01-01 | BP11: 2025-02-01 | BQ11: 2025-03-01 | BR11: 2025-04-01 | BS11: 2025-05-01 | BT11: 2025-06-01 | BU11: 2025-07-01 | BV11: 2025-08-01
H12: тип листа | Q12: расчетный | X12: 2025-08-31 | AA12: 2021-09-30 | AB12: 2021-10-31 | AC12: 2021-11-30 | AD12: 2021-12-31 | AE12: 2022-01-31 | AF12: 2022-02-28 | AG12: 2022-03-31 | AH12: 2022-04-30 | AI12: 2022-05-31 | AJ12: 2022-06-30 | AK12: 2022-07-31 | AL12: 2022-08-31 | AM12: 2022-09-30 | AN12: 2022-10-31 | AO12: 2022-11-30 | AP12: 2022-12-31 | AQ12: 2023-01-31 | AR12: 2023-02-28 | AS12: 2023-03-31 | AT12: 2023-04-30 | AU12: 2023-05-31 | AV12: 2023-06-30 | AW12: 2023-07-31 | AX12: 2023-08-31 | AY12: 2023-09-30 | AZ12: 2023-10-31 | BA12: 2023-11-30 | BB12: 2023-12-31 | BC12: 2024-01-31 | BD12: 2024-02-29 | BE12: 2024-03-31 | BF12: 2024-04-30 | BG12: 2024-05-31 | BH12: 2024-06-30 | BI12: 2024-07-31 | BJ12: 2024-08-31 | BK12: 2024-09-30 | BL12: 2024-10-31 | BM12: 2024-11-30 | BN12: 2024-12-31 | BO12: 2025-01-31 | BP12: 2025-02-28 | BQ12: 2025-03-31 | BR12: 2025-04-30 | BS12: 2025-05-31 | BT12: 2025-06-30 | BU12: 2025-07-31 | BV12: 2025-08-31
H13: показатель | M13: ед.изм. | Q13: значение | X13: итого | AA13: 2021-09-01 | AB13: 2021-10-01 | AC13: 2021-11-01 | AD13: 2021-12-01 | AE13: 2022-01-01 | AF13: 2022-02-01 | AG13: 2022-03-01 | AH13: 2022-04-01 | AI13: 2022-05-01 | AJ13: 2022-06-01 | AK13: 2022-07-01 | AL13: 2022-08-01 | AM13: 2022-09-01 | AN13: 2022-10-01 | AO13: 2022-11-01 | AP13: 2022-12-01 | AQ13: 2023-01-01 | AR13: 2023-02-01 | AS13: 2023-03-01 | AT13: 2023-04-01 | AU13: 2023-05-01 | AV13: 2023-06-01 | AW13: 2023-07-01 | AX13: 2023-08-01 | AY13: 2023-09-01 | AZ13: 2023-10-01 | BA13: 2023-11-01 | BB13: 2023-12-01 | BC13: 2024-01-01 | BD13: 2024-02-01 | BE13: 2024-03-01 | BF13: 2024-04-01 | BG13: 2024-05-01 | BH13: 2024-06-01 | BI13: 2024-07-01 | BJ13: 2024-08-01 | BK13: 2024-09-01 | BL13: 2024-10-01 | BM13: 2024-11-01 | BN13: 2024-12-01 | BO13: 2025-01-01 | BP13: 2025-02-01 | BQ13: 2025-03-01 | BR13: 2025-04-01 | BS13: 2025-05-01 | BT13: 2025-06-01 | BU13: 2025-07-01 | BV13: 2025-08-01
D14: 0 | E14: 0 | F14: 0 | G14: 0 | S14: 0 | T14: 0
A15: 15 | H15: разработка финмоделей: https://mngmnt.ru/ | Y15: обратный порядок периодизации | AA15: 133 | AB15: 132 | AC15: 131 | AD15: 130 | AE15: 129 | AF15: 128 | AG15: 127 | AH15: 126 | AI15: 125 | AJ15: 124 | AK15: 123 | AL15: 122 | AM15: 121 | AN15: 120 | AO15: 119 | AP15: 118 | AQ15: 117 | AR15: 116 | AS15: 115 | AT15: 114 | AU15: 113 | AV15: 112 | AW15: 111 | AX15: 110 | AY15: 109 | AZ15: 108 | BA15: 107 | BB15: 106 | BC15: 105 | BD15: 104 | BE15: 103 | BF15: 102 | BG15: 101 | BH15: 100 | BI15: 99 | BJ15: 98 | BK15: 97 | BL15: 96 | BM15: 95 | BN15: 94 | BO15: 93 | BP15: 92 | BQ15: 91 | BR15: 90 | BS15: 89 | BT15: 88 | BU15: 87 | BV15: 86 | BW15: 85 | BX15: 84 | BY15: 83 | BZ15: 82 | CA15: 81 | CB15: 80 | CC15: 79 | CD15: 78 | CE15: 77 | CF15: 76 | CG15: 75 | CH15: 74 | CI15: 73 | CJ15: 72 | CK15: 71 | CL15: 70 | CM15: 69 | CN15: 68 | CO15: 67 | CP15: 66 | CQ15: 65 | CR15: 64 | CS15: 63 | CT15: 62 | CU15: 61 | CV15: 60 | CW15: 59 | CX15: 58 | CY15: 57 | CZ15: 56 | DA15: 55 | DB15: 54 | DC15: 53 | DD15: 52 | DE15: 51 | DF15: 50 | DG15: 49 | DH15: 48 | DI15: 47 | DJ15: 46 | DK15: 45 | DL15: 44 | DM15: 43 | DN15: 42 | DO15: 41 | DP15: 40 | DQ15: 39 | DR15: 38 | DS15: 37 | DT15: 36 | DU15: 35 | DV15: 34 | DW15: 33 | DX15: 32 | DY15: 31 | DZ15: 30 | EA15: 29 | EB15: 28 | EC15: 27 | ED15: 26 | EE15: 25 | EF15: 24 | EG15: 23 | EH15: 22 | EI15: 21 | EJ15: 20 | EK15: 19 | EL15: 18 | EM15: 17 | EN15: 16 | EO15: 15 | EP15: 14 | EQ15: 13 | ER15: 12 | ES15: 11 | ET15: 10 | EU15: 9 | EV15: 8 | EW15: 7 | EX15: 6 | EY15: 5 | EZ15: 4 | FA15: 3 | FB15: 2 | FC15: 1
A16: 16 | G16: 0 | H16: Метод расчета потока добычи-продаж | K16: 1 | L16: Месторождение - 1
A17: 17 | G17: 0 | H17: Метод расчета потока добычи-продаж | I17: Геологоразведочные работы - Поток запасов | L17: начало 1 блока геологоразведочных работ
A18: 18
A19: 19 | G19: 0 | H19: Поток запусков освоения месторождений | L19: 1 | M19: кол-во месторождений | Q19: запуски процесса | X19: 6 | AA19: 1 | AB19: 1 | AC19: 0 | AD19: 0 | AE19: 0 | AF19: 1 | AG19: 0 | AH19: 0 | AI19: 0 | AJ19: 0 | AK19: 0 | AL19: 0 | AM19: 1 | AN19: 0 | AO19: 0 | AP19: 0 | AQ19: 0 | AR19: 0 | AS19: 0 | AT19: 0 | AU19: 0 | AV19: 0 | AW19: 1 | AX19: 0 | AY19: 0 | AZ19: 0 | BA19: 0 | BB19: 0 | BC19: 0 | BD19: 0 | BE19: 0 | BF19: 0 | BG19: 0 | BH19: 0 | BI19: 0 | BJ19: 1 | BK19: 0 | BL19: 0 | BM19: 0 | BN19: 0 | BO19: 0 | BP19: 0 | BQ19: 0 | BR19: 0 | BS19: 0 | BT19: 0 | BU19: 0 | BV19: 0 | BW19: 0 | BX19: 0 | BY19: 0 | BZ19: 0 | CA19: 0 | CB19: 0 | CC19: 0 | CD19: 0 | CE19: 0 | CF19: 0 | CG19: 0 | CH19: 0 | CI19: 0 | CJ19: 0 | CK19: 0 | CL19: 0 | CM19: 0 | CN19: 0 | CO19: 0 | CP19: 0 | CQ19: 0 | CR19: 0 | CS19: 0 | CT19: 0 | CU19: 0 | CV19: 0 | CW19: 0 | CX19: 0 | CY19: 0 | CZ19: 0 | DA19: 0 | DB19: 0 | DC19: 0 | DD19: 0 | DE19: 0 | DF19: 0 | DG19: 0 | DH19: 0 | DI19: 0 | DJ19: 0 | DK19: 0 | DL19: 0 | DM19: 0 | DN19: 0 | DO19: 0 | DP19: 0 | DQ19: 0 | DR19: 0 | DS19: 0 | DT19: 0 | DU19: 0 | DV19: 0 | DW19: 0 | DX19: 0 | DY19: 0 | DZ19: 0 | EA19: 0 | EB19: 0 | EC19: 0 | ED19: 0 | EE19: 0 | EF19: 0 | EG19: 0 | EH19: 0 | EI19: 0 | EJ19: 0 | EK19: 0 | EL19: 0 | EM19: 0 | EN19: 0 | EO19: 0 | EP19: 0 | EQ19: 0 | ER19: 0 | ES19: 0 | ET19: 0 | EU19: 0 | EV19: 0 | EW19: 0 | EX19: 0 | EY19: 0 | EZ19: 0 | FA19: 0 | FB19: 0 | FC19: 0
A20: 20 | G20: 0 | H20: дата старта | I20: Начальная дата старта освоения месторождений | M20: дата из списка | P20: M | Q20: 2021-09-01 | R20: ^ | S20: 0 | Y20: идентификаторы запуска | AA20: 1 | AB20: 1 | AC20: 0 | AD20: 0 | AE20: 0 | AF20: 1 | AG20: 0 | AH20: 0 | AI20: 0 | AJ20: 0 | AK20: 0 | AL20: 0 | AM20: 1 | AN20: 0 | AO20: 0 | AP20: 0 | AQ20: 0 | AR20: 0 | AS20: 0 | AT20: 0 | AU20: 0 | AV20: 0 | AW20: 1 | AX20: 0 | AY20: 0 | AZ20: 0 | BA20: 0 | BB20: 0 | BC20: 0 | BD20: 0 | BE20: 0 | BF20: 0 | BG20: 0 | BH20: 0 | BI20: 0 | BJ20: 1 | BK20: 0 | BL20: 0 | BM20: 0 | BN20: 0 | BO20: 0 | BP20: 0 | BQ20: 0 | BR20: 0 | BS20: 0 | BT20: 0 | BU20: 0 | BV20: 0 | BW20: 0 | BX20: 0 | BY20: 0 | BZ20: 0 | CA20: 0 | CB20: 0 | CC20: 0 | CD20: 0 | CE20: 0 | CF20: 0 | CG20: 0 | CH20: 0 | CI20: 0 | CJ20: 0 | CK20: 0 | CL20: 0 | CM20: 0 | CN20: 0 | CO20: 0 | CP20: 0 | CQ20: 0 | CR20: 0 | CS20: 0 | CT20: 0 | CU20: 0 | CV20: 0 | CW20: 0 | CX20: 0 | CY20: 0 | CZ20: 0 | DA20: 0 | DB20: 0 | DC20: 0 | DD20: 0 | DE20: 0 | DF20: 0 | DG20: 0 | DH20: 0 | DI20: 0 | DJ20: 0 | DK20: 0 | DL20: 0 | DM20: 0 | DN20: 0 | DO20: 0 | DP20: 0 | DQ20: 0 | DR20: 0 | DS20: 0 | DT20: 0 | DU20: 0 | DV20: 0 | DW20: 0 | DX20: 0 | DY20: 0 | DZ20: 0 | EA20: 0 | EB20: 0 | EC20: 0 | ED20: 0 | EE20: 0 | EF20: 0 | EG20: 0 | EH20: 0 | EI20: 0 | EJ20: 0 | EK20: 0 | EL20: 0 | EM20: 0 | EN20: 0 | EO20: 0 | EP20: 0 | EQ20: 0 | ER20: 0 | ES20: 0 | ET20: 0 | EU20: 0 | EV20: 0 | EW20: 0 | EX20: 0 | EY20: 0 | EZ20: 0 | FA20: 0 | FB20: 0 | FC20: 0
A21: 21 | G21: 0 | H21: Поток запусков освоения месторождений | I21: номер соответствующего периода расчетов | M21: номер периода | Q21: 1 | S21: 0 | T21: 0
A22: 22 | G22: 0 | H22: дата старта | I22: Конечная дата активности по освоению месторождений | M22: дата из списка | P22: * | R22: ^ | S22: 0
A23: 23 | G23: 0 | H23: Поток запусков освоения месторождений | I23: номер соответствующего периода расчетов | M23: номер периода | Q23: 48 | S23: 0 | T23: 0
A24: 24 | G24: 0 | H24: Поток запусков освоения месторождений | I24: Задание потока освоения месторождений вручную | M24: кол-во месторождений | X24: 0 | Y24: *
A25: 25 | G25: 0 | H25: Поток запусков освоения месторождений | I25: Задание потока освоения месторождений через прогрессии
A26: 26 | G26: 0 | H26: Поток запусков освоения месторождений | I26: Задание потока освоения месторождений через прогрессии | J26: Начальная частота освоения месторождений | M26: кол-во периодов | P26: * | Q26: 1 | S26: 0
A27: 27 | G27: 0 | H27: Поток запусков освоения месторождений | I27: Задание потока освоения месторождений через прогрессии | J27: Лин. коэфф. изменения частоты освоения | M27: кол-во периодов | P27: * | Q27: 3 | S27: 0
A28: 28 | G28: 0 | H28: дата старта | I28: Задание потока освоения месторождений через прогрессии | J28: Кол-во освоения месторождений в 1-ый период | M28: кол-во месторождений | P28: * | Q28: 1 | S28: 0
A29: 29 | G29: 0 | H29: Поток запусков освоения месторождений | I29: Задание потока освоения месторождений через прогрессии | J29: Лин. коэфф. изменения кол-ва освоения месторождений | M29: кол-во месторождений | P29: * | Q29: 0 | S29: 0
A30: 30 | G30: 0 | H30: дата старта | I30: Задание потока освоения месторождений через прогрессии | J30: Максимальное кол-во новых запусков за период | M30: кол-во месторождений | P30: * | Q30: 1 | S30: 0
A31: 31
A32: 32 | G32: 0 | H32: Максим. объём переработки песков за период | M32: куб.м./период | P32: M | Q32: 500.00 | S32: 0
A33: 33
A34: 34 | G34: 0 | H34: Объём обогащения песков | M34: куб.м. | Q34: 10,000.00 | T34: 0
A35: 35 | G35: 0 | H35: Объём обогащения песков | I35: Алмазоносность песков | M35: кар./куб.м. | P35: M | Q35: 100 | S35: 0
A36: 36 | G36: 0 | H36: Объём извлечения запасов по месторождению | M36: кар. | Q36: 1,000,000.00 | T36: 0
A37: 37 | G37: 0 | H37: Объём обогащения песков | I37: Поправка на доп.фактор | M37: % | P37: * | Q37: 100.0% | S37: 0
A38: 38 | G38: 0 | H38: Объём обогащения песков | I38: Коэф. извлечения | M38: % | P38: M | Q38: 100.0% | S38: 0
A39: 39 | G39: 0 | H39: Объём обогащения песков | I39: Коэф нижнего класса сырья | M39: % | P39: M | Q39: 100.0% | S39: 0
A40: 40 | G40: 0 | H40: Объём обогащения песков | I40: Доказанный объём запасов по месторождению | M40: кар. | P40: M | Q40: 1,000,000.00 | S40: 0
A41: 41
A42: 42 | G42: 0 | H42: Динамика переработки песка с одного месторожд. | M42: куб.м. | Q42: процесс | X42: 20,350.00 | AA42: 0.00 | AB42: 0.00 | AC42: 0.00 | AD42: 0.00 | AE42: 200.00 | AF42: 230.00 | AG42: 260.00 | AH42: 290.00 | AI42: 320.00 | AJ42: 350.00 | AK42: 380.00 | AL42: 410.00 | AM42: 440.00 | AN42: 470.00 | AO42: 500.00 | AP42: 500.00 | AQ42: 500.00 | AR42: 500.00 | AS42: 500.00 | AT42: 500.00 | AU42: 500.00 | AV42: 500.00 | AW42: 500.00 | AX42: 500.00 | AY42: 500.00 | AZ42: 500.00 | BA42: 500.00 | BB42: 500.00 | BC42: 500.00 | BD42: 500.00 | BE42: 500.00 | BF42: 500.00 | BG42: 500.00 | BH42: 500.00 | BI42: 500.00 | BJ42: 500.00 | BK42: 500.00 | BL42: 500.00 | BM42: 500.00 | BN42: 500.00 | BO42: 500.00 | BP42: 500.00 | BQ42: 500.00 | BR42: 500.00 | BS42: 500.00 | BT42: 500.00 | BU42: 500.00 | BV42: 500.00 | BW42: 0.00 | BX42: 0.00 | BY42: 0.00 | BZ42: 0.00 | CA42: 0.00 | CB42: 0.00 | CC42: 0.00 | CD42: 0.00 | CE42: 0.00 | CF42: 0.00 | CG42: 0.00 | CH42: 0.00 | CI42: 0.00 | CJ42: 0.00 | CK42: 0.00 | CL42: 0.00 | CM42: 0.00 | CN42: 0.00 | CO42: 0.00 | CP42: 0.00 | CQ42: 0.00 | CR42: 0.00 | CS42: 0.00 | CT42: 0.00 | CU42: 0.00 | CV42: 0.00 | CW42: 0.00 | CX42: 0.00 | CY42: 0.00 | CZ42: 0.00 | DA42: 0.00 | DB42: 0.00 | DC42: 0.00 | DD42: 0.00 | DE42: 0.00 | DF42: 0.00 | DG42: 0.00 | DH42: 0.00 | DI42: 0.00 | DJ42: 0.00 | DK42: 0.00 | DL42: 0.00 | DM42: 0.00 | DN42: 0.00 | DO42: 0.00 | DP42: 0.00 | DQ42: 0.00 | DR42: 0.00 | DS42: 0.00 | DT42: 0.00 | DU42: 0.00 | DV42: 0.00 | DW42: 0.00 | DX42: 0.00 | DY42: 0.00 | DZ42: 0.00 | EA42: 0.00 | EB42: 0.00 | EC42: 0.00 | ED42: 0.00 | EE42: 0.00 | EF42: 0.00 | EG42: 0.00 | EH42: 0.00 | EI42: 0.00 | EJ42: 0.00 | EK42: 0.00 | EL42: 0.00 | EM42: 0.00 | EN42: 0.00 | EO42: 0.00 | EP42: 0.00 | EQ42: 0.00 | ER42: 0.00 | ES42: 0.00 | ET42: 0.00 | EU42: 0.00 | EV42: 0.00 | EW42: 0.00 | EX42: 0.00 | EY42: 0.00 | EZ42: 0.00 | FA42: 0.00 | FB42: 0.00 | FC42: 0.00
A43: 43 | G43: 0 | H43: Динамика переработки песка с одного месторожд. | I43: Стартовый период с запуска освоения | M43: номер периода | P43: M | Q43: 5 | S43: 0
A44: 44 | G44: 0 | H44: Динамика переработки песка с одного месторожд. | I44: Финишный период с запуска освоения | M44: номер периода | P44: * | S44: 0
A45: 45 | G45: 0 | H45: Динамика переработки песка с одного месторожд. | I45: Вручную для каждого периода расчетов | M45: куб.м. | X45: 0 | Y45: *
A46: 46 | G46: 0 | H46: тип прогрессии | I46: Через прогрессию | P46: * | Q46: линейная | R46: ^ | S46: 0
A47: 47 | G47: 0 | H47: Динамика переработки песка с одного месторожд. | I47: Значение в стартовый период | M47: куб.м. | P47: M | Q47: 200.00 | S47: 0
A48: 48 | G48: 0 | H48: Динамика переработки песка с одного месторожд. | I48: Коэффициент прироста | M48: куб.м. | P48: M | Q48: 30.0000 | S48: 0
A49: 49 | G49: 0 | H49: Динамика переработки песка с одного месторожд. | I49: Частота приростов | M49: кол-во периодов | P49: M | Q49: 1 | S49: 0
A50: 50 | G50: 0 | H50: Динамика переработки песка с одного месторожд. | I50: Обратное распределение объемов переработки | M50: куб.м. | X50: 20,350 | AA50: 0 | AB50: 0 | AC50: 0 | AD50: 0 | AE50: 0 | AF50: 0 | AG50: 0 | AH50: 0 | AI50: 0 | AJ50: 0 | AK50: 0 | AL50: 0 | AM50: 0 | AN50: 0 | AO50: 0 | AP50: 0 | AQ50: 0 | AR50: 0 | AS50: 0 | AT50: 0 | AU50: 0 | AV50: 0 | AW50: 0 | AX50: 0 | AY50: 0 | AZ50: 0 | BA50: 0 | BB50: 0 | BC50: 0 | BD50: 0 | BE50: 0 | BF50: 0 | BG50: 0 | BH50: 0 | BI50: 0 | BJ50: 0 | BK50: 0 | BL50: 0 | BM50: 0 | BN50: 0 | BO50: 0 | BP50: 0 | BQ50: 0 | BR50: 0 | BS50: 0 | BT50: 0 | BU50: 0 | BV50: 0 | BW50: 0 | BX50: 0 | BY50: 0 | BZ50: 0 | CA50: 0 | CB50: 0 | CC50: 0 | CD50: 0 | CE50: 0 | CF50: 0 | CG50: 0 | CH50: 0 | CI50: 0 | CJ50: 0 | CK50: 0 | CL50: 0 | CM50: 0 | CN50: 0 | CO50: 0 | CP50: 0 | CQ50: 0 | CR50: 0 | CS50: 0 | CT50: 0 | CU50: 0 | CV50: 0 | CW50: 0 | CX50: 0 | CY50: 0 | CZ50: 0 | DA50: 0 | DB50: 0 | DC50: 0 | DD50: 0 | DE50: 0 | DF50: 0 | DG50: 0 | DH50: 500 | DI50: 500 | DJ50: 500 | DK50: 500 | DL50: 500 | DM50: 500 | DN50: 500 | DO50: 500 | DP50: 500 | DQ50: 500 | DR50: 500 | DS50: 500 | DT50: 500 | DU50: 500 | DV50: 500 | DW50: 500 | DX50: 500 | DY50: 500 | DZ50: 500 | EA50: 500 | EB50: 500 | EC50: 500 | ED50: 500 | EE50: 500 | EF50: 500 | EG50: 500 | EH50: 500 | EI50: 500 | EJ50: 500 | EK50: 500 | EL50: 500 | EM50: 500 | EN50: 500 | EO50: 500 | EP50: 470 | EQ50: 440 | ER50: 410 | ES50: 380 | ET50: 350 | EU50: 320 | EV50: 290 | EW50: 260 | EX50: 230 | EY50: 200 | EZ50: 0 | FA50: 0 | FB50: 0 | FC50: 0
A51: 51 | G51: 0 | H51: Динамика переработки песка с одного месторожд. | I51: Процентное распределение объема перераблотки | M51: % | T51: 0 | X51: 100.00% | AA51: 0.00% | AB51: 0.00% | AC51: 0.00% | AD51: 0.00% | AE51: 0.98% | AF51: 1.13% | AG51: 1.28% | AH51: 1.43% | AI51: 1.57% | AJ51: 1.72% | AK51: 1.87% | AL51: 2.01% | AM51: 2.16% | AN51: 2.31% | AO51: 2.46% | AP51: 2.46% | AQ51: 2.46% | AR51: 2.46% | AS51: 2.46% | AT51: 2.46% | AU51: 2.46% | AV51: 2.46% | AW51: 2.46% | AX51: 2.46% | AY51: 2.46% | AZ51: 2.46% | BA51: 2.46% | BB51: 2.46% | BC51: 2.46% | BD51: 2.46% | BE51: 2.46% | BF51: 2.46% | BG51: 2.46% | BH51: 2.46% | BI51: 2.46% | BJ51: 2.46% | BK51: 2.46% | BL51: 2.46% | BM51: 2.46% | BN51: 2.46% | BO51: 2.46% | BP51: 2.46% | BQ51: 2.46% | BR51: 2.46% | BS51: 2.46% | BT51: 2.46% | BU51: 2.46% | BV51: 2.46% | BW51: 0.00% | BX51: 0.00% | BY51: 0.00% | BZ51: 0.00% | CA51: 0.00% | CB51: 0.00% | CC51: 0.00% | CD51: 0.00% | CE51: 0.00% | CF51: 0.00% | CG51: 0.00% | CH51: 0.00% | CI51: 0.00% | CJ51: 0.00% | CK51: 0.00% | CL51: 0.00% | CM51: 0.00% | CN51: 0.00% | CO51: 0.00% | CP51: 0.00% | CQ51: 0.00% | CR51: 0.00% | CS51: 0.00% | CT51: 0.00% | CU51: 0.00% | CV51: 0.00% | CW51: 0.00% | CX51: 0.00% | CY51: 0.00% | CZ51: 0.00% | DA51: 0.00% | DB51: 0.00% | DC51: 0.00% | DD51: 0.00% | DE51: 0.00% | DF51: 0.00% | DG51: 0.00% | DH51: 0.00% | DI51: 0.00% | DJ51: 0.00% | DK51: 0.00% | DL51: 0.00% | DM51: 0.00% | DN51: 0.00% | DO51: 0.00% | DP51: 0.00% | DQ51: 0.00% | DR51: 0.00% | DS51: 0.00% | DT51: 0.00% | DU51: 0.00% | DV51: 0.00% | DW51: 0.00% | DX51: 0.00% | DY51: 0.00% | DZ51: 0.00% | EA51: 0.00% | EB51: 0.00% | EC51: 0.00% | ED51: 0.00% | EE51: 0.00% | EF51: 0.00% | EG51: 0.00% | EH51: 0.00% | EI51: 0.00% | EJ51: 0.00% | EK51: 0.00% | EL51: 0.00% | EM51: 0.00% | EN51: 0.00% | EO51: 0.00% | EP51: 0.00% | EQ51: 0.00% | ER51: 0.00% | ES51: 0.00% | ET51: 0.00% | EU51: 0.00% | EV51: 0.00% | EW51: 0.00% | EX51: 0.00% | EY51: 0.00% | EZ51: 0.00% | FA51: 0.00% | FB51: 0.00% | FC51: 0.00%
A52: 52
A53: 53 | G53: 0 | H53: Итоговый объем переработки песка | L53: 1 | M53: куб.м. | X53: 10,000 | AA53: 0 | AB53: 0 | AC53: 0 | AD53: 0 | AE53: 0 | AF53: 0 | AG53: 490 | AH53: 550 | AI53: 610 | AJ53: 870 | AK53: 960 | AL53: 1,050 | AM53: 1,140 | AN53: 1,230 | AO53: 0 | AP53: 0 | AQ53: 0 | AR53: 0 | AS53: 1,730 | AT53: 1,370 | AU53: 0 | AV53: 0 | AW53: 0 | AX53: 0 | AY53: 0 | AZ53: 0 | BA53: 0 | BB53: 0 | BC53: 0 | BD53: 0 | BE53: 0 | BF53: 0 | BG53: 0 | BH53: 0 | BI53: 0 | BJ53: 0 | BK53: 0 | BL53: 0 | BM53: 0 | BN53: 0 | BO53: 0 | BP53: 0 | BQ53: 0 | BR53: 0 | BS53: 0 | BT53: 0 | BU53: 0 | BV53: 0 | BW53: 0 | BX53: 0 | BY53: 0 | BZ53: 0 | CA53: 0 | CB53: 0 | CC53: 0 | CD53: 0 | CE53: 0 | CF53: 0 | CG53: 0 | CH53: 0 | CI53: 0 | CJ53: 0 | CK53: 0 | CL53: 0 | CM53: 0 | CN53: 0 | CO53: 0 | CP53: 0 | CQ53: 0 | CR53: 0 | CS53: 0 | CT53: 0 | CU53: 0 | CV53: 0 | CW53: 0 | CX53: 0 | CY53: 0 | CZ53: 0 | DA53: 0 | DB53: 0 | DC53: 0 | DD53: 0 | DE53: 0 | DF53: 0 | DG53: 0 | DH53: 0 | DI53: 0 | DJ53: 0 | DK53: 0 | DL53: 0 | DM53: 0 | DN53: 0 | DO53: 0 | DP53: 0 | DQ53: 0 | DR53: 0 | DS53: 0 | DT53: 0 | DU53: 0 | DV53: 0 | DW53: 0 | DX53: 0 | DY53: 0 | DZ53: 0 | EA53: 0 | EB53: 0 | EC53: 0 | ED53: 0 | EE53: 0 | EF53: 0 | EG53: 0 | EH53: 0 | EI53: 0 | EJ53: 0 | EK53: 0 | EL53: 0 | EM53: 0 | EN53: 0 | EO53: 0 | EP53: 0 | EQ53: 0 | ER53: 0 | ES53: 0 | ET53: 0 | EU53: 0 | EV53: 0 | EW53: 0 | EX53: 0 | EY53: 0 | EZ53: 0 | FA53: 0 | FB53: 0 | FC53: 0
A54: 54
A55: 55 | G55: 0 | H55: Валовый объем добычи ПИ | L55: 1 | M55: кар. | T55: 0 | X55: 1,000,000 | AA55: 0 | AB55: 0 | AC55: 0 | AD55: 0 | AE55: 0 | AF55: 0 | AG55: 49,000 | AH55: 55,000 | AI55: 61,000 | AJ55: 87,000 | AK55: 96,000 | AL55: 105,000 | AM55: 114,000 | AN55: 123,000 | AO55: 0 | AP55: 0 | AQ55: 0 | AR55: 0 | AS55: 173,000 | AT55: 137,000 | AU55: 0 | AV55: 0 | AW55: 0 | AX55: 0 | AY55: 0 | AZ55: 0 | BA55: 0 | BB55: 0 | BC55: 0 | BD55: 0 | BE55: 0 | BF55: 0 | BG55: 0 | BH55: 0 | BI55: 0 | BJ55: 0 | BK55: 0 | BL55: 0 | BM55: 0 | BN55: 0 | BO55: 0 | BP55: 0 | BQ55: 0 | BR55: 0 | BS55: 0 | BT55: 0 | BU55: 0 | BV55: 0 | BW55: 0 | BX55: 0 | BY55: 0 | BZ55: 0 | CA55: 0 | CB55: 0 | CC55: 0 | CD55: 0 | CE55: 0 | CF55: 0 | CG55: 0 | CH55: 0 | CI55: 0 | CJ55: 0 | CK55: 0 | CL55: 0 | CM55: 0 | CN55: 0 | CO55: 0 | CP55: 0 | CQ55: 0 | CR55: 0 | CS55: 0 | CT55: 0 | CU55: 0 | CV55: 0 | CW55: 0 | CX55: 0 | CY55: 0 | CZ55: 0 | DA55: 0 | DB55: 0 | DC55: 0 | DD55: 0 | DE55: 0 | DF55: 0 | DG55: 0 | DH55: 0 | DI55: 0 | DJ55: 0 | DK55: 0 | DL55: 0 | DM55: 0 | DN55: 0 | DO55: 0 | DP55: 0 | DQ55: 0 | DR55: 0 | DS55: 0 | DT55: 0 | DU55: 0 | DV55: 0 | DW55: 0 | DX55: 0 | DY55: 0 | DZ55: 0 | EA55: 0 | EB55: 0 | EC55: 0 | ED55: 0 | EE55: 0 | EF55: 0 | EG55: 0 | EH55: 0 | EI55: 0 | EJ55: 0 | EK55: 0 | EL55: 0 | EM55: 0 | EN55: 0 | EO55: 0 | EP55: 0 | EQ55: 0 | ER55: 0 | ES55: 0 | ET55: 0 | EU55: 0 | EV55: 0 | EW55: 0 | EX55: 0 | EY55: 0 | EZ55: 0 | FA55: 0 | FB55: 0 | FC55: 0
A56: 56 | G56: 0 | H56: Валовый объем добычи ПИ | I56: ПИ месторождения-1 | L56: 1 | M56: кар. | T56: 0 | X56: 1,000,000 | AA56: 0 | AB56: 0 | AC56: 0 | AD56: 0 | AE56: 0 | AF56: 0 | AG56: 49,000 | AH56: 55,000 | AI56: 61,000 | AJ56: 87,000 | AK56: 96,000 | AL56: 105,000 | AM56: 114,000 | AN56: 123,000 | AO56: 0 | AP56: 0 | AQ56: 0 | AR56: 0 | AS56: 173,000 | AT56: 137,000 | AU56: 0 | AV56: 0 | AW56: 0 | AX56: 0 | AY56: 0 | AZ56: 0 | BA56: 0 | BB56: 0 | BC56: 0 | BD56: 0 | BE56: 0 | BF56: 0 | BG56: 0 | BH56: 0 | BI56: 0 | BJ56: 0 | BK56: 0 | BL56: 0 | BM56: 0 | BN56: 0 | BO56: 0 | BP56: 0 | BQ56: 0 | BR56: 0 | BS56: 0 | BT56: 0 | BU56: 0 | BV56: 0 | BW56: 0 | BX56: 0 | BY56: 0 | BZ56: 0 | CA56: 0 | CB56: 0 | CC56: 0 | CD56: 0 | CE56: 0 | CF56: 0 | CG56: 0 | CH56: 0 | CI56: 0 | CJ56: 0 | CK56: 0 | CL56: 0 | CM56: 0 | CN56: 0 | CO56: 0 | CP56: 0 | CQ56: 0 | CR56: 0 | CS56: 0 | CT56: 0 | CU56: 0 | CV56: 0 | CW56: 0 | CX56: 0 | CY56: 0 | CZ56: 0 | DA56: 0 | DB56: 0 | DC56: 0 | DD56: 0 | DE56: 0 | DF56: 0 | DG56: 0 | DH56: 0 | DI56: 0 | DJ56: 0 | DK56: 0 | DL56: 0 | DM56: 0 | DN56: 0 | DO56: 0 | DP56: 0 | DQ56: 0 | DR56: 0 | DS56: 0 | DT56: 0 | DU56: 0 | DV56: 0 | DW56: 0 | DX56: 0 | DY56: 0 | DZ56: 0 | EA56: 0 | EB56: 0 | EC56: 0 | ED56: 0 | EE56: 0 | EF56: 0 | EG56: 0 | EH56: 0 | EI56: 0 | EJ56: 0 | EK56: 0 | EL56: 0 | EM56: 0 | EN56: 0 | EO56: 0 | EP56: 0 | EQ56: 0 | ER56: 0 | ES56: 0 | ET56: 0 | EU56: 0 | EV56: 0 | EW56: 0 | EX56: 0 | EY56: 0 | EZ56: 0 | FA56: 0 | FB56: 0 | FC56: 0
A57: 57 | L57: пустая строка
A58: 58
A59: 59 | G59: 0 | H59: Базовый прайс-лист на полезные ископаемые | M59: руб./кар. | X59: 5,926.42 | AA59: 5,500.00 | AB59: 5,500.00 | AC59: 5,500.00 | AD59: 5,500.00 | AE59: 5,500.00 | AF59: 5,500.00 | AG59: 5,500.00 | AH59: 5,500.00 | AI59: 5,500.00 | AJ59: 5,500.00 | AK59: 5,500.00 | AL59: 5,500.00 | AM59: 5,775.00 | AN59: 5,775.00 | AO59: 5,775.00 | AP59: 5,775.00 | AQ59: 5,775.00 | AR59: 5,775.00 | AS59: 5,775.00 | AT59: 5,775.00 | AU59: 5,775.00 | AV59: 5,775.00 | AW59: 5,775.00 | AX59: 5,775.00 | AY59: 6,063.75 | AZ59: 6,063.75 | BA59: 6,063.75 | BB59: 6,063.75 | BC59: 6,063.75 | BD59: 6,063.75 | BE59: 6,063.75 | BF59: 6,063.75 | BG59: 6,063.75 | BH59: 6,063.75 | BI59: 6,063.75 | BJ59: 6,063.75 | BK59: 6,366.94 | BL59: 6,366.94 | BM59: 6,366.94 | BN59: 6,366.94 | BO59: 6,366.94 | BP59: 6,366.94 | BQ59: 6,366.94 | BR59: 6,366.94 | BS59: 6,366.94 | BT59: 6,366.94 | BU59: 6,366.94 | BV59: 6,366.94 | BW59: 0.00 | BX59: 0.00 | BY59: 0.00 | BZ59: 0.00 | CA59: 0.00 | CB59: 0.00 | CC59: 0.00 | CD59: 0.00 | CE59: 0.00 | CF59: 0.00 | CG59: 0.00 | CH59: 0.00 | CI59: 0.00 | CJ59: 0.00 | CK59: 0.00 | CL59: 0.00 | CM59: 0.00 | CN59: 0.00 | CO59: 0.00 | CP59: 0.00 | CQ59: 0.00 | CR59: 0.00 | CS59: 0.00 | CT59: 0.00 | CU59: 0.00 | CV59: 0.00 | CW59: 0.00 | CX59: 0.00 | CY59: 0.00 | CZ59: 0.00 | DA59: 0.00 | DB59: 0.00 | DC59: 0.00 | DD59: 0.00 | DE59: 0.00 | DF59: 0.00 | DG59: 0.00 | DH59: 0.00 | DI59: 0.00 | DJ59: 0.00 | DK59: 0.00 | DL59: 0.00 | DM59: 0.00 | DN59: 0.00 | DO59: 0.00 | DP59: 0.00 | DQ59: 0.00 | DR59: 0.00 | DS59: 0.00 | DT59: 0.00 | DU59: 0.00 | DV59: 0.00 | DW59: 0.00 | DX59: 0.00 | DY59: 0.00 | DZ59: 0.00 | EA59: 0.00 | EB59: 0.00 | EC59: 0.00 | ED59: 0.00 | EE59: 0.00 | EF59: 0.00 | EG59: 0.00 | EH59: 0.00 | EI59: 0.00 | EJ59: 0.00 | EK59: 0.00 | EL59: 0.00 | EM59: 0.00 | EN59: 0.00 | EO59: 0.00 | EP59: 0.00 | EQ59: 0.00 | ER59: 0.00 | ES59: 0.00 | ET59: 0.00 | EU59: 0.00 | EV59: 0.00 | EW59: 0.00 | EX59: 0.00 | EY59: 0.00 | EZ59: 0.00 | FA59: 0.00 | FB59: 0.00 | FC59: 0.00
A60: 60 | G60: 0 | H60: Базовый прайс-лист на полезные ископаемые | I60: ПИ месторождения-1 | M60: руб./кар. | P60: M | Q60: 5,500.00 | S60: 0 | X60: 5,926.42 | AA60: 5,500.00 | AB60: 5,500.00 | AC60: 5,500.00 | AD60: 5,500.00 | AE60: 5,500.00 | AF60: 5,500.00 | AG60: 5,500.00 | AH60: 5,500.00 | AI60: 5,500.00 | AJ60: 5,500.00 | AK60: 5,500.00 | AL60: 5,500.00 | AM60: 5,775.00 | AN60: 5,775.00 | AO60: 5,775.00 | AP60: 5,775.00 | AQ60: 5,775.00 | AR60: 5,775.00 | AS60: 5,775.00 | AT60: 5,775.00 | AU60: 5,775.00 | AV60: 5,775.00 | AW60: 5,775.00 | AX60: 5,775.00 | AY60: 6,063.75 | AZ60: 6,063.75 | BA60: 6,063.75 | BB60: 6,063.75 | BC60: 6,063.75 | BD60: 6,063.75 | BE60: 6,063.75 | BF60: 6,063.75 | BG60: 6,063.75 | BH60: 6,063.75 | BI60: 6,063.75 | BJ60: 6,063.75 | BK60: 6,366.94 | BL60: 6,366.94 | BM60: 6,366.94 | BN60: 6,366.94 | BO60: 6,366.94 | BP60: 6,366.94 | BQ60: 6,366.94 | BR60: 6,366.94 | BS60: 6,366.94 | BT60: 6,366.94 | BU60: 6,366.94 | BV60: 6,366.94 | BW60: 0.00 | BX60: 0.00 | BY60: 0.00 | BZ60: 0.00 | CA60: 0.00 | CB60: 0.00 | CC60: 0.00 | CD60: 0.00 | CE60: 0.00 | CF60: 0.00 | CG60: 0.00 | CH60: 0.00 | CI60: 0.00 | CJ60: 0.00 | CK60: 0.00 | CL60: 0.00 | CM60: 0.00 | CN60: 0.00 | CO60: 0.00 | CP60: 0.00 | CQ60: 0.00 | CR60: 0.00 | CS60: 0.00 | CT60: 0.00 | CU60: 0.00 | CV60: 0.00 | CW60: 0.00 | CX60: 0.00 | CY60: 0.00 | CZ60: 0.00 | DA60: 0.00 | DB60: 0.00 | DC60: 0.00 | DD60: 0.00 | DE60: 0.00 | DF60: 0.00 | DG60: 0.00 | DH60: 0.00 | DI60: 0.00 | DJ60: 0.00 | DK60: 0.00 | DL60: 0.00 | DM60: 0.00 | DN60: 0.00 | DO60: 0.00 | DP60: 0.00 | DQ60: 0.00 | DR60: 0.00 | DS60: 0.00 | DT60: 0.00 | DU60: 0.00 | DV60: 0.00 | DW60: 0.00 | DX60: 0.00 | DY60: 0.00 | DZ60: 0.00 | EA60: 0.00 | EB60: 0.00 | EC60: 0.00 | ED60: 0.00 | EE60: 0.00 | EF60: 0.00 | EG60: 0.00 | EH60: 0.00 | EI60: 0.00 | EJ60: 0.00 | EK60: 0.00 | EL60: 0.00 | EM60: 0.00 | EN60: 0.00 | EO60: 0.00 | EP60: 0.00 | EQ60: 0.00 | ER60: 0.00 | ES60: 0.00 | ET60: 0.00 | EU60: 0.00 | EV60: 0.00 | EW60: 0.00 | EX60: 0.00 | EY60: 0.00 | EZ60: 0.00 | FA60: 0.00 | FB60: 0.00 | FC60: 0.00
A61: 61 | L61: пустая строка
A62: 62
A63: 63 | G63: 0 | H63: Общий оборот | L63: 1 | M63: руб. | T63: 0 | X63: 5,650,425,000 | AA63: 0 | AB63: 0 | AC63: 0 | AD63: 0 | AE63: 0 | AF63: 0 | AG63: 269,500,000 | AH63: 302,500,000 | AI63: 335,500,000 | AJ63: 478,500,000 | AK63: 528,000,000 | AL63: 577,500,000 | AM63: 658,350,000 | AN63: 710,325,000 | AO63: 0 | AP63: 0 | AQ63: 0 | AR63: 0 | AS63: 999,075,000 | AT63: 791,175,000 | AU63: 0 | AV63: 0 | AW63: 0 | AX63: 0 | AY63: 0 | AZ63: 0 | BA63: 0 | BB63: 0 | BC63: 0 | BD63: 0 | BE63: 0 | BF63: 0 | BG63: 0 | BH63: 0 | BI63: 0 | BJ63: 0 | BK63: 0 | BL63: 0 | BM63: 0 | BN63: 0 | BO63: 0 | BP63: 0 | BQ63: 0 | BR63: 0 | BS63: 0 | BT63: 0 | BU63: 0 | BV63: 0 | BW63: 0 | BX63: 0 | BY63: 0 | BZ63: 0 | CA63: 0 | CB63: 0 | CC63: 0 | CD63: 0 | CE63: 0 | CF63: 0 | CG63: 0 | CH63: 0 | CI63: 0 | CJ63: 0 | CK63: 0 | CL63: 0 | CM63: 0 | CN63: 0 | CO63: 0 | CP63: 0 | CQ63: 0 | CR63: 0 | CS63: 0 | CT63: 0 | CU63: 0 | CV63: 0 | CW63: 0 | CX63: 0 | CY63: 0 | CZ63: 0 | DA63: 0 | DB63: 0 | DC63: 0 | DD63: 0 | DE63: 0 | DF63: 0 | DG63: 0 | DH63: 0 | DI63: 0 | DJ63: 0 | DK63: 0 | DL63: 0 | DM63: 0 | DN63: 0 | DO63: 0 | DP63: 0 | DQ63: 0 | DR63: 0 | DS63: 0 | DT63: 0 | DU63: 0 | DV63: 0 | DW63: 0 | DX63: 0 | DY63: 0 | DZ63: 0 | EA63: 0 | EB63: 0 | EC63: 0 | ED63: 0 | EE63: 0 | EF63: 0 | EG63: 0 | EH63: 0 | EI63: 0 | EJ63: 0 | EK63: 0 | EL63: 0 | EM63: 0 | EN63: 0 | EO63: 0 | EP63: 0 | EQ63: 0 | ER63: 0 | ES63: 0 | ET63: 0 | EU63: 0 | EV63: 0 | EW63: 0 | EX63: 0 | EY63: 0 | EZ63: 0 | FA63: 0 | FB63: 0 | FC63: 0
A64: 64 | G64: 0 | H64: Общий оборот | I64: ПИ месторождения-1 | L64: 1 | M64: руб. | X64: 5,650,425,000 | AA64: 0 | AB64: 0 | AC64: 0 | AD64: 0 | AE64: 0 | AF64: 0 | AG64: 269,500,000 | AH64: 302,500,000 | AI64: 335,500,000 | AJ64: 478,500,000 | AK64: 528,000,000 | AL64: 577,500,000 | AM64: 658,350,000 | AN64: 710,325,000 | AO64: 0 | AP64: 0 | AQ64: 0 | AR64: 0 | AS64: 999,075,000 | AT64: 791,175,000 | AU64: 0 | AV64: 0 | AW64: 0 | AX64: 0 | AY64: 0 | AZ64: 0 | BA64: 0 | BB64: 0 | BC64: 0 | BD64: 0 | BE64: 0 | BF64: 0 | BG64: 0 | BH64: 0 | BI64: 0 | BJ64: 0 | BK64: 0 | BL64: 0 | BM64: 0 | BN64: 0 | BO64: 0 | BP64: 0 | BQ64: 0 | BR64: 0 | BS64: 0 | BT64: 0 | BU64: 0 | BV64: 0 | BW64: 0 | BX64: 0 | BY64: 0 | BZ64: 0 | CA64: 0 | CB64: 0 | CC64: 0 | CD64: 0 | CE64: 0 | CF64: 0 | CG64: 0 | CH64: 0 | CI64: 0 | CJ64: 0 | CK64: 0 | CL64: 0 | CM64: 0 | CN64: 0 | CO64: 0 | CP64: 0 | CQ64: 0 | CR64: 0 | CS64: 0 | CT64: 0 | CU64: 0 | CV64: 0 | CW64: 0 | CX64: 0 | CY64: 0 | CZ64: 0 | DA64: 0 | DB64: 0 | DC64: 0 | DD64: 0 | DE64: 0 | DF64: 0 | DG64: 0 | DH64: 0 | DI64: 0 | DJ64: 0 | DK64: 0 | DL64: 0 | DM64: 0 | DN64: 0 | DO64: 0 | DP64: 0 | DQ64: 0 | DR64: 0 | DS64: 0 | DT64: 0 | DU64: 0 | DV64: 0 | DW64: 0 | DX64: 0 | DY64: 0 | DZ64: 0 | EA64: 0 | EB64: 0 | EC64: 0 | ED64: 0 | EE64: 0 | EF64: 0 | EG64: 0 | EH64: 0 | EI64: 0 | EJ64: 0 | EK64: 0 | EL64: 0 | EM64: 0 | EN64: 0 | EO64: 0 | EP64: 0 | EQ64: 0 | ER64: 0 | ES64: 0 | ET64: 0 | EU64: 0 | EV64: 0 | EW64: 0 | EX64: 0 | EY64: 0 | EZ64: 0 | FA64: 0 | FB64: 0 | FC64: 0
A65: 65 | L65: пустая строка
A66: 66
A67: 67 | G67: 0 | H67: Предполевые работы и проектирование | L67: 1 | M67: руб. | O67: 1 | Q67: начисление | X67: 60,000,000 | AA67: 5,000,000 | AB67: 10,000,000 | AC67: 5,000,000 | AD67: 0 | AE67: 0 | AF67: 5,000,000 | AG67: 5,000,000 | AH67: 0 | AI67: 0 | AJ67: 0 | AK67: 0 | AL67: 0 | AM67: 5,000,000 | AN67: 5,000,000 | AO67: 0 | AP67: 0 | AQ67: 0 | AR67: 0 | AS67: 0 | AT67: 0 | AU67: 0 | AV67: 0 | AW67: 5,000,000 | AX67: 5,000,000 | AY67: 0 | AZ67: 0 | BA67: 0 | BB67: 0 | BC67: 0 | BD67: 0 | BE67: 0 | BF67: 0 | BG67: 0 | BH67: 0 | BI67: 0 | BJ67: 5,000,000 | BK67: 5,000,000 | BL67: 0 | BM67: 0 | BN67: 0 | BO67: 0 | BP67: 0 | BQ67: 0 | BR67: 0 | BS67: 0 | BT67: 0 | BU67: 0 | BV67: 0 | BW67: 0 | BX67: 0 | BY67: 0 | BZ67: 0 | CA67: 0 | CB67: 0 | CC67: 0 | CD67: 0 | CE67: 0 | CF67: 0 | CG67: 0 | CH67: 0 | CI67: 0 | CJ67: 0 | CK67: 0 | CL67: 0 | CM67: 0 | CN67: 0 | CO67: 0 | CP67: 0 | CQ67: 0 | CR67: 0 | CS67: 0 | CT67: 0 | CU67: 0 | CV67: 0 | CW67: 0 | CX67: 0 | CY67: 0 | CZ67: 0 | DA67: 0 | DB67: 0 | DC67: 0 | DD67: 0 | DE67: 0 | DF67: 0 | DG67: 0 | DH67: 0 | DI67: 0 | DJ67: 0 | DK67: 0 | DL67: 0 | DM67: 0 | DN67: 0 | DO67: 0 | DP67: 0 | DQ67: 0 | DR67: 0 | DS67: 0 | DT67: 0 | DU67: 0 | DV67: 0 | DW67: 0 | DX67: 0 | DY67: 0 | DZ67: 0 | EA67: 0 | EB67: 0 | EC67: 0 | ED67: 0 | EE67: 0 | EF67: 0 | EG67: 0 | EH67: 0 | EI67: 0 | EJ67: 0 | EK67: 0 | EL67: 0 | EM67: 0 | EN67: 0 | EO67: 0 | EP67: 0 | EQ67: 0 | ER67: 0 | ES67: 0 | ET67: 0 | EU67: 0 | EV67: 0 | EW67: 0 | EX67: 0 | EY67: 0 | EZ67: 0 | FA67: 0 | FB67: 0 | FC67: 0
A68: 68 | G68: 0 | H68: Предполевые работы и проектирование | I68: Распределение расхода для одного запуска | M68: руб. | Q68: процесс | T68: 0 | U68: 0 | X68: 10,000,000 | AA68: 5,000,000 | AB68: 5,000,000 | AC68: 0 | AD68: 0 | AE68: 0 | AF68: 0 | AG68: 0 | AH68: 0 | AI68: 0 | AJ68: 0 | AK68: 0 | AL68: 0 | AM68: 0 | AN68: 0 | AO68: 0 | AP68: 0 | AQ68: 0 | AR68: 0 | AS68: 0 | AT68: 0 | AU68: 0 | AV68: 0 | AW68: 0 | AX68: 0 | AY68: 0 | AZ68: 0 | BA68: 0 | BB68: 0 | BC68: 0 | BD68: 0 | BE68: 0 | BF68: 0 | BG68: 0 | BH68: 0 | BI68: 0 | BJ68: 0 | BK68: 0 | BL68: 0 | BM68: 0 | BN68: 0 | BO68: 0 | BP68: 0 | BQ68: 0 | BR68: 0 | BS68: 0 | BT68: 0 | BU68: 0 | BV68: 0 | BW68: 0 | BX68: 0 | BY68: 0 | BZ68: 0 | CA68: 0 | CB68: 0 | CC68: 0 | CD68: 0 | CE68: 0 | CF68: 0 | CG68: 0 | CH68: 0 | CI68: 0 | CJ68: 0 | CK68: 0 | CL68: 0 | CM68: 0 | CN68: 0 | CO68: 0 | CP68: 0 | CQ68: 0 | CR68: 0 | CS68: 0 | CT68: 0 | CU68: 0 | CV68: 0 | CW68: 0 | CX68: 0 | CY68: 0 | CZ68: 0 | DA68: 0 | DB68: 0 | DC68: 0 | DD68: 0 | DE68: 0 | DF68: 0 | DG68: 0 | DH68: 0 | DI68: 0 | DJ68: 0 | DK68: 0 | DL68: 0 | DM68: 0 | DN68: 0 | DO68: 0 | DP68: 0 | DQ68: 0 | DR68: 0 | DS68: 0 | DT68: 0 | DU68: 0 | DV68: 0 | DW68: 0 | DX68: 0 | DY68: 0 | DZ68: 0 | EA68: 0 | EB68: 0 | EC68: 0 | ED68: 0 | EE68: 0 | EF68: 0 | EG68: 0 | EH68: 0 | EI68: 0 | EJ68: 0 | EK68: 0 | EL68: 0 | EM68: 0 | EN68: 0 | EO68: 0 | EP68: 0 | EQ68: 0 | ER68: 0 | ES68: 0 | ET68: 0 | EU68: 0 | EV68: 0 | EW68: 0 | EX68: 0 | EY68: 0 | EZ68: 0 | FA68: 0 | FB68: 0 | FC68: 0
A69: 69 | G69: 0 | H69: Предполевые работы и проектирование | I69: Распределение расхода для одного запуска | J69: Сумма расхода для одного запуска по этой статье | M69: руб. | P69: M | Q69: 10,000,000 | S69: 0 | Y69: обратное распределение расхода | AA69: 0 | AB69: 0 | AC69: 0 | AD69: 0 | AE69: 0 | AF69: 0 | AG69: 0 | AH69: 0 | AI69: 0 | AJ69: 0 | AK69: 0 | AL69: 0 | AM69: 0 | AN69: 0 | AO69: 0 | AP69: 0 | AQ69: 0 | AR69: 0 | AS69: 0 | AT69: 0 | AU69: 0 | AV69: 0 | AW69: 0 | AX69: 0 | AY69: 0 | AZ69: 0 | BA69: 0 | BB69: 0 | BC69: 0 | BD69: 0 | BE69: 0 | BF69: 0 | BG69: 0 | BH69: 0 | BI69: 0 | BJ69: 0 | BK69: 0 | BL69: 0 | BM69: 0 | BN69: 0 | BO69: 0 | BP69: 0 | BQ69: 0 | BR69: 0 | BS69: 0 | BT69: 0 | BU69: 0 | BV69: 0 | BW69: 0 | BX69: 0 | BY69: 0 | BZ69: 0 | CA69: 0 | CB69: 0 | CC69: 0 | CD69: 0 | CE69: 0 | CF69: 0 | CG69: 0 | CH69: 0 | CI69: 0 | CJ69: 0 | CK69: 0 | CL69: 0 | CM69: 0 | CN69: 0 | CO69: 0 | CP69: 0 | CQ69: 0 | CR69: 0 | CS69: 0 | CT69: 0 | CU69: 0 | CV69: 0 | CW69: 0 | CX69: 0 | CY69: 0 | CZ69: 0 | DA69: 0 | DB69: 0 | DC69: 0 | DD69: 0 | DE69: 0 | DF69: 0 | DG69: 0 | DH69: 0 | DI69: 0 | DJ69: 0 | DK69: 0 | DL69: 0 | DM69: 0 | DN69: 0 | DO69: 0 | DP69: 0 | DQ69: 0 | DR69: 0 | DS69: 0 | DT69: 0 | DU69: 0 | DV69: 0 | DW69: 0 | DX69: 0 | DY69: 0 | DZ69: 0 | EA69: 0 | EB69: 0 | EC69: 0 | ED69: 0 | EE69: 0 | EF69: 0 | EG69: 0 | EH69: 0 | EI69: 0 | EJ69: 0 | EK69: 0 | EL69: 0 | EM69: 0 | EN69: 0 | EO69: 0 | EP69: 0 | EQ69: 0 | ER69: 0 | ES69: 0 | ET69: 0 | EU69: 0 | EV69: 0 | EW69: 0 | EX69: 0 | EY69: 0 | EZ69: 0 | FA69: 0 | FB69: 5,000,000 | FC69: 5,000,000
A70: 70 | G70: 0 | H70: Предполевые работы и проектирование | I70: Распределение расхода для одного запуска | J70: Процентное распределение расхода по периодам | M70: % | T70: 0 | X70: 100.00% | Y70: M | AA70: 50.00% | AB70: 50.00% | AC70: 0.00% | AD70: 0.00% | AE70: 0.00% | AF70: 0.00% | AG70: 0.00% | AH70: 0.00% | AI70: 0.00% | AJ70: 0.00% | AK70: 0.00% | AL70: 0.00% | AM70: 0.00% | AN70: 0.00% | AO70: 0.00% | AP70: 0.00% | AQ70: 0.00% | AR70: 0.00% | AS70: 0.00% | AT70: 0.00% | AU70: 0.00% | AV70: 0.00% | AW70: 0.00% | AX70: 0.00% | AY70: 0.00% | AZ70: 0.00% | BA70: 0.00% | BB70: 0.00% | BC70: 0.00% | BD70: 0.00% | BE70: 0.00% | BF70: 0.00% | BG70: 0.00% | BH70: 0.00% | BI70: 0.00% | BJ70: 0.00% | BK70: 0.00% | BL70: 0.00% | BM70: 0.00% | BN70: 0.00% | BO70: 0.00% | BP70: 0.00% | BQ70: 0.00% | BR70: 0.00% | BS70: 0.00% | BT70: 0.00% | BU70: 0.00% | BV70: 0.00% | BW70: 0.00% | BX70: 0.00% | BY70: 0.00% | BZ70: 0.00% | CA70: 0.00% | CB70: 0.00% | CC70: 0.00% | CD70: 0.00% | CE70: 0.00% | CF70: 0.00% | CG70: 0.00% | CH70: 0.00% | CI70: 0.00% | CJ70: 0.00% | CK70: 0.00% | CL70: 0.00% | CM70: 0.00% | CN70: 0.00% | CO70: 0.00% | CP70: 0.00% | CQ70: 0.00% | CR70: 0.00% | CS70: 0.00% | CT70: 0.00% | CU70: 0.00% | CV70: 0.00% | CW70: 0.00% | CX70: 0.00% | CY70: 0.00% | CZ70: 0.00% | DA70: 0.00% | DB70: 0.00% | DC70: 0.00% | DD70: 0.00% | DE70: 0.00% | DF70: 0.00% | DG70: 0.00% | DH70: 0.00% | DI70: 0.00% | DJ70: 0.00% | DK70: 0.00% | DL70: 0.00% | DM70: 0.00% | DN70: 0.00% | DO70: 0.00% | DP70: 0.00% | DQ70: 0.00% | DR70: 0.00% | DS70: 0.00% | DT70: 0.00% | DU70: 0.00% | DV70: 0.00% | DW70: 0.00% | DX70: 0.00% | DY70: 0.00% | DZ70: 0.00% | EA70: 0.00% | EB70: 0.00% | EC70: 0.00% | ED70: 0.00% | EE70: 0.00% | EF70: 0.00% | EG70: 0.00% | EH70: 0.00% | EI70: 0.00% | EJ70: 0.00% | EK70: 0.00% | EL70: 0.00% | EM70: 0.00% | EN70: 0.00% | EO70: 0.00% | EP70: 0.00% | EQ70: 0.00% | ER70: 0.00% | ES70: 0.00% | ET70: 0.00% | EU70: 0.00% | EV70: 0.00% | EW70: 0.00% | EX70: 0.00% | EY70: 0.00% | EZ70: 0.00% | FA70: 0.00% | FB70: 0.00% | FC70: 0.00%
A71: 71
A72: 72 | G72: 0 | H72: Предполевые работы и проектирование | L72: 1 | M72: руб. | Q72: оплата | X72: 60,000,000 | AA72: 2,500,000 | AB72: 6,000,000 | AC72: 8,000,000 | AD72: 3,500,000 | AE72: 500,000 | AF72: 1,500,000 | AG72: 4,500,000 | AH72: 3,500,000 | AI72: 0 | AJ72: 0 | AK72: 0 | AL72: 500,000 | AM72: 1,500,000 | AN72: 4,500,000 | AO72: 3,500,000 | AP72: 0 | AQ72: 0 | AR72: 0 | AS72: 0 | AT72: 0 | AU72: 0 | AV72: 500,000 | AW72: 1,500,000 | AX72: 4,500,000 | AY72: 3,500,000 | AZ72: 0 | BA72: 0 | BB72: 0 | BC72: 0 | BD72: 0 | BE72: 0 | BF72: 0 | BG72: 0 | BH72: 0 | BI72: 500,000 | BJ72: 1,500,000 | BK72: 4,500,000 | BL72: 3,500,000 | BM72: 0 | BN72: 0 | BO72: 0 | BP72: 0 | BQ72: 0 | BR72: 0 | BS72: 0 | BT72: 0 | BU72: 0 | BV72: 0 | BW72: 0 | BX72: 0 | BY72: 0 | BZ72: 0 | CA72: 0 | CB72: 0 | CC72: 0 | CD72: 0 | CE72: 0 | CF72: 0 | CG72: 0 | CH72: 0 | CI72: 0 | CJ72: 0 | CK72: 0 | CL72: 0 | CM72: 0 | CN72: 0 | CO72: 0 | CP72: 0 | CQ72: 0 | CR72: 0 | CS72: 0 | CT72: 0 | CU72: 0 | CV72: 0 | CW72: 0 | CX72: 0 | CY72: 0 | CZ72: 0 | DA72: 0 | DB72: 0 | DC72: 0 | DD72: 0 | DE72: 0 | DF72: 0 | DG72: 0 | DH72: 0 | DI72: 0 | DJ72: 0 | DK72: 0 | DL72: 0 | DM72: 0 | DN72: 0 | DO72: 0 | DP72: 0 | DQ72: 0 | DR72: 0 | DS72: 0 | DT72: 0 | DU72: 0 | DV72: 0 | DW72: 0 | DX72: 0 | DY72: 0 | DZ72: 0 | EA72: 0 | EB72: 0 | EC72: 0 | ED72: 0 | EE72: 0 | EF72: 0 | EG72: 0 | EH72: 0 | EI72: 0 | EJ72: 0 | EK72: 0 | EL72: 0 | EM72: 0 | EN72: 0 | EO72: 0 | EP72: 0 | EQ72: 0 | ER72: 0 | ES72: 0 | ET72: 0 | EU72: 0 | EV72: 0 | EW72: 0 | EX72: 0 | EY72: 0 | EZ72: 0 | FA72: 0 | FB72: 0 | FC72: 0
A73: 73 | G73: 0 | H73: Предполевые работы и проектирование | I73: Задаем через указание % предоплаты и сроков
A74: 74 | G74: 0 | H74: Предполевые работы и проектирование | I74: Задаем через указание % предоплаты и сроков | J74: Размер предоплаты | M74: % | P74: * | Q74: 30.0% | S74: 0
A75: 75 | G75: 0 | H75: Предполевые работы и проектирование | I75: Задаем через указание % предоплаты и сроков | J75: Период оборачиваемости предоплаты (срок) | M75: кол-во дней | P75: * | Q75: 10 | S75: 0
A76: 76 | G76: 0 | H76: Предполевые работы и проектирование | I76: Задаем через указание % предоплаты и сроков | J76: расчет в количестве периодов | M76: кол-во периодов | Q76: 0.3 | S76: 0 | T76: 0
A77: 77 | G77: 0 | H77: Предполевые работы и проектирование | I77: Задаем через указание % предоплаты и сроков | J77: Размер доплаты | M77: % | Q77: 70.0% | S77: 0 | T77: 0
A78: 78 | G78: 0 | H78: Предполевые работы и проектирование | I78: Задаем через указание % предоплаты и сроков | J78: Период оборачиваемости доплат (срок) | M78: кол-во дней | P78: * | Q78: 30 | S78: 0
A79: 79 | G79: 0 | H79: Предполевые работы и проектирование | I79: Задаем через указание % предоплаты и сроков | J79: расчет в количестве периодов | M79: кол-во периодов | Q79: 1.0 | S79: 0 | T79: 0
A80: 80
A81: 81 | G81: 0 | H81: Предполевые работы и проектирование | L81: 1 | M81: руб. | Q81: учет | X81: 41,587,224 | AA81: 0 | AB81: 0 | AC81: 0 | AD81: 0 | AE81: 98,280 | AF81: 211,302 | AG81: 240,786 | AH81: 270,270 | AI81: 299,754 | AJ81: 427,518 | AK81: 471,744 | AL81: 515,971 | AM81: 560,197 | AN81: 604,423 | AO81: 648,649 | AP81: 678,133 | AQ81: 791,155 | AR81: 820,639 | AS81: 850,123 | AT81: 879,607 | AU81: 894,349 | AV81: 909,091 | AW81: 923,833 | AX81: 938,575 | AY81: 953,317 | AZ81: 968,059 | BA81: 1,081,081 | BB81: 1,095,823 | BC81: 1,110,565 | BD81: 1,125,307 | BE81: 1,140,049 | BF81: 1,154,791 | BG81: 1,169,533 | BH81: 1,184,275 | BI81: 1,199,017 | BJ81: 1,213,759 | BK81: 1,228,501 | BL81: 1,228,501 | BM81: 1,228,501 | BN81: 1,326,781 | BO81: 1,341,523 | BP81: 1,356,265 | BQ81: 1,371,007 | BR81: 1,385,749 | BS81: 1,400,491 | BT81: 1,415,233 | BU81: 1,429,975 | BV81: 1,444,717 | BW81: 0 | BX81: 0 | BY81: 0 | BZ81: 0 | CA81: 0 | CB81: 0 | CC81: 0 | CD81: 0 | CE81: 0 | CF81: 0 | CG81: 0 | CH81: 0 | CI81: 0 | CJ81: 0 | CK81: 0 | CL81: 0 | CM81: 0 | CN81: 0 | CO81: 0 | CP81: 0 | CQ81: 0 | CR81: 0 | CS81: 0 | CT81: 0 | CU81: 0 | CV81: 0 | CW81: 0 | CX81: 0 | CY81: 0 | CZ81: 0 | DA81: 0 | DB81: 0 | DC81: 0 | DD81: 0 | DE81: 0 | DF81: 0 | DG81: 0 | DH81: 0 | DI81: 0 | DJ81: 0 | DK81: 0 | DL81: 0 | DM81: 0 | DN81: 0 | DO81: 0 | DP81: 0 | DQ81: 0 | DR81: 0 | DS81: 0 | DT81: 0 | DU81: 0 | DV81: 0 | DW81: 0 | DX81: 0 | DY81: 0 | DZ81: 0 | EA81: 0 | EB81: 0 | EC81: 0 | ED81: 0 | EE81: 0 | EF81: 0 | EG81: 0 | EH81: 0 | EI81: 0 | EJ81: 0 | EK81: 0 | EL81: 0 | EM81: 0 | EN81: 0 | EO81: 0 | EP81: 0 | EQ81: 0 | ER81: 0 | ES81: 0 | ET81: 0 | EU81: 0 | EV81: 0 | EW81: 0 | EX81: 0 | EY81: 0 | EZ81: 0 | FA81: 0 | FB81: 0 | FC81: 0
A82: 82 | G82: 0 | H82: Предполевые работы и проектирование | I82: Применяется процентное распределение переработки
A83: 83 | G83: 0 | H83: Предполевые работы и проектирование | I83: Применяется процентное распределение переработки | J83: %-ное распределение учета расходов | M83: % | Q83: процесс | T83: 0 | X83: 100.0% | AA83: 0.0% | AB83: 0.0% | AC83: 0.0% | AD83: 0.0% | AE83: 1.0% | AF83: 1.1% | AG83: 1.3% | AH83: 1.4% | AI83: 1.6% | AJ83: 1.7% | AK83: 1.9% | AL83: 2.0% | AM83: 2.2% | AN83: 2.3% | AO83: 2.5% | AP83: 2.5% | AQ83: 2.5% | AR83: 2.5% | AS83: 2.5% | AT83: 2.5% | AU83: 2.5% | AV83: 2.5% | AW83: 2.5% | AX83: 2.5% | AY83: 2.5% | AZ83: 2.5% | BA83: 2.5% | BB83: 2.5% | BC83: 2.5% | BD83: 2.5% | BE83: 2.5% | BF83: 2.5% | BG83: 2.5% | BH83: 2.5% | BI83: 2.5% | BJ83: 2.5% | BK83: 2.5% | BL83: 2.5% | BM83: 2.5% | BN83: 2.5% | BO83: 2.5% | BP83: 2.5% | BQ83: 2.5% | BR83: 2.5% | BS83: 2.5% | BT83: 2.5% | BU83: 2.5% | BV83: 2.5% | BW83: 0.0% | BX83: 0.0% | BY83: 0.0% | BZ83: 0.0% | CA83: 0.0% | CB83: 0.0% | CC83: 0.0% | CD83: 0.0% | CE83: 0.0% | CF83: 0.0% | CG83: 0.0% | CH83: 0.0% | CI83: 0.0% | CJ83: 0.0% | CK83: 0.0% | CL83: 0.0% | CM83: 0.0% | CN83: 0.0% | CO83: 0.0% | CP83: 0.0% | CQ83: 0.0% | CR83: 0.0% | CS83: 0.0% | CT83: 0.0% | CU83: 0.0% | CV83: 0.0% | CW83: 0.0% | CX83: 0.0% | CY83: 0.0% | CZ83: 0.0% | DA83: 0.0% | DB83: 0.0% | DC83: 0.0% | DD83: 0.0% | DE83: 0.0% | DF83: 0.0% | DG83: 0.0% | DH83: 0.0% | DI83: 0.0% | DJ83: 0.0% | DK83: 0.0% | DL83: 0.0% | DM83: 0.0% | DN83: 0.0% | DO83: 0.0% | DP83: 0.0% | DQ83: 0.0% | DR83: 0.0% | DS83: 0.0% | DT83: 0.0% | DU83: 0.0% | DV83: 0.0% | DW83: 0.0% | DX83: 0.0% | DY83: 0.0% | DZ83: 0.0% | EA83: 0.0% | EB83: 0.0% | EC83: 0.0% | ED83: 0.0% | EE83: 0.0% | EF83: 0.0% | EG83: 0.0% | EH83: 0.0% | EI83: 0.0% | EJ83: 0.0% | EK83: 0.0% | EL83: 0.0% | EM83: 0.0% | EN83: 0.0% | EO83: 0.0% | EP83: 0.0% | EQ83: 0.0% | ER83: 0.0% | ES83: 0.0% | ET83: 0.0% | EU83: 0.0% | EV83: 0.0% | EW83: 0.0% | EX83: 0.0% | EY83: 0.0% | EZ83: 0.0% | FA83: 0.0% | FB83: 0.0% | FC83: 0.0%
A84: 84 | G84: 0 | H84: Предполевые работы и проектирование | I84: Применяется процентное распределение переработки | J84: обратный порядок распределения учета расхода | M84: руб. | T84: 0 | Y84: обратный порядок процесса | AA84: 0 | AB84: 0 | AC84: 0 | AD84: 0 | AE84: 0 | AF84: 0 | AG84: 0 | AH84: 0 | AI84: 0 | AJ84: 0 | AK84: 0 | AL84: 0 | AM84: 0 | AN84: 0 | AO84: 0 | AP84: 0 | AQ84: 0 | AR84: 0 | AS84: 0 | AT84: 0 | AU84: 0 | AV84: 0 | AW84: 0 | AX84: 0 | AY84: 0 | AZ84: 0 | BA84: 0 | BB84: 0 | BC84: 0 | BD84: 0 | BE84: 0 | BF84: 0 | BG84: 0 | BH84: 0 | BI84: 0 | BJ84: 0 | BK84: 0 | BL84: 0 | BM84: 0 | BN84: 0 | BO84: 0 | BP84: 0 | BQ84: 0 | BR84: 0 | BS84: 0 | BT84: 0 | BU84: 0 | BV84: 0 | BW84: 0 | BX84: 0 | BY84: 0 | BZ84: 0 | CA84: 0 | CB84: 0 | CC84: 0 | CD84: 0 | CE84: 0 | CF84: 0 | CG84: 0 | CH84: 0 | CI84: 0 | CJ84: 0 | CK84: 0 | CL84: 0 | CM84: 0 | CN84: 0 | CO84: 0 | CP84: 0 | CQ84: 0 | CR84: 0 | CS84: 0 | CT84: 0 | CU84: 0 | CV84: 0 | CW84: 0 | CX84: 0 | CY84: 0 | CZ84: 0 | DA84: 0 | DB84: 0 | DC84: 0 | DD84: 0 | DE84: 0 | DF84: 0 | DG84: 0 | DH84: 245,700 | DI84: 245,700 | DJ84: 245,700 | DK84: 245,700 | DL84: 245,700 | DM84: 245,700 | DN84: 245,700 | DO84: 245,700 | DP84: 245,700 | DQ84: 245,700 | DR84: 245,700 | DS84: 245,700 | DT84: 245,700 | DU84: 245,700 | DV84: 245,700 | DW84: 245,700 | DX84: 245,700 | DY84: 245,700 | DZ84: 245,700 | EA84: 245,700 | EB84: 245,700 | EC84: 245,700 | ED84: 245,700 | EE84: 245,700 | EF84: 245,700 | EG84: 245,700 | EH84: 245,700 | EI84: 245,700 | EJ84: 245,700 | EK84: 245,700 | EL84: 245,700 | EM84: 245,700 | EN84: 245,700 | EO84: 245,700 | EP84: 230,958 | EQ84: 216,216 | ER84: 201,474 | ES84: 186,732 | ET84: 171,990 | EU84: 157,248 | EV84: 142,506 | EW84: 127,764 | EX84: 113,022 | EY84: 98,280 | EZ84: 0 | FA84: 0 | FB84: 0 | FC84: 0
A85: 85 | L85: пустая строка
A86: 86
A87: 87 | G87: 0 | H87: Полевые работы | L87: 1 | M87: руб. | O87: 2 | Q87: начисление | X87: 60,000,000 | AA87: 0 | AB87: 5,000,000 | AC87: 10,000,000 | AD87: 5,000,000 | AE87: 0 | AF87: 0 | AG87: 5,000,000 | AH87: 5,000,000 | AI87: 0 | AJ87: 0 | AK87: 0 | AL87: 0 | AM87: 0 | AN87: 5,000,000 | AO87: 5,000,000 | AP87: 0 | AQ87: 0 | AR87: 0 | AS87: 0 | AT87: 0 | AU87: 0 | AV87: 0 | AW87: 0 | AX87: 5,000,000 | AY87: 5,000,000 | AZ87: 0 | BA87: 0 | BB87: 0 | BC87: 0 | BD87: 0 | BE87: 0 | BF87: 0 | BG87: 0 | BH87: 0 | BI87: 0 | BJ87: 0 | BK87: 5,000,000 | BL87: 5,000,000 | BM87: 0 | BN87: 0 | BO87: 0 | BP87: 0 | BQ87: 0 | BR87: 0 | BS87: 0 | BT87: 0 | BU87: 0 | BV87: 0 | BW87: 0 | BX87: 0 | BY87: 0 | BZ87: 0 | CA87: 0 | CB87: 0 | CC87: 0 | CD87: 0 | CE87: 0 | CF87: 0 | CG87: 0 | CH87: 0 | CI87: 0 | CJ87: 0 | CK87: 0 | CL87: 0 | CM87: 0 | CN87: 0 | CO87: 0 | CP87: 0 | CQ87: 0 | CR87: 0 | CS87: 0 | CT87: 0 | CU87: 0 | CV87: 0 | CW87: 0 | CX87: 0 | CY87: 0 | CZ87: 0 | DA87: 0 | DB87: 0 | DC87: 0 | DD87: 0 | DE87: 0 | DF87: 0 | DG87: 0 | DH87: 0 | DI87: 0 | DJ87: 0 | DK87: 0 | DL87: 0 | DM87: 0 | DN87: 0 | DO87: 0 | DP87: 0 | DQ87: 0 | DR87: 0 | DS87: 0 | DT87: 0 | DU87: 0 | DV87: 0 | DW87: 0 | DX87: 0 | DY87: 0 | DZ87: 0 | EA87: 0 | EB87: 0 | EC87: 0 | ED87: 0 | EE87: 0 | EF87: 0 | EG87: 0 | EH87: 0 | EI87: 0 | EJ87: 0 | EK87: 0 | EL87: 0 | EM87: 0 | EN87: 0 | EO87: 0 | EP87: 0 | EQ87: 0 | ER87: 0 | ES87: 0 | ET87: 0 | EU87: 0 | EV87: 0 | EW87: 0 | EX87: 0 | EY87: 0 | EZ87: 0 | FA87: 0 | FB87: 0 | FC87: 0
A88: 88 | G88: 0 | H88: Полевые работы | I88: Распределение расхода для одного запуска | M88: руб. | Q88: процесс | T88: 0 | U88: 0 | X88: 10,000,000 | AA88: 0 | AB88: 5,000,000 | AC88: 5,000,000 | AD88: 0 | AE88: 0 | AF88: 0 | AG88: 0 | AH88: 0 | AI88: 0 | AJ88: 0 | AK88: 0 | AL88: 0 | AM88: 0 | AN88: 0 | AO88: 0 | AP88: 0 | AQ88: 0 | AR88: 0 | AS88: 0 | AT88: 0 | AU88: 0 | AV88: 0 | AW88: 0 | AX88: 0 | AY88: 0 | AZ88: 0 | BA88: 0 | BB88: 0 | BC88: 0 | BD88: 0 | BE88: 0 | BF88: 0 | BG88: 0 | BH88: 0 | BI88: 0 | BJ88: 0 | BK88: 0 | BL88: 0 | BM88: 0 | BN88: 0 | BO88: 0 | BP88: 0 | BQ88: 0 | BR88: 0 | BS88: 0 | BT88: 0 | BU88: 0 | BV88: 0 | BW88: 0 | BX88: 0 | BY88: 0 | BZ88: 0 | CA88: 0 | CB88: 0 | CC88: 0 | CD88: 0 | CE88: 0 | CF88: 0 | CG88: 0 | CH88: 0 | CI88: 0 | CJ88: 0 | CK88: 0 | CL88: 0 | CM88: 0 | CN88: 0 | CO88: 0 | CP88: 0 | CQ88: 0 | CR88: 0 | CS88: 0 | CT88: 0 | CU88: 0 | CV88: 0 | CW88: 0 | CX88: 0 | CY88: 0 | CZ88: 0 | DA88: 0 | DB88: 0 | DC88: 0 | DD88: 0 | DE88: 0 | DF88: 0 | DG88: 0 | DH88: 0 | DI88: 0 | DJ88: 0 | DK88: 0 | DL88: 0 | DM88: 0 | DN88: 0 | DO88: 0 | DP88: 0 | DQ88: 0 | DR88: 0 | DS88: 0 | DT88: 0 | DU88: 0 | DV88: 0 | DW88: 0 | DX88: 0 | DY88: 0 | DZ88: 0 | EA88: 0 | EB88: 0 | EC88: 0 | ED88: 0 | EE88: 0 | EF88: 0 | EG88: 0 | EH88: 0 | EI88: 0 | EJ88: 0 | EK88: 0 | EL88: 0 | EM88: 0 | EN88: 0 | EO88: 0 | EP88: 0 | EQ88: 0 | ER88: 0 | ES88: 0 | ET88: 0 | EU88: 0 | EV88: 0 | EW88: 0 | EX88: 0 | EY88: 0 | EZ88: 0 | FA88: 0 | FB88: 0 | FC88: 0
A89: 89 | G89: 0 | H89: Полевые работы | I89: Распределение расхода для одного запуска | J89: Сумма расхода для одного запуска по этой статье | M89: руб. | P89: M | Q89: 10,000,000 | S89: 0 | Y89: обратное распределение расхода | AA89: 0 | AB89: 0 | AC89: 0 | AD89: 0 | AE89: 0 | AF89: 0 | AG89: 0 | AH89: 0 | AI89: 0 | AJ89: 0 | AK89: 0 | AL89: 0 | AM89: 0 | AN89: 0 | AO89: 0 | AP89: 0 | AQ89: 0 | AR89: 0 | AS89: 0 | AT89: 0 | AU89: 0 | AV89: 0 | AW89: 0 | AX89: 0 | AY89: 0 | AZ89: 0 | BA89: 0 | BB89: 0 | BC89: 0 | BD89: 0 | BE89: 0 | BF89: 0 | BG89: 0 | BH89: 0 | BI89: 0 | BJ89: 0 | BK89: 0 | BL89: 0 | BM89: 0 | BN89: 0 | BO89: 0 | BP89: 0 | BQ89: 0 | BR89: 0 | BS89: 0 | BT89: 0 | BU89: 0 | BV89: 0 | BW89: 0 | BX89: 0 | BY89: 0 | BZ89: 0 | CA89: 0 | CB89: 0 | CC89: 0 | CD89: 0 | CE89: 0 | CF89: 0 | CG89: 0 | CH89: 0 | CI89: 0 | CJ89: 0 | CK89: 0 | CL89: 0 | CM89: 0 | CN89: 0 | CO89: 0 | CP89: 0 | CQ89: 0 | CR89: 0 | CS89: 0 | CT89: 0 | CU89: 0 | CV89: 0 | CW89: 0 | CX89: 0 | CY89: 0 | CZ89: 0 | DA89: 0 | DB89: 0 | DC89: 0 | DD89: 0 | DE89: 0 | DF89: 0 | DG89: 0 | DH89: 0 | DI89: 0 | DJ89: 0 | DK89: 0 | DL89: 0 | DM89: 0 | DN89: 0 | DO89: 0 | DP89: 0 | DQ89: 0 | DR89: 0 | DS89: 0 | DT89: 0 | DU89: 0 | DV89: 0 | DW89: 0 | DX89: 0 | DY89: 0 | DZ89: 0 | EA89: 0 | EB89: 0 | EC89: 0 | ED89: 0 | EE89: 0 | EF89: 0 | EG89: 0 | EH89: 0 | EI89: 0 | EJ89: 0 | EK89: 0 | EL89: 0 | EM89: 0 | EN89: 0 | EO89: 0 | EP89: 0 | EQ89: 0 | ER89: 0 | ES89: 0 | ET89: 0 | EU89: 0 | EV89: 0 | EW89: 0 | EX89: 0 | EY89: 0 | EZ89: 0 | FA89: 5,000,000 | FB89: 5,000,000 | FC89: 0
A90: 90 | G90: 0 | H90: Полевые работы | I90: Распределение расхода для одного запуска | J90: Процентное распределение расхода по периодам | M90: % | T90: 0 | X90: 100.00% | Y90: M | AA90: 0.00% | AB90: 50.00% | AC90: 50.00% | AD90: 0.00% | AE90: 0.00% | AF90: 0.00% | AG90: 0.00% | AH90: 0.00% | AI90: 0.00% | AJ90: 0.00% | AK90: 0.00% | AL90: 0.00% | AM90: 0.00% | AN90: 0.00% | AO90: 0.00% | AP90: 0.00% | AQ90: 0.00% | AR90: 0.00% | AS90: 0.00% | AT90: 0.00% | AU90: 0.00% | AV90: 0.00% | AW90: 0.00% | AX90: 0.00% | AY90: 0.00% | AZ90: 0.00% | BA90: 0.00% | BB90: 0.00% | BC90: 0.00% | BD90: 0.00% | BE90: 0.00% | BF90: 0.00% | BG90: 0.00% | BH90: 0.00% | BI90: 0.00% | BJ90: 0.00% | BK90: 0.00% | BL90: 0.00% | BM90: 0.00% | BN90: 0.00% | BO90: 0.00% | BP90: 0.00% | BQ90: 0.00% | BR90: 0.00% | BS90: 0.00% | BT90: 0.00% | BU90: 0.00% | BV90: 0.00% | BW90: 0.00% | BX90: 0.00% | BY90: 0.00% | BZ90: 0.00% | CA90: 0.00% | CB90: 0.00% | CC90: 0.00% | CD90: 0.00% | CE90: 0.00% | CF90: 0.00% | CG90: 0.00% | CH90: 0.00% | CI90: 0.00% | CJ90: 0.00% | CK90: 0.00% | CL90: 0.00% | CM90: 0.00% | CN90: 0.00% | CO90: 0.00% | CP90: 0.00% | CQ90: 0.00% | CR90: 0.00% | CS90: 0.00% | CT90: 0.00% | CU90: 0.00% | CV90: 0.00% | CW90: 0.00% | CX90: 0.00% | CY90: 0.00% | CZ90: 0.00% | DA90: 0.00% | DB90: 0.00% | DC90: 0.00% | DD90: 0.00% | DE90: 0.00% | DF90: 0.00% | DG90: 0.00% | DH90: 0.00% | DI90: 0.00% | DJ90: 0.00% | DK90: 0.00% | DL90: 0.00% | DM90: 0.00% | DN90: 0.00% | DO90: 0.00% | DP90: 0.00% | DQ90: 0.00% | DR90: 0.00% | DS90: 0.00% | DT90: 0.00% | DU90: 0.00% | DV90: 0.00% | DW90: 0.00% | DX90: 0.00% | DY90: 0.00% | DZ90: 0.00% | EA90: 0.00% | EB90: 0.00% | EC90: 0.00% | ED90: 0.00% | EE90: 0.00% | EF90: 0.00% | EG90: 0.00% | EH90: 0.00% | EI90: 0.00% | EJ90: 0.00% | EK90: 0.00% | EL90: 0.00% | EM90: 0.00% | EN90: 0.00% | EO90: 0.00% | EP90: 0.00% | EQ90: 0.00% | ER90: 0.00% | ES90: 0.00% | ET90: 0.00% | EU90: 0.00% | EV90: 0.00% | EW90: 0.00% | EX90: 0.00% | EY90: 0.00% | EZ90: 0.00% | FA90: 0.00% | FB90: 0.00% | FC90: 0.00%
A91: 91
A92: 92 | G92: 0 | H92: Полевые работы | L92: 1 | M92: руб. | Q92: оплата | X92: 60,000,000 | AA92: 500,000 | AB92: 2,000,000 | AC92: 6,000,000 | AD92: 8,000,000 | AE92: 3,500,000 | AF92: 500,000 | AG92: 1,500,000 | AH92: 4,500,000 | AI92: 3,500,000 | AJ92: 0 | AK92: 0 | AL92: 0 | AM92: 500,000 | AN92: 1,500,000 | AO92: 4,500,000 | AP92: 3,500,000 | AQ92: 0 | AR92: 0 | AS92: 0 | AT92: 0 | AU92: 0 | AV92: 0 | AW92: 500,000 | AX92: 1,500,000 | AY92: 4,500,000 | AZ92: 3,500,000 | BA92: 0 | BB92: 0 | BC92: 0 | BD92: 0 | BE92: 0 | BF92: 0 | BG92: 0 | BH92: 0 | BI92: 0 | BJ92: 500,000 | BK92: 1,500,000 | BL92: 4,500,000 | BM92: 3,500,000 | BN92: 0 | BO92: 0 | BP92: 0 | BQ92: 0 | BR92: 0 | BS92: 0 | BT92: 0 | BU92: 0 | BV92: 0 | BW92: 0 | BX92: 0 | BY92: 0 | BZ92: 0 | CA92: 0 | CB92: 0 | CC92: 0 | CD92: 0 | CE92: 0 | CF92: 0 | CG92: 0 | CH92: 0 | CI92: 0 | CJ92: 0 | CK92: 0 | CL92: 0 | CM92: 0 | CN92: 0 | CO92: 0 | CP92: 0 | CQ92: 0 | CR92: 0 | CS92: 0 | CT92: 0 | CU92: 0 | CV92: 0 | CW92: 0 | CX92: 0 | CY92: 0 | CZ92: 0 | DA92: 0 | DB92: 0 | DC92: 0 | DD92: 0 | DE92: 0 | DF92: 0 | DG92: 0 | DH92: 0 | DI92: 0 | DJ92: 0 | DK92: 0 | DL92: 0 | DM92: 0 | DN92: 0 | DO92: 0 | DP92: 0 | DQ92: 0 | DR92: 0 | DS92: 0 | DT92: 0 | DU92: 0 | DV92: 0 | DW92: 0 | DX92: 0 | DY92: 0 | DZ92: 0 | EA92: 0 | EB92: 0 | EC92: 0 | ED92: 0 | EE92: 0 | EF92: 0 | EG92: 0 | EH92: 0 | EI92: 0 | EJ92: 0 | EK92: 0 | EL92: 0 | EM92: 0 | EN92: 0 | EO92: 0 | EP92: 0 | EQ92: 0 | ER92: 0 | ES92: 0 | ET92: 0 | EU92: 0 | EV92: 0 | EW92: 0 | EX92: 0 | EY92: 0 | EZ92: 0 | FA92: 0 | FB92: 0 | FC92: 0
A93: 93 | G93: 0 | H93: Полевые работы | I93: Задаем через указание % предоплаты и сроков
A94: 94 | G94: 0 | H94: Полевые работы | I94: Задаем через указание % предоплаты и сроков | J94: Размер предоплаты | M94: % | P94: * | Q94: 30.0% | S94: 0
A95: 95 | G95: 0 | H95: Полевые работы | I95: Задаем через указание % предоплаты и сроков | J95: Период оборачиваемости предоплаты (срок) | M95: кол-во дней | P95: * | Q95: 10 | S95: 0
A96: 96 | G96: 0 | H96: Полевые работы | I96: Задаем через указание % предоплаты и сроков | J96: расчет в количестве периодов | M96: кол-во периодов | Q96: 0.3 | S96: 0 | T96: 0
A97: 97 | G97: 0 | H97: Полевые работы | I97: Задаем через указание % предоплаты и сроков | J97: Размер доплаты | M97: % | Q97: 70.0% | S97: 0 | T97: 0
A98: 98 | G98: 0 | H98: Полевые работы | I98: Задаем через указание % предоплаты и сроков | J98: Период оборачиваемости доплат (срок) | M98: кол-во дней | P98: * | Q98: 30 | S98: 0
A99: 99 | G99: 0 | H99: Полевые работы | I99: Задаем через указание % предоплаты и сроков | J99: расчет в количестве периодов | M99: кол-во периодов | Q99: 1.0 | S99: 0 | T99: 0
A100: 100
A101: 101 | G101: 0 | H101: Полевые работы | L101: 1 | M101: руб. | Q101: учет | X101: 41,587,224 | AA101: 0 | AB101: 0 | AC101: 0 | AD101: 0 | AE101: 98,280 | AF101: 211,302 | AG101: 240,786 | AH101: 270,270 | AI101: 299,754 | AJ101: 427,518 | AK101: 471,744 | AL101: 515,971 | AM101: 560,197 | AN101: 604,423 | AO101: 648,649 | AP101: 678,133 | AQ101: 791,155 | AR101: 820,639 | AS101: 850,123 | AT101: 879,607 | AU101: 894,349 | AV101: 909,091 | AW101: 923,833 | AX101: 938,575 | AY101: 953,317 | AZ101: 968,059 | BA101: 1,081,081 | BB101: 1,095,823 | BC101: 1,110,565 | BD101: 1,125,307 | BE101: 1,140,049 | BF101: 1,154,791 | BG101: 1,169,533 | BH101: 1,184,275 | BI101: 1,199,017 | BJ101: 1,213,759 | BK101: 1,228,501 | BL101: 1,228,501 | BM101: 1,228,501 | BN101: 1,326,781 | BO101: 1,341,523 | BP101: 1,356,265 | BQ101: 1,371,007 | BR101: 1,385,749 | BS101: 1,400,491 | BT101: 1,415,233 | BU101: 1,429,975 | BV101: 1,444,717 | BW101: 0 | BX101: 0 | BY101: 0 | BZ101: 0 | CA101: 0 | CB101: 0 | CC101: 0 | CD101: 0 | CE101: 0 | CF101: 0 | CG101: 0 | CH101: 0 | CI101: 0 | CJ101: 0 | CK101: 0 | CL101: 0 | CM101: 0 | CN101: 0 | CO101: 0 | CP101: 0 | CQ101: 0 | CR101: 0 | CS101: 0 | CT101: 0 | CU101: 0 | CV101: 0 | CW101: 0 | CX101: 0 | CY101: 0 | CZ101: 0 | DA101: 0 | DB101: 0 | DC101: 0 | DD101: 0 | DE101: 0 | DF101: 0 | DG101: 0 | DH101: 0 | DI101: 0 | DJ101: 0 | DK101: 0 | DL101: 0 | DM101: 0 | DN101: 0 | DO101: 0 | DP101: 0 | DQ101: 0 | DR101: 0 | DS101: 0 | DT101: 0 | DU101: 0 | DV101: 0 | DW101: 0 | DX101: 0 | DY101: 0 | DZ101: 0 | EA101: 0 | EB101: 0 | EC101: 0 | ED101: 0 | EE101: 0 | EF101: 0 | EG101: 0 | EH101: 0 | EI101: 0 | EJ101: 0 | EK101: 0 | EL101: 0 | EM101: 0 | EN101: 0 | EO101: 0 | EP101: 0 | EQ101: 0 | ER101: 0 | ES101: 0 | ET101: 0 | EU101: 0 | EV101: 0 | EW101: 0 | EX101: 0 | EY101: 0 | EZ101: 0 | FA101: 0 | FB101: 0 | FC101: 0
A102: 102 | G102: 0 | H102: Полевые работы | I102: Применяется процентное распределение переработки
A103: 103 | G103: 0 | H103: Полевые работы | I103: Применяется процентное распределение переработки | J103: %-ное распределение учета расходов | M103: % | Q103: процесс | T103: 0 | X103: 100.0% | AA103: 0.0% | AB103: 0.0% | AC103: 0.0% | AD103: 0.0% | AE103: 1.0% | AF103: 1.1% | AG103: 1.3% | AH103: 1.4% | AI103: 1.6% | AJ103: 1.7% | AK103: 1.9% | AL103: 2.0% | AM103: 2.2% | AN103: 2.3% | AO103: 2.5% | AP103: 2.5% | AQ103: 2.5% | AR103: 2.5% | AS103: 2.5% | AT103: 2.5% | AU103: 2.5% | AV103: 2.5% | AW103: 2.5% | AX103: 2.5% | AY103: 2.5% | AZ103: 2.5% | BA103: 2.5% | BB103: 2.5% | BC103: 2.5% | BD103: 2.5% | BE103: 2.5% | BF103: 2.5% | BG103: 2.5% | BH103: 2.5% | BI103: 2.5% | BJ103: 2.5% | BK103: 2.5% | BL103: 2.5% | BM103: 2.5% | BN103: 2.5% | BO103: 2.5% | BP103: 2.5% | BQ103: 2.5% | BR103: 2.5% | BS103: 2.5% | BT103: 2.5% | BU103: 2.5% | BV103: 2.5% | BW103: 0.0% | BX103: 0.0% | BY103: 0.0% | BZ103: 0.0% | CA103: 0.0% | CB103: 0.0% | CC103: 0.0% | CD103: 0.0% | CE103: 0.0% | CF103: 0.0% | CG103: 0.0% | CH103: 0.0% | CI103: 0.0% | CJ103: 0.0% | CK103: 0.0% | CL103: 0.0% | CM103: 0.0% | CN103: 0.0% | CO103: 0.0% | CP103: 0.0% | CQ103: 0.0% | CR103: 0.0% | CS103: 0.0% | CT103: 0.0% | CU103: 0.0% | CV103: 0.0% | CW103: 0.0% | CX103: 0.0% | CY103: 0.0% | CZ103: 0.0% | DA103: 0.0% | DB103: 0.0% | DC103: 0.0% | DD103: 0.0% | DE103: 0.0% | DF103: 0.0% | DG103: 0.0% | DH103: 0.0% | DI103: 0.0% | DJ103: 0.0% | DK103: 0.0% | DL103: 0.0% | DM103: 0.0% | DN103: 0.0% | DO103: 0.0% | DP103: 0.0% | DQ103: 0.0% | DR103: 0.0% | DS103: 0.0% | DT103: 0.0% | DU103: 0.0% | DV103: 0.0% | DW103: 0.0% | DX103: 0.0% | DY103: 0.0% | DZ103: 0.0% | EA103: 0.0% | EB103: 0.0% | EC103: 0.0% | ED103: 0.0% | EE103: 0.0% | EF103: 0.0% | EG103: 0.0% | EH103: 0.0% | EI103: 0.0% | EJ103: 0.0% | EK103: 0.0% | EL103: 0.0% | EM103: 0.0% | EN103: 0.0% | EO103: 0.0% | EP103: 0.0% | EQ103: 0.0% | ER103: 0.0% | ES103: 0.0% | ET103: 0.0% | EU103: 0.0% | EV103: 0.0% | EW103: 0.0% | EX103: 0.0% | EY103: 0.0% | EZ103: 0.0% | FA103: 0.0% | FB103: 0.0% | FC103: 0.0%
A104: 104 | G104: 0 | H104: Полевые работы | I104: Применяется процентное распределение переработки | J104: обратный порядок распределения учета расхода | M104: руб. | T104: 0 | Y104: обратный порядок процесса | AA104: 0 | AB104: 0 | AC104: 0 | AD104: 0 | AE104: 0 | AF104: 0 | AG104: 0 | AH104: 0 | AI104: 0 | AJ104: 0 | AK104: 0 | AL104: 0 | AM104: 0 | AN104: 0 | AO104: 0 | AP104: 0 | AQ104: 0 | AR104: 0 | AS104: 0 | AT104: 0 | AU104: 0 | AV104: 0 | AW104: 0 | AX104: 0 | AY104: 0 | AZ104: 0 | BA104: 0 | BB104: 0 | BC104: 0 | BD104: 0 | BE104: 0 | BF104: 0 | BG104: 0 | BH104: 0 | BI104: 0 | BJ104: 0 | BK104: 0 | BL104: 0 | BM104: 0 | BN104: 0 | BO104: 0 | BP104: 0 | BQ104: 0 | BR104: 0 | BS104: 0 | BT104: 0 | BU104: 0 | BV104: 0 | BW104: 0 | BX104: 0 | BY104: 0 | BZ104: 0 | CA104: 0 | CB104: 0 | CC104: 0 | CD104: 0 | CE104: 0 | CF104: 0 | CG104: 0 | CH104: 0 | CI104: 0 | CJ104: 0 | CK104: 0 | CL104: 0 | CM104: 0 | CN104: 0 | CO104: 0 | CP104: 0 | CQ104: 0 | CR104: 0 | CS104: 0 | CT104: 0 | CU104: 0 | CV104: 0 | CW104: 0 | CX104: 0 | CY104: 0 | CZ104: 0 | DA104: 0 | DB104: 0 | DC104: 0 | DD104: 0 | DE104: 0 | DF104: 0 | DG104: 0 | DH104: 245,700 | DI104: 245,700 | DJ104: 245,700 | DK104: 245,700 | DL104: 245,700 | DM104: 245,700 | DN104: 245,700 | DO104: 245,700 | DP104: 245,700 | DQ104: 245,700 | DR104: 245,700 | DS104: 245,700 | DT104: 245,700 | DU104: 245,700 | DV104: 245,700 | DW104: 245,700 | DX104: 245,700 | DY104: 245,700 | DZ104: 245,700 | EA104: 245,700 | EB104: 245,700 | EC104: 245,700 | ED104: 245,700 | EE104: 245,700 | EF104: 245,700 | EG104: 245,700 | EH104: 245,700 | EI104: 245,700 | EJ104: 245,700 | EK104: 245,700 | EL104: 245,700 | EM104: 245,700 | EN104: 245,700 | EO104: 245,700 | EP104: 230,958 | EQ104: 216,216 | ER104: 201,474 | ES104: 186,732 | ET104: 171,990 | EU104: 157,248 | EV104: 142,506 | EW104: 127,764 | EX104: 113,022 | EY104: 98,280 | EZ104: 0 | FA104: 0 | FB104: 0 | FC104: 0
A105: 105 | L105: пустая строка
A106: 106
A107: 107 | G107: 0 | H107: Организация и ликвидация полевых работ | L107: 1 | M107: руб. | O107: 3 | Q107: начисление | X107: 60,000,000 | AA107: 0 | AB107: 0 | AC107: 0 | AD107: 10,000,000 | AE107: 10,000,000 | AF107: 0 | AG107: 0 | AH107: 0 | AI107: 10,000,000 | AJ107: 0 | AK107: 0 | AL107: 0 | AM107: 0 | AN107: 0 | AO107: 0 | AP107: 10,000,000 | AQ107: 0 | AR107: 0 | AS107: 0 | AT107: 0 | AU107: 0 | AV107: 0 | AW107: 0 | AX107: 0 | AY107: 0 | AZ107: 10,000,000 | BA107: 0 | BB107: 0 | BC107: 0 | BD107: 0 | BE107: 0 | BF107: 0 | BG107: 0 | BH107: 0 | BI107: 0 | BJ107: 0 | BK107: 0 | BL107: 0 | BM107: 10,000,000 | BN107: 0 | BO107: 0 | BP107: 0 | BQ107: 0 | BR107: 0 | BS107: 0 | BT107: 0 | BU107: 0 | BV107: 0 | BW107: 0 | BX107: 0 | BY107: 0 | BZ107: 0 | CA107: 0 | CB107: 0 | CC107: 0 | CD107: 0 | CE107: 0 | CF107: 0 | CG107: 0 | CH107: 0 | CI107: 0 | CJ107: 0 | CK107: 0 | CL107: 0 | CM107: 0 | CN107: 0 | CO107: 0 | CP107: 0 | CQ107: 0 | CR107: 0 | CS107: 0 | CT107: 0 | CU107: 0 | CV107: 0 | CW107: 0 | CX107: 0 | CY107: 0 | CZ107: 0 | DA107: 0 | DB107: 0 | DC107: 0 | DD107: 0 | DE107: 0 | DF107: 0 | DG107: 0 | DH107: 0 | DI107: 0 | DJ107: 0 | DK107: 0 | DL107: 0 | DM107: 0 | DN107: 0 | DO107: 0 | DP107: 0 | DQ107: 0 | DR107: 0 | DS107: 0 | DT107: 0 | DU107: 0 | DV107: 0 | DW107: 0 | DX107: 0 | DY107: 0 | DZ107: 0 | EA107: 0 | EB107: 0 | EC107: 0 | ED107: 0 | EE107: 0 | EF107: 0 | EG107: 0 | EH107: 0 | EI107: 0 | EJ107: 0 | EK107: 0 | EL107: 0 | EM107: 0 | EN107: 0 | EO107: 0 | EP107: 0 | EQ107: 0 | ER107: 0 | ES107: 0 | ET107: 0 | EU107: 0 | EV107: 0 | EW107: 0 | EX107: 0 | EY107: 0 | EZ107: 0 | FA107: 0 | FB107: 0 | FC107: 0
A108: 108 | G108: 0 | H108: Организация и ликвидация полевых работ | I108: Распределение расхода для одного запуска | M108: руб. | Q108: процесс | T108: 0 | U108: 0 | X108: 10,000,000 | AA108: 0 | AB108: 0 | AC108: 0 | AD108: 10,000,000 | AE108: 0 | AF108: 0 | AG108: 0 | AH108: 0 | AI108: 0 | AJ108: 0 | AK108: 0 | AL108: 0 | AM108: 0 | AN108: 0 | AO108: 0 | AP108: 0 | AQ108: 0 | AR108: 0 | AS108: 0 | AT108: 0 | AU108: 0 | AV108: 0 | AW108: 0 | AX108: 0 | AY108: 0 | AZ108: 0 | BA108: 0 | BB108: 0 | BC108: 0 | BD108: 0 | BE108: 0 | BF108: 0 | BG108: 0 | BH108: 0 | BI108: 0 | BJ108: 0 | BK108: 0 | BL108: 0 | BM108: 0 | BN108: 0 | BO108: 0 | BP108: 0 | BQ108: 0 | BR108: 0 | BS108: 0 | BT108: 0 | BU108: 0 | BV108: 0 | BW108: 0 | BX108: 0 | BY108: 0 | BZ108: 0 | CA108: 0 | CB108: 0 | CC108: 0 | CD108: 0 | CE108: 0 | CF108: 0 | CG108: 0 | CH108: 0 | CI108: 0 | CJ108: 0 | CK108: 0 | CL108: 0 | CM108: 0 | CN108: 0 | CO108: 0 | CP108: 0 | CQ108: 0 | CR108: 0 | CS108: 0 | CT108: 0 | CU108: 0 | CV108: 0 | CW108: 0 | CX108: 0 | CY108: 0 | CZ108: 0 | DA108: 0 | DB108: 0 | DC108: 0 | DD108: 0 | DE108: 0 | DF108: 0 | DG108: 0 | DH108: 0 | DI108: 0 | DJ108: 0 | DK108: 0 | DL108: 0 | DM108: 0 | DN108: 0 | DO108: 0 | DP108: 0 | DQ108: 0 | DR108: 0 | DS108: 0 | DT108: 0 | DU108: 0 | DV108: 0 | DW108: 0 | DX108: 0 | DY108: 0 | DZ108: 0 | EA108: 0 | EB108: 0 | EC108: 0 | ED108: 0 | EE108: 0 | EF108: 0 | EG108: 0 | EH108: 0 | EI108: 0 | EJ108: 0 | EK108: 0 | EL108: 0 | EM108: 0 | EN108: 0 | EO108: 0 | EP108: 0 | EQ108: 0 | ER108: 0 | ES108: 0 | ET108: 0 | EU108: 0 | EV108: 0 | EW108: 0 | EX108: 0 | EY108: 0 | EZ108: 0 | FA108: 0 | FB108: 0 | FC108: 0
A109: 109 | G109: 0 | H109: Организация и ликвидация полевых работ | I109: Распределение расхода для одного запуска | J109: Сумма расхода для одного запуска по этой статье | M109: руб. | P109: M | Q109: 10,000,000 | S109: 0 | Y109: обратное распределение расхода | AA109: 0 | AB109: 0 | AC109: 0 | AD109: 0 | AE109: 0 | AF109: 0 | AG109: 0 | AH109: 0 | AI109: 0 | AJ109: 0 | AK109: 0 | AL109: 0 | AM109: 0 | AN109: 0 | AO109: 0 | AP109: 0 | AQ109: 0 | AR109: 0 | AS109: 0 | AT109: 0 | AU109: 0 | AV109: 0 | AW109: 0 | AX109: 0 | AY109: 0 | AZ109: 0 | BA109: 0 | BB109: 0 | BC109: 0 | BD109: 0 | BE109: 0 | BF109: 0 | BG109: 0 | BH109: 0 | BI109: 0 | BJ109: 0 | BK109: 0 | BL109: 0 | BM109: 0 | BN109: 0 | BO109: 0 | BP109: 0 | BQ109: 0 | BR109: 0 | BS109: 0 | BT109: 0 | BU109: 0 | BV109: 0 | BW109: 0 | BX109: 0 | BY109: 0 | BZ109: 0 | CA109: 0 | CB109: 0 | CC109: 0 | CD109: 0 | CE109: 0 | CF109: 0 | CG109: 0 | CH109: 0 | CI109: 0 | CJ109: 0 | CK109: 0 | CL109: 0 | CM109: 0 | CN109: 0 | CO109: 0 | CP109: 0 | CQ109: 0 | CR109: 0 | CS109: 0 | CT109: 0 | CU109: 0 | CV109: 0 | CW109: 0 | CX109: 0 | CY109: 0 | CZ109: 0 | DA109: 0 | DB109: 0 | DC109: 0 | DD109: 0 | DE109: 0 | DF109: 0 | DG109: 0 | DH109: 0 | DI109: 0 | DJ109: 0 | DK109: 0 | DL109: 0 | DM109: 0 | DN109: 0 | DO109: 0 | DP109: 0 | DQ109: 0 | DR109: 0 | DS109: 0 | DT109: 0 | DU109: 0 | DV109: 0 | DW109: 0 | DX109: 0 | DY109: 0 | DZ109: 0 | EA109: 0 | EB109: 0 | EC109: 0 | ED109: 0 | EE109: 0 | EF109: 0 | EG109: 0 | EH109: 0 | EI109: 0 | EJ109: 0 | EK109: 0 | EL109: 0 | EM109: 0 | EN109: 0 | EO109: 0 | EP109: 0 | EQ109: 0 | ER109: 0 | ES109: 0 | ET109: 0 | EU109: 0 | EV109: 0 | EW109: 0 | EX109: 0 | EY109: 0 | EZ109: 10,000,000 | FA109: 0 | FB109: 0 | FC109: 0
A110: 110 | G110: 0 | H110: Организация и ликвидация полевых работ | I110: Распределение расхода для одного запуска | J110: Процентное распределение расхода по периодам | M110: % | T110: 0 | X110: 100.00% | Y110: M | AA110: 0.00% | AB110: 0.00% | AC110: 0.00% | AD110: 100.00% | AE110: 0.00% | AF110: 0.00% | AG110: 0.00% | AH110: 0.00% | AI110: 0.00% | AJ110: 0.00% | AK110: 0.00% | AL110: 0.00% | AM110: 0.00% | AN110: 0.00% | AO110: 0.00% | AP110: 0.00% | AQ110: 0.00% | AR110: 0.00% | AS110: 0.00% | AT110: 0.00% | AU110: 0.00% | AV110: 0.00% | AW110: 0.00% | AX110: 0.00% | AY110: 0.00% | AZ110: 0.00% | BA110: 0.00% | BB110: 0.00% | BC110: 0.00% | BD110: 0.00% | BE110: 0.00% | BF110: 0.00% | BG110: 0.00% | BH110: 0.00% | BI110: 0.00% | BJ110: 0.00% | BK110: 0.00% | BL110: 0.00% | BM110: 0.00% | BN110: 0.00% | BO110: 0.00% | BP110: 0.00% | BQ110: 0.00% | BR110: 0.00% | BS110: 0.00% | BT110: 0.00% | BU110: 0.00% | BV110: 0.00% | BW110: 0.00% | BX110: 0.00% | BY110: 0.00% | BZ110: 0.00% | CA110: 0.00% | CB110: 0.00% | CC110: 0.00% | CD110: 0.00% | CE110: 0.00% | CF110: 0.00% | CG110: 0.00% | CH110: 0.00% | CI110: 0.00% | CJ110: 0.00% | CK110: 0.00% | CL110: 0.00% | CM110: 0.00% | CN110: 0.00% | CO110: 0.00% | CP110: 0.00% | CQ110: 0.00% | CR110: 0.00% | CS110: 0.00% | CT110: 0.00% | CU110: 0.00% | CV110: 0.00% | CW110: 0.00% | CX110: 0.00% | CY110: 0.00% | CZ110: 0.00% | DA110: 0.00% | DB110: 0.00% | DC110: 0.00% | DD110: 0.00% | DE110: 0.00% | DF110: 0.00% | DG110: 0.00% | DH110: 0.00% | DI110: 0.00% | DJ110: 0.00% | DK110: 0.00% | DL110: 0.00% | DM110: 0.00% | DN110: 0.00% | DO110: 0.00% | DP110: 0.00% | DQ110: 0.00% | DR110: 0.00% | DS110: 0.00% | DT110: 0.00% | DU110: 0.00% | DV110: 0.00% | DW110: 0.00% | DX110: 0.00% | DY110: 0.00% | DZ110: 0.00% | EA110: 0.00% | EB110: 0.00% | EC110: 0.00% | ED110: 0.00% | EE110: 0.00% | EF110: 0.00% | EG110: 0.00% | EH110: 0.00% | EI110: 0.00% | EJ110: 0.00% | EK110: 0.00% | EL110: 0.00% | EM110: 0.00% | EN110: 0.00% | EO110: 0.00% | EP110: 0.00% | EQ110: 0.00% | ER110: 0.00% | ES110: 0.00% | ET110: 0.00% | EU110: 0.00% | EV110: 0.00% | EW110: 0.00% | EX110: 0.00% | EY110: 0.00% | EZ110: 0.00% | FA110: 0.00% | FB110: 0.00% | FC110: 0.00%
A111: 111
A112: 112 | G112: 0 | H112: Организация и ликвидация полевых работ | L112: 1 | M112: руб. | Q112: оплата | X112: 60,000,000 | AA112: 0 | AB112: 0 | AC112: 1,000,000 | AD112: 3,000,000 | AE112: 9,000,000 | AF112: 7,000,000 | AG112: 0 | AH112: 1,000,000 | AI112: 2,000,000 | AJ112: 7,000,000 | AK112: 0 | AL112: 0 | AM112: 0 | AN112: 0 | AO112: 1,000,000 | AP112: 2,000,000 | AQ112: 7,000,000 | AR112: 0 | AS112: 0 | AT112: 0 | AU112: 0 | AV112: 0 | AW112: 0 | AX112: 0 | AY112: 1,000,000 | AZ112: 2,000,000 | BA112: 7,000,000 | BB112: 0 | BC112: 0 | BD112: 0 | BE112: 0 | BF112: 0 | BG112: 0 | BH112: 0 | BI112: 0 | BJ112: 0 | BK112: 0 | BL112: 1,000,000 | BM112: 2,000,000 | BN112: 7,000,000 | BO112: 0 | BP112: 0 | BQ112: 0 | BR112: 0 | BS112: 0 | BT112: 0 | BU112: 0 | BV112: 0 | BW112: 0 | BX112: 0 | BY112: 0 | BZ112: 0 | CA112: 0 | CB112: 0 | CC112: 0 | CD112: 0 | CE112: 0 | CF112: 0 | CG112: 0 | CH112: 0 | CI112: 0 | CJ112: 0 | CK112: 0 | CL112: 0 | CM112: 0 | CN112: 0 | CO112: 0 | CP112: 0 | CQ112: 0 | CR112: 0 | CS112: 0 | CT112: 0 | CU112: 0 | CV112: 0 | CW112: 0 | CX112: 0 | CY112: 0 | CZ112: 0 | DA112: 0 | DB112: 0 | DC112: 0 | DD112: 0 | DE112: 0 | DF112: 0 | DG112: 0 | DH112: 0 | DI112: 0 | DJ112: 0 | DK112: 0 | DL112: 0 | DM112: 0 | DN112: 0 | DO112: 0 | DP112: 0 | DQ112: 0 | DR112: 0 | DS112: 0 | DT112: 0 | DU112: 0 | DV112: 0 | DW112: 0 | DX112: 0 | DY112: 0 | DZ112: 0 | EA112: 0 | EB112: 0 | EC112: 0 | ED112: 0 | EE112: 0 | EF112: 0 | EG112: 0 | EH112: 0 | EI112: 0 | EJ112: 0 | EK112: 0 | EL112: 0 | EM112: 0 | EN112: 0 | EO112: 0 | EP112: 0 | EQ112: 0 | ER112: 0 | ES112: 0 | ET112: 0 | EU112: 0 | EV112: 0 | EW112: 0 | EX112: 0 | EY112: 0 | EZ112: 0 | FA112: 0 | FB112: 0 | FC112: 0
A113: 113 | G113: 0 | H113: Организация и ликвидация полевых работ | I113: Задаем через указание % предоплаты и сроков
A114: 114 | G114: 0 | H114: Организация и ликвидация полевых работ | I114: Задаем через указание % предоплаты и сроков | J114: Размер предоплаты | M114: % | P114: * | Q114: 30.0% | S114: 0
A115: 115 | G115: 0 | H115: Организация и ликвидация полевых работ | I115: Задаем через указание % предоплаты и сроков | J115: Период оборачиваемости предоплаты (срок) | M115: кол-во дней | P115: * | Q115: 10 | S115: 0
A116: 116 | G116: 0 | H116: Организация и ликвидация полевых работ | I116: Задаем через указание % предоплаты и сроков | J116: расчет в количестве периодов | M116: кол-во периодов | Q116: 0.3 | S116: 0 | T116: 0
A117: 117 | G117: 0 | H117: Организация и ликвидация полевых работ | I117: Задаем через указание % предоплаты и сроков | J117: Размер доплаты | M117: % | Q117: 70.0% | S117: 0 | T117: 0
A118: 118 | G118: 0 | H118: Организация и ликвидация полевых работ | I118: Задаем через указание % предоплаты и сроков | J118: Период оборачиваемости доплат (срок) | M118: кол-во дней | P118: * | Q118: 30 | S118: 0
A119: 119 | G119: 0 | H119: Организация и ликвидация полевых работ | I119: Задаем через указание % предоплаты и сроков | J119: расчет в количестве периодов | M119: кол-во периодов | Q119: 1.0 | S119: 0 | T119: 0
A120: 120
A121: 121 | G121: 0 | H121: Организация и ликвидация полевых работ | L121: 1 | M121: руб. | Q121: учет | X121: 41,587,224 | AA121: 0 | AB121: 0 | AC121: 0 | AD121: 0 | AE121: 98,280 | AF121: 211,302 | AG121: 240,786 | AH121: 270,270 | AI121: 299,754 | AJ121: 427,518 | AK121: 471,744 | AL121: 515,971 | AM121: 560,197 | AN121: 604,423 | AO121: 648,649 | AP121: 678,133 | AQ121: 791,155 | AR121: 820,639 | AS121: 850,123 | AT121: 879,607 | AU121: 894,349 | AV121: 909,091 | AW121: 923,833 | AX121: 938,575 | AY121: 953,317 | AZ121: 968,059 | BA121: 1,081,081 | BB121: 1,095,823 | BC121: 1,110,565 | BD121: 1,125,307 | BE121: 1,140,049 | BF121: 1,154,791 | BG121: 1,169,533 | BH121: 1,184,275 | BI121: 1,199,017 | BJ121: 1,213,759 | BK121: 1,228,501 | BL121: 1,228,501 | BM121: 1,228,501 | BN121: 1,326,781 | BO121: 1,341,523 | BP121: 1,356,265 | BQ121: 1,371,007 | BR121: 1,385,749 | BS121: 1,400,491 | BT121: 1,415,233 | BU121: 1,429,975 | BV121: 1,444,717 | BW121: 0 | BX121: 0 | BY121: 0 | BZ121: 0 | CA121: 0 | CB121: 0 | CC121: 0 | CD121: 0 | CE121: 0 | CF121: 0 | CG121: 0 | CH121: 0 | CI121: 0 | CJ121: 0 | CK121: 0 | CL121: 0 | CM121: 0 | CN121: 0 | CO121: 0 | CP121: 0 | CQ121: 0 | CR121: 0 | CS121: 0 | CT121: 0 | CU121: 0 | CV121: 0 | CW121: 0 | CX121: 0 | CY121: 0 | CZ121: 0 | DA121: 0 | DB121: 0 | DC121: 0 | DD121: 0 | DE121: 0 | DF121: 0 | DG121: 0 | DH121: 0 | DI121: 0 | DJ121: 0 | DK121: 0 | DL121: 0 | DM121: 0 | DN121: 0 | DO121: 0 | DP121: 0 | DQ121: 0 | DR121: 0 | DS121: 0 | DT121: 0 | DU121: 0 | DV121: 0 | DW121: 0 | DX121: 0 | DY121: 0 | DZ121: 0 | EA121: 0 | EB121: 0 | EC121: 0 | ED121: 0 | EE121: 0 | EF121: 0 | EG121: 0 | EH121: 0 | EI121: 0 | EJ121: 0 | EK121: 0 | EL121: 0 | EM121: 0 | EN121: 0 | EO121: 0 | EP121: 0 | EQ121: 0 | ER121: 0 | ES121: 0 | ET121: 0 | EU121: 0 | EV121: 0 | EW121: 0 | EX121: 0 | EY121: 0 | EZ121: 0 | FA121: 0 | FB121: 0 | FC121: 0
A122: 122 | G122: 0 | H122: Организация и ликвидация полевых работ | I122: Применяется процентное распределение переработки
A123: 123 | G123: 0 | H123: Организация и ликвидация полевых работ | I123: Применяется процентное распределение переработки | J123: %-ное распределение учета расходов | M123: % | Q123: процесс | T123: 0 | X123: 100.0% | AA123: 0.0% | AB123: 0.0% | AC123: 0.0% | AD123: 0.0% | AE123: 1.0% | AF123: 1.1% | AG123: 1.3% | AH123: 1.4% | AI123: 1.6% | AJ123: 1.7% | AK123: 1.9% | AL123: 2.0% | AM123: 2.2% | AN123: 2.3% | AO123: 2.5% | AP123: 2.5% | AQ123: 2.5% | AR123: 2.5% | AS123: 2.5% | AT123: 2.5% | AU123: 2.5% | AV123: 2.5% | AW123: 2.5% | AX123: 2.5% | AY123: 2.5% | AZ123: 2.5% | BA123: 2.5% | BB123: 2.5% | BC123: 2.5% | BD123: 2.5% | BE123: 2.5% | BF123: 2.5% | BG123: 2.5% | BH123: 2.5% | BI123: 2.5% | BJ123: 2.5% | BK123: 2.5% | BL123: 2.5% | BM123: 2.5% | BN123: 2.5% | BO123: 2.5% | BP123: 2.5% | BQ123: 2.5% | BR123: 2.5% | BS123: 2.5% | BT123: 2.5% | BU123: 2.5% | BV123: 2.5% | BW123: 0.0% | BX123: 0.0% | BY123: 0.0% | BZ123: 0.0% | CA123: 0.0% | CB123: 0.0% | CC123: 0.0% | CD123: 0.0% | CE123: 0.0% | CF123: 0.0% | CG123: 0.0% | CH123: 0.0% | CI123: 0.0% | CJ123: 0.0% | CK123: 0.0% | CL123: 0.0% | CM123: 0.0% | CN123: 0.0% | CO123: 0.0% | CP123: 0.0% | CQ123: 0.0% | CR123: 0.0% | CS123: 0.0% | CT123: 0.0% | CU123: 0.0% | CV123: 0.0% | CW123: 0.0% | CX123: 0.0% | CY123: 0.0% | CZ123: 0.0% | DA123: 0.0% | DB123: 0.0% | DC123: 0.0% | DD123: 0.0% | DE123: 0.0% | DF123: 0.0% | DG123: 0.0% | DH123: 0.0% | DI123: 0.0% | DJ123: 0.0% | DK123: 0.0% | DL123: 0.0% | DM123: 0.0% | DN123: 0.0% | DO123: 0.0% | DP123: 0.0% | DQ123: 0.0% | DR123: 0.0% | DS123: 0.0% | DT123: 0.0% | DU123: 0.0% | DV123: 0.0% | DW123: 0.0% | DX123: 0.0% | DY123: 0.0% | DZ123: 0.0% | EA123: 0.0% | EB123: 0.0% | EC123: 0.0% | ED123: 0.0% | EE123: 0.0% | EF123: 0.0% | EG123: 0.0% | EH123: 0.0% | EI123: 0.0% | EJ123: 0.0% | EK123: 0.0% | EL123: 0.0% | EM123: 0.0% | EN123: 0.0% | EO123: 0.0% | EP123: 0.0% | EQ123: 0.0% | ER123: 0.0% | ES123: 0.0% | ET123: 0.0% | EU123: 0.0% | EV123: 0.0% | EW123: 0.0% | EX123: 0.0% | EY123: 0.0% | EZ123: 0.0% | FA123: 0.0% | FB123: 0.0% | FC123: 0.0%
A124: 124 | G124: 0 | H124: Организация и ликвидация полевых работ | I124: Применяется процентное распределение переработки | J124: обратный порядок распределения учета расхода | M124: руб. | T124: 0 | Y124: обратный порядок процесса | AA124: 0 | AB124: 0 | AC124: 0 | AD124: 0 | AE124: 0 | AF124: 0 | AG124: 0 | AH124: 0 | AI124: 0 | AJ124: 0 | AK124: 0 | AL124: 0 | AM124: 0 | AN124: 0 | AO124: 0 | AP124: 0 | AQ124: 0 | AR124: 0 | AS124: 0 | AT124: 0 | AU124: 0 | AV124: 0 | AW124: 0 | AX124: 0 | AY124: 0 | AZ124: 0 | BA124: 0 | BB124: 0 | BC124: 0 | BD124: 0 | BE124: 0 | BF124: 0 | BG124: 0 | BH124: 0 | BI124: 0 | BJ124: 0 | BK124: 0 | BL124: 0 | BM124: 0 | BN124: 0 | BO124: 0 | BP124: 0 | BQ124: 0 | BR124: 0 | BS124: 0 | BT124: 0 | BU124: 0 | BV124: 0 | BW124: 0 | BX124: 0 | BY124: 0 | BZ124: 0 | CA124: 0 | CB124: 0 | CC124: 0 | CD124: 0 | CE124: 0 | CF124: 0 | CG124: 0 | CH124: 0 | CI124: 0 | CJ124: 0 | CK124: 0 | CL124: 0 | CM124: 0 | CN124: 0 | CO124: 0 | CP124: 0 | CQ124: 0 | CR124: 0 | CS124: 0 | CT124: 0 | CU124: 0 | CV124: 0 | CW124: 0 | CX124: 0 | CY124: 0 | CZ124: 0 | DA124: 0 | DB124: 0 | DC124: 0 | DD124: 0 | DE124: 0 | DF124: 0 | DG124: 0 | DH124: 245,700 | DI124: 245,700 | DJ124: 245,700 | DK124: 245,700 | DL124: 245,700 | DM124: 245,700 | DN124: 245,700 | DO124: 245,700 | DP124: 245,700 | DQ124: 245,700 | DR124: 245,700 | DS124: 245,700 | DT124: 245,700 | DU124: 245,700 | DV124: 245,700 | DW124: 245,700 | DX124: 245,700 | DY124: 245,700 | DZ124: 245,700 | EA124: 245,700 | EB124: 245,700 | EC124: 245,700 | ED124: 245,700 | EE124: 245,700 | EF124: 245,700 | EG124: 245,700 | EH124: 245,700 | EI124: 245,700 | EJ124: 245,700 | EK124: 245,700 | EL124: 245,700 | EM124: 245,700 | EN124: 245,700 | EO124: 245,700 | EP124: 230,958 | EQ124: 216,216 | ER124: 201,474 | ES124: 186,732 | ET124: 171,990 | EU124: 157,248 | EV124: 142,506 | EW124: 127,764 | EX124: 113,022 | EY124: 98,280 | EZ124: 0 | FA124: 0 | FB124: 0 | FC124: 0
A125: 125 | L125: пустая строка
A126: 126
A127: 127 | G127: 0 | H127: Камеральные работы | L127: 1 | M127: руб. | O127: 4 | Q127: начисление | X127: 60,000,000 | AA127: 2,500,000 | AB127: 5,000,000 | AC127: 5,000,000 | AD127: 5,000,000 | AE127: 2,500,000 | AF127: 2,500,000 | AG127: 2,500,000 | AH127: 2,500,000 | AI127: 2,500,000 | AJ127: 0 | AK127: 0 | AL127: 0 | AM127: 2,500,000 | AN127: 2,500,000 | AO127: 2,500,000 | AP127: 2,500,000 | AQ127: 0 | AR127: 0 | AS127: 0 | AT127: 0 | AU127: 0 | AV127: 0 | AW127: 2,500,000 | AX127: 2,500,000 | AY127: 2,500,000 | AZ127: 2,500,000 | BA127: 0 | BB127: 0 | BC127: 0 | BD127: 0 | BE127: 0 | BF127: 0 | BG127: 0 | BH127: 0 | BI127: 0 | BJ127: 2,500,000 | BK127: 2,500,000 | BL127: 2,500,000 | BM127: 2,500,000 | BN127: 0 | BO127: 0 | BP127: 0 | BQ127: 0 | BR127: 0 | BS127: 0 | BT127: 0 | BU127: 0 | BV127: 0 | BW127: 0 | BX127: 0 | BY127: 0 | BZ127: 0 | CA127: 0 | CB127: 0 | CC127: 0 | CD127: 0 | CE127: 0 | CF127: 0 | CG127: 0 | CH127: 0 | CI127: 0 | CJ127: 0 | CK127: 0 | CL127: 0 | CM127: 0 | CN127: 0 | CO127: 0 | CP127: 0 | CQ127: 0 | CR127: 0 | CS127: 0 | CT127: 0 | CU127: 0 | CV127: 0 | CW127: 0 | CX127: 0 | CY127: 0 | CZ127: 0 | DA127: 0 | DB127: 0 | DC127: 0 | DD127: 0 | DE127: 0 | DF127: 0 | DG127: 0 | DH127: 0 | DI127: 0 | DJ127: 0 | DK127: 0 | DL127: 0 | DM127: 0 | DN127: 0 | DO127: 0 | DP127: 0 | DQ127: 0 | DR127: 0 | DS127: 0 | DT127: 0 | DU127: 0 | DV127: 0 | DW127: 0 | DX127: 0 | DY127: 0 | DZ127: 0 | EA127: 0 | EB127: 0 | EC127: 0 | ED127: 0 | EE127: 0 | EF127: 0 | EG127: 0 | EH127: 0 | EI127: 0 | EJ127: 0 | EK127: 0 | EL127: 0 | EM127: 0 | EN127: 0 | EO127: 0 | EP127: 0 | EQ127: 0 | ER127: 0 | ES127: 0 | ET127: 0 | EU127: 0 | EV127: 0 | EW127: 0 | EX127: 0 | EY127: 0 | EZ127: 0 | FA127: 0 | FB127: 0 | FC127: 0
A128: 128 | G128: 0 | H128: Камеральные работы | I128: Распределение расхода для одного запуска | M128: руб. | Q128: процесс | T128: 0 | U128: 0 | X128: 10,000,000 | AA128: 2,500,000 | AB128: 2,500,000 | AC128: 2,500,000 | AD128: 2,500,000 | AE128: 0 | AF128: 0 | AG128: 0 | AH128: 0 | AI128: 0 | AJ128: 0 | AK128: 0 | AL128: 0 | AM128: 0 | AN128: 0 | AO128: 0 | AP128: 0 | AQ128: 0 | AR128: 0 | AS128: 0 | AT128: 0 | AU128: 0 | AV128: 0 | AW128: 0 | AX128: 0 | AY128: 0 | AZ128: 0 | BA128: 0 | BB128: 0 | BC128: 0 | BD128: 0 | BE128: 0 | BF128: 0 | BG128: 0 | BH128: 0 | BI128: 0 | BJ128: 0 | BK128: 0 | BL128: 0 | BM128: 0 | BN128: 0 | BO128: 0 | BP128: 0 | BQ128: 0 | BR128: 0 | BS128: 0 | BT128: 0 | BU128: 0 | BV128: 0 | BW128: 0 | BX128: 0 | BY128: 0 | BZ128: 0 | CA128: 0 | CB128: 0 | CC128: 0 | CD128: 0 | CE128: 0 | CF128: 0 | CG128: 0 | CH128: 0 | CI128: 0 | CJ128: 0 | CK128: 0 | CL128: 0 | CM128: 0 | CN128: 0 | CO128: 0 | CP128: 0 | CQ128: 0 | CR128: 0 | CS128: 0 | CT128: 0 | CU128: 0 | CV128: 0 | CW128: 0 | CX128: 0 | CY128: 0 | CZ128: 0 | DA128: 0 | DB128: 0 | DC128: 0 | DD128: 0 | DE128: 0 | DF128: 0 | DG128: 0 | DH128: 0 | DI128: 0 | DJ128: 0 | DK128: 0 | DL128: 0 | DM128: 0 | DN128: 0 | DO128: 0 | DP128: 0 | DQ128: 0 | DR128: 0 | DS128: 0 | DT128: 0 | DU128: 0 | DV128: 0 | DW128: 0 | DX128: 0 | DY128: 0 | DZ128: 0 | EA128: 0 | EB128: 0 | EC128: 0 | ED128: 0 | EE128: 0 | EF128: 0 | EG128: 0 | EH128: 0 | EI128: 0 | EJ128: 0 | EK128: 0 | EL128: 0 | EM128: 0 | EN128: 0 | EO128: 0 | EP128: 0 | EQ128: 0 | ER128: 0 | ES128: 0 | ET128: 0 | EU128: 0 | EV128: 0 | EW128: 0 | EX128: 0 | EY128: 0 | EZ128: 0 | FA128: 0 | FB128: 0 | FC128: 0
A129: 129 | G129: 0 | H129: Камеральные работы | I129: Распределение расхода для одного запуска | J129: Сумма расхода для одного запуска по этой статье | M129: руб. | P129: M | Q129: 10,000,000 | S129: 0 | Y129: обратное распределение расхода | AA129: 0 | AB129: 0 | AC129: 0 | AD129: 0 | AE129: 0 | AF129: 0 | AG129: 0 | AH129: 0 | AI129: 0 | AJ129: 0 | AK129: 0 | AL129: 0 | AM129: 0 | AN129: 0 | AO129: 0 | AP129: 0 | AQ129: 0 | AR129: 0 | AS129: 0 | AT129: 0 | AU129: 0 | AV129: 0 | AW129: 0 | AX129: 0 | AY129: 0 | AZ129: 0 | BA129: 0 | BB129: 0 | BC129: 0 | BD129: 0 | BE129: 0 | BF129: 0 | BG129: 0 | BH129: 0 | BI129: 0 | BJ129: 0 | BK129: 0 | BL129: 0 | BM129: 0 | BN129: 0 | BO129: 0 | BP129: 0 | BQ129: 0 | BR129: 0 | BS129: 0 | BT129: 0 | BU129: 0 | BV129: 0 | BW129: 0 | BX129: 0 | BY129: 0 | BZ129: 0 | CA129: 0 | CB129: 0 | CC129: 0 | CD129: 0 | CE129: 0 | CF129: 0 | CG129: 0 | CH129: 0 | CI129: 0 | CJ129: 0 | CK129: 0 | CL129: 0 | CM129: 0 | CN129: 0 | CO129: 0 | CP129: 0 | CQ129: 0 | CR129: 0 | CS129: 0 | CT129: 0 | CU129: 0 | CV129: 0 | CW129: 0 | CX129: 0 | CY129: 0 | CZ129: 0 | DA129: 0 | DB129: 0 | DC129: 0 | DD129: 0 | DE129: 0 | DF129: 0 | DG129: 0 | DH129: 0 | DI129: 0 | DJ129: 0 | DK129: 0 | DL129: 0 | DM129: 0 | DN129: 0 | DO129: 0 | DP129: 0 | DQ129: 0 | DR129: 0 | DS129: 0 | DT129: 0 | DU129: 0 | DV129: 0 | DW129: 0 | DX129: 0 | DY129: 0 | DZ129: 0 | EA129: 0 | EB129: 0 | EC129: 0 | ED129: 0 | EE129: 0 | EF129: 0 | EG129: 0 | EH129: 0 | EI129: 0 | EJ129: 0 | EK129: 0 | EL129: 0 | EM129: 0 | EN129: 0 | EO129: 0 | EP129: 0 | EQ129: 0 | ER129: 0 | ES129: 0 | ET129: 0 | EU129: 0 | EV129: 0 | EW129: 0 | EX129: 0 | EY129: 0 | EZ129: 2,500,000 | FA129: 2,500,000 | FB129: 2,500,000 | FC129: 2,500,000
A130: 130 | G130: 0 | H130: Камеральные работы | I130: Распределение расхода для одного запуска | J130: Процентное распределение расхода по периодам | M130: % | T130: 0 | X130: 100.00% | Y130: M | AA130: 25.00% | AB130: 25.00% | AC130: 25.00% | AD130: 25.00% | AE130: 0.00% | AF130: 0.00% | AG130: 0.00% | AH130: 0.00% | AI130: 0.00% | AJ130: 0.00% | AK130: 0.00% | AL130: 0.00% | AM130: 0.00% | AN130: 0.00% | AO130: 0.00% | AP130: 0.00% | AQ130: 0.00% | AR130: 0.00% | AS130: 0.00% | AT130: 0.00% | AU130: 0.00% | AV130: 0.00% | AW130: 0.00% | AX130: 0.00% | AY130: 0.00% | AZ130: 0.00% | BA130: 0.00% | BB130: 0.00% | BC130: 0.00% | BD130: 0.00% | BE130: 0.00% | BF130: 0.00% | BG130: 0.00% | BH130: 0.00% | BI130: 0.00% | BJ130: 0.00% | BK130: 0.00% | BL130: 0.00% | BM130: 0.00% | BN130: 0.00% | BO130: 0.00% | BP130: 0.00% | BQ130: 0.00% | BR130: 0.00% | BS130: 0.00% | BT130: 0.00% | BU130: 0.00% | BV130: 0.00% | BW130: 0.00% | BX130: 0.00% | BY130: 0.00% | BZ130: 0.00% | CA130: 0.00% | CB130: 0.00% | CC130: 0.00% | CD130: 0.00% | CE130: 0.00% | CF130: 0.00% | CG130: 0.00% | CH130: 0.00% | CI130: 0.00% | CJ130: 0.00% | CK130: 0.00% | CL130: 0.00% | CM130: 0.00% | CN130: 0.00% | CO130: 0.00% | CP130: 0.00% | CQ130: 0.00% | CR130: 0.00% | CS130: 0.00% | CT130: 0.00% | CU130: 0.00% | CV130: 0.00% | CW130: 0.00% | CX130: 0.00% | CY130: 0.00% | CZ130: 0.00% | DA130: 0.00% | DB130: 0.00% | DC130: 0.00% | DD130: 0.00% | DE130: 0.00% | DF130: 0.00% | DG130: 0.00% | DH130: 0.00% | DI130: 0.00% | DJ130: 0.00% | DK130: 0.00% | DL130: 0.00% | DM130: 0.00% | DN130: 0.00% | DO130: 0.00% | DP130: 0.00% | DQ130: 0.00% | DR130: 0.00% | DS130: 0.00% | DT130: 0.00% | DU130: 0.00% | DV130: 0.00% | DW130: 0.00% | DX130: 0.00% | DY130: 0.00% | DZ130: 0.00% | EA130: 0.00% | EB130: 0.00% | EC130: 0.00% | ED130: 0.00% | EE130: 0.00% | EF130: 0.00% | EG130: 0.00% | EH130: 0.00% | EI130: 0.00% | EJ130: 0.00% | EK130: 0.00% | EL130: 0.00% | EM130: 0.00% | EN130: 0.00% | EO130: 0.00% | EP130: 0.00% | EQ130: 0.00% | ER130: 0.00% | ES130: 0.00% | ET130: 0.00% | EU130: 0.00% | EV130: 0.00% | EW130: 0.00% | EX130: 0.00% | EY130: 0.00% | EZ130: 0.00% | FA130: 0.00% | FB130: 0.00% | FC130: 0.00%
A131: 131
A132: 132 | G132: 0 | H132: Камеральные работы | L132: 1 | M132: руб. | Q132: оплата | X132: 60,000,000 | AA132: 1,250,000 | AB132: 3,250,000 | AC132: 5,000,000 | AD132: 4,750,000 | AE132: 4,250,000 | AF132: 2,500,000 | AG132: 2,500,000 | AH132: 2,500,000 | AI132: 2,250,000 | AJ132: 1,750,000 | AK132: 0 | AL132: 250,000 | AM132: 750,000 | AN132: 2,500,000 | AO132: 2,500,000 | AP132: 2,250,000 | AQ132: 1,750,000 | AR132: 0 | AS132: 0 | AT132: 0 | AU132: 0 | AV132: 250,000 | AW132: 750,000 | AX132: 2,500,000 | AY132: 2,500,000 | AZ132: 2,250,000 | BA132: 1,750,000 | BB132: 0 | BC132: 0 | BD132: 0 | BE132: 0 | BF132: 0 | BG132: 0 | BH132: 0 | BI132: 250,000 | BJ132: 750,000 | BK132: 2,500,000 | BL132: 2,500,000 | BM132: 2,250,000 | BN132: 1,750,000 | BO132: 0 | BP132: 0 | BQ132: 0 | BR132: 0 | BS132: 0 | BT132: 0 | BU132: 0 | BV132: 0 | BW132: 0 | BX132: 0 | BY132: 0 | BZ132: 0 | CA132: 0 | CB132: 0 | CC132: 0 | CD132: 0 | CE132: 0 | CF132: 0 | CG132: 0 | CH132: 0 | CI132: 0 | CJ132: 0 | CK132: 0 | CL132: 0 | CM132: 0 | CN132: 0 | CO132: 0 | CP132: 0 | CQ132: 0 | CR132: 0 | CS132: 0 | CT132: 0 | CU132: 0 | CV132: 0 | CW132: 0 | CX132: 0 | CY132: 0 | CZ132: 0 | DA132: 0 | DB132: 0 | DC132: 0 | DD132: 0 | DE132: 0 | DF132: 0 | DG132: 0 | DH132: 0 | DI132: 0 | DJ132: 0 | DK132: 0 | DL132: 0 | DM132: 0 | DN132: 0 | DO132: 0 | DP132: 0 | DQ132: 0 | DR132: 0 | DS132: 0 | DT132: 0 | DU132: 0 | DV132: 0 | DW132: 0 | DX132: 0 | DY132: 0 | DZ132: 0 | EA132: 0 | EB132: 0 | EC132: 0 | ED132: 0 | EE132: 0 | EF132: 0 | EG132: 0 | EH132: 0 | EI132: 0 | EJ132: 0 | EK132: 0 | EL132: 0 | EM132: 0 | EN132: 0 | EO132: 0 | EP132: 0 | EQ132: 0 | ER132: 0 | ES132: 0 | ET132: 0 | EU132: 0 | EV132: 0 | EW132: 0 | EX132: 0 | EY132: 0 | EZ132: 0 | FA132: 0 | FB132: 0 | FC132: 0
A133: 133 | G133: 0 | H133: Камеральные работы | I133: Задаем через указание % предоплаты и сроков
A134: 134 | G134: 0 | H134: Камеральные работы | I134: Задаем через указание % предоплаты и сроков | J134: Размер предоплаты | M134: % | P134: * | Q134: 30.0% | S134: 0
A135: 135 | G135: 0 | H135: Камеральные работы | I135: Задаем через указание % предоплаты и сроков | J135: Период оборачиваемости предоплаты (срок) | M135: кол-во дней | P135: * | Q135: 10 | S135: 0
A136: 136 | G136: 0 | H136: Камеральные работы | I136: Задаем через указание % предоплаты и сроков | J136: расчет в количестве периодов | M136: кол-во периодов | Q136: 0.3 | S136: 0 | T136: 0
A137: 137 | G137: 0 | H137: Камеральные работы | I137: Задаем через указание % предоплаты и сроков | J137: Размер доплаты | M137: % | Q137: 70.0% | S137: 0 | T137: 0
A138: 138 | G138: 0 | H138: Камеральные работы | I138: Задаем через указание % предоплаты и сроков | J138: Период оборачиваемости доплат (срок) | M138: кол-во дней | P138: * | Q138: 30 | S138: 0
A139: 139 | G139: 0 | H139: Камеральные работы | I139: Задаем через указание % предоплаты и сроков | J139: расчет в количестве периодов | M139: кол-во периодов | Q139: 1.0 | S139: 0 | T139: 0
A140: 140
A141: 141 | G141: 0 | H141: Камеральные работы | L141: 1 | M141: руб. | Q141: учет | X141: 41,587,224 | AA141: 0 | AB141: 0 | AC141: 0 | AD141: 0 | AE141: 98,280 | AF141: 211,302 | AG141: 240,786 | AH141: 270,270 | AI141: 299,754 | AJ141: 427,518 | AK141: 471,744 | AL141: 515,971 | AM141: 560,197 | AN141: 604,423 | AO141: 648,649 | AP141: 678,133 | AQ141: 791,155 | AR141: 820,639 | AS141: 850,123 | AT141: 879,607 | AU141: 894,349 | AV141: 909,091 | AW141: 923,833 | AX141: 938,575 | AY141: 953,317 | AZ141: 968,059 | BA141: 1,081,081 | BB141: 1,095,823 | BC141: 1,110,565 | BD141: 1,125,307 | BE141: 1,140,049 | BF141: 1,154,791 | BG141: 1,169,533 | BH141: 1,184,275 | BI141: 1,199,017 | BJ141: 1,213,759 | BK141: 1,228,501 | BL141: 1,228,501 | BM141: 1,228,501 | BN141: 1,326,781 | BO141: 1,341,523 | BP141: 1,356,265 | BQ141: 1,371,007 | BR141: 1,385,749 | BS141: 1,400,491 | BT141: 1,415,233 | BU141: 1,429,975 | BV141: 1,444,717 | BW141: 0 | BX141: 0 | BY141: 0 | BZ141: 0 | CA141: 0 | CB141: 0 | CC141: 0 | CD141: 0 | CE141: 0 | CF141: 0 | CG141: 0 | CH141: 0 | CI141: 0 | CJ141: 0 | CK141: 0 | CL141: 0 | CM141: 0 | CN141: 0 | CO141: 0 | CP141: 0 | CQ141: 0 | CR141: 0 | CS141: 0 | CT141: 0 | CU141: 0 | CV141: 0 | CW141: 0 | CX141: 0 | CY141: 0 | CZ141: 0 | DA141: 0 | DB141: 0 | DC141: 0 | DD141: 0 | DE141: 0 | DF141: 0 | DG141: 0 | DH141: 0 | DI141: 0 | DJ141: 0 | DK141: 0 | DL141: 0 | DM141: 0 | DN141: 0 | DO141: 0 | DP141: 0 | DQ141: 0 | DR141: 0 | DS141: 0 | DT141: 0 | DU141: 0 | DV141: 0 | DW141: 0 | DX141: 0 | DY141: 0 | DZ141: 0 | EA141: 0 | EB141: 0 | EC141: 0 | ED141: 0 | EE141: 0 | EF141: 0 | EG141: 0 | EH141: 0 | EI141: 0 | EJ141: 0 | EK141: 0 | EL141: 0 | EM141: 0 | EN141: 0 | EO141: 0 | EP141: 0 | EQ141: 0 | ER141: 0 | ES141: 0 | ET141: 0 | EU141: 0 | EV141: 0 | EW141: 0 | EX141: 0 | EY141: 0 | EZ141: 0 | FA141: 0 | FB141: 0 | FC141: 0
A142: 142 | G142: 0 | H142: Камеральные работы | I142: Применяется процентное распределение переработки
A143: 143 | G143: 0 | H143: Камеральные работы | I143: Применяется процентное распределение переработки | J143: %-ное распределение учета расходов | M143: % | Q143: процесс | T143: 0 | X143: 100.0% | AA143: 0.0% | AB143: 0.0% | AC143: 0.0% | AD143: 0.0% | AE143: 1.0% | AF143: 1.1% | AG143: 1.3% | AH143: 1.4% | AI143: 1.6% | AJ143: 1.7% | AK143: 1.9% | AL143: 2.0% | AM143: 2.2% | AN143: 2.3% | AO143: 2.5% | AP143: 2.5% | AQ143: 2.5% | AR143: 2.5% | AS143: 2.5% | AT143: 2.5% | AU143: 2.5% | AV143: 2.5% | AW143: 2.5% | AX143: 2.5% | AY143: 2.5% | AZ143: 2.5% | BA143: 2.5% | BB143: 2.5% | BC143: 2.5% | BD143: 2.5% | BE143: 2.5% | BF143: 2.5% | BG143: 2.5% | BH143: 2.5% | BI143: 2.5% | BJ143: 2.5% | BK143: 2.5% | BL143: 2.5% | BM143: 2.5% | BN143: 2.5% | BO143: 2.5% | BP143: 2.5% | BQ143: 2.5% | BR143: 2.5% | BS143: 2.5% | BT143: 2.5% | BU143: 2.5% | BV143: 2.5% | BW143: 0.0% | BX143: 0.0% | BY143: 0.0% | BZ143: 0.0% | CA143: 0.0% | CB143: 0.0% | CC143: 0.0% | CD143: 0.0% | CE143: 0.0% | CF143: 0.0% | CG143: 0.0% | CH143: 0.0% | CI143: 0.0% | CJ143: 0.0% | CK143: 0.0% | CL143: 0.0% | CM143: 0.0% | CN143: 0.0% | CO143: 0.0% | CP143: 0.0% | CQ143: 0.0% | CR143: 0.0% | CS143: 0.0% | CT143: 0.0% | CU143: 0.0% | CV143: 0.0% | CW143: 0.0% | CX143: 0.0% | CY143: 0.0% | CZ143: 0.0% | DA143: 0.0% | DB143: 0.0% | DC143: 0.0% | DD143: 0.0% | DE143: 0.0% | DF143: 0.0% | DG143: 0.0% | DH143: 0.0% | DI143: 0.0% | DJ143: 0.0% | DK143: 0.0% | DL143: 0.0% | DM143: 0.0% | DN143: 0.0% | DO143: 0.0% | DP143: 0.0% | DQ143: 0.0% | DR143: 0.0% | DS143: 0.0% | DT143: 0.0% | DU143: 0.0% | DV143: 0.0% | DW143: 0.0% | DX143: 0.0% | DY143: 0.0% | DZ143: 0.0% | EA143: 0.0% | EB143: 0.0% | EC143: 0.0% | ED143: 0.0% | EE143: 0.0% | EF143: 0.0% | EG143: 0.0% | EH143: 0.0% | EI143: 0.0% | EJ143: 0.0% | EK143: 0.0% | EL143: 0.0% | EM143: 0.0% | EN143: 0.0% | EO143: 0.0% | EP143: 0.0% | EQ143: 0.0% | ER143: 0.0% | ES143: 0.0% | ET143: 0.0% | EU143: 0.0% | EV143: 0.0% | EW143: 0.0% | EX143: 0.0% | EY143: 0.0% | EZ143: 0.0% | FA143: 0.0% | FB143: 0.0% | FC143: 0.0%
A144: 144 | G144: 0 | H144: Камеральные работы | I144: Применяется процентное распределение переработки | J144: обратный порядок распределения учета расхода | M144: руб. | T144: 0 | Y144: обратный порядок процесса | AA144: 0 | AB144: 0 | AC144: 0 | AD144: 0 | AE144: 0 | AF144: 0 | AG144: 0 | AH144: 0 | AI144: 0 | AJ144: 0 | AK144: 0 | AL144: 0 | AM144: 0 | AN144: 0 | AO144: 0 | AP144: 0 | AQ144: 0 | AR144: 0 | AS144: 0 | AT144: 0 | AU144: 0 | AV144: 0 | AW144: 0 | AX144: 0 | AY144: 0 | AZ144: 0 | BA144: 0 | BB144: 0 | BC144: 0 | BD144: 0 | BE144: 0 | BF144: 0 | BG144: 0 | BH144: 0 | BI144: 0 | BJ144: 0 | BK144: 0 | BL144: 0 | BM144: 0 | BN144: 0 | BO144: 0 | BP144: 0 | BQ144: 0 | BR144: 0 | BS144: 0 | BT144: 0 | BU144: 0 | BV144: 0 | BW144: 0 | BX144: 0 | BY144: 0 | BZ144: 0 | CA144: 0 | CB144: 0 | CC144: 0 | CD144: 0 | CE144: 0 | CF144: 0 | CG144: 0 | CH144: 0 | CI144: 0 | CJ144: 0 | CK144: 0 | CL144: 0 | CM144: 0 | CN144: 0 | CO144: 0 | CP144: 0 | CQ144: 0 | CR144: 0 | CS144: 0 | CT144: 0 | CU144: 0 | CV144: 0 | CW144: 0 | CX144: 0 | CY144: 0 | CZ144: 0 | DA144: 0 | DB144: 0 | DC144: 0 | DD144: 0 | DE144: 0 | DF144: 0 | DG144: 0 | DH144: 245,700 | DI144: 245,700 | DJ144: 245,700 | DK144: 245,700 | DL144: 245,700 | DM144: 245,700 | DN144: 245,700 | DO144: 245,700 | DP144: 245,700 | DQ144: 245,700 | DR144: 245,700 | DS144: 245,700 | DT144: 245,700 | DU144: 245,700 | DV144: 245,700 | DW144: 245,700 | DX144: 245,700 | DY144: 245,700 | DZ144: 245,700 | EA144: 245,700 | EB144: 245,700 | EC144: 245,700 | ED144: 245,700 | EE144: 245,700 | EF144: 245,700 | EG144: 245,700 | EH144: 245,700 | EI144: 245,700 | EJ144: 245,700 | EK144: 245,700 | EL144: 245,700 | EM144: 245,700 | EN144: 245,700 | EO144: 245,700 | EP144: 230,958 | EQ144: 216,216 | ER144: 201,474 | ES144: 186,732 | ET144: 171,990 | EU144: 157,248 | EV144: 142,506 | EW144: 127,764 | EX144: 113,022 | EY144: 98,280 | EZ144: 0 | FA144: 0 | FB144: 0 | FC144: 0
A145: 145 | L145: пустая строка
A146: 146
A147: 147 | G147: 0 | H147: Лабораторные работы | L147: 1 | M147: руб. | O147: 5 | Q147: начисление | X147: 60,000,000 | AA147: 2,500,000 | AB147: 5,000,000 | AC147: 5,000,000 | AD147: 5,000,000 | AE147: 2,500,000 | AF147: 2,500,000 | AG147: 2,500,000 | AH147: 2,500,000 | AI147: 2,500,000 | AJ147: 0 | AK147: 0 | AL147: 0 | AM147: 2,500,000 | AN147: 2,500,000 | AO147: 2,500,000 | AP147: 2,500,000 | AQ147: 0 | AR147: 0 | AS147: 0 | AT147: 0 | AU147: 0 | AV147: 0 | AW147: 2,500,000 | AX147: 2,500,000 | AY147: 2,500,000 | AZ147: 2,500,000 | BA147: 0 | BB147: 0 | BC147: 0 | BD147: 0 | BE147: 0 | BF147: 0 | BG147: 0 | BH147: 0 | BI147: 0 | BJ147: 2,500,000 | BK147: 2,500,000 | BL147: 2,500,000 | BM147: 2,500,000 | BN147: 0 | BO147: 0 | BP147: 0 | BQ147: 0 | BR147: 0 | BS147: 0 | BT147: 0 | BU147: 0 | BV147: 0 | BW147: 0 | BX147: 0 | BY147: 0 | BZ147: 0 | CA147: 0 | CB147: 0 | CC147: 0 | CD147: 0 | CE147: 0 | CF147: 0 | CG147: 0 | CH147: 0 | CI147: 0 | CJ147: 0 | CK147: 0 | CL147: 0 | CM147: 0 | CN147: 0 | CO147: 0 | CP147: 0 | CQ147: 0 | CR147: 0 | CS147: 0 | CT147: 0 | CU147: 0 | CV147: 0 | CW147: 0 | CX147: 0 | CY147: 0 | CZ147: 0 | DA147: 0 | DB147: 0 | DC147: 0 | DD147: 0 | DE147: 0 | DF147: 0 | DG147: 0 | DH147: 0 | DI147: 0 | DJ147: 0 | DK147: 0 | DL147: 0 | DM147: 0 | DN147: 0 | DO147: 0 | DP147: 0 | DQ147: 0 | DR147: 0 | DS147: 0 | DT147: 0 | DU147: 0 | DV147: 0 | DW147: 0 | DX147: 0 | DY147: 0 | DZ147: 0 | EA147: 0 | EB147: 0 | EC147: 0 | ED147: 0 | EE147: 0 | EF147: 0 | EG147: 0 | EH147: 0 | EI147: 0 | EJ147: 0 | EK147: 0 | EL147: 0 | EM147: 0 | EN147: 0 | EO147: 0 | EP147: 0 | EQ147: 0 | ER147: 0 | ES147: 0 | ET147: 0 | EU147: 0 | EV147: 0 | EW147: 0 | EX147: 0 | EY147: 0 | EZ147: 0 | FA147: 0 | FB147: 0 | FC147: 0
A148: 148 | G148: 0 | H148: Лабораторные работы | I148: Распределение расхода для одного запуска | M148: руб. | Q148: процесс | T148: 0 | U148: 0 | X148: 10,000,000 | AA148: 2,500,000 | AB148: 2,500,000 | AC148: 2,500,000 | AD148: 2,500,000 | AE148: 0 | AF148: 0 | AG148: 0 | AH148: 0 | AI148: 0 | AJ148: 0 | AK148: 0 | AL148: 0 | AM148: 0 | AN148: 0 | AO148: 0 | AP148: 0 | AQ148: 0 | AR148: 0 | AS148: 0 | AT148: 0 | AU148: 0 | AV148: 0 | AW148: 0 | AX148: 0 | AY148: 0 | AZ148: 0 | BA148: 0 | BB148: 0 | BC148: 0 | BD148: 0 | BE148: 0 | BF148: 0 | BG148: 0 | BH148: 0 | BI148: 0 | BJ148: 0 | BK148: 0 | BL148: 0 | BM148: 0 | BN148: 0 | BO148: 0 | BP148: 0 | BQ148: 0 | BR148: 0 | BS148: 0 | BT148: 0 | BU148: 0 | BV148: 0 | BW148: 0 | BX148: 0 | BY148: 0 | BZ148: 0 | CA148: 0 | CB148: 0 | CC148: 0 | CD148: 0 | CE148: 0 | CF148: 0 | CG148: 0 | CH148: 0 | CI148: 0 | CJ148: 0 | CK148: 0 | CL148: 0 | CM148: 0 | CN148: 0 | CO148: 0 | CP148: 0 | CQ148: 0 | CR148: 0 | CS148: 0 | CT148: 0 | CU148: 0 | CV148: 0 | CW148: 0 | CX148: 0 | CY148: 0 | CZ148: 0 | DA148: 0 | DB148: 0 | DC148: 0 | DD148: 0 | DE148: 0 | DF148: 0 | DG148: 0 | DH148: 0 | DI148: 0 | DJ148: 0 | DK148: 0 | DL148: 0 | DM148: 0 | DN148: 0 | DO148: 0 | DP148: 0 | DQ148: 0 | DR148: 0 | DS148: 0 | DT148: 0 | DU148: 0 | DV148: 0 | DW148: 0 | DX148: 0 | DY148: 0 | DZ148: 0 | EA148: 0 | EB148: 0 | EC148: 0 | ED148: 0 | EE148: 0 | EF148: 0 | EG148: 0 | EH148: 0 | EI148: 0 | EJ148: 0 | EK148: 0 | EL148: 0 | EM148: 0 | EN148: 0 | EO148: 0 | EP148: 0 | EQ148: 0 | ER148: 0 | ES148: 0 | ET148: 0 | EU148: 0 | EV148: 0 | EW148: 0 | EX148: 0 | EY148: 0 | EZ148: 0 | FA148: 0 | FB148: 0 | FC148: 0
A149: 149 | G149: 0 | H149: Лабораторные работы | I149: Распределение расхода для одного запуска | J149: Сумма расхода для одного запуска по этой статье | M149: руб. | P149: M | Q149: 10,000,000 | S149: 0 | Y149: обратное распределение расхода | AA149: 0 | AB149: 0 | AC149: 0 | AD149: 0 | AE149: 0 | AF149: 0 | AG149: 0 | AH149: 0 | AI149: 0 | AJ149: 0 | AK149: 0 | AL149: 0 | AM149: 0 | AN149: 0 | AO149: 0 | AP149: 0 | AQ149: 0 | AR149: 0 | AS149: 0 | AT149: 0 | AU149: 0 | AV149: 0 | AW149: 0 | AX149: 0 | AY149: 0 | AZ149: 0 | BA149: 0 | BB149: 0 | BC149: 0 | BD149: 0 | BE149: 0 | BF149: 0 | BG149: 0 | BH149: 0 | BI149: 0 | BJ149: 0 | BK149: 0 | BL149: 0 | BM149: 0 | BN149: 0 | BO149: 0 | BP149: 0 | BQ149: 0 | BR149: 0 | BS149: 0 | BT149: 0 | BU149: 0 | BV149: 0 | BW149: 0 | BX149: 0 | BY149: 0 | BZ149: 0 | CA149: 0 | CB149: 0 | CC149: 0 | CD149: 0 | CE149: 0 | CF149: 0 | CG149: 0 | CH149: 0 | CI149: 0 | CJ149: 0 | CK149: 0 | CL149: 0 | CM149: 0 | CN149: 0 | CO149: 0 | CP149: 0 | CQ149: 0 | CR149: 0 | CS149: 0 | CT149: 0 | CU149: 0 | CV149: 0 | CW149: 0 | CX149: 0 | CY149: 0 | CZ149: 0 | DA149: 0 | DB149: 0 | DC149: 0 | DD149: 0 | DE149: 0 | DF149: 0 | DG149: 0 | DH149: 0 | DI149: 0 | DJ149: 0 | DK149: 0 | DL149: 0 | DM149: 0 | DN149: 0 | DO149: 0 | DP149: 0 | DQ149: 0 | DR149: 0 | DS149: 0 | DT149: 0 | DU149: 0 | DV149: 0 | DW149: 0 | DX149: 0 | DY149: 0 | DZ149: 0 | EA149: 0 | EB149: 0 | EC149: 0 | ED149: 0 | EE149: 0 | EF149: 0 | EG149: 0 | EH149: 0 | EI149: 0 | EJ149: 0 | EK149: 0 | EL149: 0 | EM149: 0 | EN149: 0 | EO149: 0 | EP149: 0 | EQ149: 0 | ER149: 0 | ES149: 0 | ET149: 0 | EU149: 0 | EV149: 0 | EW149: 0 | EX149: 0 | EY149: 0 | EZ149: 2,500,000 | FA149: 2,500,000 | FB149: 2,500,000 | FC149: 2,500,000
A150: 150 | G150: 0 | H150: Лабораторные работы | I150: Распределение расхода для одного запуска | J150: Процентное распределение расхода по периодам | M150: % | T150: 0 | X150: 100.00% | Y150: M | AA150: 25.00% | AB150: 25.00% | AC150: 25.00% | AD150: 25.00% | AE150: 0.00% | AF150: 0.00% | AG150: 0.00% | AH150: 0.00% | AI150: 0.00% | AJ150: 0.00% | AK150: 0.00% | AL150: 0.00% | AM150: 0.00% | AN150: 0.00% | AO150: 0.00% | AP150: 0.00% | AQ150: 0.00% | AR150: 0.00% | AS150: 0.00% | AT150: 0.00% | AU150: 0.00% | AV150: 0.00% | AW150: 0.00% | AX150: 0.00% | AY150: 0.00% | AZ150: 0.00% | BA150: 0.00% | BB150: 0.00% | BC150: 0.00% | BD150: 0.00% | BE150: 0.00% | BF150: 0.00% | BG150: 0.00% | BH150: 0.00% | BI150: 0.00% | BJ150: 0.00% | BK150: 0.00% | BL150: 0.00% | BM150: 0.00% | BN150: 0.00% | BO150: 0.00% | BP150: 0.00% | BQ150: 0.00% | BR150: 0.00% | BS150: 0.00% | BT150: 0.00% | BU150: 0.00% | BV150: 0.00% | BW150: 0.00% | BX150: 0.00% | BY150: 0.00% | BZ150: 0.00% | CA150: 0.00% | CB150: 0.00% | CC150: 0.00% | CD150: 0.00% | CE150: 0.00% | CF150: 0.00% | CG150: 0.00% | CH150: 0.00% | CI150: 0.00% | CJ150: 0.00% | CK150: 0.00% | CL150: 0.00% | CM150: 0.00% | CN150: 0.00% | CO150: 0.00% | CP150: 0.00% | CQ150: 0.00% | CR150: 0.00% | CS150: 0.00% | CT150: 0.00% | CU150: 0.00% | CV150: 0.00% | CW150: 0.00% | CX150: 0.00% | CY150: 0.00% | CZ150: 0.00% | DA150: 0.00% | DB150: 0.00% | DC150: 0.00% | DD150: 0.00% | DE150: 0.00% | DF150: 0.00% | DG150: 0.00% | DH150: 0.00% | DI150: 0.00% | DJ150: 0.00% | DK150: 0.00% | DL150: 0.00% | DM150: 0.00% | DN150: 0.00% | DO150: 0.00% | DP150: 0.00% | DQ150: 0.00% | DR150: 0.00% | DS150: 0.00% | DT150: 0.00% | DU150: 0.00% | DV150: 0.00% | DW150: 0.00% | DX150: 0.00% | DY150: 0.00% | DZ150: 0.00% | EA150: 0.00% | EB150: 0.00% | EC150: 0.00% | ED150: 0.00% | EE150: 0.00% | EF150: 0.00% | EG150: 0.00% | EH150: 0.00% | EI150: 0.00% | EJ150: 0.00% | EK150: 0.00% | EL150: 0.00% | EM150: 0.00% | EN150: 0.00% | EO150: 0.00% | EP150: 0.00% | EQ150: 0.00% | ER150: 0.00% | ES150: 0.00% | ET150: 0.00% | EU150: 0.00% | EV150: 0.00% | EW150: 0.00% | EX150: 0.00% | EY150: 0.00% | EZ150: 0.00% | FA150: 0.00% | FB150: 0.00% | FC150: 0.00%
A151: 151
A152: 152 | G152: 0 | H152: Лабораторные работы | L152: 1 | M152: руб. | Q152: оплата | X152: 60,000,000 | AA152: 1,250,000 | AB152: 3,250,000 | AC152: 5,000,000 | AD152: 4,750,000 | AE152: 4,250,000 | AF152: 2,500,000 | AG152: 2,500,000 | AH152: 2,500,000 | AI152: 2,250,000 | AJ152: 1,750,000 | AK152: 0 | AL152: 250,000 | AM152: 750,000 | AN152: 2,500,000 | AO152: 2,500,000 | AP152: 2,250,000 | AQ152: 1,750,000 | AR152: 0 | AS152: 0 | AT152: 0 | AU152: 0 | AV152: 250,000 | AW152: 750,000 | AX152: 2,500,000 | AY152: 2,500,000 | AZ152: 2,250,000 | BA152: 1,750,000 | BB152: 0 | BC152: 0 | BD152: 0 | BE152: 0 | BF152: 0 | BG152: 0 | BH152: 0 | BI152: 250,000 | BJ152: 750,000 | BK152: 2,500,000 | BL152: 2,500,000 | BM152: 2,250,000 | BN152: 1,750,000 | BO152: 0 | BP152: 0 | BQ152: 0 | BR152: 0 | BS152: 0 | BT152: 0 | BU152: 0 | BV152: 0 | BW152: 0 | BX152: 0 | BY152: 0 | BZ152: 0 | CA152: 0 | CB152: 0 | CC152: 0 | CD152: 0 | CE152: 0 | CF152: 0 | CG152: 0 | CH152: 0 | CI152: 0 | CJ152: 0 | CK152: 0 | CL152: 0 | CM152: 0 | CN152: 0 | CO152: 0 | CP152: 0 | CQ152: 0 | CR152: 0 | CS152: 0 | CT152: 0 | CU152: 0 | CV152: 0 | CW152: 0 | CX152: 0 | CY152: 0 | CZ152: 0 | DA152: 0 | DB152: 0 | DC152: 0 | DD152: 0 | DE152: 0 | DF152: 0 | DG152: 0 | DH152: 0 | DI152: 0 | DJ152: 0 | DK152: 0 | DL152: 0 | DM152: 0 | DN152: 0 | DO152: 0 | DP152: 0 | DQ152: 0 | DR152: 0 | DS152: 0 | DT152: 0 | DU152: 0 | DV152: 0 | DW152: 0 | DX152: 0 | DY152: 0 | DZ152: 0 | EA152: 0 | EB152: 0 | EC152: 0 | ED152: 0 | EE152: 0 | EF152: 0 | EG152: 0 | EH152: 0 | EI152: 0 | EJ152: 0 | EK152: 0 | EL152: 0 | EM152: 0 | EN152: 0 | EO152: 0 | EP152: 0 | EQ152: 0 | ER152: 0 | ES152: 0 | ET152: 0 | EU152: 0 | EV152: 0 | EW152: 0 | EX152: 0 | EY152: 0 | EZ152: 0 | FA152: 0 | FB152: 0 | FC152: 0
A153: 153 | G153: 0 | H153: Лабораторные работы | I153: Задаем через указание % предоплаты и сроков
A154: 154 | G154: 0 | H154: Лабораторные работы | I154: Задаем через указание % предоплаты и сроков | J154: Размер предоплаты | M154: % | P154: * | Q154: 30.0% | S154: 0
A155: 155 | G155: 0 | H155: Лабораторные работы | I155: Задаем через указание % предоплаты и сроков | J155: Период оборачиваемости предоплаты (срок) | M155: кол-во дней | P155: * | Q155: 10 | S155: 0
A156: 156 | G156: 0 | H156: Лабораторные работы | I156: Задаем через указание % предоплаты и сроков | J156: расчет в количестве периодов | M156: кол-во периодов | Q156: 0.3 | S156: 0 | T156: 0
A157: 157 | G157: 0 | H157: Лабораторные работы | I157: Задаем через указание % предоплаты и сроков | J157: Размер доплаты | M157: % | Q157: 70.0% | S157: 0 | T157: 0
A158: 158 | G158: 0 | H158: Лабораторные работы | I158: Задаем через указание % предоплаты и сроков | J158: Период оборачиваемости доплат (срок) | M158: кол-во дней | P158: * | Q158: 30 | S158: 0
A159: 159 | G159: 0 | H159: Лабораторные работы | I159: Задаем через указание % предоплаты и сроков | J159: расчет в количестве периодов | M159: кол-во периодов | Q159: 1.0 | S159: 0 | T159: 0
A160: 160
A161: 161 | G161: 0 | H161: Лабораторные работы | L161: 1 | M161: руб. | Q161: учет | X161: 41,587,224 | AA161: 0 | AB161: 0 | AC161: 0 | AD161: 0 | AE161: 98,280 | AF161: 211,302 | AG161: 240,786 | AH161: 270,270 | AI161: 299,754 | AJ161: 427,518 | AK161: 471,744 | AL161: 515,971 | AM161: 560,197 | AN161: 604,423 | AO161: 648,649 | AP161: 678,133 | AQ161: 791,155 | AR161: 820,639 | AS161: 850,123 | AT161: 879,607 | AU161: 894,349 | AV161: 909,091 | AW161: 923,833 | AX161: 938,575 | AY161: 953,317 | AZ161: 968,059 | BA161: 1,081,081 | BB161: 1,095,823 | BC161: 1,110,565 | BD161: 1,125,307 | BE161: 1,140,049 | BF161: 1,154,791 | BG161: 1,169,533 | BH161: 1,184,275 | BI161: 1,199,017 | BJ161: 1,213,759 | BK161: 1,228,501 | BL161: 1,228,501 | BM161: 1,228,501 | BN161: 1,326,781 | BO161: 1,341,523 | BP161: 1,356,265 | BQ161: 1,371,007 | BR161: 1,385,749 | BS161: 1,400,491 | BT161: 1,415,233 | BU161: 1,429,975 | BV161: 1,444,717 | BW161: 0 | BX161: 0 | BY161: 0 | BZ161: 0 | CA161: 0 | CB161: 0 | CC161: 0 | CD161: 0 | CE161: 0 | CF161: 0 | CG161: 0 | CH161: 0 | CI161: 0 | CJ161: 0 | CK161: 0 | CL161: 0 | CM161: 0 | CN161: 0 | CO161: 0 | CP161: 0 | CQ161: 0 | CR161: 0 | CS161: 0 | CT161: 0 | CU161: 0 | CV161: 0 | CW161: 0 | CX161: 0 | CY161: 0 | CZ161: 0 | DA161: 0 | DB161: 0 | DC161: 0 | DD161: 0 | DE161: 0 | DF161: 0 | DG161: 0 | DH161: 0 | DI161: 0 | DJ161: 0 | DK161: 0 | DL161: 0 | DM161: 0 | DN161: 0 | DO161: 0 | DP161: 0 | DQ161: 0 | DR161: 0 | DS161: 0 | DT161: 0 | DU161: 0 | DV161: 0 | DW161: 0 | DX161: 0 | DY161: 0 | DZ161: 0 | EA161: 0 | EB161: 0 | EC161: 0 | ED161: 0 | EE161: 0 | EF161: 0 | EG161: 0 | EH161: 0 | EI161: 0 | EJ161: 0 | EK161: 0 | EL161: 0 | EM161: 0 | EN161: 0 | EO161: 0 | EP161: 0 | EQ161: 0 | ER161: 0 | ES161: 0 | ET161: 0 | EU161: 0 | EV161: 0 | EW161: 0 | EX161: 0 | EY161: 0 | EZ161: 0 | FA161: 0 | FB161: 0 | FC161: 0
A162: 162 | G162: 0 | H162: Лабораторные работы | I162: Применяется процентное распределение переработки
A163: 163 | G163: 0 | H163: Лабораторные работы | I163: Применяется процентное распределение переработки | J163: %-ное распределение учета расходов | M163: % | Q163: процесс | T163: 0 | X163: 100.0% | AA163: 0.0% | AB163: 0.0% | AC163: 0.0% | AD163: 0.0% | AE163: 1.0% | AF163: 1.1% | AG163: 1.3% | AH163: 1.4% | AI163: 1.6% | AJ163: 1.7% | AK163: 1.9% | AL163: 2.0% | AM163: 2.2% | AN163: 2.3% | AO163: 2.5% | AP163: 2.5% | AQ163: 2.5% | AR163: 2.5% | AS163: 2.5% | AT163: 2.5% | AU163: 2.5% | AV163: 2.5% | AW163: 2.5% | AX163: 2.5% | AY163: 2.5% | AZ163: 2.5% | BA163: 2.5% | BB163: 2.5% | BC163: 2.5% | BD163: 2.5% | BE163: 2.5% | BF163: 2.5% | BG163: 2.5% | BH163: 2.5% | BI163: 2.5% | BJ163: 2.5% | BK163: 2.5% | BL163: 2.5% | BM163: 2.5% | BN163: 2.5% | BO163: 2.5% | BP163: 2.5% | BQ163: 2.5% | BR163: 2.5% | BS163: 2.5% | BT163: 2.5% | BU163: 2.5% | BV163: 2.5% | BW163: 0.0% | BX163: 0.0% | BY163: 0.0% | BZ163: 0.0% | CA163: 0.0% | CB163: 0.0% | CC163: 0.0% | CD163: 0.0% | CE163: 0.0% | CF163: 0.0% | CG163: 0.0% | CH163: 0.0% | CI163: 0.0% | CJ163: 0.0% | CK163: 0.0% | CL163: 0.0% | CM163: 0.0% | CN163: 0.0% | CO163: 0.0% | CP163: 0.0% | CQ163: 0.0% | CR163: 0.0% | CS163: 0.0% | CT163: 0.0% | CU163: 0.0% | CV163: 0.0% | CW163: 0.0% | CX163: 0.0% | CY163: 0.0% | CZ163: 0.0% | DA163: 0.0% | DB163: 0.0% | DC163: 0.0% | DD163: 0.0% | DE163: 0.0% | DF163: 0.0% | DG163: 0.0% | DH163: 0.0% | DI163: 0.0% | DJ163: 0.0% | DK163: 0.0% | DL163: 0.0% | DM163: 0.0% | DN163: 0.0% | DO163: 0.0% | DP163: 0.0% | DQ163: 0.0% | DR163: 0.0% | DS163: 0.0% | DT163: 0.0% | DU163: 0.0% | DV163: 0.0% | DW163: 0.0% | DX163: 0.0% | DY163: 0.0% | DZ163: 0.0% | EA163: 0.0% | EB163: 0.0% | EC163: 0.0% | ED163: 0.0% | EE163: 0.0% | EF163: 0.0% | EG163: 0.0% | EH163: 0.0% | EI163: 0.0% | EJ163: 0.0% | EK163: 0.0% | EL163: 0.0% | EM163: 0.0% | EN163: 0.0% | EO163: 0.0% | EP163: 0.0% | EQ163: 0.0% | ER163: 0.0% | ES163: 0.0% | ET163: 0.0% | EU163: 0.0% | EV163: 0.0% | EW163: 0.0% | EX163: 0.0% | EY163: 0.0% | EZ163: 0.0% | FA163: 0.0% | FB163: 0.0% | FC163: 0.0%
A164: 164 | G164: 0 | H164: Лабораторные работы | I164: Применяется процентное распределение переработки | J164: обратный порядок распределения учета расхода | M164: руб. | T164: 0 | Y164: обратный порядок процесса | AA164: 0 | AB164: 0 | AC164: 0 | AD164: 0 | AE164: 0 | AF164: 0 | AG164: 0 | AH164: 0 | AI164: 0 | AJ164: 0 | AK164: 0 | AL164: 0 | AM164: 0 | AN164: 0 | AO164: 0 | AP164: 0 | AQ164: 0 | AR164: 0 | AS164: 0 | AT164: 0 | AU164: 0 | AV164: 0 | AW164: 0 | AX164: 0 | AY164: 0 | AZ164: 0 | BA164: 0 | BB164: 0 | BC164: 0 | BD164: 0 | BE164: 0 | BF164: 0 | BG164: 0 | BH164: 0 | BI164: 0 | BJ164: 0 | BK164: 0 | BL164: 0 | BM164: 0 | BN164: 0 | BO164: 0 | BP164: 0 | BQ164: 0 | BR164: 0 | BS164: 0 | BT164: 0 | BU164: 0 | BV164: 0 | BW164: 0 | BX164: 0 | BY164: 0 | BZ164: 0 | CA164: 0 | CB164: 0 | CC164: 0 | CD164: 0 | CE164: 0 | CF164: 0 | CG164: 0 | CH164: 0 | CI164: 0 | CJ164: 0 | CK164: 0 | CL164: 0 | CM164: 0 | CN164: 0 | CO164: 0 | CP164: 0 | CQ164: 0 | CR164: 0 | CS164: 0 | CT164: 0 | CU164: 0 | CV164: 0 | CW164: 0 | CX164: 0 | CY164: 0 | CZ164: 0 | DA164: 0 | DB164: 0 | DC164: 0 | DD164: 0 | DE164: 0 | DF164: 0 | DG164: 0 | DH164: 245,700 | DI164: 245,700 | DJ164: 245,700 | DK164: 245,700 | DL164: 245,700 | DM164: 245,700 | DN164: 245,700 | DO164: 245,700 | DP164: 245,700 | DQ164: 245,700 | DR164: 245,700 | DS164: 245,700 | DT164: 245,700 | DU164: 245,700 | DV164: 245,700 | DW164: 245,700 | DX164: 245,700 | DY164: 245,700 | DZ164: 245,700 | EA164: 245,700 | EB164: 245,700 | EC164: 245,700 | ED164: 245,700 | EE164: 245,700 | EF164: 245,700 | EG164: 245,700 | EH164: 245,700 | EI164: 245,700 | EJ164: 245,700 | EK164: 245,700 | EL164: 245,700 | EM164: 245,700 | EN164: 245,700 | EO164: 245,700 | EP164: 230,958 | EQ164: 216,216 | ER164: 201,474 | ES164: 186,732 | ET164: 171,990 | EU164: 157,248 | EV164: 142,506 | EW164: 127,764 | EX164: 113,022 | EY164: 98,280 | EZ164: 0 | FA164: 0 | FB164: 0 | FC164: 0
A165: 165 | L165: пустая строка
A166: 166
A167: 167 | G167: 0 | H167: Временное строительство | L167: 1 | M167: руб. | O167: 1 | Q167: начисление | X167: 30,000,000 | AA167: 5,000,000 | AB167: 5,000,000 | AC167: 0 | AD167: 0 | AE167: 0 | AF167: 5,000,000 | AG167: 0 | AH167: 0 | AI167: 0 | AJ167: 0 | AK167: 0 | AL167: 0 | AM167: 5,000,000 | AN167: 0 | AO167: 0 | AP167: 0 | AQ167: 0 | AR167: 0 | AS167: 0 | AT167: 0 | AU167: 0 | AV167: 0 | AW167: 5,000,000 | AX167: 0 | AY167: 0 | AZ167: 0 | BA167: 0 | BB167: 0 | BC167: 0 | BD167: 0 | BE167: 0 | BF167: 0 | BG167: 0 | BH167: 0 | BI167: 0 | BJ167: 5,000,000 | BK167: 0 | BL167: 0 | BM167: 0 | BN167: 0 | BO167: 0 | BP167: 0 | BQ167: 0 | BR167: 0 | BS167: 0 | BT167: 0 | BU167: 0 | BV167: 0 | BW167: 0 | BX167: 0 | BY167: 0 | BZ167: 0 | CA167: 0 | CB167: 0 | CC167: 0 | CD167: 0 | CE167: 0 | CF167: 0 | CG167: 0 | CH167: 0 | CI167: 0 | CJ167: 0 | CK167: 0 | CL167: 0 | CM167: 0 | CN167: 0 | CO167: 0 | CP167: 0 | CQ167: 0 | CR167: 0 | CS167: 0 | CT167: 0 | CU167: 0 | CV167: 0 | CW167: 0 | CX167: 0 | CY167: 0 | CZ167: 0 | DA167: 0 | DB167: 0 | DC167: 0 | DD167: 0 | DE167: 0 | DF167: 0 | DG167: 0 | DH167: 0 | DI167: 0 | DJ167: 0 | DK167: 0 | DL167: 0 | DM167: 0 | DN167: 0 | DO167: 0 | DP167: 0 | DQ167: 0 | DR167: 0 | DS167: 0 | DT167: 0 | DU167: 0 | DV167: 0 | DW167: 0 | DX167: 0 | DY167: 0 | DZ167: 0 | EA167: 0 | EB167: 0 | EC167: 0 | ED167: 0 | EE167: 0 | EF167: 0 | EG167: 0 | EH167: 0 | EI167: 0 | EJ167: 0 | EK167: 0 | EL167: 0 | EM167: 0 | EN167: 0 | EO167: 0 | EP167: 0 | EQ167: 0 | ER167: 0 | ES167: 0 | ET167: 0 | EU167: 0 | EV167: 0 | EW167: 0 | EX167: 0 | EY167: 0 | EZ167: 0 | FA167: 0 | FB167: 0 | FC167: 0
A168: 168 | G168: 0 | H168: тип зависимости переменных расходов | I168: Выбираем тип зависимости переменных расходов | P168: * | Q168: натуральные факторы | R168: ^ | S168: 0
A169: 169 | G169: 0 | H169: натуральные факторы переменных расходов маркетинга | I169: Выбираем показатель (фактор) зависимости | P169: * | Q169: Поток запусков освоения месторождений | R169: ^ | S169: 0
A170: 170 | G170: 0 | H170: Временное строительство | I170: Норматив расхода на единицу фактора | M170: руб. | P170: M | Q170: 5,000,000 | S170: 0
A171: 171
A172: 172 | G172: 0 | H172: Временное строительство | L172: 1 | M172: руб. | Q172: оплата | X172: 30,000,000 | AA172: 2,000,000 | AB172: 4,500,000 | AC172: 3,500,000 | AD172: 0 | AE172: 500,000 | AF172: 1,000,000 | AG172: 3,500,000 | AH172: 0 | AI172: 0 | AJ172: 0 | AK172: 0 | AL172: 500,000 | AM172: 1,000,000 | AN172: 3,500,000 | AO172: 0 | AP172: 0 | AQ172: 0 | AR172: 0 | AS172: 0 | AT172: 0 | AU172: 0 | AV172: 500,000 | AW172: 1,000,000 | AX172: 3,500,000 | AY172: 0 | AZ172: 0 | BA172: 0 | BB172: 0 | BC172: 0 | BD172: 0 | BE172: 0 | BF172: 0 | BG172: 0 | BH172: 0 | BI172: 500,000 | BJ172: 1,000,000 | BK172: 3,500,000 | BL172: 0 | BM172: 0 | BN172: 0 | BO172: 0 | BP172: 0 | BQ172: 0 | BR172: 0 | BS172: 0 | BT172: 0 | BU172: 0 | BV172: 0 | BW172: 0 | BX172: 0 | BY172: 0 | BZ172: 0 | CA172: 0 | CB172: 0 | CC172: 0 | CD172: 0 | CE172: 0 | CF172: 0 | CG172: 0 | CH172: 0 | CI172: 0 | CJ172: 0 | CK172: 0 | CL172: 0 | CM172: 0 | CN172: 0 | CO172: 0 | CP172: 0 | CQ172: 0 | CR172: 0 | CS172: 0 | CT172: 0 | CU172: 0 | CV172: 0 | CW172: 0 | CX172: 0 | CY172: 0 | CZ172: 0 | DA172: 0 | DB172: 0 | DC172: 0 | DD172: 0 | DE172: 0 | DF172: 0 | DG172: 0 | DH172: 0 | DI172: 0 | DJ172: 0 | DK172: 0 | DL172: 0 | DM172: 0 | DN172: 0 | DO172: 0 | DP172: 0 | DQ172: 0 | DR172: 0 | DS172: 0 | DT172: 0 | DU172: 0 | DV172: 0 | DW172: 0 | DX172: 0 | DY172: 0 | DZ172: 0 | EA172: 0 | EB172: 0 | EC172: 0 | ED172: 0 | EE172: 0 | EF172: 0 | EG172: 0 | EH172: 0 | EI172: 0 | EJ172: 0 | EK172: 0 | EL172: 0 | EM172: 0 | EN172: 0 | EO172: 0 | EP172: 0 | EQ172: 0 | ER172: 0 | ES172: 0 | ET172: 0 | EU172: 0 | EV172: 0 | EW172: 0 | EX172: 0 | EY172: 0 | EZ172: 0 | FA172: 0 | FB172: 0 | FC172: 0
A173: 173 | G173: 0 | H173: Временное строительство | I173: Задаем через указание % предоплаты и сроков
A174: 174 | G174: 0 | H174: Временное строительство | I174: Задаем через указание % предоплаты и сроков | J174: Размер предоплаты | M174: % | P174: * | Q174: 30.0% | S174: 0
A175: 175 | G175: 0 | H175: Временное строительство | I175: Задаем через указание % предоплаты и сроков | J175: Период оборачиваемости предоплаты (срок) | M175: кол-во дней | P175: * | Q175: 10 | S175: 0
A176: 176 | G176: 0 | H176: Временное строительство | I176: Задаем через указание % предоплаты и сроков | J176: расчет в количестве периодов | M176: кол-во периодов | Q176: 0.3 | S176: 0 | T176: 0
A177: 177 | G177: 0 | H177: Временное строительство | I177: Задаем через указание % предоплаты и сроков | J177: Размер доплаты | M177: % | Q177: 70.0% | S177: 0 | T177: 0
A178: 178 | G178: 0 | H178: Временное строительство | I178: Задаем через указание % предоплаты и сроков | J178: Период оборачиваемости доплат (срок) | M178: кол-во дней | P178: * | Q178: 30 | S178: 0
A179: 179 | G179: 0 | H179: Временное строительство | I179: Задаем через указание % предоплаты и сроков | J179: расчет в количестве периодов | M179: кол-во периодов | Q179: 1.0 | S179: 0 | T179: 0
A180: 180
A181: 181 | G181: 0 | H181: Временное строительство | L181: 1 | M181: руб. | Q181: учет | X181: 30,000,000 | AA181: 5,000,000 | AB181: 5,000,000 | AC181: 0 | AD181: 0 | AE181: 0 | AF181: 5,000,000 | AG181: 0 | AH181: 0 | AI181: 0 | AJ181: 0 | AK181: 0 | AL181: 0 | AM181: 5,000,000 | AN181: 0 | AO181: 0 | AP181: 0 | AQ181: 0 | AR181: 0 | AS181: 0 | AT181: 0 | AU181: 0 | AV181: 0 | AW181: 5,000,000 | AX181: 0 | AY181: 0 | AZ181: 0 | BA181: 0 | BB181: 0 | BC181: 0 | BD181: 0 | BE181: 0 | BF181: 0 | BG181: 0 | BH181: 0 | BI181: 0 | BJ181: 5,000,000 | BK181: 0 | BL181: 0 | BM181: 0 | BN181: 0 | BO181: 0 | BP181: 0 | BQ181: 0 | BR181: 0 | BS181: 0 | BT181: 0 | BU181: 0 | BV181: 0 | BW181: 0 | BX181: 0 | BY181: 0 | BZ181: 0 | CA181: 0 | CB181: 0 | CC181: 0 | CD181: 0 | CE181: 0 | CF181: 0 | CG181: 0 | CH181: 0 | CI181: 0 | CJ181: 0 | CK181: 0 | CL181: 0 | CM181: 0 | CN181: 0 | CO181: 0 | CP181: 0 | CQ181: 0 | CR181: 0 | CS181: 0 | CT181: 0 | CU181: 0 | CV181: 0 | CW181: 0 | CX181: 0 | CY181: 0 | CZ181: 0 | DA181: 0 | DB181: 0 | DC181: 0 | DD181: 0 | DE181: 0 | DF181: 0 | DG181: 0 | DH181: 0 | DI181: 0 | DJ181: 0 | DK181: 0 | DL181: 0 | DM181: 0 | DN181: 0 | DO181: 0 | DP181: 0 | DQ181: 0 | DR181: 0 | DS181: 0 | DT181: 0 | DU181: 0 | DV181: 0 | DW181: 0 | DX181: 0 | DY181: 0 | DZ181: 0 | EA181: 0 | EB181: 0 | EC181: 0 | ED181: 0 | EE181: 0 | EF181: 0 | EG181: 0 | EH181: 0 | EI181: 0 | EJ181: 0 | EK181: 0 | EL181: 0 | EM181: 0 | EN181: 0 | EO181: 0 | EP181: 0 | EQ181: 0 | ER181: 0 | ES181: 0 | ET181: 0 | EU181: 0 | EV181: 0 | EW181: 0 | EX181: 0 | EY181: 0 | EZ181: 0 | FA181: 0 | FB181: 0 | FC181: 0
A182: 182 | G182: 0 | H182: Временное строительство | I182: Задаем через %-ное распределение
A183: 183 | G183: 0 | H183: Временное строительство | I183: Задаем через %-ное распределение | J183: %-ное распределение учета расходов | M183: % | Q183: процесс | T183: 0 | X183: 100.0% | Y183: * | AA183: 100.0%
A184: 184 | G184: 0 | H184: Временное строительство | I184: Задаем через %-ное распределение | J184: обратный порядок распределения учета расхода | M184: % | T184: 0 | Y184: обратный порядок процесса | AA184: 0.0% | AB184: 0.0% | AC184: 0.0% | AD184: 0.0% | AE184: 0.0% | AF184: 0.0% | AG184: 0.0% | AH184: 0.0% | AI184: 0.0% | AJ184: 0.0% | AK184: 0.0% | AL184: 0.0% | AM184: 0.0% | AN184: 0.0% | AO184: 0.0% | AP184: 0.0% | AQ184: 0.0% | AR184: 0.0% | AS184: 0.0% | AT184: 0.0% | AU184: 0.0% | AV184: 0.0% | AW184: 0.0% | AX184: 0.0% | AY184: 0.0% | AZ184: 0.0% | BA184: 0.0% | BB184: 0.0% | BC184: 0.0% | BD184: 0.0% | BE184: 0.0% | BF184: 0.0% | BG184: 0.0% | BH184: 0.0% | BI184: 0.0% | BJ184: 0.0% | BK184: 0.0% | BL184: 0.0% | BM184: 0.0% | BN184: 0.0% | BO184: 0.0% | BP184: 0.0% | BQ184: 0.0% | BR184: 0.0% | BS184: 0.0% | BT184: 0.0% | BU184: 0.0% | BV184: 0.0% | BW184: 0.0% | BX184: 0.0% | BY184: 0.0% | BZ184: 0.0% | CA184: 0.0% | CB184: 0.0% | CC184: 0.0% | CD184: 0.0% | CE184: 0.0% | CF184: 0.0% | CG184: 0.0% | CH184: 0.0% | CI184: 0.0% | CJ184: 0.0% | CK184: 0.0% | CL184: 0.0% | CM184: 0.0% | CN184: 0.0% | CO184: 0.0% | CP184: 0.0% | CQ184: 0.0% | CR184: 0.0% | CS184: 0.0% | CT184: 0.0% | CU184: 0.0% | CV184: 0.0% | CW184: 0.0% | CX184: 0.0% | CY184: 0.0% | CZ184: 0.0% | DA184: 0.0% | DB184: 0.0% | DC184: 0.0% | DD184: 0.0% | DE184: 0.0% | DF184: 0.0% | DG184: 0.0% | DH184: 0.0% | DI184: 0.0% | DJ184: 0.0% | DK184: 0.0% | DL184: 0.0% | DM184: 0.0% | DN184: 0.0% | DO184: 0.0% | DP184: 0.0% | DQ184: 0.0% | DR184: 0.0% | DS184: 0.0% | DT184: 0.0% | DU184: 0.0% | DV184: 0.0% | DW184: 0.0% | DX184: 0.0% | DY184: 0.0% | DZ184: 0.0% | EA184: 0.0% | EB184: 0.0% | EC184: 0.0% | ED184: 0.0% | EE184: 0.0% | EF184: 0.0% | EG184: 0.0% | EH184: 0.0% | EI184: 0.0% | EJ184: 0.0% | EK184: 0.0% | EL184: 0.0% | EM184: 0.0% | EN184: 0.0% | EO184: 0.0% | EP184: 0.0% | EQ184: 0.0% | ER184: 0.0% | ES184: 0.0% | ET184: 0.0% | EU184: 0.0% | EV184: 0.0% | EW184: 0.0% | EX184: 0.0% | EY184: 0.0% | EZ184: 0.0% | FA184: 0.0% | FB184: 0.0% | FC184: 100.0%
A185: 185
A186: 186 | G186: 0 | H186: Транспортировка грузов и персонала | L186: 1 | M186: руб. | O186: 2 | Q186: начисление | X186: 12,000,000 | AA186: 2,000,000 | AB186: 2,000,000 | AC186: 0 | AD186: 0 | AE186: 0 | AF186: 2,000,000 | AG186: 0 | AH186: 0 | AI186: 0 | AJ186: 0 | AK186: 0 | AL186: 0 | AM186: 2,000,000 | AN186: 0 | AO186: 0 | AP186: 0 | AQ186: 0 | AR186: 0 | AS186: 0 | AT186: 0 | AU186: 0 | AV186: 0 | AW186: 2,000,000 | AX186: 0 | AY186: 0 | AZ186: 0 | BA186: 0 | BB186: 0 | BC186: 0 | BD186: 0 | BE186: 0 | BF186: 0 | BG186: 0 | BH186: 0 | BI186: 0 | BJ186: 2,000,000 | BK186: 0 | BL186: 0 | BM186: 0 | BN186: 0 | BO186: 0 | BP186: 0 | BQ186: 0 | BR186: 0 | BS186: 0 | BT186: 0 | BU186: 0 | BV186: 0 | BW186: 0 | BX186: 0 | BY186: 0 | BZ186: 0 | CA186: 0 | CB186: 0 | CC186: 0 | CD186: 0 | CE186: 0 | CF186: 0 | CG186: 0 | CH186: 0 | CI186: 0 | CJ186: 0 | CK186: 0 | CL186: 0 | CM186: 0 | CN186: 0 | CO186: 0 | CP186: 0 | CQ186: 0 | CR186: 0 | CS186: 0 | CT186: 0 | CU186: 0 | CV186: 0 | CW186: 0 | CX186: 0 | CY186: 0 | CZ186: 0 | DA186: 0 | DB186: 0 | DC186: 0 | DD186: 0 | DE186: 0 | DF186: 0 | DG186: 0 | DH186: 0 | DI186: 0 | DJ186: 0 | DK186: 0 | DL186: 0 | DM186: 0 | DN186: 0 | DO186: 0 | DP186: 0 | DQ186: 0 | DR186: 0 | DS186: 0 | DT186: 0 | DU186: 0 | DV186: 0 | DW186: 0 | DX186: 0 | DY186: 0 | DZ186: 0 | EA186: 0 | EB186: 0 | EC186: 0 | ED186: 0 | EE186: 0 | EF186: 0 | EG186: 0 | EH186: 0 | EI186: 0 | EJ186: 0 | EK186: 0 | EL186: 0 | EM186: 0 | EN186: 0 | EO186: 0 | EP186: 0 | EQ186: 0 | ER186: 0 | ES186: 0 | ET186: 0 | EU186: 0 | EV186: 0 | EW186: 0 | EX186: 0 | EY186: 0 | EZ186: 0 | FA186: 0 | FB186: 0 | FC186: 0
A187: 187 | G187: 0 | H187: тип зависимости переменных расходов | I187: Выбираем тип зависимости переменных расходов | P187: * | Q187: натуральные факторы | R187: ^ | S187: 0
A188: 188 | G188: 0 | H188: натуральные факторы переменных расходов маркетинга | I188: Выбираем показатель (фактор) зависимости | P188: * | Q188: Поток запусков освоения месторождений | R188: ^ | S188: 0
A189: 189 | G189: 0 | H189: Транспортировка грузов и персонала | I189: Норматив расхода на единицу фактора | M189: руб. | P189: M | Q189: 2,000,000 | S189: 0
A190: 190
A191: 191 | G191: 0 | H191: Транспортировка грузов и персонала | L191: 1 | M191: руб. | Q191: оплата | X191: 12,000,000 | AA191: 1,866,667 | AB191: 2,000,000 | AC191: 133,333 | AD191: 0 | AE191: 0 | AF191: 1,866,667 | AG191: 133,333 | AH191: 0 | AI191: 0 | AJ191: 0 | AK191: 0 | AL191: 0 | AM191: 1,866,667 | AN191: 133,333 | AO191: 0 | AP191: 0 | AQ191: 0 | AR191: 0 | AS191: 0 | AT191: 0 | AU191: 0 | AV191: 0 | AW191: 1,866,667 | AX191: 133,333 | AY191: 0 | AZ191: 0 | BA191: 0 | BB191: 0 | BC191: 0 | BD191: 0 | BE191: 0 | BF191: 0 | BG191: 0 | BH191: 0 | BI191: 0 | BJ191: 1,866,667 | BK191: 133,333 | BL191: 0 | BM191: 0 | BN191: 0 | BO191: 0 | BP191: 0 | BQ191: 0 | BR191: 0 | BS191: 0 | BT191: 0 | BU191: 0 | BV191: 0 | BW191: 0 | BX191: 0 | BY191: 0 | BZ191: 0 | CA191: 0 | CB191: 0 | CC191: 0 | CD191: 0 | CE191: 0 | CF191: 0 | CG191: 0 | CH191: 0 | CI191: 0 | CJ191: 0 | CK191: 0 | CL191: 0 | CM191: 0 | CN191: 0 | CO191: 0 | CP191: 0 | CQ191: 0 | CR191: 0 | CS191: 0 | CT191: 0 | CU191: 0 | CV191: 0 | CW191: 0 | CX191: 0 | CY191: 0 | CZ191: 0 | DA191: 0 | DB191: 0 | DC191: 0 | DD191: 0 | DE191: 0 | DF191: 0 | DG191: 0 | DH191: 0 | DI191: 0 | DJ191: 0 | DK191: 0 | DL191: 0 | DM191: 0 | DN191: 0 | DO191: 0 | DP191: 0 | DQ191: 0 | DR191: 0 | DS191: 0 | DT191: 0 | DU191: 0 | DV191: 0 | DW191: 0 | DX191: 0 | DY191: 0 | DZ191: 0 | EA191: 0 | EB191: 0 | EC191: 0 | ED191: 0 | EE191: 0 | EF191: 0 | EG191: 0 | EH191: 0 | EI191: 0 | EJ191: 0 | EK191: 0 | EL191: 0 | EM191: 0 | EN191: 0 | EO191: 0 | EP191: 0 | EQ191: 0 | ER191: 0 | ES191: 0 | ET191: 0 | EU191: 0 | EV191: 0 | EW191: 0 | EX191: 0 | EY191: 0 | EZ191: 0 | FA191: 0 | FB191: 0 | FC191: 0
A192: 192 | G192: 0 | H192: Транспортировка грузов и персонала | I192: Задаем через указание % предоплаты и сроков
A193: 193 | G193: 0 | H193: Транспортировка грузов и персонала | I193: Задаем через указание % предоплаты и сроков | J193: Размер предоплаты | M193: % | P193: * | Q193: 0.0% | S193: 0
A194: 194 | G194: 0 | H194: Транспортировка грузов и персонала | I194: Задаем через указание % предоплаты и сроков | J194: Период оборачиваемости предоплаты (срок) | M194: кол-во дней | P194: * | Q194: 10 | S194: 0
A195: 195 | G195: 0 | H195: Транспортировка грузов и персонала | I195: Задаем через указание % предоплаты и сроков | J195: расчет в количестве периодов | M195: кол-во периодов | Q195: 0.3 | S195: 0 | T195: 0
A196: 196 | G196: 0 | H196: Транспортировка грузов и персонала | I196: Задаем через указание % предоплаты и сроков | J196: Размер доплаты | M196: % | Q196: 100.0% | S196: 0 | T196: 0
A197: 197 | G197: 0 | H197: Транспортировка грузов и персонала | I197: Задаем через указание % предоплаты и сроков | J197: Период оборачиваемости доплат (срок) | M197: кол-во дней | P197: * | Q197: 2 | S197: 0
A198: 198 | G198: 0 | H198: Транспортировка грузов и персонала | I198: Задаем через указание % предоплаты и сроков | J198: расчет в количестве периодов | M198: кол-во периодов | Q198: 0.1 | S198: 0 | T198: 0
A199: 199
A200: 200 | G200: 0 | H200: Транспортировка грузов и персонала | L200: 1 | M200: руб. | Q200: учет | X200: 12,000,000 | AA200: 1,000,000 | AB200: 1,400,000 | AC200: 1,000,000 | AD200: 600,000 | AE200: 0 | AF200: 1,000,000 | AG200: 400,000 | AH200: 600,000 | AI200: 0 | AJ200: 0 | AK200: 0 | AL200: 0 | AM200: 1,000,000 | AN200: 400,000 | AO200: 600,000 | AP200: 0 | AQ200: 0 | AR200: 0 | AS200: 0 | AT200: 0 | AU200: 0 | AV200: 0 | AW200: 1,000,000 | AX200: 400,000 | AY200: 600,000 | AZ200: 0 | BA200: 0 | BB200: 0 | BC200: 0 | BD200: 0 | BE200: 0 | BF200: 0 | BG200: 0 | BH200: 0 | BI200: 0 | BJ200: 1,000,000 | BK200: 400,000 | BL200: 600,000 | BM200: 0 | BN200: 0 | BO200: 0 | BP200: 0 | BQ200: 0 | BR200: 0 | BS200: 0 | BT200: 0 | BU200: 0 | BV200: 0 | BW200: 0 | BX200: 0 | BY200: 0 | BZ200: 0 | CA200: 0 | CB200: 0 | CC200: 0 | CD200: 0 | CE200: 0 | CF200: 0 | CG200: 0 | CH200: 0 | CI200: 0 | CJ200: 0 | CK200: 0 | CL200: 0 | CM200: 0 | CN200: 0 | CO200: 0 | CP200: 0 | CQ200: 0 | CR200: 0 | CS200: 0 | CT200: 0 | CU200: 0 | CV200: 0 | CW200: 0 | CX200: 0 | CY200: 0 | CZ200: 0 | DA200: 0 | DB200: 0 | DC200: 0 | DD200: 0 | DE200: 0 | DF200: 0 | DG200: 0 | DH200: 0 | DI200: 0 | DJ200: 0 | DK200: 0 | DL200: 0 | DM200: 0 | DN200: 0 | DO200: 0 | DP200: 0 | DQ200: 0 | DR200: 0 | DS200: 0 | DT200: 0 | DU200: 0 | DV200: 0 | DW200: 0 | DX200: 0 | DY200: 0 | DZ200: 0 | EA200: 0 | EB200: 0 | EC200: 0 | ED200: 0 | EE200: 0 | EF200: 0 | EG200: 0 | EH200: 0 | EI200: 0 | EJ200: 0 | EK200: 0 | EL200: 0 | EM200: 0 | EN200: 0 | EO200: 0 | EP200: 0 | EQ200: 0 | ER200: 0 | ES200: 0 | ET200: 0 | EU200: 0 | EV200: 0 | EW200: 0 | EX200: 0 | EY200: 0 | EZ200: 0 | FA200: 0 | FB200: 0 | FC200: 0
... 804 more rows

Sheet CapEx
Y1: номер столбца: | AA1: 27 | AB1: 28 | AC1: 29 | AD1: 30 | AE1: 31 | AF1: 32 | AG1: 33 | AH1: 34 | AI1: 35 | AJ1: 36 | AK1: 37 | AL1: 38 | AM1: 39 | AN1: 40 | AO1: 41 | AP1: 42 | AQ1: 43 | AR1: 44 | AS1: 45 | AT1: 46 | AU1: 47 | AV1: 48 | AW1: 49 | AX1: 50 | AY1: 51 | AZ1: 52 | BA1: 53 | BB1: 54 | BC1: 55 | BD1: 56 | BE1: 57 | BF1: 58 | BG1: 59 | BH1: 60 | BI1: 61 | BJ1: 62 | BK1: 63 | BL1: 64 | BM1: 65 | BN1: 66 | BO1: 67 | BP1: 68 | BQ1: 69 | BR1: 70 | BS1: 71 | BT1: 72 | BU1: 73 | BV1: 74 | BW1: 75 | BX1: 76 | BY1: 77 | BZ1: 78 | CA1: 79 | CB1: 80 | CC1: 81 | CD1: 82 | CE1: 83 | CF1: 84 | CG1: 85 | CH1: 86 | CI1: 87 | CJ1: 88 | CK1: 89 | CL1: 90 | CM1: 91 | CN1: 92 | CO1: 93 | CP1: 94 | CQ1: 95 | CR1: 96 | CS1: 97 | CT1: 98 | CU1: 99 | CV1: 100 | CW1: 101 | CX1: 102 | CY1: 103 | CZ1: 104 | DA1: 105 | DB1: 106 | DC1: 107 | DD1: 108 | DE1: 109 | DF1: 110 | DG1: 111 | DH1: 112 | DI1: 113 | DJ1: 114 | DK1: 115 | DL1: 116 | DM1: 117 | DN1: 118 | DO1: 119 | DP1: 120 | DQ1: 121 | DR1: 122 | DS1: 123 | DT1: 124 | DU1: 125 | DV1: 126 | DW1: 127 | DX1: 128 | DY1: 129 | DZ1: 130 | EA1: 131 | EB1: 132 | EC1: 133 | ED1: 134 | EE1: 135 | EF1: 136 | EG1: 137 | EH1: 138 | EI1: 139 | EJ1: 140 | EK1: 141 | EL1: 142 | EM1: 143 | EN1: 144 | EO1: 145 | EP1: 146 | EQ1: 147 | ER1: 148 | ES1: 149 | ET1: 150 | EU1: 151 | EV1: 152 | EW1: 153 | EX1: 154 | EY1: 155 | EZ1: 156 | FA1: 157 | FB1: 158 | FC1: 159
Y2: номер периода модели: | AA2: 1 | AB2: 2 | AC2: 3 | AD2: 4 | AE2: 5 | AF2: 6 | AG2: 7 | AH2: 8 | AI2: 9 | AJ2: 10 | AK2: 11 | AL2: 12 | AM2: 13 | AN2: 14 | AO2: 15 | AP2: 16 | AQ2: 17 | AR2: 18 | AS2: 19 | AT2: 20 | AU2: 21 | AV2: 22 | AW2: 23 | AX2: 24 | AY2: 25 | AZ2: 26 | BA2: 27 | BB2: 28 | BC2: 29 | BD2: 30 | BE2: 31 | BF2: 32 | BG2: 33 | BH2: 34 | BI2: 35 | BJ2: 36 | BK2: 37 | BL2: 38 | BM2: 39 | BN2: 40 | BO2: 41 | BP2: 42 | BQ2: 43 | BR2: 44 | BS2: 45 | BT2: 46 | BU2: 47 | BV2: 48 | BW2: 49 | BX2: 50 | BY2: 51 | BZ2: 52 | CA2: 53 | CB2: 54 | CC2: 55 | CD2: 56 | CE2: 57 | CF2: 58 | CG2: 59 | CH2: 60 | CI2: 61 | CJ2: 62 | CK2: 63 | CL2: 64 | CM2: 65 | CN2: 66 | CO2: 67 | CP2: 68 | CQ2: 69 | CR2: 70 | CS2: 71 | CT2: 72 | CU2: 73 | CV2: 74 | CW2: 75 | CX2: 76 | CY2: 77 | CZ2: 78 | DA2: 79 | DB2: 80 | DC2: 81 | DD2: 82 | DE2: 83 | DF2: 84 | DG2: 85 | DH2: 86 | DI2: 87 | DJ2: 88 | DK2: 89 | DL2: 90 | DM2: 91 | DN2: 92 | DO2: 93 | DP2: 94 | DQ2: 95 | DR2: 96 | DS2: 97 | DT2: 98 | DU2: 99 | DV2: 100 | DW2: 101 | DX2: 102 | DY2: 103 | DZ2: 104 | EA2: 105 | EB2: 106 | EC2: 107 | ED2: 108 | EE2: 109 | EF2: 110 | EG2: 111 | EH2: 112 | EI2: 113 | EJ2: 114 | EK2: 115 | EL2: 116 | EM2: 117 | EN2: 118 | EO2: 119 | EP2: 120 | EQ2: 121 | ER2: 122 | ES2: 123 | ET2: 124 | EU2: 125 | EV2: 126 | EW2: 127 | EX2: 128 | EY2: 129 | EZ2: 130 | FA2: 131 | FB2: 132 | FC2: 133
Y3: номер факт-периода:
Y4: номер план-периода: | AA4: 1 | AB4: 2 | AC4: 3 | AD4: 4 | AE4: 5 | AF4: 6 | AG4: 7 | AH4: 8 | AI4: 9 | AJ4: 10 | AK4: 11 | AL4: 12 | AM4: 13 | AN4: 14 | AO4: 15 | AP4: 16 | AQ4: 17 | AR4: 18 | AS4: 19 | AT4: 20 | AU4: 21 | AV4: 22 | AW4: 23 | AX4: 24 | AY4: 25 | AZ4: 26 | BA4: 27 | BB4: 28 | BC4: 29 | BD4: 30 | BE4: 31 | BF4: 32 | BG4: 33 | BH4: 34 | BI4: 35 | BJ4: 36 | BK4: 37 | BL4: 38 | BM4: 39 | BN4: 40 | BO4: 41 | BP4: 42 | BQ4: 43 | BR4: 44 | BS4: 45 | BT4: 46 | BU4: 47 | BV4: 48
Y5: число даты начала: | AA5: 1 | AB5: 1 | AC5: 1 | AD5: 1 | AE5: 1 | AF5: 1 | AG5: 1 | AH5: 1 | AI5: 1 | AJ5: 1 | AK5: 1 | AL5: 1 | AM5: 1 | AN5: 1 | AO5: 1 | AP5: 1 | AQ5: 1 | AR5: 1 | AS5: 1 | AT5: 1 | AU5: 1 | AV5: 1 | AW5: 1 | AX5: 1 | AY5: 1 | AZ5: 1 | BA5: 1 | BB5: 1 | BC5: 1 | BD5: 1 | BE5: 1 | BF5: 1 | BG5: 1 | BH5: 1 | BI5: 1 | BJ5: 1 | BK5: 1 | BL5: 1 | BM5: 1 | BN5: 1 | BO5: 1 | BP5: 1 | BQ5: 1 | BR5: 1 | BS5: 1 | BT5: 1 | BU5: 1 | BV5: 1
Y6: номер месяца даты начала: | AA6: 9 | AB6: 10 | AC6: 11 | AD6: 12 | AE6: 1 | AF6: 2 | AG6: 3 | AH6: 4 | AI6: 5 | AJ6: 6 | AK6: 7 | AL6: 8 | AM6: 9 | AN6: 10 | AO6: 11 | AP6: 12 | AQ6: 1 | AR6: 2 | AS6: 3 | AT6: 4 | AU6: 5 | AV6: 6 | AW6: 7 | AX6: 8 | AY6: 9 | AZ6: 10 | BA6: 11 | BB6: 12 | BC6: 1 | BD6: 2 | BE6: 3 | BF6: 4 | BG6: 5 | BH6: 6 | BI6: 7 | BJ6: 8 | BK6: 9 | BL6: 10 | BM6: 11 | BN6: 12 | BO6: 1 | BP6: 2 | BQ6: 3 | BR6: 4 | BS6: 5 | BT6: 6 | BU6: 7 | BV6: 8
Y7: год даты начала: | AA7: 21 | AB7: 21 | AC7: 21 | AD7: 21 | AE7: 22 | AF7: 22 | AG7: 22 | AH7: 22 | AI7: 22 | AJ7: 22 | AK7: 22 | AL7: 22 | AM7: 22 | AN7: 22 | AO7: 22 | AP7: 22 | AQ7: 23 | AR7: 23 | AS7: 23 | AT7: 23 | AU7: 23 | AV7: 23 | AW7: 23 | AX7: 23 | AY7: 23 | AZ7: 23 | BA7: 23 | BB7: 23 | BC7: 24 | BD7: 24 | BE7: 24 | BF7: 24 | BG7: 24 | BH7: 24 | BI7: 24 | BJ7: 24 | BK7: 24 | BL7: 24 | BM7: 24 | BN7: 24 | BO7: 25 | BP7: 25 | BQ7: 25 | BR7: 25 | BS7: 25 | BT7: 25 | BU7: 25 | BV7: 25
Y8: число даты окончания: | AA8: 30 | AB8: 31 | AC8: 30 | AD8: 31 | AE8: 31 | AF8: 28 | AG8: 31 | AH8: 30 | AI8: 31 | AJ8: 30 | AK8: 31 | AL8: 31 | AM8: 30 | AN8: 31 | AO8: 30 | AP8: 31 | AQ8: 31 | AR8: 28 | AS8: 31 | AT8: 30 | AU8: 31 | AV8: 30 | AW8: 31 | AX8: 31 | AY8: 30 | AZ8: 31 | BA8: 30 | BB8: 31 | BC8: 31 | BD8: 29 | BE8: 31 | BF8: 30 | BG8: 31 | BH8: 30 | BI8: 31 | BJ8: 31 | BK8: 30 | BL8: 31 | BM8: 30 | BN8: 31 | BO8: 31 | BP8: 28 | BQ8: 31 | BR8: 30 | BS8: 31 | BT8: 30 | BU8: 31 | BV8: 31
Y9: номер месяца даты окончания: | AA9: 9 | AB9: 10 | AC9: 11 | AD9: 12 | AE9: 1 | AF9: 2 | AG9: 3 | AH9: 4 | AI9: 5 | AJ9: 6 | AK9: 7 | AL9: 8 | AM9: 9 | AN9: 10 | AO9: 11 | AP9: 12 | AQ9: 1 | AR9: 2 | AS9: 3 | AT9: 4 | AU9: 5 | AV9: 6 | AW9: 7 | AX9: 8 | AY9: 9 | AZ9: 10 | BA9: 11 | BB9: 12 | BC9: 1 | BD9: 2 | BE9: 3 | BF9: 4 | BG9: 5 | BH9: 6 | BI9: 7 | BJ9: 8 | BK9: 9 | BL9: 10 | BM9: 11 | BN9: 12 | BO9: 1 | BP9: 2 | BQ9: 3 | BR9: 4 | BS9: 5 | BT9: 6 | BU9: 7 | BV9: 8
Y10: год даты окончания: | AA10: 21 | AB10: 21 | AC10: 21 | AD10: 21 | AE10: 22 | AF10: 22 | AG10: 22 | AH10: 22 | AI10: 22 | AJ10: 22 | AK10: 22 | AL10: 22 | AM10: 22 | AN10: 22 | AO10: 22 | AP10: 22 | AQ10: 23 | AR10: 23 | AS10: 23 | AT10: 23 | AU10: 23 | AV10: 23 | AW10: 23 | AX10: 23 | AY10: 23 | AZ10: 23 | BA10: 23 | BB10: 23 | BC10: 24 | BD10: 24 | BE10: 24 | BF10: 24 | BG10: 24 | BH10: 24 | BI10: 24 | BJ10: 24 | BK10: 24 | BL10: 24 | BM10: 24 | BN10: 24 | BO10: 25 | BP10: 25 | BQ10: 25 | BR10: 25 | BS10: 25 | BT10: 25 | BU10: 25 | BV10: 25
F11: CapEx | I11: Календарный план-график капитальных затрат | Q11: все включает НДС | X11: 2021-09-01 | AA11: 2021-09-01 | AB11: 2021-10-01 | AC11: 2021-11-01 | AD11: 2021-12-01 | AE11: 2022-01-01 | AF11: 2022-02-01 | AG11: 2022-03-01 | AH11: 2022-04-01 | AI11: 2022-05-01 | AJ11: 2022-06-01 | AK11: 2022-07-01 | AL11: 2022-08-01 | AM11: 2022-09-01 | AN11: 2022-10-01 | AO11: 2022-11-01 | AP11: 2022-12-01 | AQ11: 2023-01-01 | AR11: 2023-02-01 | AS11: 2023-03-01 | AT11: 2023-04-01 | AU11: 2023-05-01 | AV11: 2023-06-01 | AW11: 2023-07-01 | AX11: 2023-08-01 | AY11: 2023-09-01 | AZ11: 2023-10-01 | BA11: 2023-11-01 | BB11: 2023-12-01 | BC11: 2024-01-01 | BD11: 2024-02-01 | BE11: 2024-03-01 | BF11: 2024-04-01 | BG11: 2024-05-01 | BH11: 2024-06-01 | BI11: 2024-07-01 | BJ11: 2024-08-01 | BK11: 2024-09-01 | BL11: 2024-10-01 | BM11: 2024-11-01 | BN11: 2024-12-01 | BO11: 2025-01-01 | BP11: 2025-02-01 | BQ11: 2025-03-01 | BR11: 2025-04-01 | BS11: 2025-05-01 | BT11: 2025-06-01 | BU11: 2025-07-01 | BV11: 2025-08-01
H12: тип листа | Q12: расчетный | X12: 2025-08-31 | AA12: 2021-09-30 | AB12: 2021-10-31 | AC12: 2021-11-30 | AD12: 2021-12-31 | AE12: 2022-01-31 | AF12: 2022-02-28 | AG12: 2022-03-31 | AH12: 2022-04-30 | AI12: 2022-05-31 | AJ12: 2022-06-30 | AK12: 2022-07-31 | AL12: 2022-08-31 | AM12: 2022-09-30 | AN12: 2022-10-31 | AO12: 2022-11-30 | AP12: 2022-12-31 | AQ12: 2023-01-31 | AR12: 2023-02-28 | AS12: 2023-03-31 | AT12: 2023-04-30 | AU12: 2023-05-31 | AV12: 2023-06-30 | AW12: 2023-07-31 | AX12: 2023-08-31 | AY12: 2023-09-30 | AZ12: 2023-10-31 | BA12: 2023-11-30 | BB12: 2023-12-31 | BC12: 2024-01-31 | BD12: 2024-02-29 | BE12: 2024-03-31 | BF12: 2024-04-30 | BG12: 2024-05-31 | BH12: 2024-06-30 | BI12: 2024-07-31 | BJ12: 2024-08-31 | BK12: 2024-09-30 | BL12: 2024-10-31 | BM12: 2024-11-30 | BN12: 2024-12-31 | BO12: 2025-01-31 | BP12: 2025-02-28 | BQ12: 2025-03-31 | BR12: 2025-04-30 | BS12: 2025-05-31 | BT12: 2025-06-30 | BU12: 2025-07-31 | BV12: 2025-08-31
H13: показатель | M13: ед.изм. | Q13: значение | X13: итого | AA13: 2021-09-01 | AB13: 2021-10-01 | AC13: 2021-11-01 | AD13: 2021-12-01 | AE13: 2022-01-01 | AF13: 2022-02-01 | AG13: 2022-03-01 | AH13: 2022-04-01 | AI13: 2022-05-01 | AJ13: 2022-06-01 | AK13: 2022-07-01 | AL13: 2022-08-01 | AM13: 2022-09-01 | AN13: 2022-10-01 | AO13: 2022-11-01 | AP13: 2022-12-01 | AQ13: 2023-01-01 | AR13: 2023-02-01 | AS13: 2023-03-01 | AT13: 2023-04-01 | AU13: 2023-05-01 | AV13: 2023-06-01 | AW13: 2023-07-01 | AX13: 2023-08-01 | AY13: 2023-09-01 | AZ13: 2023-10-01 | BA13: 2023-11-01 | BB13: 2023-12-01 | BC13: 2024-01-01 | BD13: 2024-02-01 | BE13: 2024-03-01 | BF13: 2024-04-01 | BG13: 2024-05-01 | BH13: 2024-06-01 | BI13: 2024-07-01 | BJ13: 2024-08-01 | BK13: 2024-09-01 | BL13: 2024-10-01 | BM13: 2024-11-01 | BN13: 2024-12-01 | BO13: 2025-01-01 | BP13: 2025-02-01 | BQ13: 2025-03-01 | BR13: 2025-04-01 | BS13: 2025-05-01 | BT13: 2025-06-01 | BU13: 2025-07-01 | BV13: 2025-08-01
D14: 0 | E14: 0 | F14: 0 | G14: 0 | S14: 0 | T14: 0
A15: 15 | H15: разработка финмоделей: https://mngmnt.ru/ | Y15: обратный порядок периодизации | AA15: 133 | AB15: 132 | AC15: 131 | AD15: 130 | AE15: 129 | AF15: 128 | AG15: 127 | AH15: 126 | AI15: 125 | AJ15: 124 | AK15: 123 | AL15: 122 | AM15: 121 | AN15: 120 | AO15: 119 | AP15: 118 | AQ15: 117 | AR15: 116 | AS15: 115 | AT15: 114 | AU15: 113 | AV15: 112 | AW15: 111 | AX15: 110 | AY15: 109 | AZ15: 108 | BA15: 107 | BB15: 106 | BC15: 105 | BD15: 104 | BE15: 103 | BF15: 102 | BG15: 101 | BH15: 100 | BI15: 99 | BJ15: 98 | BK15: 97 | BL15: 96 | BM15: 95 | BN15: 94 | BO15: 93 | BP15: 92 | BQ15: 91 | BR15: 90 | BS15: 89 | BT15: 88 | BU15: 87 | BV15: 86 | BW15: 85 | BX15: 84 | BY15: 83 | BZ15: 82 | CA15: 81 | CB15: 80 | CC15: 79 | CD15: 78 | CE15: 77 | CF15: 76 | CG15: 75 | CH15: 74 | CI15: 73 | CJ15: 72 | CK15: 71 | CL15: 70 | CM15: 69 | CN15: 68 | CO15: 67 | CP15: 66 | CQ15: 65 | CR15: 64 | CS15: 63 | CT15: 62 | CU15: 61 | CV15: 60 | CW15: 59 | CX15: 58 | CY15: 57 | CZ15: 56 | DA15: 55 | DB15: 54 | DC15: 53 | DD15: 52 | DE15: 51 | DF15: 50 | DG15: 49 | DH15: 48 | DI15: 47 | DJ15: 46 | DK15: 45 | DL15: 44 | DM15: 43 | DN15: 42 | DO15: 41 | DP15: 40 | DQ15: 39 | DR15: 38 | DS15: 37 | DT15: 36 | DU15: 35 | DV15: 34 | DW15: 33 | DX15: 32 | DY15: 31 | DZ15: 30 | EA15: 29 | EB15: 28 | EC15: 27 | ED15: 26 | EE15: 25 | EF15: 24 | EG15: 23 | EH15: 22 | EI15: 21 | EJ15: 20 | EK15: 19 | EL15: 18 | EM15: 17 | EN15: 16 | EO15: 15 | EP15: 14 | EQ15: 13 | ER15: 12 | ES15: 11 | ET15: 10 | EU15: 9 | EV15: 8 | EW15: 7 | EX15: 6 | EY15: 5 | EZ15: 4 | FA15: 3 | FB15: 2 | FC15: 1
A16: 16 | G16: 0 | H16: План-график капзатрат этапа ГРР | M16: руб. | T16: 0 | X16: 1,240,000,000 | AA16: 71,250,000 | AB16: 130,000,000 | AC16: 130,000,000 | AD16: 226,250,000 | AE16: 155,000,000 | AF16: 96,250,000 | AG16: 180,000,000 | AH16: 83,750,000 | AI16: 83,750,000 | AJ16: 83,750,000 | AK16: 0 | AL16: 0 | AM16: 0 | AN16: 0 | AO16: 0 | AP16: 0 | AQ16: 0 | AR16: 0 | AS16: 0 | AT16: 0 | AU16: 0 | AV16: 0 | AW16: 0 | AX16: 0 | AY16: 0 | AZ16: 0 | BA16: 0 | BB16: 0 | BC16: 0 | BD16: 0 | BE16: 0 | BF16: 0 | BG16: 0 | BH16: 0 | BI16: 0 | BJ16: 0 | BK16: 0 | BL16: 0 | BM16: 0 | BN16: 0 | BO16: 0 | BP16: 0 | BQ16: 0 | BR16: 0 | BS16: 0 | BT16: 0 | BU16: 0 | BV16: 0 | BW16: 0 | BX16: 0 | BY16: 0 | BZ16: 0 | CA16: 0 | CB16: 0 | CC16: 0 | CD16: 0 | CE16: 0 | CF16: 0 | CG16: 0 | CH16: 0 | CI16: 0 | CJ16: 0 | CK16: 0 | CL16: 0 | CM16: 0 | CN16: 0 | CO16: 0 | CP16: 0 | CQ16: 0 | CR16: 0 | CS16: 0 | CT16: 0 | CU16: 0 | CV16: 0 | CW16: 0 | CX16: 0 | CY16: 0 | CZ16: 0 | DA16: 0 | DB16: 0 | DC16: 0 | DD16: 0 | DE16: 0 | DF16: 0 | DG16: 0 | DH16: 0 | DI16: 0 | DJ16: 0 | DK16: 0 | DL16: 0 | DM16: 0 | DN16: 0 | DO16: 0 | DP16: 0 | DQ16: 0 | DR16: 0 | DS16: 0 | DT16: 0 | DU16: 0 | DV16: 0 | DW16: 0 | DX16: 0 | DY16: 0 | DZ16: 0 | EA16: 0 | EB16: 0 | EC16: 0 | ED16: 0 | EE16: 0 | EF16: 0 | EG16: 0 | EH16: 0 | EI16: 0 | EJ16: 0 | EK16: 0 | EL16: 0 | EM16: 0 | EN16: 0 | EO16: 0 | EP16: 0 | EQ16: 0 | ER16: 0 | ES16: 0 | ET16: 0 | EU16: 0 | EV16: 0 | EW16: 0 | EX16: 0 | EY16: 0 | EZ16: 0 | FA16: 0 | FB16: 0 | FC16: 0
A17: 17 | G17: 0 | H17: План-график капзатрат этапа ГРР | I17: Капзатраты этапа ГРР по месторождению-1 | M17: руб. // % | P17: * | Q17: 285,000,000 | S17: 0 | T17: 0 | X17: 100.00% | Y17: * | AA17: 25.00% | AB17: 25.00% | AC17: 25.00% | AD17: 25.00% | AE17: 0.00% | AF17: 0.00% | AG17: 0.00% | AH17: 0.00% | AI17: 0.00% | AJ17: 0.00% | AK17: 0.00% | AL17: 0.00% | AM17: 0.00% | AN17: 0.00% | AO17: 0.00% | AP17: 0.00% | AQ17: 0.00% | AR17: 0.00% | AS17: 0.00% | AT17: 0.00% | AU17: 0.00% | AV17: 0.00% | AW17: 0.00% | AX17: 0.00% | AY17: 0.00% | AZ17: 0.00% | BA17: 0.00% | BB17: 0.00% | BC17: 0.00% | BD17: 0.00% | BE17: 0.00% | BF17: 0.00% | BG17: 0.00% | BH17: 0.00% | BI17: 0.00% | BJ17: 0.00% | BK17: 0.00% | BL17: 0.00% | BM17: 0.00% | BN17: 0.00% | BO17: 0.00% | BP17: 0.00% | BQ17: 0.00% | BR17: 0.00% | BS17: 0.00% | BT17: 0.00% | BU17: 0.00% | BV17: 0.00% | BW17: 0.00% | BX17: 0.00% | BY17: 0.00% | BZ17: 0.00% | CA17: 0.00% | CB17: 0.00% | CC17: 0.00% | CD17: 0.00% | CE17: 0.00% | CF17: 0.00% | CG17: 0.00% | CH17: 0.00% | CI17: 0.00% | CJ17: 0.00% | CK17: 0.00% | CL17: 0.00% | CM17: 0.00% | CN17: 0.00% | CO17: 0.00% | CP17: 0.00% | CQ17: 0.00% | CR17: 0.00% | CS17: 0.00% | CT17: 0.00% | CU17: 0.00% | CV17: 0.00% | CW17: 0.00% | CX17: 0.00% | CY17: 0.00% | CZ17: 0.00% | DA17: 0.00% | DB17: 0.00% | DC17: 0.00% | DD17: 0.00% | DE17: 0.00% | DF17: 0.00% | DG17: 0.00% | DH17: 0.00% | DI17: 0.00% | DJ17: 0.00% | DK17: 0.00% | DL17: 0.00% | DM17: 0.00% | DN17: 0.00% | DO17: 0.00% | DP17: 0.00% | DQ17: 0.00% | DR17: 0.00% | DS17: 0.00% | DT17: 0.00% | DU17: 0.00% | DV17: 0.00% | DW17: 0.00% | DX17: 0.00% | DY17: 0.00% | DZ17: 0.00% | EA17: 0.00% | EB17: 0.00% | EC17: 0.00% | ED17: 0.00% | EE17: 0.00% | EF17: 0.00% | EG17: 0.00% | EH17: 0.00% | EI17: 0.00% | EJ17: 0.00% | EK17: 0.00% | EL17: 0.00% | EM17: 0.00% | EN17: 0.00% | EO17: 0.00% | EP17: 0.00% | EQ17: 0.00% | ER17: 0.00% | ES17: 0.00% | ET17: 0.00% | EU17: 0.00% | EV17: 0.00% | EW17: 0.00% | EX17: 0.00% | EY17: 0.00% | EZ17: 0.00% | FA17: 0.00% | FB17: 0.00% | FC17: 0.00%
A18: 18 | G18: 0 | H18: План-график капзатрат этапа ГРР | I18: Капзатраты этапа ГРР по месторождению-2 | M18: руб. // % | P18: * | Q18: 235,000,000 | S18: 0 | T18: 0 | X18: 100.00% | Y18: * | AA18: 0.00% | AB18: 25.00% | AC18: 25.00% | AD18: 25.00% | AE18: 25.00% | AF18: 0.00% | AG18: 0.00% | AH18: 0.00% | AI18: 0.00% | AJ18: 0.00% | AK18: 0.00% | AL18: 0.00% | AM18: 0.00% | AN18: 0.00% | AO18: 0.00% | AP18: 0.00% | AQ18: 0.00% | AR18: 0.00% | AS18: 0.00% | AT18: 0.00% | AU18: 0.00% | AV18: 0.00% | AW18: 0.00% | AX18: 0.00% | AY18: 0.00% | AZ18: 0.00% | BA18: 0.00% | BB18: 0.00% | BC18: 0.00% | BD18: 0.00% | BE18: 0.00% | BF18: 0.00% | BG18: 0.00% | BH18: 0.00% | BI18: 0.00% | BJ18: 0.00% | BK18: 0.00% | BL18: 0.00% | BM18: 0.00% | BN18: 0.00% | BO18: 0.00% | BP18: 0.00% | BQ18: 0.00% | BR18: 0.00% | BS18: 0.00% | BT18: 0.00% | BU18: 0.00% | BV18: 0.00% | BW18: 0.00% | BX18: 0.00% | BY18: 0.00% | BZ18: 0.00% | CA18: 0.00% | CB18: 0.00% | CC18: 0.00% | CD18: 0.00% | CE18: 0.00% | CF18: 0.00% | CG18: 0.00% | CH18: 0.00% | CI18: 0.00% | CJ18: 0.00% | CK18: 0.00% | CL18: 0.00% | CM18: 0.00% | CN18: 0.00% | CO18: 0.00% | CP18: 0.00% | CQ18: 0.00% | CR18: 0.00% | CS18: 0.00% | CT18: 0.00% | CU18: 0.00% | CV18: 0.00% | CW18: 0.00% | CX18: 0.00% | CY18: 0.00% | CZ18: 0.00% | DA18: 0.00% | DB18: 0.00% | DC18: 0.00% | DD18: 0.00% | DE18: 0.00% | DF18: 0.00% | DG18: 0.00% | DH18: 0.00% | DI18: 0.00% | DJ18: 0.00% | DK18: 0.00% | DL18: 0.00% | DM18: 0.00% | DN18: 0.00% | DO18: 0.00% | DP18: 0.00% | DQ18: 0.00% | DR18: 0.00% | DS18: 0.00% | DT18: 0.00% | DU18: 0.00% | DV18: 0.00% | DW18: 0.00% | DX18: 0.00% | DY18: 0.00% | DZ18: 0.00% | EA18: 0.00% | EB18: 0.00% | EC18: 0.00% | ED18: 0.00% | EE18: 0.00% | EF18: 0.00% | EG18: 0.00% | EH18: 0.00% | EI18: 0.00% | EJ18: 0.00% | EK18: 0.00% | EL18: 0.00% | EM18: 0.00% | EN18: 0.00% | EO18: 0.00% | EP18: 0.00% | EQ18: 0.00% | ER18: 0.00% | ES18: 0.00% | ET18: 0.00% | EU18: 0.00% | EV18: 0.00% | EW18: 0.00% | EX18: 0.00% | EY18: 0.00% | EZ18: 0.00% | FA18: 0.00% | FB18: 0.00% | FC18: 0.00%
A19: 19 | G19: 0 | H19: План-график капзатрат этапа ГРР | I19: Капзатраты этапа ГРР по месторождению-3 | M19: руб. // % | P19: * | Q19: 335,000,000 | S19: 0 | T19: 0 | X19: 100.00% | Y19: * | AA19: 0.00% | AB19: 0.00% | AC19: 0.00% | AD19: 0.00% | AE19: 0.00% | AF19: 0.00% | AG19: 25.00% | AH19: 25.00% | AI19: 25.00% | AJ19: 25.00% | AK19: 0.00% | AL19: 0.00% | AM19: 0.00% | AN19: 0.00% | AO19: 0.00% | AP19: 0.00% | AQ19: 0.00% | AR19: 0.00% | AS19: 0.00% | AT19: 0.00% | AU19: 0.00% | AV19: 0.00% | AW19: 0.00% | AX19: 0.00% | AY19: 0.00% | AZ19: 0.00% | BA19: 0.00% | BB19: 0.00% | BC19: 0.00% | BD19: 0.00% | BE19: 0.00% | BF19: 0.00% | BG19: 0.00% | BH19: 0.00% | BI19: 0.00% | BJ19: 0.00% | BK19: 0.00% | BL19: 0.00% | BM19: 0.00% | BN19: 0.00% | BO19: 0.00% | BP19: 0.00% | BQ19: 0.00% | BR19: 0.00% | BS19: 0.00% | BT19: 0.00% | BU19: 0.00% | BV19: 0.00% | BW19: 0.00% | BX19: 0.00% | BY19: 0.00% | BZ19: 0.00% | CA19: 0.00% | CB19: 0.00% | CC19: 0.00% | CD19: 0.00% | CE19: 0.00% | CF19: 0.00% | CG19: 0.00% | CH19: 0.00% | CI19: 0.00% | CJ19: 0.00% | CK19: 0.00% | CL19: 0.00% | CM19: 0.00% | CN19: 0.00% | CO19: 0.00% | CP19: 0.00% | CQ19: 0.00% | CR19: 0.00% | CS19: 0.00% | CT19: 0.00% | CU19: 0.00% | CV19: 0.00% | CW19: 0.00% | CX19: 0.00% | CY19: 0.00% | CZ19: 0.00% | DA19: 0.00% | DB19: 0.00% | DC19: 0.00% | DD19: 0.00% | DE19: 0.00% | DF19: 0.00% | DG19: 0.00% | DH19: 0.00% | DI19: 0.00% | DJ19: 0.00% | DK19: 0.00% | DL19: 0.00% | DM19: 0.00% | DN19: 0.00% | DO19: 0.00% | DP19: 0.00% | DQ19: 0.00% | DR19: 0.00% | DS19: 0.00% | DT19: 0.00% | DU19: 0.00% | DV19: 0.00% | DW19: 0.00% | DX19: 0.00% | DY19: 0.00% | DZ19: 0.00% | EA19: 0.00% | EB19: 0.00% | EC19: 0.00% | ED19: 0.00% | EE19: 0.00% | EF19: 0.00% | EG19: 0.00% | EH19: 0.00% | EI19: 0.00% | EJ19: 0.00% | EK19: 0.00% | EL19: 0.00% | EM19: 0.00% | EN19: 0.00% | EO19: 0.00% | EP19: 0.00% | EQ19: 0.00% | ER19: 0.00% | ES19: 0.00% | ET19: 0.00% | EU19: 0.00% | EV19: 0.00% | EW19: 0.00% | EX19: 0.00% | EY19: 0.00% | EZ19: 0.00% | FA19: 0.00% | FB19: 0.00% | FC19: 0.00%
A20: 20 | G20: 0 | H20: План-график капзатрат этапа ГРР | I20: Капзатраты этапа ГРР по месторождению-4 | M20: руб. // % | P20: * | Q20: 385,000,000 | S20: 0 | T20: 0 | X20: 100.00% | Y20: * | AA20: 0.00% | AB20: 0.00% | AC20: 0.00% | AD20: 25.00% | AE20: 25.00% | AF20: 25.00% | AG20: 25.00% | AH20: 0.00% | AI20: 0.00% | AJ20: 0.00% | AK20: 0.00% | AL20: 0.00% | AM20: 0.00% | AN20: 0.00% | AO20: 0.00% | AP20: 0.00% | AQ20: 0.00% | AR20: 0.00% | AS20: 0.00% | AT20: 0.00% | AU20: 0.00% | AV20: 0.00% | AW20: 0.00% | AX20: 0.00% | AY20: 0.00% | AZ20: 0.00% | BA20: 0.00% | BB20: 0.00% | BC20: 0.00% | BD20: 0.00% | BE20: 0.00% | BF20: 0.00% | BG20: 0.00% | BH20: 0.00% | BI20: 0.00% | BJ20: 0.00% | BK20: 0.00% | BL20: 0.00% | BM20: 0.00% | BN20: 0.00% | BO20: 0.00% | BP20: 0.00% | BQ20: 0.00% | BR20: 0.00% | BS20: 0.00% | BT20: 0.00% | BU20: 0.00% | BV20: 0.00% | BW20: 0.00% | BX20: 0.00% | BY20: 0.00% | BZ20: 0.00% | CA20: 0.00% | CB20: 0.00% | CC20: 0.00% | CD20: 0.00% | CE20: 0.00% | CF20: 0.00% | CG20: 0.00% | CH20: 0.00% | CI20: 0.00% | CJ20: 0.00% | CK20: 0.00% | CL20: 0.00% | CM20: 0.00% | CN20: 0.00% | CO20: 0.00% | CP20: 0.00% | CQ20: 0.00% | CR20: 0.00% | CS20: 0.00% | CT20: 0.00% | CU20: 0.00% | CV20: 0.00% | CW20: 0.00% | CX20: 0.00% | CY20: 0.00% | CZ20: 0.00% | DA20: 0.00% | DB20: 0.00% | DC20: 0.00% | DD20: 0.00% | DE20: 0.00% | DF20: 0.00% | DG20: 0.00% | DH20: 0.00% | DI20: 0.00% | DJ20: 0.00% | DK20: 0.00% | DL20: 0.00% | DM20: 0.00% | DN20: 0.00% | DO20: 0.00% | DP20: 0.00% | DQ20: 0.00% | DR20: 0.00% | DS20: 0.00% | DT20: 0.00% | DU20: 0.00% | DV20: 0.00% | DW20: 0.00% | DX20: 0.00% | DY20: 0.00% | DZ20: 0.00% | EA20: 0.00% | EB20: 0.00% | EC20: 0.00% | ED20: 0.00% | EE20: 0.00% | EF20: 0.00% | EG20: 0.00% | EH20: 0.00% | EI20: 0.00% | EJ20: 0.00% | EK20: 0.00% | EL20: 0.00% | EM20: 0.00% | EN20: 0.00% | EO20: 0.00% | EP20: 0.00% | EQ20: 0.00% | ER20: 0.00% | ES20: 0.00% | ET20: 0.00% | EU20: 0.00% | EV20: 0.00% | EW20: 0.00% | EX20: 0.00% | EY20: 0.00% | EZ20: 0.00% | FA20: 0.00% | FB20: 0.00% | FC20: 0.00%
A21: 21 | L21: пустая строка
A22: 22 | T22: 0 | X22: 0 | AA22: 0 | AB22: 0 | AC22: 0 | AD22: 0 | AE22: 0 | AF22: 0 | AG22: 0 | AH22: 0 | AI22: 0 | AJ22: 0 | AK22: 0 | AL22: 0 | AM22: 0 | AN22: 0 | AO22: 0 | AP22: 0 | AQ22: 0 | AR22: 0 | AS22: 0 | AT22: 0 | AU22: 0 | AV22: 0 | AW22: 0 | AX22: 0 | AY22: 0 | AZ22: 0 | BA22: 0 | BB22: 0 | BC22: 0 | BD22: 0 | BE22: 0 | BF22: 0 | BG22: 0 | BH22: 0 | BI22: 0 | BJ22: 0 | BK22: 0 | BL22: 0 | BM22: 0 | BN22: 0 | BO22: 0 | BP22: 0 | BQ22: 0 | BR22: 0 | BS22: 0 | BT22: 0 | BU22: 0 | BV22: 0 | BW22: 0 | BX22: 0 | BY22: 0 | BZ22: 0 | CA22: 0 | CB22: 0 | CC22: 0 | CD22: 0 | CE22: 0 | CF22: 0 | CG22: 0 | CH22: 0 | CI22: 0 | CJ22: 0 | CK22: 0 | CL22: 0 | CM22: 0 | CN22: 0 | CO22: 0 | CP22: 0 | CQ22: 0 | CR22: 0 | CS22: 0 | CT22: 0 | CU22: 0 | CV22: 0 | CW22: 0 | CX22: 0 | CY22: 0 | CZ22: 0 | DA22: 0 | DB22: 0 | DC22: 0 | DD22: 0 | DE22: 0 | DF22: 0 | DG22: 0 | DH22: 0 | DI22: 0 | DJ22: 0 | DK22: 0 | DL22: 0 | DM22: 0 | DN22: 0 | DO22: 0 | DP22: 0 | DQ22: 0 | DR22: 0 | DS22: 0 | DT22: 0 | DU22: 0 | DV22: 0 | DW22: 0 | DX22: 0 | DY22: 0 | DZ22: 0 | EA22: 0 | EB22: 0 | EC22: 0 | ED22: 0 | EE22: 0 | EF22: 0 | EG22: 0 | EH22: 0 | EI22: 0 | EJ22: 0 | EK22: 0 | EL22: 0 | EM22: 0 | EN22: 0 | EO22: 0 | EP22: 0 | EQ22: 0 | ER22: 0 | ES22: 0 | ET22: 0 | EU22: 0 | EV22: 0 | EW22: 0 | EX22: 0 | EY22: 0 | EZ22: 0 | FA22: 0 | FB22: 0 | FC22: 0
A23: 23 | G23: 0 | H23: Капзатраты этапа ГРР | M23: руб. | Q23: начисление | T23: 0 | X23: 1,240,000,000 | AA23: 71,250,000 | AB23: 130,000,000 | AC23: 130,000,000 | AD23: 226,250,000 | AE23: 155,000,000 | AF23: 96,250,000 | AG23: 180,000,000 | AH23: 83,750,000 | AI23: 83,750,000 | AJ23: 83,750,000 | AK23: 0 | AL23: 0 | AM23: 0 | AN23: 0 | AO23: 0 | AP23: 0 | AQ23: 0 | AR23: 0 | AS23: 0 | AT23: 0 | AU23: 0 | AV23: 0 | AW23: 0 | AX23: 0 | AY23: 0 | AZ23: 0 | BA23: 0 | BB23: 0 | BC23: 0 | BD23: 0 | BE23: 0 | BF23: 0 | BG23: 0 | BH23: 0 | BI23: 0 | BJ23: 0 | BK23: 0 | BL23: 0 | BM23: 0 | BN23: 0 | BO23: 0 | BP23: 0 | BQ23: 0 | BR23: 0 | BS23: 0 | BT23: 0 | BU23: 0 | BV23: 0 | BW23: 0 | BX23: 0 | BY23: 0 | BZ23: 0 | CA23: 0 | CB23: 0 | CC23: 0 | CD23: 0 | CE23: 0 | CF23: 0 | CG23: 0 | CH23: 0 | CI23: 0 | CJ23: 0 | CK23: 0 | CL23: 0 | CM23: 0 | CN23: 0 | CO23: 0 | CP23: 0 | CQ23: 0 | CR23: 0 | CS23: 0 | CT23: 0 | CU23: 0 | CV23: 0 | CW23: 0 | CX23: 0 | CY23: 0 | CZ23: 0 | DA23: 0 | DB23: 0 | DC23: 0 | DD23: 0 | DE23: 0 | DF23: 0 | DG23: 0 | DH23: 0 | DI23: 0 | DJ23: 0 | DK23: 0 | DL23: 0 | DM23: 0 | DN23: 0 | DO23: 0 | DP23: 0 | DQ23: 0 | DR23: 0 | DS23: 0 | DT23: 0 | DU23: 0 | DV23: 0 | DW23: 0 | DX23: 0 | DY23: 0 | DZ23: 0 | EA23: 0 | EB23: 0 | EC23: 0 | ED23: 0 | EE23: 0 | EF23: 0 | EG23: 0 | EH23: 0 | EI23: 0 | EJ23: 0 | EK23: 0 | EL23: 0 | EM23: 0 | EN23: 0 | EO23: 0 | EP23: 0 | EQ23: 0 | ER23: 0 | ES23: 0 | ET23: 0 | EU23: 0 | EV23: 0 | EW23: 0 | EX23: 0 | EY23: 0 | EZ23: 0 | FA23: 0 | FB23: 0 | FC23: 0
